Workbook

Sheet 0.Leitfaden
D1: =ROW() -> 1 | L1: Zeile-Filter
B2: 0. | C2: [ | D2: ] | F2: F | H2: G | J2: J | K2: K | M2: =BK2 -> 0. | N2: ='2.Kalkulation'!$J$3 -> P000100-D.H2i-L. | O2: R | T2: Erledigt = 0 | U2: Gerade/Ungerade | X2: ="I_!" -> I_! | Y2: F | Z2: L | AA2: N | AB2: C | AD2: E | AE2: B | AF2: K | AG2: =SUBSTITUTE(ADDRESS(1,COLUMN(),4),1,) -> AG | AH2: ="IL_!" -> IL_! | AI2: B | AJ2: C | AK2: D | AL2: E | AM2: F | AN2: G | AO2: H | AP2: [L.xlsx] | AQ2: L. | AS2: [ | AT2: ] | AU2: =#REF! ->  | AW2: EB n.Quellen>> | AX2: Bilanz: | AY2: 0 | BG2: Vorlagen>>> | BH2: =BI2&BK2 -> P.0. | BI2: =MID(BJ2,1,1)&"." -> P. | BJ2: =MID(BM2,FIND("[",BM2)+1,FIND("xlsm",BM2)-FIND("[",BM2)-2) -> P000100-D.H2i-L. | BK2: =LEFT(BL2,FIND(".",BL2)) -> 0. | BL2: =MID(BM2,FIND("]",BM2)+1,255) -> 0.Leitfaden | BM2: =CELL("dateiname",BM2) -> C:\Users\schmi\Documents\_wattweg2008\Veranstaltungen_2024\240828WorkshopRegionalplaner\Arbeitsordner200822m\[P000100-D.H2i-L..xlsm]0.Leitfaden | BT2: D | BU2: [ | BV2: ] | BW2: [D.xlsx] | BX2: ="["&BJ2&"xlsx]" -> [P000100-D.H2i-L.xlsx] | BZ2: =BI2&BK2&" - " -> P.0. - | CA2: ="'"&'0.Leitfaden'!#REF!&" "&'0.Leitfaden'!#REF!&" 100%EE' ("&'0.Leitfaden'!#REF!&")" ->  | CD2: =Versionen!A1 -> 240826e | CE2: =TEXT(TODAY(),"tt.MM.jjjj") -> 27.08.2024 | CF2: =TEXT(NOW(),"hh:mm") -> 13:04 | CG2: ="100prosim.P ("&BJ2&".xlsx, V."&CD2&") - "&CE2&" "&CF2 -> 100prosim.P (P000100-D.H2i-L..xlsx, V.240826e) - 27.08.2024 13:04 | CQ2: 09.01
J3: =CG2 -> 100prosim.P (P000100-D.H2i-L..xlsx, V.240826e) - 27.08.2024 13:04 | L3: 1
D4: =BI2&BL2&" - "&'1.Ansicht'!BF3 -> P.0.Leitfaden - Energieszenario 'Landkreis 100% EE' (P000100-D.H2i-L.) | L4: 1
B5: =C$2&B$2&D5&D$2 -> [0.5] | C5: =C$2&D5&D$2 -> [5] | D5: =ROW() -> 5 | K5: Hilfe | L5: 1
B6: [0.6] | C6: [6] | D6: =ROW() -> 6 | E6: Was ist 100prosim.P? | L6: 1 | U6: =IF(D6/2=ROUND(D6/2,0),0,1) -> 0
B7: =C$2&B$2&D7&D$2 -> [0.7] | C7: [7] | D7: =ROW() -> 7 | H7: Tool zur schnellen Modellierung von Energieszenarien mit. 100% Erneuerbaren Energien für beliebige Landkreise, Städte, Gemeinden. durch Projektion eines 100prosim-Basisszenarios vom Bundesland oder Deutschand. | L7: 2 | U7: 1
B8: [0.8] | C8: =C$2&D8&D$2 -> [8] | D8: =ROW() -> 8 | I8: Weitere Infos siehe Hilfe >>> | K8: =IF(M8=0,"",HYPERLINK("["&'6.Standarddaten'!$M$2&".xlsm]'"&'6.Standarddaten'!$N$3&M8,"["&'6.Standarddaten'!$M$3&M8&"]")) -> [8.7] | L8: 2 | M8: ='8.Hilfe'!$D$7 -> 7 | U8: 0
B9: =C$2&B$2&D9&D$2 -> [0.9] | C9: =C$2&D9&D$2 -> [9] | D9: =ROW() -> 9 | L9: 1 | U9: 1
B10: [0.10] | C10: [10] | D10: =ROW() -> 10 | E10: 100prosim.P nutzen? | L10: 1 | U10: 0
B11: [0.11] | C11: [11] | D11: =ROW() -> 11 | F11: - | G11: Zurechtfinden: Einführungs-Infos zu Tabellen, Zeilen, Verweisen >>> | K11: =IF(M11=0,"",HYPERLINK("["&'6.Standarddaten'!$M$2&".xlsm]'"&'6.Standarddaten'!$N$3&M11,"["&'6.Standarddaten'!$M$3&M11&"]")) -> [8.23] | L11: 2 | M11: ='8.Hilfe'!$D$23 -> 23 | U11: 1
B12: =C$2&B$2&D12&D$2 -> [0.12] | C12: [12] | D12: =ROW() -> 12 | F12: - | G12: Navigieren: Hyperlinks optimal nutzen >>> | K12: =IF(M12=0,"",HYPERLINK("["&'6.Standarddaten'!$M$2&".xlsm]'"&'6.Standarddaten'!$N$3&M12,"["&'6.Standarddaten'!$M$3&M12&"]")) -> [8.32] | L12: 2 | M12: ='8.Hilfe'!$D$32 -> 32 | U12: 0
B13: =C$2&B$2&D13&D$2 -> [0.13] | C13: [13] | D13: =ROW() -> 13 | F13: - | G13: Daten eingeben: Eigenes Szenario definieren, Werte verändern >>> | K13: =IF(M13=0,"",HYPERLINK("["&'6.Standarddaten'!$M$2&".xlsm]'"&'6.Standarddaten'!$N$3&M13,"["&'6.Standarddaten'!$M$3&M13&"]")) -> [8.36] | L13: 2 | M13: ='8.Hilfe'!$D$36 -> 36 | U13: 1
B14: =C$2&B$2&D14&D$2 -> [0.14] | C14: [14] | D14: =ROW() -> 14 | L14: 1 | U14: 0
B15: [0.15] | C15: [15] | D15: =ROW() -> 15 | E15: Szenario anlegen: Setup | L15: 1 | T15: ='5.Kenndaten'!Z20+'6.Standarddaten'!O8 -> 9 | U15: 1
B16: [0.16] | C16: [16] | D16: =ROW() -> 16 | F16: Express-Setup (oblitatorisch, < 1 h) | J16: =IF(T16=0,"OK","") ->  | K16: =IF(M16=0,"",HYPERLINK("["&'6.Standarddaten'!$M$2&".xlsm]'"&'6.Standarddaten'!$N$3&M16,"["&'6.Standarddaten'!$M$3&M16&"]")) -> [8.41] | L16: 2 | M16: ='8.Hilfe'!$D$41 -> 41 | T16: =SUM(T17:T19) -> 9 | U16: 0
B17: [0.17] | C17: [17] | D17: =ROW() -> 17 | F17: - | G17: Teil 1 - Kenndaten: Name Zielregion, Version, UrheberIn, Basisszenario | J17: =IF(S17=0,"",HYPERLINK("["&N$2&".xlsm]'"&MID(P17,3,20),"→["&Q17&"."&S17&"]")) -> →[5.7] | K17: =IF(M17=0,"",HYPERLINK("["&'6.Standarddaten'!$M$2&".xlsm]'"&'6.Standarddaten'!$N$3&M17,"["&'6.Standarddaten'!$M$3&M17&"]")) -> [8.44] | M17: ='8.Hilfe'!$D$44 -> 44 | N17: ='5.Kenndaten'!D7 -> 7 | P17: =IFERROR(_xlfn.FORMULATEXT(N17),"") -> ='5.Kenndaten'!D7 | Q17: =IF(MID(P17,2,1)="'",VALUE(MID(P17,3,1)),0) -> 5 | R17: =IF(Q17>4,RIGHT(P17,LEN(P17)-FIND("!",P17)),) -> D7 | S17: =IF(Q17>4,RIGHT(P17,LEN(P17)-FIND("!",P17)-1),) -> 7 | T17: ='5.Kenndaten'!Z20 -> 3 | U17: 1
B18: =C$2&B$2&D18&D$2 -> [0.18] | C18: [18] | D18: =ROW() -> 18 | F18: - | G18: Teil 2 - Strukturdaten: Bevölkerungszahl und Flächen der Zielregion | J18: =IF(S18=0,"",HYPERLINK("["&N$2&".xlsm]'"&MID(P18,3,20),"→["&Q18&"."&S18&"]")) -> →[6.8] | K18: =IF(M18=0,"",HYPERLINK("["&'6.Standarddaten'!$M$2&".xlsm]'"&'6.Standarddaten'!$N$3&M18,"["&'6.Standarddaten'!$M$3&M18&"]")) -> [8.60] | M18: ='8.Hilfe'!$D$60 -> 60 | N18: ='6.Standarddaten'!D8 -> 8 | P18: =IFERROR(_xlfn.FORMULATEXT(N18),"") -> ='6.Standarddaten'!D8 | Q18: =IF(MID(P18,2,1)="'",VALUE(MID(P18,3,1)),0) -> 6 | R18: =IF(Q18>4,RIGHT(P18,LEN(P18)-FIND("!",P18)),) -> D8 | S18: =IF(Q18>4,RIGHT(P18,LEN(P18)-FIND("!",P18)-1),) -> 8 | T18: ='6.Standarddaten'!O8 -> 6 | U18: 0
B19: [0.19] | C19: [19] | D19: =ROW() -> 19 | F19: - | G19: Teil 3 - Lage: Zielregion in Karte markieren | J19: =IF(S19=0,"",HYPERLINK("["&N$2&".xlsm]'"&MID(P19,3,20),"→["&Q19&"."&S19&"]")) -> →[1.13] | K19: =IF(M19=0,"",HYPERLINK("["&'6.Standarddaten'!$M$2&".xlsm]'"&'6.Standarddaten'!$N$3&M19,"["&'6.Standarddaten'!$M$3&M19&"]")) -> [8.54] | M19: ='8.Hilfe'!$D$54 -> 54 | N19: ='1.Ansicht'!D13 -> 13 | P19: =IFERROR(_xlfn.FORMULATEXT(N19),"") -> ='1.Ansicht'!D13 | Q19: =IF(MID(P19,2,1)="'",VALUE(MID(P19,3,1)),0) -> 1 | R19: =IF(Q19>0,RIGHT(P19,LEN(P19)-FIND("!",P19)),) -> D13 | S19: =IF(Q19>0,RIGHT(P19,LEN(P19)-FIND("!",P19)-1),) -> 13 | T19: ='1.Ansicht'!Z15 -> 0 | U19: 1
B20: [0.20] | C20: [20] | D20: =ROW() -> 20 | L20: 2 | U20: 0
B21: [0.21] | C21: [21] | D21: =ROW() -> 21 | F21: Standard-Setup+ (empfohlen, < 1 h) | J21: =IF(T21=0,"OK","") ->  | K21: =IF(M21=0,"",HYPERLINK("["&'6.Standarddaten'!$M$2&".xlsm]'"&'6.Standarddaten'!$N$3&M21,"["&'6.Standarddaten'!$M$3&M21&"]")) -> [8.88] | L21: 2 | M21: ='8.Hilfe'!$D$88 -> 88 | T21: =T22 -> 3 | U21: 1
B22: [0.22] | C22: [22] | D22: =ROW() -> 22 | F22: - | G22: Statusdaten: Windstrom, Solarstrom | J22: =IF(S22=0,"",HYPERLINK("["&N$2&".xlsm]'"&MID(P22,3,20),"→["&Q22&"."&S22&"]")) -> →[6.8] | K22: =IF(M22=0,"",HYPERLINK("["&'6.Standarddaten'!$M$2&".xlsm]'"&'6.Standarddaten'!$N$3&M22,"["&'6.Standarddaten'!$M$3&M22&"]")) -> [8.91] | M22: ='8.Hilfe'!$D$91 -> 91 | N22: ='6.Standarddaten'!D8 -> 8 | P22: =IFERROR(_xlfn.FORMULATEXT(N22),"") -> ='6.Standarddaten'!D8 | Q22: =IF(MID(P22,2,1)="'",VALUE(MID(P22,3,1)),0) -> 6 | R22: =IF(Q22>4,RIGHT(P22,LEN(P22)-FIND("!",P22)),) -> D8 | S22: =IF(Q22>4,RIGHT(P22,LEN(P22)-FIND("!",P22)-1),) -> 8 | T22: ='6.Standarddaten'!O45 -> 3 | U22: 0
B23: [0.23] | C23: =C$2&D23&D$2 -> [23] | D23: =ROW() -> 23 | F23: - | G23: Statusdaten: Strom aus Wasserkraft | J23: =IF(S23=0,"",HYPERLINK("["&N$2&".xlsm]'"&MID(P23,3,20),"→["&Q23&"."&S23&"]")) -> →[7.8] | K23: =IF(M23=0,"",HYPERLINK("["&'6.Standarddaten'!$M$2&".xlsm]'"&'6.Standarddaten'!$N$3&M23,"["&'6.Standarddaten'!$M$3&M23&"]")) -> [8.117] | M23: ='8.Hilfe'!$D$117 -> 117 | N23: ='7.Extradaten'!D8 -> 8 | P23: =IFERROR(_xlfn.FORMULATEXT(N23),"") -> ='7.Extradaten'!D8 | Q23: =IF(MID(P23,2,1)="'",VALUE(MID(P23,3,1)),0) -> 7 | R23: =IF(Q23>4,RIGHT(P23,LEN(P23)-FIND("!",P23)),) -> D8 | S23: =IF(Q23>4,RIGHT(P23,LEN(P23)-FIND("!",P23)-1),) -> 8 | T23: ='6.Standarddaten'!O45 -> 3 | U23: =IF(D23/2=ROUND(D23/2,0),0,1) -> 1
B24: =C$2&B$2&D24&D$2 -> [0.24] | C24: [24] | D24: =ROW() -> 24 | F24: - | G24: Statusdaten: Strom aus Biomasse | J24: =IF(S24=0,"",HYPERLINK("["&N$2&".xlsm]'"&MID(P24,3,20),"→["&Q24&"."&S24&"]")) -> →[7.9] | K24: =IF(M24=0,"",HYPERLINK("["&'6.Standarddaten'!$M$2&".xlsm]'"&'6.Standarddaten'!$N$3&M24,"["&'6.Standarddaten'!$M$3&M24&"]")) -> [8.117] | M24: ='8.Hilfe'!$D$117 -> 117 | N24: ='7.Extradaten'!D9 -> 9 | P24: =IFERROR(_xlfn.FORMULATEXT(N24),"") -> ='7.Extradaten'!D9 | Q24: =IF(MID(P24,2,1)="'",VALUE(MID(P24,3,1)),0) -> 7 | R24: =IF(Q24>4,RIGHT(P24,LEN(P24)-FIND("!",P24)),) -> D9 | S24: =IF(Q24>4,RIGHT(P24,LEN(P24)-FIND("!",P24)-1),) -> 9 | T24: ='6.Standarddaten'!O46 -> 0 | U24: 0
B25: [0.25] | C25: =C$2&D25&D$2 -> [25] | D25: =ROW() -> 25 | L25: 2 | U25: =IF(D25/2=ROUND(D25/2,0),0,1) -> 1
B26: =C$2&B$2&D26&D$2 -> [0.26] | C26: [26] | D26: =ROW() -> 26 | F26: Extra-Setup+ (bei Bedarf) | K26: =IF(M26=0,"",HYPERLINK("["&'6.Standarddaten'!$M$2&".xlsm]'"&'6.Standarddaten'!$N$3&M26,"["&'6.Standarddaten'!$M$3&M26&"]")) -> [8.121] | L26: 2 | M26: ='8.Hilfe'!$D$121 -> 121 | U26: 0
B27: [0.27] | C27: [27] | D27: =ROW() -> 27 | F27: - | G27: Statusdaten Gebäudewärme: Tatsächliche Regionaldaten erfassen | J27: =IF(N27=0,"",HYPERLINK("["&N$2&".xlsm]'"&MID(P27,3,20),"→["&Q27&"."&N27&"]")) -> →[2.51] | K27: =IF(M27=0,"",HYPERLINK("["&'6.Standarddaten'!$M$2&".xlsm]'"&'6.Standarddaten'!$N$3&M27,"["&'6.Standarddaten'!$M$3&M27&"]")) -> [8.122] | M27: ='8.Hilfe'!$D122 -> 122 | N27: ='2.Kalkulation'!E51 -> 51 | P27: =IFERROR(_xlfn.FORMULATEXT(N27),"") -> ='2.Kalkulation'!E51 | Q27: =IF(MID(P27,2,1)="'",VALUE(MID(P27,3,1)),0) -> 2 | R27: =IF(Q27>4,RIGHT(P27,LEN(P27)-FIND("!",P27)),) -> 0 | S27: =IF(Q27>4,RIGHT(P27,LEN(P27)-FIND("!",P27)-1),) -> 0 | U27: 1
B28: [0.28] | C28: [28] | D28: =ROW() -> 28 | L28: 1 | U28: 0
B29: [0.29] | C29: [29] | D29: =ROW() -> 29 | E29: Szenario anwenden | K29: =IF(M29=0,"",HYPERLINK("["&'6.Standarddaten'!$M$2&".xlsm]'"&'6.Standarddaten'!$N$3&M29,"["&'6.Standarddaten'!$M$3&M29&"]")) -> [8.126] | L29: 1 | M29: ='8.Hilfe'!$D$126 -> 126
B30: [0.30] | C30: [30] | D30: =ROW() -> 30 | F30: Szenario betrachten | K30: =IF(M30=0,"",HYPERLINK("["&'6.Standarddaten'!$M$2&".xlsm]'"&'6.Standarddaten'!$N$3&M30,"["&'6.Standarddaten'!$M$3&M30&"]")) -> [8.132] | L30: 2 | M30: ='8.Hilfe'!$D$132 -> 132 | U30: =IF(D30/2=ROUND(D30/2,0),0,1) -> 0
B31: [0.31] | C31: [31] | D31: =ROW() -> 31 | G31: Lage Zielgebiet in Basisregion | J31: =IF(S31=0,"",HYPERLINK("["&N$2&".xlsm]'"&MID(P31,3,20),"→["&Q31&"."&S31&"]")) -> →[1.8] | K31: =IF(M31=0,"",HYPERLINK("["&'6.Standarddaten'!$M$2&".xlsm]'"&'6.Standarddaten'!$N$3&M31,"["&'6.Standarddaten'!$M$3&M31&"]")) ->  | N31: ='1.Ansicht'!D8 -> 8 | P31: =IFERROR(_xlfn.FORMULATEXT(N31),"") -> ='1.Ansicht'!D8 | Q31: =IF(MID(P31,2,1)="'",VALUE(MID(P31,3,1)),0) -> 1 | R31: =IF(Q31>0,RIGHT(P31,LEN(P31)-FIND("!",P31)),) -> D8 | S31: =IF(Q31>0,RIGHT(P31,LEN(P31)-FIND("!",P31)-1),) -> 8 | U31: 1
B32: [0.32] | C32: [32] | D32: =ROW() -> 32 | G32: Kenndaten: Zielgebiet, ErstellerIn, Basisszenario, Identifikator | J32: →[1.38] | K32: =IF(M32=0,"",HYPERLINK("["&'6.Standarddaten'!$M$2&".xlsm]'"&'6.Standarddaten'!$N$3&M32,"["&'6.Standarddaten'!$M$3&M32&"]")) ->  | N32: ='1.Ansicht'!D38 -> 38 | P32: ='1.Ansicht'!D38 | Q32: =IF(MID(P32,2,1)="'",VALUE(MID(P32,3,1)),0) -> 1 | R32: =IF(Q32>0,RIGHT(P32,LEN(P32)-FIND("!",P32)),) -> D38 | S32: =IF(Q32>0,RIGHT(P32,LEN(P32)-FIND("!",P32)-1),) -> 38 | U32: 0
B33: =C$2&B$2&D33&D$2 -> [0.33] | C33: [33] | D33: =ROW() -> 33 | G33: Eckdaten Zielgebiet: Bevölkerung, Flächenstruktur | J33: →[1.47] | K33: =IF(M33=0,"",HYPERLINK("["&'6.Standarddaten'!$M$2&".xlsm]'"&'6.Standarddaten'!$N$3&M33,"["&'6.Standarddaten'!$M$3&M33&"]")) -> [8.133] | M33: ='8.Hilfe'!$D$133 -> 133 | N33: ='1.Ansicht'!D47 -> 47 | P33: ='1.Ansicht'!D47 | Q33: 1 | R33: D47 | S33: 47 | U33: 1
B34: [0.34] | C34: [34] | D34: =ROW() -> 34 | G34: Fragestellung: Anteil Zielregion an 100% EE der Basisregion? | J34: →[1.56] | K34: =IF(M34=0,"",HYPERLINK("["&'6.Standarddaten'!$M$2&".xlsm]'"&'6.Standarddaten'!$N$3&M34,"["&'6.Standarddaten'!$M$3&M34&"]")) -> [8.135] | M34: ='8.Hilfe'!$D$135 -> 135 | N34: ='1.Ansicht'!D56 -> 56 | P34: ='1.Ansicht'!D56 | Q34: 1 | R34: D56 | S34: 56 | U34: 0
B35: =C$2&B$2&D35&D$2 -> [0.35] | C35: [35] | D35: =ROW() -> 35 | G35: Basisszenario: Verbrauchsdeckung mit 100% Erneuerbaren | J35: →[5.4] | K35: =IF(M35=0,"",HYPERLINK("["&'6.Standarddaten'!$M$2&".xlsm]'"&'6.Standarddaten'!$N$3&M35,"["&'6.Standarddaten'!$M$3&M35&"]")) -> [8.137] | M35: ='8.Hilfe'!$D$137 -> 137 | N35: ='51.Basisszenario'!A4 -> 0 | P35: ='51.Basisszenario'!A4 | Q35: 5 | R35: =IF(Q35>0,RIGHT(P35,LEN(P35)-FIND("!",P35)),) -> A4 | S35: =IF(Q35>0,RIGHT(P35,LEN(P35)-FIND("!",P35)-1),) -> 4 | U35: 1
B36: [0.36] | C36: [36] | D36: =ROW() -> 36 | G36: Wind-/Solarstrom: Zielszenario Flächen-proportional zu Basisszenario | J36: →[1.59] | K36: =IF(M36=0,"",HYPERLINK("["&'6.Standarddaten'!$M$2&".xlsm]'"&'6.Standarddaten'!$N$3&M36,"["&'6.Standarddaten'!$M$3&M36&"]")) -> [8.142] | M36: ='8.Hilfe'!$D$142 -> 142 | N36: ='1.Ansicht'!D59 -> 59 | P36: ='1.Ansicht'!D59 | Q36: 1 | R36: D59 | S36: 59 | U36: 0
B37: [0.37] | C37: [37] | D37: =ROW() -> 37 | H37: Diagramm: Anteil an der Energieerzeugung | K37: =IF(M37=0,"",HYPERLINK("["&'6.Standarddaten'!$M$2&".xlsm]'"&'6.Standarddaten'!$N$3&M37,"["&'6.Standarddaten'!$M$3&M37&"]")) -> [8.143] | M37: ='8.Hilfe'!$D$143 -> 143 | N37: ='1.Ansicht'!D59 -> 59 | P37: ='1.Ansicht'!D59 | Q37: 1 | R37: =IF(Q37>0,RIGHT(P37,LEN(P37)-FIND("!",P37)),) -> D59 | S37: =IF(Q37>0,RIGHT(P37,LEN(P37)-FIND("!",P37)-1),) -> 59 | U37: 1
B38: =C$2&B$2&D38&D$2 -> [0.38] | C38: =C$2&D38&D$2 -> [38] | D38: =ROW() -> 38 | H38: Status einblenden - Herausforderung wird hier in ganzer Härte sichtbar! | J38: =IF(S38=0,"",HYPERLINK("["&N$2&".xlsm]'"&MID(P38,3,20),"→["&Q38&"."&S38&"]")) -> →[1.6] | K38: =IF(M38=0,"",HYPERLINK("["&'6.Standarddaten'!$M$2&".xlsm]'"&'6.Standarddaten'!$N$3&M38,"["&'6.Standarddaten'!$M$3&M38&"]")) -> [8.144] | M38: ='8.Hilfe'!$D$144 -> 144 | N38: ='1.Ansicht'!D6 -> 6 | P38: ='1.Ansicht'!D6 | Q38: =IF(MID(P38,2,1)="'",VALUE(MID(P38,3,1)),0) -> 1 | R38: =IF(Q38>0,RIGHT(P38,LEN(P38)-FIND("!",P38)),) -> D6 | S38: =IF(Q38>0,RIGHT(P38,LEN(P38)-FIND("!",P38)-1),) -> 6 | U38: 0
B39: =C$2&B$2&D39&D$2 -> [0.39] | C39: =C$2&D39&D$2 -> [39] | D39: =ROW() -> 39 | H39: Wertetabelle einblenden | J39: =IF(S39=0,"",HYPERLINK("["&N$2&".xlsm]'"&MID(P39,3,20),"→["&Q39&"."&S39&"]")) -> →[1.6] | K39: =IF(M39=0,"",HYPERLINK("["&'6.Standarddaten'!$M$2&".xlsm]'"&'6.Standarddaten'!$N$3&M39,"["&'6.Standarddaten'!$M$3&M39&"]")) -> [8.146] | M39: ='8.Hilfe'!$D$146 -> 146 | N39: ='1.Ansicht'!D6 -> 6 | P39: ='1.Ansicht'!D6 | Q39: =IF(MID(P39,2,1)="'",VALUE(MID(P39,3,1)),0) -> 1 | R39: =IF(Q39>0,RIGHT(P39,LEN(P39)-FIND("!",P39)),) -> D6 | S39: =IF(Q39>0,RIGHT(P39,LEN(P39)-FIND("!",P39)-1),) -> 6 | U39: 1
B40: [0.40] | C40: [40] | D40: =ROW() -> 40 | H40: Tabellenwerte durchgehen: Status - Ziel/Status (Veränderung) - Ziel | J40: =IF(S40=0,"",HYPERLINK("["&N$2&".xlsm]'"&MID(P40,3,20),"→["&Q40&"."&S40&"]")) -> →[1.59] | K40: =IF(M40=0,"",HYPERLINK("["&'6.Standarddaten'!$M$2&".xlsm]'"&'6.Standarddaten'!$N$3&M40,"["&'6.Standarddaten'!$M$3&M40&"]")) -> [8.147] | M40: ='8.Hilfe'!$D$147 -> 147 | N40: ='1.Ansicht'!D59 -> 59 | P40: ='1.Ansicht'!D59 | Q40: =IF(MID(P40,2,1)="'",VALUE(MID(P40,3,1)),0) -> 1 | R40: D59 | S40: 59 | U40: 0
B41: =C$2&B$2&D41&D$2 -> [0.41] | C41: =C$2&D41&D$2 -> [41] | D41: =ROW() -> 41 | G41: Gebäudewärme: Zielszenario Bevölkerungs-proportional zu Basisszenario | J41: =IF(S41=0,"",HYPERLINK("["&N$2&".xlsm]'"&MID(P41,3,20),"→["&Q41&"."&S41&"]")) -> →[1.84] | K41: =IF(M41=0,"",HYPERLINK("["&'6.Standarddaten'!$M$2&".xlsm]'"&'6.Standarddaten'!$N$3&M41,"["&'6.Standarddaten'!$M$3&M41&"]")) -> [8.151] | M41: ='8.Hilfe'!$D$151 -> 151 | N41: ='1.Ansicht'!D84 -> 84 | P41: ='1.Ansicht'!D84 | Q41: =IF(MID(P41,2,1)="'",VALUE(MID(P41,3,1)),0) -> 1 | R41: =IF(Q41>0,RIGHT(P41,LEN(P41)-FIND("!",P41)),) -> D84 | S41: =IF(Q41>0,RIGHT(P41,LEN(P41)-FIND("!",P41)-1),) -> 84 | U41: 1
B42: [0.42] | C42: [42] | D42: =ROW() -> 42 | H42: Diagramm: Anteil an der Energieerzeugung | K42: =IF(M42=0,"",HYPERLINK("["&'6.Standarddaten'!$M$2&".xlsm]'"&'6.Standarddaten'!$N$3&M42,"["&'6.Standarddaten'!$M$3&M42&"]")) -> [8.152] | M42: ='8.Hilfe'!$D$152 -> 152 | Q42: 0 | R42: 0 | S42: 0 | U42: 0
B43: [0.43] | C43: [43] | D43: =ROW() -> 43 | H43: Einwohner und Wohnflächen | J43: =IF(S43=0,"",HYPERLINK("["&N$2&".xlsm]'"&MID(P43,3,20),"→["&Q43&"."&S43&"]")) -> →[1.85] | K43: =IF(M43=0,"",HYPERLINK("["&'6.Standarddaten'!$M$2&".xlsm]'"&'6.Standarddaten'!$N$3&M43,"["&'6.Standarddaten'!$M$3&M43&"]")) -> [8.161] | M43: ='8.Hilfe'!$D$161 -> 161 | N43: ='1.Ansicht'!D85 -> 85 | P43: ='1.Ansicht'!D85 | Q43: =IF(MID(P43,2,1)="'",VALUE(MID(P43,3,1)),0) -> 1 | R43: =IF(Q43>0,RIGHT(P43,LEN(P43)-FIND("!",P43)),) -> D85 | S43: =IF(Q43>0,RIGHT(P43,LEN(P43)-FIND("!",P43)-1),) -> 85 | U43: 1
B44: =C$2&B$2&D44&D$2 -> [0.44] | C44: =C$2&D44&D$2 -> [44] | D44: =ROW() -> 44 | H44: ='1.Ansicht'!E92 -> Gebäudesanierung - Wärmeschutz | J44: =IF(S44=0,"",HYPERLINK("["&N$2&".xlsm]'"&MID(P44,3,20),"→["&Q44&"."&S44&"]")) -> →[1.92] | K44: =IF(M44=0,"",HYPERLINK("["&'6.Standarddaten'!$M$2&".xlsm]'"&'6.Standarddaten'!$N$3&M44,"["&'6.Standarddaten'!$M$3&M44&"]")) -> [8.153] | M44: ='8.Hilfe'!$D$153 -> 153 | N44: ='1.Ansicht'!D92 -> 92 | P44: ='1.Ansicht'!D92 | Q44: =IF(MID(P44,2,1)="'",VALUE(MID(P44,3,1)),0) -> 1 | R44: =IF(Q44>0,RIGHT(P44,LEN(P44)-FIND("!",P44)),) -> D92 | S44: =IF(Q44>0,RIGHT(P44,LEN(P44)-FIND("!",P44)-1),) -> 92 | U44: 0
B45: [0.45] | C45: [45] | D45: =ROW() -> 45 | H45: Brennholz | J45: =IF(S45=0,"",HYPERLINK("["&N$2&".xlsm]'"&MID(P45,3,20),"→["&Q45&"."&S45&"]")) -> →[1.102] | K45: =IF(M45=0,"",HYPERLINK("["&'6.Standarddaten'!$M$2&".xlsm]'"&'6.Standarddaten'!$N$3&M45,"["&'6.Standarddaten'!$M$3&M45&"]")) -> [8.159] | M45: ='8.Hilfe'!$D$159 -> 159 | N45: ='1.Ansicht'!D102 -> 102 | P45: ='1.Ansicht'!D102 | Q45: 1 | R45: D102 | S45: 102 | U45: 1
B46: =C$2&B$2&D46&D$2 -> [0.46] | C46: =C$2&D46&D$2 -> [46] | D46: =ROW() -> 46 | H46: Abwärme KWK: Biobrennstoffe | J46: =IF(S46=0,"",HYPERLINK("["&N$2&".xlsm]'"&MID(P46,3,20),"→["&Q46&"."&S46&"]")) -> →[1.103] | K46: =IF(M46=0,"",HYPERLINK("["&'6.Standarddaten'!$M$2&".xlsm]'"&'6.Standarddaten'!$N$3&M46,"["&'6.Standarddaten'!$M$3&M46&"]")) -> [8.158] | M46: ='8.Hilfe'!$D$158 -> 158 | N46: ='1.Ansicht'!D103 -> 103 | P46: =IFERROR(_xlfn.FORMULATEXT(N46),"") -> ='1.Ansicht'!D103 | Q46: =IF(MID(P46,2,1)="'",VALUE(MID(P46,3,1)),0) -> 1 | R46: =IF(Q46>0,RIGHT(P46,LEN(P46)-FIND("!",P46)),) -> D103 | S46: =IF(Q46>0,RIGHT(P46,LEN(P46)-FIND("!",P46)-1),) -> 103 | U46: =IF(D46/2=ROUND(D46/2,0),0,1) -> 0
B47: [0.47] | C47: [47] | D47: =ROW() -> 47 | H47: Abwärme KWK: Wasserstoff | J47: →[1.104] | K47: =IF(M47=0,"",HYPERLINK("["&'6.Standarddaten'!$M$2&".xlsm]'"&'6.Standarddaten'!$N$3&M47,"["&'6.Standarddaten'!$M$3&M47&"]")) -> [8.157] | M47: ='8.Hilfe'!$D$157 -> 157 | N47: ='1.Ansicht'!D104 -> 104 | P47: ='1.Ansicht'!D104 | Q47: 1 | R47: D104 | S47: 104 | U47: 1
B48: [0.48] | C48: [48] | D48: =ROW() -> 48 | H48: ='1.Ansicht'!E109 -> Solarthermie | J48: =IF(S48=0,"",HYPERLINK("["&N$2&".xlsm]'"&MID(P48,3,20),"→["&Q48&"."&S48&"]")) -> →[1.109] | K48: =IF(M48=0,"",HYPERLINK("["&'6.Standarddaten'!$M$2&".xlsm]'"&'6.Standarddaten'!$N$3&M48,"["&'6.Standarddaten'!$M$3&M48&"]")) -> [8.155] | M48: ='8.Hilfe'!$D$155 -> 155 | N48: ='1.Ansicht'!D109 -> 109 | P48: ='1.Ansicht'!D109 | Q48: 1 | R48: D109 | S48: 109 | U48: 0
B49: [0.49] | C49: [49] | D49: =ROW() -> 49 | H49: ='1.Ansicht'!E115 -> Wärmepumpen | J49: =IF(S49=0,"",HYPERLINK("["&N$2&".xlsm]'"&MID(P49,3,20),"→["&Q49&"."&S49&"]")) -> →[1.115] | K49: =IF(M49=0,"",HYPERLINK("["&'6.Standarddaten'!$M$2&".xlsm]'"&'6.Standarddaten'!$N$3&M49,"["&'6.Standarddaten'!$M$3&M49&"]")) -> [8.154] | M49: ='8.Hilfe'!$D$154 -> 154 | N49: ='1.Ansicht'!D115 -> 115 | P49: ='1.Ansicht'!D115 | Q49: 1 | R49: D115 | S49: 115 | U49: 1
B50: [0.50] | C50: [50] | D50: =ROW() -> 50 | L50: 2 | U50: 0
B51: [0.51] | C51: [51] | D51: =ROW() -> 51 | F51: Szenario verändern | J51: =IF(N51=0,"",HYPERLINK("["&N$2&".xlsm]'"&MID(P51,3,20),"→["&Q51&"."&N51&"]")) ->  | K51: =IF(M51=0,"",HYPERLINK("["&'6.Standarddaten'!$M$2&".xlsm]'"&'6.Standarddaten'!$N$3&M51,"["&'6.Standarddaten'!$M$3&M51&"]")) -> [8.163] | L51: 2 | M51: ='8.Hilfe'!$D163 -> 163 | U51: 1
B52: =C$2&B$2&D52&D$2 -> [0.52] | C52: =C$2&D52&D$2 -> [52] | D52: =ROW() -> 52 | G52: Diagramm-Säule 'Ziel Ansatz' einblenden | J52: =IF(S52=0,"",HYPERLINK("["&N$2&".xlsm]'"&MID(P52,3,20),"→["&Q52&"."&S52&"]")) -> →[1.6] | K52: =IF(M52=0,"",HYPERLINK("["&'6.Standarddaten'!$M$2&".xlsm]'"&'6.Standarddaten'!$N$3&M52,"["&'6.Standarddaten'!$M$3&M52&"]")) -> [8.165] | M52: ='8.Hilfe'!$D$165 -> 165 | N52: ='1.Ansicht'!D6 -> 6 | P52: =IFERROR(_xlfn.FORMULATEXT(N52),"") -> ='1.Ansicht'!D6 | Q52: =IF(MID(P52,2,1)="'",VALUE(MID(P52,3,1)),0) -> 1 | R52: =IF(Q52>0,RIGHT(P52,LEN(P52)-FIND("!",P52)),) -> D6 | S52: =IF(Q52>0,RIGHT(P52,LEN(P52)-FIND("!",P52)-1),) -> 6 | U52: =IF(D52/2=ROUND(D52/2,0),0,1) -> 0
B53: [0.53] | C53: [53] | D53: =ROW() -> 53 | G53: ='2.Kalkulation'!BP3&": Linke / Rechte Tabelle" -> 2.Kalkulation: Linke / Rechte Tabelle | J53: =IF(N53=0,"",HYPERLINK("["&N$2&".xlsm]'"&MID(P53,3,20),"→["&Q53&"."&N53&"]")) -> →[2.7] | K53: =IF(M53=0,"",HYPERLINK("["&'6.Standarddaten'!$M$2&".xlsm]'"&'6.Standarddaten'!$N$3&M53,"["&'6.Standarddaten'!$M$3&M53&"]")) -> [8.166] | M53: ='8.Hilfe'!$D$166 -> 166 | N53: ='2.Kalkulation'!E7 -> 7 | P53: =IFERROR(_xlfn.FORMULATEXT(N53),"") -> ='2.Kalkulation'!E7 | Q53: =IF(MID(P53,2,1)="'",VALUE(MID(P53,3,1)),0) -> 2 | R53: =IF(Q53>4,RIGHT(P53,LEN(P53)-FIND("!",P53)),) -> 0 | S53: =IF(Q53>4,RIGHT(P53,LEN(P53)-FIND("!",P53)-1),) -> 0 | U53: 1
B54: [0.54] | C54: [54] | D54: =ROW() -> 54 | H54: Spaltenstruktur - Modifikationen in 'Ziel-Ansatz' | J54: →[2.12] | K54: =IF(M54=0,"",HYPERLINK("["&'6.Standarddaten'!$M$2&".xlsm]'"&'6.Standarddaten'!$N$3&M54,"["&'6.Standarddaten'!$M$3&M54&"]")) -> [8.167] | M54: ='8.Hilfe'!$D167 -> 167 | N54: ='2.Kalkulation'!E12 -> 12 | P54: =IFERROR(_xlfn.FORMULATEXT(N54),"") -> ='2.Kalkulation'!E12 | Q54: =IF(MID(P54,2,1)="'",VALUE(MID(P54,3,1)),0) -> 2 | R54: =IF(Q54>4,RIGHT(P54,LEN(P54)-FIND("!",P54)),) -> 0 | S54: =IF(Q54>4,RIGHT(P54,LEN(P54)-FIND("!",P54)-1),) -> 0 | U54: 0
B55: [0.55] | C55: [55] | D55: =ROW() -> 55 | G55: Zielansätze Wind-/Solarstrom verändern | J55: →[2.12] | K55: =IF(M55=0,"",HYPERLINK("["&'6.Standarddaten'!$M$2&".xlsm]'"&'6.Standarddaten'!$N$3&M55,"["&'6.Standarddaten'!$M$3&M55&"]")) -> [8.168] | M55: ='8.Hilfe'!$D168 -> 168 | N55: ='2.Kalkulation'!E12 -> 12 | P55: =IFERROR(_xlfn.FORMULATEXT(N55),"") -> ='2.Kalkulation'!E12 | Q55: =IF(MID(P55,2,1)="'",VALUE(MID(P55,3,1)),0) -> 2 | R55: =IF(Q55>4,RIGHT(P55,LEN(P55)-FIND("!",P55)),) -> 0 | S55: =IF(Q55>4,RIGHT(P55,LEN(P55)-FIND("!",P55)-1),) -> 0 | U55: =IF(D55/2=ROUND(D55/2,0),0,1) -> 1
B56: [0.56] | C56: [56] | D56: =ROW() -> 56 | H56: Zielansatz 'Solarstrom von Freiflächen' als Deckungsausgleich | J56: →[2.39] | K56: =IF(M56=0,"",HYPERLINK("["&'6.Standarddaten'!$M$2&".xlsm]'"&'6.Standarddaten'!$N$3&M56,"["&'6.Standarddaten'!$M$3&M56&"]")) -> [8.169] | M56: ='8.Hilfe'!$D169 -> 169 | N56: ='2.Kalkulation'!E39 -> 39 | P56: =IFERROR(_xlfn.FORMULATEXT(N56),"") -> ='2.Kalkulation'!E39 | Q56: =IF(MID(P56,2,1)="'",VALUE(MID(P56,3,1)),0) -> 2 | R56: =IF(Q56>4,RIGHT(P56,LEN(P56)-FIND("!",P56)),) -> 0 | S56: =IF(Q56>4,RIGHT(P56,LEN(P56)-FIND("!",P56)-1),) -> 0 | U56: 0
B57: =C$2&B$2&D57&D$2 -> [0.57] | C57: =C$2&D57&D$2 -> [57] | D57: =ROW() -> 57 | G57: Zielansätze Gebäudewärme verändern | J57: →[2.51] | K57: =IF(M57=0,"",HYPERLINK("["&'6.Standarddaten'!$M$2&".xlsm]'"&'6.Standarddaten'!$N$3&M57,"["&'6.Standarddaten'!$M$3&M57&"]")) -> [8.170] | M57: ='8.Hilfe'!$D170 -> 170 | N57: ='2.Kalkulation'!E51 -> 51 | P57: =IFERROR(_xlfn.FORMULATEXT(N57),"") -> ='2.Kalkulation'!E51 | Q57: =IF(MID(P57,2,1)="'",VALUE(MID(P57,3,1)),0) -> 2 | R57: =IF(Q57>4,RIGHT(P57,LEN(P57)-FIND("!",P57)),) -> 0 | S57: =IF(Q57>4,RIGHT(P57,LEN(P57)-FIND("!",P57)-1),) -> 0 | U57: 1
B58: =C$2&B$2&D58&D$2 -> [0.58] | C58: =C$2&D58&D$2 -> [58] | D58: =ROW() -> 58 | H58: Einwohnerzahl | J58: →[2.54] | K58: =IF(M58=0,"",HYPERLINK("["&'6.Standarddaten'!$M$2&".xlsm]'"&'6.Standarddaten'!$N$3&M58,"["&'6.Standarddaten'!$M$3&M58&"]")) -> [8.171] | M58: ='8.Hilfe'!$D171 -> 171 | N58: ='2.Kalkulation'!E54 -> 54 | P58: =IFERROR(_xlfn.FORMULATEXT(N58),"") -> ='2.Kalkulation'!E54 | Q58: =IF(MID(P58,2,1)="'",VALUE(MID(P58,3,1)),0) -> 2 | R58: =IF(Q58>4,RIGHT(P58,LEN(P58)-FIND("!",P58)),) -> 0 | S58: =IF(Q58>4,RIGHT(P58,LEN(P58)-FIND("!",P58)-1),) -> 0 | U58: 0
B59: =C$2&B$2&D59&D$2 -> [0.59] | C59: =C$2&D59&D$2 -> [59] | D59: =ROW() -> 59 | H59: Beiträge der verschiedenen Wärmequellen | J59: →[2.69] | K59: =IF(M59=0,"",HYPERLINK("["&'6.Standarddaten'!$M$2&".xlsm]'"&'6.Standarddaten'!$N$3&M59,"["&'6.Standarddaten'!$M$3&M59&"]")) -> [8.172] | M59: ='8.Hilfe'!$D172 -> 172 | N59: ='2.Kalkulation'!E69 -> 69 | P59: =IFERROR(_xlfn.FORMULATEXT(N59),"") -> ='2.Kalkulation'!E69 | Q59: =IF(MID(P59,2,1)="'",VALUE(MID(P59,3,1)),0) -> 2 | R59: =IF(Q59>4,RIGHT(P59,LEN(P59)-FIND("!",P59)),) -> 0 | S59: =IF(Q59>4,RIGHT(P59,LEN(P59)-FIND("!",P59)-1),) -> 0 | U59: 1
B60: [0.60] | C60: [60] | D60: =ROW() -> 60 | H60: Zielansatz Wärmepumpen als Deckungsausgleich | J60: →[2.81] | K60: =IF(M60=0,"",HYPERLINK("["&'6.Standarddaten'!$M$2&".xlsm]'"&'6.Standarddaten'!$N$3&M60,"["&'6.Standarddaten'!$M$3&M60&"]")) -> [8.173] | M60: ='8.Hilfe'!$D173 -> 173 | N60: ='2.Kalkulation'!E81 -> 81 | P60: ='2.Kalkulation'!E81 | Q60: 2 | R60: 0 | S60: 0 | U60: 0
B61: =C$2&B$2&D61&D$2 -> [0.61] | C61: [61] | D61: =ROW() -> 61 | L61: 1 | U61: 1
B62: [0.62] | C62: =C$2&D62&D$2 -> [62] | D62: =ROW() -> 62 | E62: Basisszenario (BSz) einbeziehen | K62: =IF(M62=0,"",HYPERLINK("["&'6.Standarddaten'!$M$2&".xlsm]'"&'6.Standarddaten'!$N$3&M62,"["&'6.Standarddaten'!$M$3&M62&"]")) -> [8.175] | L62: 1 | M62: ='8.Hilfe'!$D$175 -> 175
B63: [0.63] | C63: [63] | D63: =ROW() -> 63 | F63: BSz koppeln | I63: =IF(gekoppelt=1,"Gekoppelt mit "&'2.Kalkulation'!AC6,"") -> Gekoppelt mit Szenario 'Deutschland 100%EE' (200822) | K63: =IF(M63=0,"",HYPERLINK("["&'6.Standarddaten'!$M$2&".xlsm]'"&'6.Standarddaten'!$N$3&M63,"["&'6.Standarddaten'!$M$3&M63&"]")) -> [8.178] | L63: 2 | M63: ='8.Hilfe'!$D178 -> 178 | N63: ='2.Kalkulation'!E56 -> 56 | U63: =IF(D63/2=ROUND(D63/2,0),0,1) -> 1
B64: =C$2&B$2&D64&D$2 -> [0.64] | C64: =C$2&D64&D$2 -> [64] | D64: =ROW() -> 64 | F64: BSz nutzen | J64: =IF(gekoppelt=1,HYPERLINK("[AH.xlsm]'Cockpit1'!$E$3","→[AH.C1]"),"") -> →[AH.C1] | K64: =IF(M64=0,"",HYPERLINK("["&'6.Standarddaten'!$M$2&".xlsm]'"&'6.Standarddaten'!$N$3&M64,"["&'6.Standarddaten'!$M$3&M64&"]")) -> [8.182] | L64: 2 | M64: ='8.Hilfe'!$D182 -> 182 | U64: =IF(D64/2=ROUND(D64/2,0),0,1) -> 0
B65: [0.65] | C65: [65] | D65: =ROW() -> 65 | F65: BSz Offline-Backup | I65: =IF('2.Kalkulation'!AK10>0,"Aktuell: "&'2.Kalkulation'!AK6,"z.Zt.nicht vorhanden") -> Aktuell: Szenario 'Deutschland 100%EE' (200822) | J65: =IF(N65=0,"",HYPERLINK("["&N$2&".xlsm]'"&MID(P65,3,20),"→["&Q65&"."&N65&"]")) -> →[1.4] | K65: =IF(M65=0,"",HYPERLINK("["&'6.Standarddaten'!$M$2&".xlsm]'"&'6.Standarddaten'!$N$3&M65,"["&'6.Standarddaten'!$M$3&M65&"]")) -> [8.188] | L65: 2 | M65: ='8.Hilfe'!$D188 -> 188 | N65: ='1.Ansicht'!V4 -> 4 | P65: =IFERROR(_xlfn.FORMULATEXT(N65),"") -> ='1.Ansicht'!V4 | Q65: =IF(MID(P65,2,1)="'",VALUE(MID(P65,3,1)),0) -> 1 | R65: =IF(Q65>4,RIGHT(P65,LEN(P65)-FIND("!",P65)),) -> 0 | S65: =IF(Q65>4,RIGHT(P65,LEN(P65)-FIND("!",P65)-1),) -> 0 | U65: 1
B66: [0.66] | C66: [66] | D66: =ROW() -> 66 | L66: 1 | U66: =IF(D66/2=ROUND(D66/2,0),0,1) -> 0
B67: [0.67] | C67: [67] | D67: =ROW() -> 67 | E67: 100prosim.P Formular erstellen | K67: =IF(M67=0,"",HYPERLINK("["&'6.Standarddaten'!$M$2&".xlsm]'"&'6.Standarddaten'!$N$3&M67,"["&'6.Standarddaten'!$M$3&M67&"]")) -> [8.190] | L67: 1 | M67: ='8.Hilfe'!$D$190 -> 190
B68: [0.68] | C68: [68] | D68: =ROW() -> 68 | L68: 1 | U68: =IF(D68/2=ROUND(D68/2,0),0,1) -> 0
B69: [0.69] | C69: [69] | D69: =ROW() -> 69 | E69: Abkürzungen: | L69: 1 | U69: =IF(D69/2=ROUND(D69/2,0),0,1) -> 1
B70: =C$2&B$2&D70&D$2 -> [0.70] | C70: [70] | D70: =ROW() -> 70 | H70: BR | I70: Basis-Region
B71: [0.71] | C71: [71] | D71: =ROW() -> 71 | H71: Eta | I71: Wirkungsgrad
B72: [0.72] | C72: [72] | D72: =ROW() -> 72 | H72: GV | I72: Güterverkehrsleistung
B73: [0.73] | C73: [73] | D73: =ROW() -> 73 | H73: H2 | I73: Wasserstoffgas
B74: [0.74] | C74: [74] | D74: =ROW() -> 74 | H74: IKT | I74: Informations- und Kommunikations-Technologien
B75: [0.75] | C75: [75] | D75: =ROW() -> 75 | H75: KLIK | I75: Kraft / Licht / IKT / Kälte (klassische Stromanwendungen)
B76: [0.76] | C76: [76] | D76: =ROW() -> 76 | H76: KWK | I76: Kraft-Wärme-Kopplung
B77: [0.77] | C77: [77] | D77: =ROW() -> 77 | H77: LF | I77: Landwirtschaftsfläche
B78: [0.78] | C78: [78] | D78: =ROW() -> 78 | H78: NAWARO | I78: Nachwachsende Rohstoffe
B79: [0.79] | C79: [79] | D79: =ROW() -> 79 | H79: Nds. | I79: Niedersachsen
B80: [0.80] | C80: [80] | D80: =ROW() -> 80 | H80: NT | I80: Niedertemperatur
B81: [0.81] | C81: [81] | D81: =ROW() -> 81 | H81: NW | I81: Nutzwärme
B82: [0.82] | C82: [82] | D82: =ROW() -> 82 | H82: PV | I82: Photovoltaik
B83: [0.83] | C83: [83] | D83: =ROW() -> 83 | H83: P km | I83: Personen-Kilometer
B84: [0.84] | C84: [84] | D84: =ROW() -> 84 | H84: RW | I84: Raumwärme
B85: [0.85] | C85: [85] | D85: =ROW() -> 85 | H85: t km | I85: Tonnen-Kilometer
B86: [0.86] | C86: [86] | D86: =ROW() -> 86 | H86: WP | I86: Wärmepumpe
B87: =C$2&B$2&D87&D$2 -> [0.87] | C87: [87] | D87: =ROW() -> 87 | H87: ZR | I87: Ziel-Region
B88: [0.88] | C88: [88] | D88: =ROW() -> 88
B89: [0.89] | C89: [89] | D89: =ROW() -> 89
B90: [0.90] | C90: [90] | D90: =ROW() -> 90
B91: =C$2&B$2&D91&D$2 -> [0.91] | C91: [91] | D91: =ROW() -> 91
B92: [0.92] | C92: [92] | D92: =ROW() -> 92
B93: [0.93] | C93: [93] | D93: =ROW() -> 93
B94: [0.94] | C94: [94] | D94: =ROW() -> 94
B95: [0.95] | C95: [95] | D95: =ROW() -> 95
B96: [0.96] | C96: [96] | D96: =ROW() -> 96

Sheet 1.Ansicht
C3: [ | D3: =AP3 -> 1. | E3: ] | H3: ="'"&'6.Standarddaten'!BR3&"'!K" -> '6.Standarddaten'!K | S3: Vorlagen>>> | T3: Vorlagen>>> | AB3: N | AL3: Vorlagen>>> | AM3: =AN3&AP3 -> P.1. | AN3: =MID(AO3,1,1)&"." -> P. | AO3: =MID(AR3,FIND("[",AR3)+1,FIND("xlsm",AR3)-FIND("[",AR3)-2) -> P000100-D.H2i-L. | AP3: =LEFT(AQ3,FIND(".",AQ3)) -> 1. | AQ3: =MID(AR3,FIND("]",AR3)+1,255) -> 1.Ansicht | AR3: =CELL("dateiname",AR3) -> C:\Users\schmi\Documents\_wattweg2008\Veranstaltungen_2024\240828WorkshopRegionalplaner\Arbeitsordner200822m\[P000100-D.H2i-L..xlsm]1.Ansicht | AY3: D | AZ3: [ | BA3: ] | BB3: [D.xlsx] | BC3: ="("&AO3&")" -> (P000100-D.H2i-L.) | BE3: =AN3&AP3&" - " -> P.1. - | BF3: ="Energieszenario '"&'5.Kenndaten'!F9&" "&'5.Kenndaten'!F10&" 100% EE' ("&'5.Kenndaten'!F16&")" -> Energieszenario 'Landkreis 100% EE' (P000100-D.H2i-L.) | BI3: =Versionen!A1 -> 240826e | BJ3: =TEXT(TODAY(),"tt.MM.jjjj") -> 27.08.2024 | BK3: =TEXT(NOW(),"hh:mm") -> 13:04 | BL3: ="100prosim.P ("&AO3&".xlsm, V."&BI3&") - "&BJ3&" "&BK3 -> 100prosim.P (P000100-D.H2i-L..xlsm, V.240826e) - 27.08.2024 13:04 | BV3: 09.01
B4: =C$3&D$3&D4&E$3 -> [1.4] | C4: =C$3&D4&E$3 -> [4] | D4: =ROW() -> 4 | M4: =BL3 -> 100prosim.P (P000100-D.H2i-L..xlsm, V.240826e) - 27.08.2024 13:04 | O4: Tabelle | P4: Diagramm-Säulen Ein (1) / Aus (0): | U4: Setup >>> | V4: =D4 -> 4 | W4: Basisszenario: | AF4: 0
D5: =AN3&AQ3&" - "&BF3 -> P.1.Ansicht - Energieszenario 'Landkreis 100% EE' (P000100-D.H2i-L.) | P5: Status: | Q5: Ziel-Ansatz: | R5: Ziel proport.: | W5: =IF(IFERROR('2.Kalkulation'!AC10,0)>0,"Online","Offline") -> Online | X5: =IF(POnOff="Online",'2.Kalkulation'!AC6&", "&'2.Kalkulation'!AC7,'2.Kalkulation'!AK6&", "&'2.Kalkulation'!AK7) -> Szenario 'Deutschland 100%EE' (200822), 27.08.2024 13:04 | AF5: 1
B6: =C$3&D$3&D6&E$3 -> [1.6] | C6: =C$3&D6&E$3 -> [6] | D6: =ROW() -> 6 | O6: 1 | P6: 1 | Q6: 1 | R6: 1 | W6: ???: | X6: =IF(Y6=0,"",HYPERLINK("["&'6.Standarddaten'!M$2&".xlsm]'"&'6.Standarddaten'!N$3&Y6,"["&'6.Standarddaten'!M$3&Y6&"]")) -> [8.187] | Y6: ='8.Hilfe'!D187 -> 187
B7: =C$3&D$3&D7&E$3 -> [1.7] | C7: =C$3&D7&E$3 -> [7] | D7: =ROW() -> 7
B8: [1.8] | C8: [8] | D8: =ROW() -> 8 | E8: ='5.Kenndaten'!F9&" "&'5.Kenndaten'!F10&" 100%EE'" -> Landkreis 100%EE'
B9: [1.9] | C9: [9] | D9: =ROW() -> 9 | E9: Wind-/Solarstrom, Gebäudewärme
B10: =C$3&D$3&D10&E$3 -> [1.10] | C10: =C$3&D10&E$3 -> [10] | D10: =ROW() -> 10
B11: [1.11] | C11: [11] | D11: =ROW() -> 11
B12: =C$3&D$3&D12&E$3 -> [1.12] | C12: =C$3&D12&E$3 -> [12] | D12: =ROW() -> 12
B13: =C$3&D$3&D13&E$3 -> [1.13] | C13: =C$3&D13&E$3 -> [13] | D13: =ROW() -> 13 | W13: Aktuelle Zielregion in Karte der Basisregion markiert?
B14: [1.14] | C14: [14] | D14: =ROW() -> 14 | W14: Nein > Hilfe: | X14: =IF(Y14=0,"",HYPERLINK("["&'6.Standarddaten'!M$2&".xlsm]'"&'6.Standarddaten'!N$3&Y14,"["&'6.Standarddaten'!M$3&Y14&"]")) -> [8.54] | Y14: ='8.Hilfe'!D54 -> 54
B15: =C$3&D$3&D15&E$3 -> [1.15] | C15: =C$3&D15&E$3 -> [15] | D15: =ROW() -> 15 | W15: Erledigung quittieren: | X15: OK | Y15: OK | Z15: =IF(X15="",1,0) -> 0
B16: [1.16] | C16: [16] | D16: =ROW() -> 16
B17: [1.17] | C17: [17] | D17: =ROW() -> 17
B18: [1.18] | C18: [18] | D18: =ROW() -> 18
B19: [1.19] | C19: [19] | D19: =ROW() -> 19
B20: [1.20] | C20: [20] | D20: =ROW() -> 20
B21: [1.21] | C21: [21] | D21: =ROW() -> 21
B22: [1.22] | C22: [22] | D22: =ROW() -> 22
B23: [1.23] | C23: [23] | D23: =ROW() -> 23
B24: [1.24] | C24: [24] | D24: =ROW() -> 24
B25: [1.25] | C25: [25] | D25: =ROW() -> 25
B26: [1.26] | C26: [26] | D26: =ROW() -> 26
B27: [1.27] | C27: [27] | D27: =ROW() -> 27
B28: [1.28] | C28: [28] | D28: =ROW() -> 28
B29: [1.29] | C29: [29] | D29: =ROW() -> 29
B30: [1.30] | C30: [30] | D30: =ROW() -> 30
B31: [1.31] | C31: [31] | D31: =ROW() -> 31
B32: [1.32] | C32: [32] | D32: =ROW() -> 32
B33: [1.33] | C33: [33] | D33: =ROW() -> 33
B34: [1.34] | C34: [34] | D34: =ROW() -> 34
B35: [1.35] | C35: [35] | D35: =ROW() -> 35
B36: [1.36] | C36: [36] | D36: =ROW() -> 36 | W36: Karte Basisregion ändern?
B37: =C$3&D$3&D37&E$3 -> [1.37] | C37: =C$3&D37&E$3 -> [37] | D37: =ROW() -> 37 | W37: Ja > Hilfe: | X37: =IF(Y37=0,"",HYPERLINK("["&'6.Standarddaten'!M$2&".xlsm]'"&'6.Standarddaten'!N$3&Y37,"["&'6.Standarddaten'!M$3&Y37&"]")) -> [8.198] | Y37: ='8.Hilfe'!D198 -> 198
B38: [1.38] | C38: [38] | D38: =ROW() -> 38 | E38: Szenario-Kenndaten | L38: Kürzel:
B39: [1.39] | C39: [39] | D39: =ROW() -> 39 | G39: Ziel-Region: | H39: ='5.Kenndaten'!F9&" "&'5.Kenndaten'!F10&" ("&'5.Kenndaten'!H11&'5.Kenndaten'!J11&")" -> Landkreis (000100) | L39: ='5.Kenndaten'!H9&"."&'5.Kenndaten'!J10 -> L.
B40: [1.40] | C40: [40] | D40: =ROW() -> 40 | G40: Szenario vom / .Variante: | H40: ='5.Kenndaten'!F11 -> 00:00:00 | J40: =IF('5.Kenndaten'!J11="","",'5.Kenndaten'!J11) ->  | L40: ="("&'5.Kenndaten'!H11&'5.Kenndaten'!J11&")" -> (000100)
B41: [1.41] | C41: [41] | D41: =ROW() -> 41 | G41: Daten: | H41: ='5.Kenndaten'!F12 -> 0 | L41: ='5.Kenndaten'!J12 -> 00:00:00
B42: [1.42] | C42: [42] | D42: =ROW() -> 42 | G42: Basis-Region: | H42: ='2.Kalkulation'!AA6 -> Szenario 'Deutschland 100%EE' (200822) | L42: ='5.Kenndaten'!F13 -> D.H2i
B43: [1.43] | C43: [43] | D43: =ROW() -> 43 | G43: Szenario-Kennung: | H43: ='5.Kenndaten'!F16 -> P000100-D.H2i-L.
B44: [1.44] | C44: [44] | D44: =ROW() -> 44 | G44: ="Software: " -> Software: | H44: ="100prosimP ("&'0.Leitfaden'!CQ2&", V. "&Versionen!A1&")" -> 100prosimP (09.01, V. 240826e)
B45: [1.45] | C45: [45] | D45: =ROW() -> 45 | H45: Hans-Heinrich Schmidt-Kanefendt
B46: [1.46] | C46: =C$3&D46&E$3 -> [46] | D46: =ROW() -> 46
B47: [1.47] | C47: [47] | D47: =ROW() -> 47 | E47: Status-Eckdaten | J47: ='5.Kenndaten'!R6 -> Landkreis (000100) | K47: =" = ‰ v.Basis-Region: "&'5.Kenndaten'!F13 -> = ‰ v.Basis-Region: D.H2i | AF47: ='6.Standarddaten'!D14 -> 14
B48: [1.48] | C48: [48] | D48: =ROW() -> 48 | F48: Einwohnerzahl | H48: Personen | I48: =HYPERLINK("["&'5.Kenndaten'!F$18&".xlsm]'"&'6.Standarddaten'!BR$3&"'!K"&AF47,INDIRECT(H$3&AF47)) -> 0 | J48: =HYPERLINK("["&'5.Kenndaten'!F$18&".xlsm]'"&'6.Standarddaten'!BR$3&"'!K"&AF47,"["&'6.Standarddaten'!BQ$3&AF47&"]") -> [6.14] | K48: =I48/L48*1000 -> 0 | L48: ='2.Kalkulation'!T54 -> 82175684 | AF48: ='6.Standarddaten'!D43 -> 43
B49: [1.49] | C49: [49] | D49: =ROW() -> 49 | F49: Energieverbraucher solidar | H49: Personen | I49: =HYPERLINK("["&'5.Kenndaten'!F$18&".xlsm]'"&'6.Standarddaten'!BR$3&"'!K"&AF48,INDIRECT(H$3&AF48)) -> 0 | J49: =HYPERLINK("["&'5.Kenndaten'!F$18&".xlsm]'"&'6.Standarddaten'!BR$3&"'!K"&AF48,"["&'6.Standarddaten'!BQ$3&AF48&"]") -> [6.43] | K49: =I49/L49*1000 -> 0 | L49: ='2.Kalkulation'!T55 -> 82175684 | AF49: ='6.Standarddaten'!D$20 -> 20
B50: [1.50] | C50: [50] | D50: =ROW() -> 50 | F50: Bodenfläche insgesamt | H50: ha | I50: =HYPERLINK("["&'5.Kenndaten'!F$18&".xlsm]'"&'6.Standarddaten'!BR$3&"'!K"&AF49,INDIRECT(H$3&AF49)) -> 0 | J50: =HYPERLINK("["&'5.Kenndaten'!F$18&".xlsm]'"&'6.Standarddaten'!BR$3&"'!K"&AF49,"["&'6.Standarddaten'!BQ$3&AF49&"]") -> [6.20] | K50: =I50/L50*1000 -> 0 | L50: ='2.Kalkulation'!T15 -> 35757963 | AF50: ='6.Standarddaten'!D$25 -> 25
B51: [1.51] | C51: [51] | D51: =ROW() -> 51 | F51: Siedlungsfläche | H51: ha | I51: =HYPERLINK("["&'5.Kenndaten'!F$18&".xlsm]'"&'6.Standarddaten'!BR$3&"'!K"&AF50,INDIRECT(H$3&AF50)) -> 0 | J51: =HYPERLINK("["&'5.Kenndaten'!F$18&".xlsm]'"&'6.Standarddaten'!BR$3&"'!K"&AF50,"["&'6.Standarddaten'!BQ$3&AF50&"]") -> [6.25] | K51: =I51/L51*1000 -> 0 | L51: ='2.Kalkulation'!T26 -> 3277007 | AF51: ='6.Standarddaten'!D$30 -> 30
B52: [1.52] | C52: [52] | D52: =ROW() -> 52 | F52: Landwirtschaftsfläche | H52: ha | I52: =HYPERLINK("["&'5.Kenndaten'!F$18&".xlsm]'"&'6.Standarddaten'!BR$3&"'!K"&AF51,INDIRECT(H$3&AF51)) -> 0 | J52: =HYPERLINK("["&'5.Kenndaten'!F$18&".xlsm]'"&'6.Standarddaten'!BR$3&"'!K"&AF51,"["&'6.Standarddaten'!BQ$3&AF51&"]") -> [6.30] | K52: =I52/L52*1000 -> 0 | L52: ='2.Kalkulation'!T34 -> 18263736
B53: [1.53] | C53: [53] | D53: =ROW() -> 53 | E53: Waldfläche & Gehölz | G53: ha | H53: =HYPERLINK("["&'5.Kenndaten'!F$18&".xlsm]'"&'6.Standarddaten'!BR$3&"'!F"&AL53,INDIRECT("'9.Quellen'!F"&AL53)) ->  | I53: =HYPERLINK("["&'5.Kenndaten'!F$18&".xlsm]'"&'6.Standarddaten'!BR$3&"'!D"&AL53,"["&'6.Standarddaten'!BQ$3&AL53&"]") ->  | S53: ='6.Standarddaten'!#REF! ->  | T53: ='6.Standarddaten'!#REF! ->  | AL53: ='6.Standarddaten'!#REF! -> 
D54: =ROW() -> 54
B55: =C$3&D$3&D55&E$3 -> [1.55] | C55: =C$3&D55&E$3 -> [55] | D55: =ROW() -> 55 | AF55: =MID(H42,AH55,FIND("' (",H42)-AH55+1) -> 'Deutschland 100%EE' | AH55: =FIND(" '",H42)+1 -> 10
B56: [1.56] | C56: [56] | D56: =ROW() -> 56 | E56: ="Anteil "&K59&" an "&AF55 -> Anteil Landkreis an 'Deutschland 100%EE' | AG56: F | AH56: :M
B57: =C$3&D$3&D57&E$3 -> [1.57] | C57: =C$3&D57&E$3 -> [57] | D57: =ROW() -> 57 | F57: Zeitspanne für Zubauraten: | G57: ='2.Kalkulation'!I10 -> 2021 | H57: =I57-G57&" Jahre" -> 19 Jahre | I57: ='2.Kalkulation'!L10 -> 2040 | J57: =IF(AG57=0,"",HYPERLINK("["&'5.Kenndaten'!F$18&".xlsm]'"&AI57&AG$56&AG57&AH$56&AG57,"["&AJ57&AG57&"]")) -> [2.10] | AG57: =MID(AH57,FIND("!",AH57)+2,2) -> 10 | AH57: =IFERROR(_xlfn.FORMULATEXT(I57),"") -> ='2.Kalkulation'!L10 | AI57: =MID(AH57,3,FIND("!",AH57)-2) -> 2.Kalkulation'! | AJ57: =LEFT(AI57,2) -> 2.
B58: [1.58] | C58: [58] | D58: =ROW() -> 58 | AG58: =MID(AH58,FIND("!",AH58)+2,2) ->  | AH58: =IFERROR(_xlfn.FORMULATEXT(E58),"") ->  | AI58: =MID(AH58,3,FIND("!",AH58)-2) ->  | AJ58: =LEFT(AI58,2) -> 
B59: [1.59] | C59: [59] | D59: =ROW() -> 59 | E59: A) Wind-/Solarstrom | G59: Status | H59: Ziel/Status | I59: Ziel | K59: ='2.Kalkulation'!$D$12 -> Landkreis | N59: =E59 -> A) Wind-/Solarstrom
B60: [1.60] | C60: [60] | D60: =ROW() -> 60 | E60: ='2.Kalkulation'!F14 -> Windenergie onshore | J60: =IF(AG60=0,"",HYPERLINK("["&'5.Kenndaten'!F18&".xlsm]'"&AI60&AG$56&AG60&AH$56&AG60,"["&AJ60&AG60&"]")) -> [2.14] | K60: ='2.Kalkulation'!$D$13 -> P000100-D.H2i-L. | AA60: Wertetabelle Diagramm | AG60: =MID(AH60,FIND("!",AH60)+2,2) -> 14 | AH60: =IFERROR(_xlfn.FORMULATEXT(E60),"") -> ='2.Kalkulation'!F14 | AI60: =MID(AH60,3,FIND("!",AH60)-2) -> 2.Kalkulation'! | AJ60: =LEFT(AI60,2) -> 2.
B61: [1.61] | C61: [61] | D61: =ROW() -> 61 | F61: Windstrom jährlich (GWh/a): | G61: ='2.Kalkulation'!I19 -> 0 | H61: =IFERROR("x "&TEXT(I61/G61,"0,0"),"") ->  | I61: ='2.Kalkulation'!L19 ->  | J61: =IF(AG61=0,"",HYPERLINK("["&'5.Kenndaten'!F$18&".xlsm]'"&AI61&AG$56&AG61&AH$56&AG61,"["&AJ61&AG61&"]")) -> [2.19] | AG61: =MID(AH61,FIND("!",AH61)+2,2) -> 19 | AH61: =IFERROR(_xlfn.FORMULATEXT(I61),"") -> ='2.Kalkulation'!L19 | AI61: 2.Kalkulation'! | AJ61: 2.
B62: [1.62] | C62: [62] | D62: =ROW() -> 62 | F62: Installierte Leistung (MW): | G62: ='2.Kalkulation'!I22 -> 0 | H62: =IFERROR("x "&TEXT(I62/G62,"0,0"),"") ->  | I62: ='2.Kalkulation'!L22 ->  | J62: =IF(AG62="","",HYPERLINK("["&'5.Kenndaten'!F$18&".xlsm]'"&AI62&AG$56&AG62&AH$56&AG62,"["&AJ62&AG62&"]")) -> [2.22] | AA62: Anzeige=1, Ausblenden=0: | AB62: =P6 -> 1 | AC62: =Q6 -> 1 | AD62: =R6 -> 1 | AG62: =IFERROR(MID(AH62,FIND("!",AH62)+2,2),"") -> 22 | AH62: =IFERROR(_xlfn.FORMULATEXT(I62),"") -> ='2.Kalkulation'!L22 | AI62: =IFERROR(MID(AH62,3,FIND("!",AH62)-2),"") -> 2.Kalkulation'! | AJ62: 2.
D63: =ROW() -> 63 | F63: ="Zubau jährlich "&G$57&"-"&I$57&" (MW):" -> Zubau jährlich 2021-2040 (MW): | H63: =(I62-G62)/(I$57-G$57) ->  | J63: =IF(AG63="","",HYPERLINK("["&'5.Kenndaten'!F$18&".xlsm]'"&AI63&AG$56&AG63&AH$56&AG63,"["&AJ63&AG63&"]")) ->  | Y63: Bild von <a href="https://pixabay.com/de/users/mrganso-607585/?utm_source=link-attribution&amp;utm_medium=referral&amp;utm_campaign=image&amp;utm_content=5239642">Sebastian Ganso</a> auf <a href="https://pixabay.com/de/?utm_source=link-attribution&amp;utm_medium=referral&amp;utm_campaign=image&amp;utm_content=5239642">Pixabay</a> | AB63: =IF(AB62=1,"Status geschätzt","") -> Status geschätzt | AC63: =IF(AC62=1,"Ziel Ansatz","") -> Ziel Ansatz | AD63: =IF(AD62=1,"Ziel proport.","") -> Ziel proport. | AG63: =IFERROR(MID(AH63,FIND("!",AH63)+2,2),"") ->  | AH63: =IFERROR(_xlfn.FORMULATEXT(H63),"") -> =(I62-G62)/(I$57-G$57) | AI63: =IFERROR(MID(AH63,3,FIND("!",AH63)-2),"") -> 
D64: =ROW() -> 64 | F64: Anzahl Anlagen: | G64: ='2.Kalkulation'!I24 -> 0 | I64: ='2.Kalkulation'!L24 ->  | J64: =IF(AG64="","",HYPERLINK("["&'5.Kenndaten'!F$18&".xlsm]'"&AI64&AG$56&AG64&AH$56&AG64,"["&AJ64&AG64&"]")) -> [2.24] | AG64: =IFERROR(MID(AH64,FIND("!",AH64)+2,2),"") -> 24 | AH64: =IFERROR(_xlfn.FORMULATEXT(I64),"") -> ='2.Kalkulation'!L24 | AI64: =IFERROR(MID(AH64,3,FIND("!",AH64)-2),"") -> 2.Kalkulation'! | AJ64: 2.
D65: =ROW() -> 65 | F65: ...bei Ø-Leistung pro Anlage (MW): | G65: =IFERROR('2.Kalkulation'!I23,"") -> - | I65: ='2.Kalkulation'!L23 -> 3.5 | J65: =IF(AG65="","",HYPERLINK("["&'5.Kenndaten'!F$18&".xlsm]'"&AI65&AG$56&AG65&AH$56&AG65,"["&AJ65&AG65&"]")) -> [2.23] | AA65: Bio+WK | AB65: ='2.Kalkulation'!$I$43 -> 0 | AC65: ='2.Kalkulation'!$L$43*AC$62 -> 0 | AD65: ='2.Kalkulation'!$M$43 -> 0 | AG65: 23 | AH65: ='2.Kalkulation'!L23 | AI65: 2.Kalkulation'! | AJ65: 2.
D66: =ROW() -> 66 | F66: ="Zubau jährlich "&G$57&"-"&I$57&" (Anlagen):" -> Zubau jährlich 2021-2040 (Anlagen): | H66: =(I64-G64)/(I$57-G$57) ->  | J66: =IF(AG66="","",HYPERLINK("["&'5.Kenndaten'!F$18&".xlsm]'"&AI66&AG$56&AG66&AH$56&AG66,"["&AJ66&AG66&"]")) ->  | AA66: FFPV | AB66: ='2.Kalkulation'!I35*AB$62 -> 0 | AC66: ='2.Kalkulation'!L35*AC$62 ->  | AD66: ='2.Kalkulation'!M35*AD$62 -> 0 | AH66: =IFERROR(_xlfn.FORMULATEXT(H66),"") -> =(I64-G64)/(I$57-G$57)
D67: =ROW() -> 67 | F67: Windparkfläche (% von Bodenfläche): | G67: ='2.Kalkulation'!I17 ->  | H67: =IFERROR("x "&TEXT(I67/G67,"0,0"),"") ->  | I67: ='2.Kalkulation'!L17 ->  | J67: =IF(AG67="","",HYPERLINK("["&'5.Kenndaten'!F$18&".xlsm]'"&AI67&AG$56&AG67&AH$56&AG67,"["&AJ67&AG67&"]")) -> [2.17] | AA67: DachPV | AB67: ='2.Kalkulation'!I27*AB$62 -> 0 | AC67: ='2.Kalkulation'!L27*AC$62 ->  | AD67: ='2.Kalkulation'!M27*AD$62 -> 0 | AG67: 17 | AH67: ='2.Kalkulation'!L17 | AI67: 2.Kalkulation'! | AJ67: 2.
D68: =ROW() -> 68 | J68: =IF(AG68="","",HYPERLINK("["&'5.Kenndaten'!F$18&".xlsm]'"&AI68&AG$56&AG68&AH$56&AG68,"["&AJ68&AG68&"]")) ->  | AA68: Wind | AB68: ='2.Kalkulation'!I19*AB$62 -> 0 | AC68: ='2.Kalkulation'!L19*AC$62 ->  | AD68: ='2.Kalkulation'!M19*AD$62 -> 0
D69: =ROW() -> 69 | E69: ='2.Kalkulation'!F25 -> Solarstrom vom Dach (DachPV) | J69: =IF(AG69="","",HYPERLINK("["&'5.Kenndaten'!F$18&".xlsm]'"&AI69&AG$56&AG69&AH$56&AG69,"["&AJ69&AG69&"]")) -> [2.25] | AG69: 25 | AH69: =IFERROR(_xlfn.FORMULATEXT(E69),"") -> ='2.Kalkulation'!F25 | AI69: 2.Kalkulation'! | AJ69: 2.
D70: =ROW() -> 70 | F70: Solarstrom jährlich (GWh/a): | G70: ='2.Kalkulation'!I27 -> 0 | H70: ="x "&TEXT(I70/G70,"0,0") ->  | I70: ='2.Kalkulation'!L27 ->  | J70: =IF(AG70="","",HYPERLINK("["&'5.Kenndaten'!F$18&".xlsm]'"&AI70&AG$56&AG70&AH$56&AG70,"["&AJ70&AG70&"]")) -> [2.27] | AG70: 27 | AH70: ='2.Kalkulation'!L27 | AI70: 2.Kalkulation'! | AJ70: 2.
D71: =ROW() -> 71 | F71: Installierte Leistung (MWp): | G71: ='2.Kalkulation'!I32 -> 0 | H71: ="x "&TEXT(I71/G71,"0,0") ->  | I71: ='2.Kalkulation'!L32 ->  | J71: =IF(AG71="","",HYPERLINK("["&'5.Kenndaten'!F$18&".xlsm]'"&AI71&AG$56&AG71&AH$56&AG71,"["&AJ71&AG71&"]")) -> [2.32] | AG71: 32 | AH71: ='2.Kalkulation'!L32 | AI71: 2.Kalkulation'! | AJ71: 2.
D72: =ROW() -> 72 | F72: ="Zubau jährlich "&G$57&"-"&I$57&" (MWp):" -> Zubau jährlich 2021-2040 (MWp): | H72: =(I71-G71)/(I$57-G$57) ->  | J72: =IF(AG72="","",HYPERLINK("["&'5.Kenndaten'!F$18&".xlsm]'"&AI72&AG$56&AG72&AH$56&AG72,"["&AJ72&AG72&"]")) ->  | AH72: =IFERROR(_xlfn.FORMULATEXT(H72),"") -> =(I71-G71)/(I$57-G$57)
D73: =ROW() -> 73 | F73: Install. Leistung pro Einwohner (kWp): | G73: ='2.Kalkulation'!I32*1000/'2.Kalkulation'!I54 ->  | H73: ="x "&TEXT(I73/G73,"0,0") ->  | I73: ='2.Kalkulation'!L32*1000/'2.Kalkulation'!L54 ->  | J73: =IF(AG73="","",HYPERLINK("["&'5.Kenndaten'!F$18&".xlsm]'"&AI73&AG$56&AG73&AH$56&AG73,"["&AJ73&AG73&"]")) -> [2.32] | AG73: 32 | AH73: ='2.Kalkulation'!L32*1000/'2.Kalkulation'!L54 | AI73: 2.Kalkulation'! | AJ73: 2.
D74: =ROW() -> 74 | F74: Modulfläche (% von Siedlungsfläche): | G74: ='2.Kalkulation'!I30 ->  | H74: ="x "&TEXT(I74/G74,"0,0") ->  | I74: ='2.Kalkulation'!L30 ->  | J74: =IF(AG74="","",HYPERLINK("["&'5.Kenndaten'!F$18&".xlsm]'"&AI74&AG$56&AG74&AH$56&AG74,"["&AJ74&AG74&"]")) -> [2.30] | AG74: 30 | AH74: ='2.Kalkulation'!L30 | AI74: 2.Kalkulation'! | AJ74: 2.
D75: =ROW() -> 75 | F75: Modulfläche pro Einwohner (qm): | G75: ='2.Kalkulation'!I29*10000/'2.Kalkulation'!I54 ->  | H75: ="x "&TEXT(I75/G75,"0,0") ->  | I75: ='2.Kalkulation'!L29*10000/'2.Kalkulation'!L54 ->  | AG75: 29 | AH75: ='2.Kalkulation'!L29*10000/'2.Kalkulation'!L54 | AI75: 2.Kalkulation'! | AJ75: 2.
D76: =ROW() -> 76 | J76: =IF(AG76="","",HYPERLINK("["&'5.Kenndaten'!F$18&".xlsm]'"&AI76&AG$56&AG76&AH$56&AG76,"["&AJ76&AG76&"]")) -> 
D77: =ROW() -> 77 | E77: ='2.Kalkulation'!F33 -> Solarstrom von Freiflächen (FFPV) | J77: =IF(AG77="","",HYPERLINK("["&'5.Kenndaten'!F$18&".xlsm]'"&AI77&AG$56&AG77&AH$56&AG77,"["&AJ77&AG77&"]")) -> [2.33] | AG77: 33 | AH77: =IFERROR(_xlfn.FORMULATEXT(E77),"") -> ='2.Kalkulation'!F33 | AI77: 2.Kalkulation'! | AJ77: 2.
D78: =ROW() -> 78 | F78: Solarstrom jährlich (GWh/a): | G78: ='2.Kalkulation'!I35 -> 0 | H78: ="x "&TEXT(I78/G78,"0,0") ->  | I78: ='2.Kalkulation'!L35 ->  | J78: =IF(AG78="","",HYPERLINK("["&'5.Kenndaten'!F$18&".xlsm]'"&AI78&AG$56&AG78&AH$56&AG78,"["&AJ78&AG78&"]")) -> [2.35] | AG78: 35 | AH78: ='2.Kalkulation'!L35 | AI78: 2.Kalkulation'! | AJ78: 2.
D79: =ROW() -> 79 | F79: Installierte Leistung (MW): | G79: ='2.Kalkulation'!I42 -> 0 | H79: ="x "&TEXT(I79/G79,"0,0") ->  | I79: ='2.Kalkulation'!L42 ->  | J79: =IF(AG79="","",HYPERLINK("["&'5.Kenndaten'!F$18&".xlsm]'"&AI79&AG$56&AG79&AH$56&AG79,"["&AJ79&AG79&"]")) -> [2.42] | AG79: 42 | AH79: ='2.Kalkulation'!L42 | AI79: 2.Kalkulation'! | AJ79: 2.
D80: =ROW() -> 80 | F80: ="Zubau jährlich "&G$57&"-"&I$57&" (MWp):" -> Zubau jährlich 2021-2040 (MWp): | H80: =(I79-G79)/(I$57-G$57) ->  | J80: =IF(AG80="","",HYPERLINK("["&'5.Kenndaten'!F$18&".xlsm]'"&AI80&AG$56&AG80&AH$56&AG80,"["&AJ80&AG80&"]")) ->  | AH80: =IFERROR(_xlfn.FORMULATEXT(H80),"") -> =(I79-G79)/(I$57-G$57)
D81: =ROW() -> 81 | F81: Anlagenfläche (% von Landwirt.fläche): | G81: ='2.Kalkulation'!I39 ->  | H81: ="x "&TEXT(I81/G81,"0,0") ->  | I81: ='2.Kalkulation'!L39 ->  | J81: =IF(AG81="","",HYPERLINK("["&'5.Kenndaten'!F$18&".xlsm]'"&AI81&AG$56&AG81&AH$56&AG81,"["&AJ81&AG81&"]")) -> [2.39] | AG81: 39 | AH81: ='2.Kalkulation'!L39 | AI81: 2.Kalkulation'! | AJ81: 2.
D82: =ROW() -> 82 | F82: Wasserkraft jährlich (GWh/a) | G82: ='2.Kalkulation'!I92 -> 0 | H82: =IF(G82=0,"Neu",IF(I82=G82,"+ - ",IF(I82>G82,"+ ",""))&ROUND(I82/G82%-100,0)&" %") -> Neu | I82: ='2.Kalkulation'!L92 -> 0 | J82: =IF(AG82="","",HYPERLINK("["&'5.Kenndaten'!F$18&".xlsm]'"&AI82&AG$56&AG82&AH$56&AG82,"["&AJ82&AG82&"]")) -> [2.92] | K82: = Bio+WK | AG82: 92 | AH82: ='2.Kalkulation'!L92 | AI82: 2.Kalkulation'! | AJ82: 2.
D83: =ROW() -> 83 | F83: Strom aus Biomasse (GWh/a) | G83: ='2.Kalkulation'!I93 -> 0 | H83: ="x "&TEXT(I83/G83,"0,0") ->  | I83: ='2.Kalkulation'!L93 -> 0 | J83: =IF(AG83="","",HYPERLINK("["&'5.Kenndaten'!F$18&".xlsm]'"&AI83&AG$56&AG83&AH$56&AG83,"["&AJ83&AG83&"]")) -> [2.93] | AG83: 93 | AH83: ='2.Kalkulation'!L93 | AI83: 2.Kalkulation'! | AJ83: 2.
D84: =ROW() -> 84 | E84: ='2.Kalkulation'!F51 -> B) Gebäudewärme | G84: Status | H84: Ziel/Status | I84: Ziel | J84: =IF(AG84="","",HYPERLINK("["&'5.Kenndaten'!F$18&".xlsm]'"&AI84&AG$56&AG84&AH$56&AG84,"["&AJ84&AG84&"]")) -> [2.51] | K84: ='2.Kalkulation'!$D$12 -> Landkreis | N84: =E84 -> B) Gebäudewärme | S84: =IF(T84=0,"",HYPERLINK("["&'6.Standarddaten'!$M$2&".xlsm]'"&'6.Standarddaten'!$N$3&T84,"["&'6.Standarddaten'!$M$3&T84&"]")) -> [8.151] | T84: ='8.Hilfe'!$D$151 -> 151 | AA84: Wertetabelle Diagramm | AG84: 51 | AH84: =IFERROR(_xlfn.FORMULATEXT(E84),"") -> ='2.Kalkulation'!F51 | AI84: 2.Kalkulation'! | AJ84: 2.
D85: =ROW() -> 85 | F85: Einwohner: | G85: ='2.Kalkulation'!I54 -> 0 | H85: =IF(I85=G85,"+ - ",IF(I85>G85,"+ ",""))&ROUND(I85/G85%-100,1)&" %" ->  | I85: ='2.Kalkulation'!L54 -> 0 | J85: =IF(AG85="","",HYPERLINK("["&'5.Kenndaten'!F$18&".xlsm]'"&AI85&AG$56&AG85&AH$56&AG85,"["&AJ85&AG85&"]")) -> [2.54] | K85: ='2.Kalkulation'!$D$13 -> P000100-D.H2i-L. | AA85: Anzeige=1, Ausblenden=0: | AB85: =P6 -> 1 | AC85: =Q6 -> 1 | AD85: =R6 -> 1 | AG85: 54 | AH85: ='2.Kalkulation'!L54 | AI85: 2.Kalkulation'! | AJ85: 2.
D86: =ROW() -> 86 | F86: Wohnfläche pro Einwohner (qm): | G86: ='2.Kalkulation'!I57 -> 43.222 | H86: + - 0 % | I86: ='2.Kalkulation'!L57 -> 43.222 | J86: =IF(AG86="","",HYPERLINK("["&'5.Kenndaten'!F$18&".xlsm]'"&AI86&AG$56&AG86&AH$56&AG86,"["&AJ86&AG86&"]")) -> [2.57] | AB86: =IF(AB85=1,"Status geschätzt","") -> Status geschätzt | AC86: =IF(AC85=1,"Ziel Ansatz","") -> Ziel Ansatz | AD86: =IF(AD85=1,"Ziel proport.","") -> Ziel proport. | AG86: 57 | AH86: ='2.Kalkulation'!L57 | AI86: 2.Kalkulation'! | AJ86: 2.
D87: =ROW() -> 87 | F87: Wohnfläche gesamt (Tsd. qm): | G87: ='2.Kalkulation'!I58 -> 0 | I87: ='2.Kalkulation'!L58 -> 0 | J87: =IF(AG87="","",HYPERLINK("["&'5.Kenndaten'!F$18&".xlsm]'"&AI87&AG$56&AG87&AH$56&AG87,"["&AJ87&AG87&"]")) -> [2.58] | S87: =IF(T87=0,"",HYPERLINK("["&'6.Standarddaten'!$M$2&".xlsm]'"&'6.Standarddaten'!$N$3&T87,"["&'6.Standarddaten'!$M$3&T87&"]")) -> [8.153] | T87: ='8.Hilfe'!$D$153 -> 153 | V87: https://www.energiesparen-im-haushalt.de/energie/bauen-und-modernisieren/modernisierung-haus/nachtraegliche-waermedaemmung.html | AA87: Holz | AB87: =G102*AB$85 -> 0 | AC87: =I102*AC$85 -> 0 | AD87: =('2.Kalkulation'!M69+'2.Kalkulation'!M70)*AD$85 -> 0 | AG87: 58 | AH87: ='2.Kalkulation'!L58 | AI87: 2.Kalkulation'! | AJ87: 2.
D88: =ROW() -> 88 | F88: Gebäudewärme-Verbrauch (GWh/a): | G88: ='2.Kalkulation'!I56 -> 0 | I88: ='2.Kalkulation'!L56 -> 0 | J88: =IF(AG88="","",HYPERLINK("["&'5.Kenndaten'!F$18&".xlsm]'"&AI88&AG$56&AG88&AH$56&AG88,"["&AJ88&AG88&"]")) -> [2.56] | AA88: Bio KWK | AB88: =G103*AB$85 -> 0 | AC88: =I103*AC$85 -> 0 | AD88: ='2.Kalkulation'!M71*AD$85 -> 0 | AG88: 56 | AH88: ='2.Kalkulation'!L56 | AI88: 2.Kalkulation'! | AJ88: 2.
D89: =ROW() -> 89 | F89: … davon Wohnungen (GWh/a): | G89: =G88*'2.Kalkulation'!I65/('2.Kalkulation'!I65+'2.Kalkulation'!I66) -> 0 | I89: =I88*'2.Kalkulation'!L65/('2.Kalkulation'!L65+'2.Kalkulation'!L66) -> 0 | AA89: H2 KWK | AB89: 0 | AC89: 0 | AD89: ='2.Kalkulation'!M76*AD$85 -> 0 | AG89: 65 | AH89: =I88*'2.Kalkulation'!L65/('2.Kalkulation'!L65+'2.Kalkulation'!L66) | AI89: 88*'2.Kalkulation'! | AJ89: 88
D90: =ROW() -> 90 | F90: …pro Einwohner (MWh/a): | G90: =ROUND(G89*1000/G85,1) ->  | I90: =ROUND(I89*1000/I85,1) ->  | J90: =IF(AG90="","",HYPERLINK("["&'5.Kenndaten'!F$18&".xlsm]'"&AI90&AG$56&AG90&AH$56&AG90,"["&AJ90&AG90&"]")) ->  | AA90: SolTh. | AC90: 0 | AD90: ='2.Kalkulation'!M77*AD$85 -> 0 | AH90: =RUNDEN(I89*1000/I85;1)
D91: =ROW() -> 91 | J91: =IF(AG91="","",HYPERLINK("["&'5.Kenndaten'!F$18&".xlsm]'"&AI91&AG$56&AG91&AH$56&AG91,"["&AJ91&AG91&"]")) ->  | AA91: WP Strom | AB91: ='2.Kalkulation'!I81*AB$85 -> 0 | AC91: ='2.Kalkulation'!L81*AC$85 ->  | AD91: ='2.Kalkulation'!M81*AD$85 -> 0
D92: =ROW() -> 92 | E92: ='2.Kalkulation'!F59 -> Gebäudesanierung - Wärmeschutz | J92: =IF(AG92="","",HYPERLINK("["&'5.Kenndaten'!F$18&".xlsm]'"&AI92&AG$56&AG92&AH$56&AG92,"["&AJ92&AG92&"]")) -> [2.59] | S92: =IF(T92=0,"",HYPERLINK("["&'6.Standarddaten'!$M$2&".xlsm]'"&'6.Standarddaten'!$N$3&T92,"["&'6.Standarddaten'!$M$3&T92&"]")) -> [8.154] | T92: ='8.Hilfe'!$D154 -> 154 | V92: eigene Grafik | AA92: WP EUW | AB92: =('2.Kalkulation'!I79+'2.Kalkulation'!I80)*AB$85 ->  | AC92: =('2.Kalkulation'!L80+'2.Kalkulation'!L79)*AC$85 ->  | AD92: =('2.Kalkulation'!M80+'2.Kalkulation'!M79)*AD$85 -> 0 | AG92: 59 | AH92: =IFERROR(_xlfn.FORMULATEXT(E92),"") -> ='2.Kalkulation'!F59 | AI92: 2.Kalkulation'! | AJ92: 2.
D93: =ROW() -> 93 | F93: Raumwärme ØStatus/San.-Ziel (kWh/m2/a): | G93: ='2.Kalkulation'!I64 -> 122.1 | H93: =IF(I93=G93,"+ - ",IF(I93>G93,"+ ",""))&ROUND(I93/G93%-100,1)&" %" -> -63 % | I93: ='2.Kalkulation'!L64 -> 45.2 | J93: =IF(AG93="","",HYPERLINK("["&'5.Kenndaten'!F$18&".xlsm]'"&AI93&AG$56&AG93&AH$56&AG93,"["&AJ93&AG93&"]")) -> [2.64] | AA93: Fossil | AB93: =G107*AB$85 -> 0 | AC93: =I107*AC$85 ->  | AD93: =K107*AD$85 -> 0 | AG93: 64 | AH93: ='2.Kalkulation'!L64 | AI93: 2.Kalkulation'! | AJ93: 2.
D94: =ROW() -> 94 | F94: Sanierungsrate Ø / Jahr (% vom Bestand): | H94: ='2.Kalkulation'!I60 -> 2.64 | J94: =IF(AG94="","",HYPERLINK("["&'5.Kenndaten'!F$18&".xlsm]'"&AI94&AG$56&AG94&AH$56&AG94,"["&AJ94&AG94&"]")) -> [2.60] | AA94: Minder. | AC94: =('2.Kalkulation'!$I56-'2.Kalkulation'!L56)*AC$85 -> 0 | AD94: =('2.Kalkulation'!$I56-'2.Kalkulation'!M56)*AD$85 -> 0 | AG94: 60 | AH94: =IFERROR(_xlfn.FORMULATEXT(H94),"") -> ='2.Kalkulation'!I60 | AI94: 2.Kalkulation'! | AJ94: 2.
D95: =ROW() -> 95 | F95: ="Gebäudeanteil "&G57&"-"&I57&" saniert (%):" -> Gebäudeanteil 2021-2040 saniert (%): | G95: 0 | I95: =(I57-G57)*'2.Kalkulation'!I60 -> 50.16 | AG95: 60 | AH95: =(I57-G57)*'2.Kalkulation'!I60 | AI95: I57-G57)*'2.Kalkulation'! | AJ95: I5
D96: =ROW() -> 96 | F96: Wohnfläche jährlich zu sanieren (Tsd. qm): | H96: ='2.Kalkulation'!I61 -> 0 | J96: =IF(AG96="","",HYPERLINK("["&'5.Kenndaten'!F$18&".xlsm]'"&AI96&AG$56&AG96&AH$56&AG96,"["&AJ96&AG96&"]")) -> [2.61] | S96: =IF(T96=0,"",HYPERLINK("["&'6.Standarddaten'!$M$2&".xlsm]'"&'6.Standarddaten'!$N$3&T96,"["&'6.Standarddaten'!$M$3&T96&"]")) -> [8.155] | T96: ='8.Hilfe'!$D155 -> 155 | V96: https://mindseteco.co/wp-content/uploads/elementor/thumbs/water-heater-491270_1920-p1li42hdiriomvbonw5rql033z9fkfh79poi50qa6s.jpg | AG96: 61 | AH96: =IFERROR(_xlfn.FORMULATEXT(H96),"") -> ='2.Kalkulation'!I61 | AI96: 2.Kalkulation'! | AJ96: 2.
D97: =ROW() -> 97 | F97: …entspricht Anzahl Wohnungen jährlich: | H97: ='2.Kalkulation'!I62 -> 0 | J97: =IF(AG97="","",HYPERLINK("["&'5.Kenndaten'!F$18&".xlsm]'"&AI97&AG$56&AG97&AH$56&AG97,"["&AJ97&AG97&"]")) -> [2.62] | AG97: 62 | AH97: =IFERROR(_xlfn.FORMULATEXT(H97),"") -> ='2.Kalkulation'!I62 | AI97: 2.Kalkulation'! | AJ97: 2.
D98: =ROW() -> 98 | F98: bei Ø Wohnungsfläche [qm): | H98: ='2.Kalkulation'!I65 -> 100 | J98: =IF(AG98="","",HYPERLINK("["&'5.Kenndaten'!F$18&".xlsm]'"&AI98&AG$56&AG98&AH$56&AG98,"["&AJ98&AG98&"]")) -> [2.65] | AG98: 65 | AH98: ='2.Kalkulation'!I65 | AI98: 2.Kalkulation'! | AJ98: 2.
D99: =ROW() -> 99 | F99: …zusätzl. Handel/Gewerbe (% v. Wohnfl.): | H99: ="+ "&ROUND('2.Kalkulation'!I67,1)&" %" ->  | J99: =IF(AG99="","",HYPERLINK("["&'5.Kenndaten'!F$18&".xlsm]'"&AI99&AG$56&AG99&AH$56&AG99,"["&AJ99&AG99&"]")) -> 
D100: =ROW() -> 100 | J100: =IF(AG100="","",HYPERLINK("["&'5.Kenndaten'!F$18&".xlsm]'"&AI100&AG$56&AG100&AH$56&AG100,"["&AJ100&AG100&"]")) -> 
D101: =ROW() -> 101 | E101: ='2.Kalkulation'!F68 -> Wärmeversorgung - Anteile | J101: =IF(AG101="","",HYPERLINK("["&'5.Kenndaten'!F$18&".xlsm]'"&AI101&AG$56&AG101&AH$56&AG101,"["&AJ101&AG101&"]")) -> [2.68] | S101: =IF(T101=0,"",HYPERLINK("["&'6.Standarddaten'!$M$2&".xlsm]'"&'6.Standarddaten'!$N$3&T101,"["&'6.Standarddaten'!$M$3&T101&"]")) -> [8.156] | T101: ='8.Hilfe'!$D156 -> 156 | AG101: 68 | AH101: =IFERROR(_xlfn.FORMULATEXT(E101),"") -> ='2.Kalkulation'!F68 | AI101: 2.Kalkulation'! | AJ101: 2.
D102: =ROW() -> 102 | F102: Brennholz direkt (GWh/a): | G102: ='2.Kalkulation'!I69+'2.Kalkulation'!I70 -> 0 | H102: =IF(I102=G102,"+ - ",IF(I102>G102,"+ ",""))&ROUND(I102/G102%-100,0)&" %" ->  | I102: ='2.Kalkulation'!L69+'2.Kalkulation'!L70 -> 0 | J102: =IF(AG102="","",HYPERLINK("["&'5.Kenndaten'!F$18&".xlsm]'"&AI102&AG$56&AG102&AH$56&AG102,"["&AJ102&AG102&"]")) -> [2.69] | S102: =IF(T102=0,"",HYPERLINK("["&'6.Standarddaten'!$M$2&".xlsm]'"&'6.Standarddaten'!$N$3&T102,"["&'6.Standarddaten'!$M$3&T102&"]")) -> [8.157] | T102: ='8.Hilfe'!$D157 -> 157 | AG102: 69 | AH102: ='2.Kalkulation'!L69+'2.Kalkulation'!L70 | AI102: 2.Kalkulation'! | AJ102: 2.
D103: =ROW() -> 103 | F103: Abwärme KWK: Biobrennstoff (GWh/a): | G103: ='2.Kalkulation'!I71 -> 0 | H103: =IF(I103=G103,"+ - ",IF(I103>G103,"+ ",""))&ROUND(I103/G103%-100,0)&" %" ->  | I103: ='2.Kalkulation'!L71 -> 0 | J103: =IF(AG103="","",HYPERLINK("["&'5.Kenndaten'!F$18&".xlsm]'"&AI103&AG$56&AG103&AH$56&AG103,"["&AJ103&AG103&"]")) -> [2.71] | S103: =IF(T103=0,"",HYPERLINK("["&'6.Standarddaten'!$M$2&".xlsm]'"&'6.Standarddaten'!$N$3&T103,"["&'6.Standarddaten'!$M$3&T103&"]")) -> [8.158] | T103: ='8.Hilfe'!$D158 -> 158 | AG103: 71 | AH103: ='2.Kalkulation'!L71 | AI103: 2.Kalkulation'! | AJ103: 2.
D104: =ROW() -> 104 | F104: Abwärme KWK: Wasserstoff (GWh/a) | G104: ='2.Kalkulation'!I76 -> 0 | H104: =IF(G104=0,"Neu",IF(I104=G104,"+ - ",IF(I104>G104,"+ ",""))&ROUND(I104/G104%-100,0)&" %") -> Neu | I104: ='2.Kalkulation'!L76 -> 0 | J104: =IF(AG104="","",HYPERLINK("["&'5.Kenndaten'!F$18&".xlsm]'"&AI104&AG$56&AG104&AH$56&AG104,"["&AJ104&AG104&"]")) -> [2.76] | V104: Bild von <a href="https://pixabay.com/de/users/jacquesuhlemann-4588631/?utm_source=link-attribution&amp;utm_medium=referral&amp;utm_campaign=image&amp;utm_content=3237421">Jacques Uhlemann</a> auf <a href="https://pixabay.com/de/?utm_source=link-attribution&amp;utm_medium=referral&amp;utm_campaign=image&amp;utm_content=3237421">Pixabay</a> | AG104: 76 | AH104: ='2.Kalkulation'!L76 | AI104: 2.Kalkulation'! | AJ104: 2.
D105: =ROW() -> 105 | F105: Solarthermie (GWh/a): | G105: ='2.Kalkulation'!I77 ->  | H105: ="x "&TEXT(I105/G105,"0,0") ->  | I105: ='2.Kalkulation'!L77 -> 0 | J105: =IF(AG105="","",HYPERLINK("["&'5.Kenndaten'!F$18&".xlsm]'"&AI105&AG$56&AG105&AH$56&AG105,"["&AJ105&AG105&"]")) -> [2.77] | S105: =IF(T105=0,"",HYPERLINK("["&'6.Standarddaten'!$M$2&".xlsm]'"&'6.Standarddaten'!$N$3&T105,"["&'6.Standarddaten'!$M$3&T105&"]")) -> [8.159] | T105: ='8.Hilfe'!$D159 -> 159 | AG105: 77 | AH105: ='2.Kalkulation'!L77 | AI105: 2.Kalkulation'! | AJ105: 2.
D106: =ROW() -> 106 | F106: Wärmepumpen (GWh/a): | G106: ='2.Kalkulation'!I79+'2.Kalkulation'!I80+'2.Kalkulation'!I81 ->  | H106: ="x "&TEXT(I106/G106,"0,0") ->  | I106: ='2.Kalkulation'!L79+'2.Kalkulation'!L80+'2.Kalkulation'!L81 ->  | J106: =IF(AG106="","",HYPERLINK("["&'5.Kenndaten'!F$18&".xlsm]'"&AI106&AG$56&AG106&AH$56&AG106,"["&AJ106&AG106&"]")) -> [2.79] | AG106: 79 | AH106: ='2.Kalkulation'!L79+'2.Kalkulation'!L80+'2.Kalkulation'!L81 | AI106: 2.Kalkulation'! | AJ106: 2.
D107: =ROW() -> 107 | F107: Fossile Brennstoffe+Strom (GWh/a): | G107: ='2.Kalkulation'!H85 -> 0 | H107: =IF(I107=G107,"+ - ",IF(I107>G107,"+ ",""))&ROUND(I107/G107%-100,0)&" %" ->  | I107: ='2.Kalkulation'!L85 ->  | J107: =IF(AG107="","",HYPERLINK("["&'5.Kenndaten'!F$18&".xlsm]'"&AI107&AG$56&AG107&AH$56&AG107,"["&AJ107&AG107&"]")) -> [2.85] | AG107: 85 | AH107: ='2.Kalkulation'!L85 | AI107: 2.Kalkulation'! | AJ107: 2.
D108: =ROW() -> 108 | J108: =IF(AG108="","",HYPERLINK("["&'5.Kenndaten'!F$18&".xlsm]'"&AI108&AG$56&AG108&AH$56&AG108,"["&AJ108&AG108&"]")) -> 
D109: =ROW() -> 109 | E109: Solarthermie | J109: =IF(AG109="","",HYPERLINK("["&'5.Kenndaten'!F$18&".xlsm]'"&AI109&AG$56&AG109&AH$56&AG109,"["&AJ109&AG109&"]")) -> 
D110: =ROW() -> 110 | F110: Anteil an Gebäudewärme (%): | G110: =G105/G88% ->  | I110: =I105/I88% ->  | J110: =IF(AG110="","",HYPERLINK("["&'5.Kenndaten'!F$18&".xlsm]'"&AI110&AG$56&AG110&AH$56&AG110,"["&AJ110&AG110&"]")) ->  | AH110: =I105/I88%
D111: =ROW() -> 111 | F111: Kollektorfläche (Tsd. qm): | G111: ='2.Kalkulation'!I89 -> 0 | H111: ="x "&TEXT(I111/G111,"0,0") ->  | I111: ='2.Kalkulation'!L89 ->  | J111: =IF(AG111="","",HYPERLINK("["&'5.Kenndaten'!F$18&".xlsm]'"&AI111&AG$56&AG111&AH$56&AG111,"["&AJ111&AG111&"]")) -> [2.89] | AG111: 89 | AH111: ='2.Kalkulation'!L89 | AI111: 2.Kalkulation'! | AJ111: 2.
D112: =ROW() -> 112 | F112: …pro Einwohner (qm): | G112: =G111*1000/G85 ->  | H112: ="x "&TEXT(I112/G112,"0,0") ->  | I112: =I111*1000/I85 ->  | J112: =IF(AG112="","",HYPERLINK("["&'5.Kenndaten'!F$18&".xlsm]'"&AI112&AG$56&AG112&AH$56&AG112,"["&AJ112&AG112&"]")) ->  | AH112: =I111*1000/I85
D113: =ROW() -> 113 | F113: ="Zubau jährlich "&G57&"-"&I57&" (qm):" -> Zubau jährlich 2021-2040 (qm): | H113: =(I111-G111)*1000/(I57-G57) ->  | J113: =IF(AG113="","",HYPERLINK("["&'5.Kenndaten'!F$18&".xlsm]'"&AI113&AG$56&AG113&AH$56&AG113,"["&AJ113&AG113&"]")) -> 
D114: =ROW() -> 114 | J114: =IF(AG114="","",HYPERLINK("["&'5.Kenndaten'!F$18&".xlsm]'"&AI114&AG$56&AG114&AH$56&AG114,"["&AJ114&AG114&"]")) ->  | W114: Solarthermische Regeneration
D115: =ROW() -> 115 | E115: Wärmepumpen | J115: =IF(AG115="","",HYPERLINK("["&'5.Kenndaten'!F$18&".xlsm]'"&AI115&AG$56&AG115&AH$56&AG115,"["&AJ115&AG115&"]")) ->  | W115: Abregelung S.2.220
D116: =ROW() -> 116 | F116: Installierte Leistung (MW el.]): | G116: ='2.Kalkulation'!I84 -> 0 | H116: ="x "&TEXT(I116/G116,"0,0") ->  | I116: ='2.Kalkulation'!L84 ->  | J116: =IF(AG116="","",HYPERLINK("["&'5.Kenndaten'!F$18&".xlsm]'"&AI116&AG$56&AG116&AH$56&AG116,"["&AJ116&AG116&"]")) -> [2.84] | AG116: 84 | AH116: ='2.Kalkulation'!L84 | AI116: 2.Kalkulation'! | AJ116: 2.
D117: =ROW() -> 117 | F117: …pro Einwohner (kW el.): | G117: =G116*1000/G85 ->  | H117: ="x "&TEXT(I117/G117,"0,0") ->  | I117: =I116*1000/I85 ->  | J117: =IF(AG117="","",HYPERLINK("["&'5.Kenndaten'!F$18&".xlsm]'"&AI117&AG$56&AG117&AH$56&AG117,"["&AJ117&AG117&"]")) ->  | AH117: =I116*1000/I85
D118: =ROW() -> 118 | F118: ="Zubau jährlich "&G$57&"-"&I$57&" (kW el.):" -> Zubau jährlich 2021-2040 (kW el.): | H118: =(I116-G116)*1000/(I$57-G$57) ->  | J118: =IF(AG118="","",HYPERLINK("["&'5.Kenndaten'!F$18&".xlsm]'"&AI118&AG$56&AG118&AH$56&AG118,"["&AJ118&AG118&"]")) -> 
D119: =ROW() -> 119 | F119: Anzahl Anlagen jährlich: | H119: =H118/I120 ->  | J119: =IF(AG119="","",HYPERLINK("["&'5.Kenndaten'!F$18&".xlsm]'"&AI119&AG$56&AG119&AH$56&AG119,"["&AJ119&AG119&"]")) -> 
D120: =ROW() -> 120 | F120: ...bei Ø-Leistung pro Anlage (kW el.): | I120: 3 | J120: =IF(AG120="","",HYPERLINK("["&'5.Kenndaten'!F$18&".xlsm]'"&AI120&AG$56&AG120&AH$56&AG120,"["&AJ120&AG120&"]")) ->  | AG120: =IFERROR(MID(AH120,FIND("!",AH120)+2,2),"") ->  | AI120: =IFERROR(MID(AH120,3,FIND("!",AH120)-2),"") -> 
D121: =ROW() -> 121 | E121: KWK-Abwärme Bioenergie
D122: =ROW() -> 122
D123: =ROW() -> 123 | F123: Installierte Leistung elektrisch (MW]):
D124: =ROW() -> 124
D125: =ROW() -> 125 | E125: KWK-Abwärme Wasserstoff
D126: =ROW() -> 126
D127: =ROW() -> 127 | F127: Installierte Leistung elektrisch (MW]):
D128: =ROW() -> 128
D129: =ROW() -> 129 | E129: Wärmepumpen luftgekoppelt
D130: =ROW() -> 130
D131: =ROW() -> 131 | F131: Installierte Leistung elektrisch (MW]):
D132: =ROW() -> 132
D133: =ROW() -> 133 | E133: Wärmepumpen erd-/wassergekoppelt
D134: =ROW() -> 134
D135: =ROW() -> 135 | F135: Installierte Leistung elektrisch (MW]):
D136: =ROW() -> 136
D137: =ROW() -> 137 | E137: Solarwärme für Erdwärme-Regenration
D138: =ROW() -> 138
D139: =ROW() -> 139 | F139: Kollektorfläche (% von Siedlungsfläche):
D140: =ROW() -> 140
D141: =ROW() -> 141
D142: =ROW() -> 142
D143: =ROW() -> 143
D144: =ROW() -> 144
D145: =ROW() -> 145
D146: =ROW() -> 146
D147: =ROW() -> 147
D148: =ROW() -> 148
D149: =ROW() -> 149
D150: =ROW() -> 150
D151: =ROW() -> 151
D152: =ROW() -> 152
D153: =ROW() -> 153
D154: =ROW() -> 154
D155: =ROW() -> 155
D156: =ROW() -> 156
D157: =ROW() -> 157

Sheet 2.Kalkulation
J2: F | AC2: D | AK2: D
C3: [ | E3: =BO3 -> 2. | F3: ] | J3: ='5.Kenndaten'!F18 -> P000100-D.H2i-L. | U3: [D.xlsx]'1l'!D | V3: N | Y3: [D.xlsx]'1l'!D | Z3: N | AB3: [SI.xlsx]I! | AC3: F | AE3: G | AF3: I | AG3: J | AH3: M | AK3: F | AM3: G | AN3: I | AO3: J | AP3: M | BK3: Vorlagen>>> | BL3: =BM3&BO3 -> P.2. | BM3: =MID(BN3,1,1)&"." -> P. | BN3: =MID(BQ3,FIND("[",BQ3)+1,FIND("xlsm",BQ3)-FIND("[",BQ3)-2) -> P000100-D.H2i-L. | BO3: =LEFT(BP3,FIND(".",BP3)) -> 2. | BP3: =MID(BQ3,FIND("]",BQ3)+1,255) -> 2.Kalkulation | BQ3: =CELL("dateiname",BQ3) -> C:\Users\schmi\Documents\_wattweg2008\Veranstaltungen_2024\240828WorkshopRegionalplaner\Arbeitsordner200822m\[P000100-D.H2i-L..xlsm]2.Kalkulation | BX3: D | BY3: [ | BZ3: ] | CA3: [D.xlsx] | CB3: ="("&BN3&")" -> (P000100-D.H2i-L.) | CD3: =BM3&BO3&" - " -> P.2. - | CE3: ='1.Ansicht'!BF3 -> Energieszenario 'Landkreis 100% EE' (P000100-D.H2i-L.) | CH3: =Versionen!A1 -> 240826e | CI3: =TEXT(TODAY(),"tt.MM.jjjj") -> 27.08.2024 | CJ3: =TEXT(NOW(),"hh:mm") -> 13:04 | CK3: ="100prosim.P ("&BN3&".xlsx, V."&CH3&") - "&CI3&" "&CJ3 -> 100prosim.P (P000100-D.H2i-L..xlsx, V.240826e) - 27.08.2024 13:04 | CU3: 09.01
B4: =C$3&E$3&E4&F$3 -> [2.4] | C4: =C$3&E4&F$3 -> [4] | E4: =ROW() -> 4 | M4: =CK3 -> 100prosim.P (P000100-D.H2i-L..xlsx, V.240826e) - 27.08.2024 13:04 | Y4: =M4 -> 100prosim.P (P000100-D.H2i-L..xlsx, V.240826e) - 27.08.2024 13:04
E5: =BM3&BP3&" - "&CE3 -> P.2.Kalkulation - Energieszenario 'Landkreis 100% EE' (P000100-D.H2i-L.) | M5: Linke Tabelle | Q5: =BM3&BP3&" - "&CE3 -> P.2.Kalkulation - Energieszenario 'Landkreis 100% EE' (P000100-D.H2i-L.) | Y5: Rechte Tabelle | AA5: SI.xlsx >>>
B6: =C$3&E$3&E6&F$3 -> [2.6] | C6: =C$3&E6&F$3 -> [6] | E6: =ROW() -> 6 | Q6: =ROW() -> 6 | AA6: =IFERROR(AC6,AK6) -> Szenario 'Deutschland 100%EE' (200822) | AB6: 7 | AC6: =INDIRECT($AB$3&AC$2&$AB6) -> Szenario 'Deutschland 100%EE' (200822) | AJ6: Backup >>> | AK6: Szenario 'Deutschland 100%EE' (200822)
B7: [2.7] | C7: =C$3&E7&F$3 -> [7] | E7: =ROW() -> 7 | F7: ="Zielregion (ZR): "&'5.Kenndaten'!F9&" "&'5.Kenndaten'!F10 -> Zielregion (ZR): Landkreis | M7: ="Basisregion (BR) siehe: Rechte Tabelle" -> Basisregion (BR) siehe: Rechte Tabelle | O7: > | Q7: =ROW() -> 7 | R7: ="Basisregion (BR): "&'1.Ansicht'!H42 -> Basisregion (BR): Szenario 'Deutschland 100%EE' (200822) | AA7: =IFERROR(AC7,AK7) -> 27.08.2024 13:04 | AC7: =TEXT(TODAY(),"tt.MM.jjjj")&" "&TEXT(NOW(),"hh:mm") -> 27.08.2024 13:04 | AK7: 27.08.2024 13:02
B8: [2.8] | C8: [8] | E8: =ROW() -> 8 | Q8: =ROW() -> 8 | AA8: Interface>>> | AC8: 1 | AE8: 3 | AF8: 4 | AG8: 5 | AH8: 6 | AI8: 7 | AK8: 1 | AM8: 3 | AN8: 4 | AO8: 5 | AP8: 6 | AQ8: 7
B9: =C$3&E$3&E9&F$3 -> [2.9] | C9: =C$3&E9&F$3 -> [9] | E9: =ROW() -> 9 | H9: Basisszen. | I9: dieses Szenario | M9: Basisszen.
B10: [2.10] | C10: [10] | E10: =ROW() -> 10 | F10: Statusjahr / 100%EE-Zieljahr für Zubaurate | H10: =T10 -> 2016 | I10: 2021 | K10: =L10-I10&" J." -> 19 J. | L10: =M10 -> 2040 | M10: =V10 -> 2040 | Q10: =ROW() -> 10 | R10: =F10 -> Statusjahr / 100%EE-Zieljahr für Zubaurate | S10: =G10 -> 0 | T10: =IFERROR(AC10,AK10) -> 2016 | U10: =V10-T10&" J." -> 24 J. | V10: =IFERROR(AE10,AM10) -> 2040 | W10: =HYPERLINK(IFERROR(AF10,AN10),IFERROR(AG10,AO10)) -> [S.4.6] | Y10: =HYPERLINK(IFERROR(AH10,AP10),IFERROR(AI10,AQ10)) -> [D.1.674] | AB10: 603 | AC10: =INDIRECT($AB$3&AC$3&$AB10) -> 2016 | AE10: 2040 | AF10: [_S.xlsx]'4. Verbrauch'!D6 | AG10: [S.4.6] | AH10: [D.xlsx]'1.'!D674 | AI10: =INDIRECT($AB$3&Z$3&$AB10) -> [D.1.674] | AK10: 2016 | AM10: 2040 | AN10: [_S.xlsx]'4. Verbrauch'!D6 | AO10: [S.4.6] | AP10: [D.xlsx]'1.'!D674 | AQ10: [D.1.674]
B11: [2.11] | C11: [11] | E11: =ROW() -> 11 | F11: A) Wind-/Solarstrom | Q11: =ROW() -> 11 | R11: =F11 -> A) Wind-/Solarstrom
B12: [2.12] | C12: [12] | D12: ='5.Kenndaten'!F$9&" "&'5.Kenndaten'!F$10 -> Landkreis | E12: =ROW() -> 12 | H12: Status BR-proport. | I12: Status Ansatz | J12: Bezug | K12: Faktor | L12: Ziel Ansatz | M12: Ziel BR-proport. | Q12: =ROW() -> 12 | T12: Status | U12: Faktor | V12: Ziel | W12: Datenquellen
B13: [2.13] | C13: [13] | D13: ='5.Kenndaten'!F$16 -> P000100-D.H2i-L. | E13: =ROW() -> 13 | K13: → | Q13: =ROW() -> 13 | U13: →
B14: [2.14] | C14: [14] | E14: =ROW() -> 14 | F14: Windenergie onshore | Q14: =ROW() -> 14 | R14: =F14 -> Windenergie onshore
B15: [2.15] | C15: [15] | E15: =ROW() -> 15 | F15: Bodenfläche (BF) | G15: ha | H15: ='1.Ansicht'!I50 -> 0 | I15: =H15 -> 0 | K15: =IFERROR(L15/I15,K$6) -> 0 | L15: =M15 -> 0 | M15: =H15 -> 0 | Q15: =ROW() -> 15 | R15: =F15 -> Bodenfläche (BF) | S15: =G15 -> ha | T15: =IFERROR(AC15,AK15) -> 35757963 | U15: =IFERROR(V15/T15,U$6) -> 1 | V15: =IFERROR(AE15,AM15) -> 35757963 | W15: =HYPERLINK(IFERROR(AF15,AN15),IFERROR(AG15,AO15)) -> [S.1.8] | Y15: =HYPERLINK(IFERROR(AH15,AP15),IFERROR(AI15,AQ15)) -> [D.1.64] | AB15: 19 | AC15: =INDIRECT($AB$3&AC$3&$AB15) -> 35757963 | AE15: 35757963 | AF15: [_S.xlsx]'1. Flächen'!D8 | AG15: [S.1.8] | AH15: [D.xlsx]'1.'!D64 | AI15: =INDIRECT($AB$3&Z$3&$AB15) -> [D.1.64] | AK15: 35757963 | AM15: 35757963 | AN15: [_S.xlsx]'1. Flächen'!D8 | AO15: [S.1.8] | AP15: [D.xlsx]'1.'!D64 | AQ15: [D.1.64]
B16: [2.16] | C16: [16] | E16: =ROW() -> 16 | F16: Windparkfläche | G16: ha | H16: =T16*H15/T15 -> 0 | I16: =I19*1000/I18 -> 0 | K16: 0 | L16: =L15*L17% ->  | M16: =V16*M15/V15 -> 0 | Q16: =ROW() -> 16 | R16: =F16 -> Windparkfläche | S16: ha | T16: =IFERROR(AC16,AK16) -> 195708.0589 | U16: 3.654214671 | V16: =IFERROR(AE16,AM16) -> 715159.26 | W16: =HYPERLINK(IFERROR(AF16,AN16),IFERROR(AG16,AO16)) -> [S.1.34] | Y16: =HYPERLINK(IFERROR(AH16,AP16),IFERROR(AI16,AQ16)) -> [D.1.188] | AB16: 45 | AC16: 195708.0589 | AE16: 715159.26 | AF16: [_S.xlsx]'1. Flächen'!D34 | AG16: [S.1.34] | AH16: [D.xlsx]'1.'!D188 | AI16: =INDIRECT($AB$3&Z$3&$AB16) -> [D.1.188] | AK16: 195708.0589 | AM16: 715159.26 | AN16: [_S.xlsx]'1. Flächen'!D34 | AO16: [S.1.34] | AP16: [D.xlsx]'1.'!D188 | AQ16: [D.1.188]
B17: [2.17] | C17: [17] | E17: =ROW() -> 17 | G17: % v. BF | H17: =H16/H15% ->  | I17: =I16/I15% ->  | K17: 0 | L17: =M17 ->  | M17: =M16/M15% ->  | Q17: =ROW() -> 17 | S17: % v. BF | T17: =T16/T15% -> 0.5473132205 | U17: 3.654214671 | V17: =V16/V15% -> 2
B18: [2.18] | C18: [18] | E18: =ROW() -> 18 | F18: Flächenertrag Windpark | G18: MWh/ha/a | H18: =T18 -> 357.7435261 | I18: =H18 -> 357.7435261 | K18: 1.656623165 | L18: =M18 -> 592.6462122 | M18: =V18 -> 592.6462122 | Q18: =ROW() -> 18 | R18: =F18 -> Flächenertrag Windpark | S18: MWh/ha/a | T18: =IFERROR(AC18,AK18) -> 357.7435261 | U18: 1.656623165 | V18: =IFERROR(AE18,AM18) -> 592.6462122 | W18: =HYPERLINK(IFERROR(AF18,AN18),IFERROR(AG18,AO18)) -> [S.2.33] | Y18: =HYPERLINK(IFERROR(AH18,AP18),IFERROR(AI18,AQ18)) ->  | AB18: 130 | AC18: =INDIRECT($AB$3&AC$3&$AB18) -> 357.7435261 | AE18: 592.6462122 | AF18: [_S.xlsx]'2. Erneuerbare'!D33 | AG18: [S.2.33] | AI18: =INDIRECT($AB$3&Z$3&$AB18) ->  | AK18: 357.7435261 | AM18: 592.6462122 | AN18: [_S.xlsx]'2. Erneuerbare'!D33 | AO18: [S.2.33]
B19: [2.19] | C19: [19] | E19: =ROW() -> 19 | F19: Windstromaufkommen onshore | G19: GWh/a | H19: =T19*H15/T15 -> 0 | I19: =I22*I21/1000 -> 0 | K19: 0 | L19: =L16*L18/1000 ->  | M19: =V19*M15/V15 -> 0 | Q19: =ROW() -> 19 | R19: Windstromaufkommen onshore | S19: GWh/a | T19: =IFERROR(AC19,AK19) -> 70013.29106 | U19: 6.053656673 | V19: =IFERROR(AE19,AM19) -> 423836.4266 | W19: =HYPERLINK(IFERROR(AF19,AN19),IFERROR(AG19,AO19)) -> [S.2.32] | Y19: =HYPERLINK(IFERROR(AH19,AP19),IFERROR(AI19,AQ19)) ->  | AB19: 129 | AC19: 70013.29106 | AE19: 423836.4266 | AF19: [_S.xlsx]'2. Erneuerbare'!D32 | AG19: [S.2.32] | AI19: =INDIRECT($AB$3&Z$3&$AB19) ->  | AK19: 70013.29106 | AM19: 423836.4266 | AN19: [_S.xlsx]'2. Erneuerbare'!D32 | AO19: [S.2.32]
B20: [2.20] | C20: [20] | E20: =ROW() -> 20 | F20: spez. Flächebedarf Windpark | G20: ha/MW | H20: =T20 -> 4.774648293 | I20: =H20 -> 4.774648293 | K20: 0 | L20: =L16/L22 ->  | M20: =V20 -> 3.783911429 | Q20: =ROW() -> 20 | R20: spez. Flächebedarf Windpark | S20: ha/MW | T20: =IFERROR(AC20,AK20) -> 4.774648293 | U20: 0.7925005564 | V20: =IFERROR(AE20,AM20) -> 3.783911429 | W20: =HYPERLINK(IFERROR(AF20,AN20),IFERROR(AG20,AO20)) -> [S.2.29] | Y20: =HYPERLINK(IFERROR(AH20,AP20),IFERROR(AI20,AQ20)) -> [D.1.197] | AB20: 126 | AC20: 4.774648293 | AE20: 3.783911429 | AF20: [_S.xlsx]'2. Erneuerbare'!D29 | AG20: [S.2.29] | AH20: [D.xlsx]'1.'!D197 | AI20: =INDIRECT($AB$3&Z$3&$AB20) -> [D.1.197] | AK20: 4.774648293 | AM20: 3.783911429 | AN20: [_S.xlsx]'2. Erneuerbare'!D29 | AO20: [S.2.29] | AP20: [D.xlsx]'1.'!D197 | AQ20: [D.1.197]
B21: [2.21] | C21: [21] | E21: =ROW() -> 21 | F21: Vollbetriebsstundenzahl | G21: h/a | H21: =T21 -> 1708.099516 | I21: ='6.Standarddaten'!K63 -> 1708.099516 | J21: =IF(AV21=0,"",HYPERLINK("["&J$3&".xlsm]'"&MID(AS21,3,20),"["&AT21&"."&AV21&"]")) -> [6.63] | K21: 1.31287478 | L21: =M21 -> 2242.520776 | M21: =V21 -> 2242.520776 | Q21: =ROW() -> 21 | R21: Vollbetriebsstundenzahl | S21: h/a | T21: =T19*1000/T22 -> 1708.099516 | U21: 1.31287478 | V21: =V19*1000/V22 -> 2242.520776 | AS21: =IFERROR(_xlfn.FORMULATEXT(I21),"") -> ='6.Standarddaten'!K63 | AT21: =IF(MID(AS21,2,1)="'",VALUE(MID(AS21,3,1)),0) -> 6 | AU21: =IF(AT21>4,RIGHT(AS21,LEN(AS21)-FIND("!",AS21)),) -> K63 | AV21: =IF(AT21>4,RIGHT(AS21,LEN(AS21)-FIND("!",AS21)-1),) -> 63
B22: [2.22] | C22: [22] | E22: =ROW() -> 22 | F22: Installierte Windleistung | G22: MW | H22: =H16/H20 -> 0 | I22: ='6.Standarddaten'!K51 -> 0 | J22: =IF(AV22=0,"",HYPERLINK("["&J$3&".xlsm]'"&MID(AS22,3,20),"["&AT22&"."&AV22&"]")) -> [6.51] | K22: 0 | L22: =L19/L21*1000 ->  | M22: =M16/M20 -> 0 | Q22: =ROW() -> 22 | R22: Installierte Windleistung | S22: MW | T22: =T16/T20 -> 40989 | U22: 4.610993193 | V22: =V16/V20 -> 189000 | AS22: =IFERROR(_xlfn.FORMULATEXT(I22),"") -> ='6.Standarddaten'!K51 | AT22: =IF(MID(AS22,2,1)="'",VALUE(MID(AS22,3,1)),0) -> 6 | AU22: =IF(AT22>4,RIGHT(AS22,LEN(AS22)-FIND("!",AS22)),) -> K51 | AV22: =IF(AT22>4,RIGHT(AS22,LEN(AS22)-FIND("!",AS22)-1),) -> 51
B23: [2.23] | C23: [23] | E23: =ROW() -> 23 | F23: Nennleistung/Anlage Durchschnitt | G23: MW | I23: =IFERROR(I22/I24,"-") -> - | K23: =IFERROR(L23/I23,K$6) -> 0 | L23: 3.5 | M23: =L23 -> 3.5 | Q23: =ROW() -> 23
B24: [2.24] | C24: [24] | E24: =ROW() -> 24 | F24: Anzahl Anlagen | H24: - | I24: ='6.Standarddaten'!K57 -> 0 | J24: =IF(AV24=0,"",HYPERLINK("["&J$3&".xlsm]'"&MID(AS24,3,20),"["&AT24&"."&AV24&"]")) -> [6.57] | K24: =IFERROR(L24/I24,K$6) -> 0 | L24: =L22/L23 ->  | M24: =M22/M23 -> 0 | Q24: =ROW() -> 24 | AS24: =IFERROR(_xlfn.FORMULATEXT(I24),"") -> ='6.Standarddaten'!K57 | AT24: =IF(MID(AS24,2,1)="'",VALUE(MID(AS24,3,1)),0) -> 6 | AU24: =IF(AT24>4,RIGHT(AS24,LEN(AS24)-FIND("!",AS24)),) -> K57 | AV24: =IF(AT24>4,RIGHT(AS24,LEN(AS24)-FIND("!",AS24)-1),) -> 57
B25: [2.25] | C25: [25] | E25: =ROW() -> 25 | F25: Solarstrom vom Dach (DachPV) | Q25: =ROW() -> 25 | R25: Solarstrom vom Dach (DachPV)
B26: [2.26] | C26: [26] | E26: =ROW() -> 26 | F26: Siedlungsfläche (SF) | G26: ha | H26: ='1.Ansicht'!I51 -> 0 | I26: =H26 -> 0 | K26: =IFERROR(L26/I26,K$6) -> 0 | L26: =M26 -> 0 | M26: =H26*V26/T26 -> 0 | Q26: =ROW() -> 26 | R26: Siedlungsfläche (SF) | S26: =G26 -> ha | T26: =IFERROR(AC26,AK26) -> 3277007 | U26: =IFERROR(V26/T26,U$6) -> 1.160963133 | V26: =IFERROR(AE26,AM26) -> 3804484.313 | W26: =HYPERLINK(IFERROR(AF26,AN26),IFERROR(AG26,AO26)) -> [S.1.9] | Y26: =HYPERLINK(IFERROR(AH26,AP26),IFERROR(AI26,AQ26)) -> [D.1.69] | AB26: 20 | AC26: =INDIRECT($AB$3&AC$3&$AB26) -> 3277007 | AE26: 3804484.313 | AF26: [_S.xlsx]'1. Flächen'!D9 | AG26: [S.1.9] | AH26: [D.xlsx]'1.'!D69 | AI26: =INDIRECT($AB$3&Z$3&$AB26) -> [D.1.69] | AK26: 3277007 | AM26: 3804484.313 | AN26: [_S.xlsx]'1. Flächen'!D9 | AO26: [S.1.9] | AP26: [D.xlsx]'1.'!D69 | AQ26: [D.1.69]
B27: [2.27] | C27: [27] | E27: =ROW() -> 27 | F27: Solarstromaufkommen vom Dach | G27: GWh/a | H27: =H29*H28/1000 -> 0 | I27: =I32*I31/1000 -> 0 | K27: 0 | L27: =L29*L28/1000 ->  | M27: =V27*M26/V26 -> 0 | Q27: =ROW() -> 27 | R27: Solarstromaufkommen vom Dach | S27: GWh/a | T27: =IFERROR(AC27,AK27) -> 25615.86527 | U27: 10.84978086 | V27: =IFERROR(AE27,AM27) -> 277926.5246 | W27: =HYPERLINK(IFERROR(AF27,AN27),IFERROR(AG27,AO27)) -> [S.2.15] | Y27: =HYPERLINK(IFERROR(AH27,AP27),IFERROR(AI27,AQ27)) ->  | AB27: 112 | AC27: 25615.86527 | AE27: 277926.5246 | AF27: [_S.xlsx]'2. Erneuerbare'!D15 | AG27: [S.2.15] | AI27: =INDIRECT($AB$3&Z$3&$AB27) ->  | AK27: 25615.86527 | AM27: 277926.5246 | AN27: [_S.xlsx]'2. Erneuerbare'!D15 | AO27: [S.2.15]
B28: [2.28] | C28: [28] | E28: =ROW() -> 28 | F28: Flächenertrag Dach-PV | G28: MWh/ha/a | H28: =T28 -> 1313.928571 | I28: =H28 -> 1313.928571 | K28: 1.4 | L28: =M28 -> 1839.5 | M28: =V28 -> 1839.5 | Q28: =ROW() -> 28 | R28: Flächenertrag Dach-PV | S28: MWh/ha/a | T28: =IFERROR(AC28,AK28) -> 1313.928571 | U28: 1.4 | V28: =IFERROR(AE28,AM28) -> 1839.5 | W28: =HYPERLINK(IFERROR(AF28,AN28),IFERROR(AG28,AO28)) -> [S.2.14] | Y28: =HYPERLINK(IFERROR(AH28,AP28),IFERROR(AI28,AQ28)) -> [D.1.153] | AB28: 111 | AC28: 1313.928571 | AE28: 1839.5 | AF28: [_S.xlsx]'2. Erneuerbare'!D14 | AG28: [S.2.14] | AH28: [D.xlsx]'1.'!D153 | AI28: =INDIRECT($AB$3&Z$3&$AB28) -> [D.1.153] | AK28: 1313.928571 | AM28: 1839.5 | AN28: [_S.xlsx]'2. Erneuerbare'!D14 | AO28: [S.2.14] | AP28: [D.xlsx]'1.'!D153 | AQ28: [D.1.153]
B29: [2.29] | C29: [29] | E29: =ROW() -> 29 | F29: Solar genutzte Dachflächen | G29: ha | H29: =H26*H30% -> 0 | I29: =I27*1000/I28 -> 0 | K29: 0 | L29: =L30*L26% ->  | M29: =M27*1000/M28 -> 0 | Q29: =ROW() -> 29 | R29: Solar genutzte Dachflächen | S29: ha | T29: =T27*1000/T28 -> 19495.63 | U29: 7.749843468 | V29: =V27*1000/V28 -> 151088.0808
B30: [2.30] | C30: [30] | E30: =ROW() -> 30 | G30: % v. SF | H30: =T30 -> 0.5949218296 | I30: =I29/I26% ->  | K30: 0 | L30: =M30 ->  | M30: =M29/M26% ->  | Q30: =ROW() -> 30 | S30: % v. SF | T30: =T29/T26% -> 0.5949218296 | U30: 6.67535708 | V30: =V29/V26% -> 3.971315647
B31: [2.31] | C31: [31] | E31: =ROW() -> 31 | F31: Vollbetriebsstundenzahl | G31: h/a | H31: =T31 -> 919.75 | I31: ='6.Standarddaten'!K84 -> 919.75 | J31: =IF(AV31=0,"",HYPERLINK("["&J$3&".xlsm]'"&'6.Standarddaten'!BS$3&"'!"&J$2&AV31,"["&'6.Standarddaten'!BQ$3&AV31&"]")) -> [6.84] | K31: 1 | L31: =I31 -> 919.75 | M31: =V31 -> 919.75 | Q31: =ROW() -> 31 | R31: Vollbetriebsstundenzahl | S31: h/a | T31: =IFERROR(AC31,AK31) -> 919.75 | U31: 1 | V31: =IFERROR(AE31,AM31) -> 919.75 | W31: =HYPERLINK(IFERROR(AF31,AN31),IFERROR(AG31,AO31)) -> [S.2.16] | Y31: =HYPERLINK(IFERROR(AH31,AP31),IFERROR(AI31,AQ31)) -> [D.1.166] | AB31: 113 | AC31: =INDIRECT($AB$3&AC$3&$AB31) -> 919.75 | AE31: 919.75 | AF31: [_S.xlsx]'2. Erneuerbare'!D16 | AG31: [S.2.16] | AH31: [D.xlsx]'1.'!D166 | AI31: =INDIRECT($AB$3&Z$3&$AB31) -> [D.1.166] | AK31: 919.75 | AM31: 919.75 | AN31: [_S.xlsx]'2. Erneuerbare'!D16 | AO31: [S.2.16] | AP31: [D.xlsx]'1.'!D166 | AQ31: [D.1.166] | AS31: =IFERROR(_xlfn.FORMULATEXT(I31),"") -> ='6.Standarddaten'!K84 | AT31: =IF(MID(AS31,2,1)="'",VALUE(MID(AS31,3,1)),0) -> 6 | AU31: =IF(AT31>4,RIGHT(AS31,LEN(AS31)-FIND("!",AS31)),) -> K84 | AV31: =IF(AT31>4,RIGHT(AS31,LEN(AS31)-FIND("!",AS31)-1),) -> 84
B32: [2.32] | C32: [32] | E32: =ROW() -> 32 | F32: Installierte PV-Leistung | G32: MWp | H32: =H27/H31*1000 -> 0 | I32: ='6.Standarddaten'!K82 -> 0 | J32: =IF(AV32=0,"",HYPERLINK("["&J$3&".xlsm]'"&MID(AS32,3,20),"["&AT32&"."&AV32&"]")) -> [6.82] | K32: 0 | L32: =L27/L31*1000 ->  | M32: =M27/M31*1000 -> 0 | Q32: =ROW() -> 32 | R32: Installierte PV-Leistung | S32: MWp | T32: =IFERROR(AC32,AK32) -> 27850.9 | U32: 10.84978086 | V32: =IFERROR(AE32,AM32) -> 302176.1616 | W32: =HYPERLINK(IFERROR(AF32,AN32),IFERROR(AG32,AO32)) -> [S.2.17] | Y32: =HYPERLINK(IFERROR(AH32,AP32),IFERROR(AI32,AQ32)) ->  | AB32: 114 | AC32: 27850.9 | AE32: 302176.1616 | AF32: [_S.xlsx]'2. Erneuerbare'!D17 | AG32: [S.2.17] | AI32: =INDIRECT($AB$3&Z$3&$AB32) ->  | AK32: 27850.9 | AM32: 302176.1616 | AN32: [_S.xlsx]'2. Erneuerbare'!D17 | AO32: [S.2.17] | AS32: =IFERROR(_xlfn.FORMULATEXT(I32),"") -> ='6.Standarddaten'!K82 | AT32: =IF(MID(AS32,2,1)="'",VALUE(MID(AS32,3,1)),0) -> 6 | AU32: =IF(AT32>4,RIGHT(AS32,LEN(AS32)-FIND("!",AS32)),) -> K82 | AV32: =IF(AT32>4,RIGHT(AS32,LEN(AS32)-FIND("!",AS32)-1),) -> 82
B33: [2.33] | C33: [33] | E33: =ROW() -> 33 | F33: Solarstrom von Freiflächen (FFPV) | Q33: =ROW() -> 33 | R33: Solarstrom von Freiflächen (FFPV)
B34: [2.34] | C34: [34] | E34: =ROW() -> 34 | F34: Landwirtschaftsfläche (LF) | G34: ha | H34: ='1.Ansicht'!I52 -> 0 | I34: =H34 -> 0 | K34: =IFERROR(L34/I34,K$6) -> 0 | L34: =M34 -> 0 | M34: =H34*V34/T34 -> 0 | Q34: =ROW() -> 34 | R34: Landwirtschaftsfläche (LF) | S34: =G34 -> ha | T34: =IFERROR(AC34,AK34) -> 18263736 | U34: =IFERROR(V34/T34,U$6) -> 0.9711188711 | V34: =IFERROR(AE34,AM34) -> 17736258.69 | W34: =HYPERLINK(IFERROR(AF34,AN34),IFERROR(AG34,AO34)) -> [S.1.12] | Y34: =HYPERLINK(IFERROR(AH34,AP34),IFERROR(AI34,AQ34)) -> [D.1.75] | AB34: 23 | AC34: =INDIRECT($AB$3&AC$3&$AB34) -> 18263736 | AE34: 17736258.69 | AF34: [_S.xlsx]'1. Flächen'!D12 | AG34: [S.1.12] | AH34: [D.xlsx]'1.'!D75 | AI34: =INDIRECT($AB$3&Z$3&$AB34) -> [D.1.75] | AK34: 18263736 | AM34: 17736258.69 | AN34: [_S.xlsx]'1. Flächen'!D12 | AO34: [S.1.12] | AP34: [D.xlsx]'1.'!D75 | AQ34: [D.1.75]
B35: [2.35] | C35: [35] | E35: =ROW() -> 35 | F35: Solarstromaufkommen Freiflächen | G35: GWh/a | H35: =H38*H37/1000 -> 0 | I35: =I42*I41/1000 -> 0 | K35: 0 | L35: =L38*L37/1000 ->  | M35: =V35*M34/V34 -> 0 | Q35: =ROW() -> 35 | R35: Solarstromaufkommen Freiflächen | S35: =G35 -> GWh/a | T35: =IFERROR(AC35,AK35) -> 10978.22798 | U35: =IFERROR(V35/T35,U$6) -> 16.56825756 | V35: =IFERROR(AE35,AM35) -> 181890.1086 | W35: =HYPERLINK(IFERROR(AF35,AN35),IFERROR(AG35,AO35)) -> [S.2.22] | Y35: =HYPERLINK(IFERROR(AH35,AP35),IFERROR(AI35,AQ35)) ->  | AB35: 119 | AC35: 10978.22798 | AE35: 181890.1086 | AF35: [_S.xlsx]'2. Erneuerbare'!D22 | AG35: [S.2.22] | AI35: =INDIRECT($AB$3&Z$3&$AB35) ->  | AK35: 10978.22798 | AM35: 181890.1086 | AN35: [_S.xlsx]'2. Erneuerbare'!D22 | AO35: [S.2.22]
B36: [2.36] | C36: [36] | E36: =ROW() -> 36 | F36: (Deckungsausgleich) | G36: GWh/a | K36: 0 | L36: =M44-L27-L19-L43 ->  | Q36: =ROW() -> 36
B37: [2.37] | C37: [37] | E37: =ROW() -> 37 | F37: Flächenertrag Freiflächen-PV | G37: MWh/ha/a | H37: =T37 -> 525.5714286 | I37: =H37 -> 525.5714286 | K37: 1.4 | L37: =M37 -> 735.8 | M37: =V37 -> 735.8 | Q37: =ROW() -> 37 | R37: =F37 -> Flächenertrag Freiflächen-PV | S37: MWh/ha/a | T37: =IFERROR(AC37,AK37) -> 525.5714286 | U37: =IFERROR(V37/T37,U$6) -> 1.4 | V37: =IFERROR(AE37,AM37) -> 735.8 | W37: =HYPERLINK(IFERROR(AF37,AN37),IFERROR(AG37,AO37)) -> [S.2.21] | Y37: =HYPERLINK(IFERROR(AH37,AP37),IFERROR(AI37,AQ37)) -> [D.1.161] | AB37: 118 | AC37: =INDIRECT($AB$3&AC$3&$AB37) -> 525.5714286 | AE37: 735.8 | AF37: [_S.xlsx]'2. Erneuerbare'!D21 | AG37: [S.2.21] | AH37: [D.xlsx]'1.'!D161 | AI37: =INDIRECT($AB$3&Z$3&$AB37) -> [D.1.161] | AK37: 525.5714286 | AM37: 735.8 | AN37: [_S.xlsx]'2. Erneuerbare'!D21 | AO37: [S.2.21] | AP37: [D.xlsx]'1.'!D161 | AQ37: [D.1.161]
B38: [2.38] | C38: [38] | E38: =ROW() -> 38 | F38: Solar genutzte Freiflächen | G38: ha | H38: =H34*H39% -> 0 | I38: =I35*1000/I37 -> 0 | K38: 0 | L38: =L39*L34% ->  | M38: =M35*1000/M37 -> 0 | Q38: =ROW() -> 38 | R38: Solar genutzte Freiflächen | S38: ha | T38: =T35*1000/T37 -> 20888.175 | U38: =IFERROR(V38/T38,U$6) -> 11.83446968 | V38: =V35*1000/V37 -> 247200.4738
B39: [2.39] | C39: [39] | E39: =ROW() -> 39 | F39: Ansatz | G39: % v. LF | H39: =T39 -> 0.1143696722 | I39: =I38/I34% ->  | K39: 0 | L39: =L40 ->  | M39: =M38/M34% ->  | Q39: =ROW() -> 39 | S39: % v. LF | T39: =T38/T34% -> 0.1143696722 | U39: =IFERROR(V39/T39,U$6) -> 12.18642747 | V39: =V38/V34% -> 1.393757715
B40: [2.40] | C40: [40] | E40: =ROW() -> 40 | F40: (Deckungsausgleich) | G40: % v. LF | K40: 0 | L40: =L36*1000/L37/L34% ->  | Q40: =ROW() -> 40
B41: [2.41] | C41: [41] | E41: =ROW() -> 41 | F41: Vollbetriebsstundenzahl | G41: h/a | H41: =T41 -> 919.75 | I41: ='6.Standarddaten'!K84 -> 919.75 | J41: =IF(AV41=0,"",HYPERLINK("["&J$3&".xlsm]'"&'6.Standarddaten'!BS$3&"'!"&J$2&AV41,"["&'6.Standarddaten'!BQ$3&AV41&"]")) -> [6.84] | K41: 1 | L41: =I41 -> 919.75 | M41: =V41 -> 919.75 | Q41: =ROW() -> 41 | R41: Vollbetriebsstundenzahl | S41: h/a | T41: =IFERROR(AC41,AK41) -> 919.75 | U41: =IFERROR(V41/T41,U$6) -> 1 | V41: =IFERROR(AE41,AM41) -> 919.75 | W41: =HYPERLINK(IFERROR(AF41,AN41),IFERROR(AG41,AO41)) -> [S.2.23] | Y41: =HYPERLINK(IFERROR(AH41,AP41),IFERROR(AI41,AQ41)) -> [D.1.166] | AB41: 120 | AC41: =INDIRECT($AB$3&AC$3&$AB41) -> 919.75 | AE41: 919.75 | AF41: [_S.xlsx]'2. Erneuerbare'!D23 | AG41: [S.2.23] | AH41: [D.xlsx]'1.'!D166 | AI41: =INDIRECT($AB$3&Z$3&$AB41) -> [D.1.166] | AK41: 919.75 | AM41: 919.75 | AN41: [_S.xlsx]'2. Erneuerbare'!D23 | AO41: [S.2.23] | AP41: [D.xlsx]'1.'!D166 | AQ41: [D.1.166] | AS41: =IFERROR(_xlfn.FORMULATEXT(I41),"") -> ='6.Standarddaten'!K84 | AT41: =IF(MID(AS41,2,1)="'",VALUE(MID(AS41,3,1)),0) -> 6 | AU41: =IF(AT41>4,RIGHT(AS41,LEN(AS41)-FIND("!",AS41)),) -> K84 | AV41: =IF(AT41>4,RIGHT(AS41,LEN(AS41)-FIND("!",AS41)-1),) -> 84
B42: [2.42] | C42: [42] | E42: =ROW() -> 42 | F42: Installierte PV-Leistung | G42: MWp | H42: =H35/H41*1000 -> 0 | I42: ='6.Standarddaten'!K76 -> 0 | J42: =IF(AV42=0,"",HYPERLINK("["&J$3&".xlsm]'"&MID(AS42,3,20),"["&AT42&"."&AV42&"]")) -> [6.76] | K42: 0 | L42: =L35/L41*1000 ->  | M42: =M35/M41*1000 -> 0 | Q42: =ROW() -> 42 | R42: Installierte PV-Leistung | S42: MWp | T42: =IFERROR(AC42,AK42) -> 11936.1 | U42: =IFERROR(V42/T42,U$6) -> 16.56825756 | V42: =IFERROR(AE42,AM42) -> 197760.379 | W42: =HYPERLINK(IFERROR(AF42,AN42),IFERROR(AG42,AO42)) -> [S.2.24] | Y42: =HYPERLINK(IFERROR(AH42,AP42),IFERROR(AI42,AQ42)) ->  | AB42: 121 | AC42: 11936.1 | AE42: 197760.379 | AF42: [_S.xlsx]'2. Erneuerbare'!D24 | AG42: [S.2.24] | AI42: =INDIRECT($AB$3&Z$3&$AB42) ->  | AK42: 11936.1 | AM42: 197760.379 | AN42: [_S.xlsx]'2. Erneuerbare'!D24 | AO42: [S.2.24] | AS42: =IFERROR(_xlfn.FORMULATEXT(I42),"") -> ='6.Standarddaten'!K76 | AT42: =IF(MID(AS42,2,1)="'",VALUE(MID(AS42,3,1)),0) -> 6 | AU42: =IF(AT42>4,RIGHT(AS42,LEN(AS42)-FIND("!",AS42)),) -> K76 | AV42: =IF(AT42>4,RIGHT(AS42,LEN(AS42)-FIND("!",AS42)-1),) -> 76
B43: [2.43] | C43: [43] | E43: =ROW() -> 43 | F43: Biomasse-Strom+Wasserkraft | G43: GWh/a | H43: =H92+H93 -> 0 | I43: =I92+I93 -> 0 | J43: [92][93] | K43: 0 | L43: =L92+L93 -> 0 | M43: =M92+M93 -> 0 | Q43: =ROW() -> 43 | R43: =F43 -> Biomasse-Strom+Wasserkraft | S43: GWh/a | T43: =T92+T93 -> 74990.75321 | U43: =IFERROR(V43/T43,U$6) -> 0.3484546278 | V43: =V92+V93 -> 26130.875
B44: [2.44] | C44: [44] | E44: =ROW() -> 44 | F44: Stromerzeug.Windon&PV&Bio&Wasserkraft | G44: GWh/a | H44: =H19+H27+H35+H43 -> 0 | I44: =I19+I27+I35+I43 -> 0 | K44: =L44/I44 ->  | L44: =L19+L27+L35+L43 ->  | M44: =M19+M27+M35+M43 -> 0 | Q44: =ROW() -> 44 | R44: =F44 -> Stromerzeug.Windon&PV&Bio&Wasserkraft | S44: =G44 -> GWh/a | T44: =T19+T27+T35+T43 -> 181598.1375 | U44: =IFERROR(V44/T44,U$6) -> 5.009874811 | V44: =V19+V27+V35+V43 -> 909783.9349
B45: [2.] | C45: []
B46: [2.] | C46: [] | M46: =M4 -> 100prosim.P (P000100-D.H2i-L..xlsx, V.240826e) - 27.08.2024 13:04 | Y46: =M46 -> 100prosim.P (P000100-D.H2i-L..xlsx, V.240826e) - 27.08.2024 13:04
B47: [2.P.2.Kalkulation - Energieszenario 'Landkreis 100% EE' (P000100-D.H2i-L.)] | C47: [P.2.Kalkulation - Energieszenario 'Landkreis 100% EE' (P000100-D.H2i-L.)] | E47: =E5 -> P.2.Kalkulation - Energieszenario 'Landkreis 100% EE' (P000100-D.H2i-L.) | M47: Linke Tabelle | Q47: =Q5 -> P.2.Kalkulation - Energieszenario 'Landkreis 100% EE' (P000100-D.H2i-L.) | Y47: Rechte Tabelle
B48: [2.48] | C48: [48] | E48: =ROW() -> 48 | Q48: =ROW() -> 48 | AJ48: Backup >>>
B49: [2.49] | C49: [49] | E49: =ROW() -> 49 | F49: =F7 -> Zielregion (ZR): Landkreis | M49: ="Basisregion (BR) siehe: Rechte Tabelle" -> Basisregion (BR) siehe: Rechte Tabelle | O49: > | Q49: =ROW() -> 49 | R49: =R7 -> Basisregion (BR): Szenario 'Deutschland 100%EE' (200822)
B50: [2.50] | C50: [50] | E50: =ROW() -> 50 | Q50: =ROW() -> 50 | AF50: 4 | AG50: 5 | AH50: 6 | AI50: 7 | AN50: 4 | AO50: 5 | AP50: 6 | AQ50: 7
B51: [2.51] | C51: [51] | E51: =ROW() -> 51 | F51: B) Gebäudewärme | Q51: =ROW() -> 51 | R51: =F51 -> B) Gebäudewärme
B52: [2.52] | C52: [52] | E52: =ROW() -> 52 | H52: Status | I52: Status | J52: Bezug | K52: Faktor | L52: Ziel | M52: Ziel | Q52: =ROW() -> 52 | T52: Status | U52: Faktor | V52: Ziel | W52: Datenquellen
B53: [2.53] | C53: [53] | D53: ='5.Kenndaten'!F$9&" "&'5.Kenndaten'!F$10 -> Landkreis | E53: =ROW() -> 53 | H53: BR-proport. | I53: geschätzt | K53: → | L53: Variante | M53: BR-proport. | Q53: =ROW() -> 53 | U53: → | AS53: =IFERROR(_xlfn.FORMULATEXT(I53),"") ->  | AT53: =IF(MID(AS53,2,1)="'",VALUE(MID(AS53,3,1)),0) -> 0 | AU53: =IF(AT53>4,RIGHT(AS53,LEN(AS53)-FIND("!",AS53)),) -> 0 | AV53: =IF(AT53>4,RIGHT(AS53,LEN(AS53)-FIND("!",AS53)-1),) -> 0
B54: [2.54] | C54: [54] | D54: ='5.Kenndaten'!F$16 -> P000100-D.H2i-L. | E54: =ROW() -> 54 | F54: Einwohnerzahl | G54: Personen | H54: =I54 -> 0 | I54: ='6.Standarddaten'!K14 -> 0 | J54: =IF(AV54=0,"",HYPERLINK("["&J$3&".xlsm]'"&MID(AS54,3,20),"["&AT54&"."&AV54&"]")) -> [6.14] | K54: =IFERROR(L54/I54,K$6) -> 0 | L54: =M54 -> 0 | M54: =I54*V54/T54 -> 0 | Q54: =ROW() -> 54 | R54: Einwohnerzahl | S54: =G54 -> Personen | T54: =IFERROR(AC54,AK54) -> 82175684 | U54: =IFERROR(V54/T54,U$6) -> 1 | V54: =IFERROR(AE54,AM54) -> 82175684 | W54: =HYPERLINK(IFERROR(AF54,AN54),IFERROR(AG54,AO54)) -> [S.3.6] | Y54: =HYPERLINK(IFERROR(AH54,AP54),IFERROR(AI54,AQ54)) -> [D.1.40] | AB54: 503 | AC54: =INDIRECT($AB$3&AC$3&$AB54) -> 82175684 | AE54: 82175684 | AF54: [_S.xlsx]'3. Bedarfsniveau'!D6 | AG54: [S.3.6] | AH54: [D.xlsx]'1.'!D40 | AI54: =INDIRECT($AB$3&Z$3&$AB54) -> [D.1.40] | AK54: 82175684 | AM54: 82175684 | AN54: [_S.xlsx]'3. Bedarfsniveau'!D6 | AO54: [S.3.6] | AP54: [D.xlsx]'1.'!D40 | AQ54: [D.1.40] | AS54: =IFERROR(_xlfn.FORMULATEXT(I54),"") -> ='6.Standarddaten'!K14 | AT54: =IF(MID(AS54,2,1)="'",VALUE(MID(AS54,3,1)),0) -> 6 | AU54: =RIGHT(AS54,LEN(AS54)-FIND("!",AS54)) -> K14 | AV54: =RIGHT(AS54,LEN(AS54)-FIND("!",AS54)-1) -> 14
B55: [2.55] | C55: [55] | E55: =ROW() -> 55 | F55: Energieverbraucher (Solidarprinzip) | G55: Personen | H55: ='1.Ansicht'!I49 -> 0 | I55: ='6.Standarddaten'!K43 -> 0 | J55: =IF(AV55=0,"",HYPERLINK("["&J$3&".xlsm]'"&MID(AS55,3,20),"["&AT55&"."&AV55&"]")) -> [6.43] | K55: =IFERROR(L55/I55,K$6) -> 0 | L55: =M55*L54/M54 ->  | M55: =I55*V55/T55 -> 0 | O55: > | Q55: =ROW() -> 55 | R55: Energieverbraucher (Solidarprinzip) | S55: Personen | T55: =IFERROR(AC55,AK55) -> 82175684 | U55: =IFERROR(V55/T55,U$6) -> 1 | V55: =IFERROR(AE55,AM55) -> 82175684 | W55: =HYPERLINK(IFERROR(AF55,AN55),IFERROR(AG55,AO55)) -> [S.3.10] | Y55: =HYPERLINK(IFERROR(AH55,AP55),IFERROR(AI55,AQ55)) ->  | AB55: 507 | AC55: 82175684 | AE55: 82175684 | AF55: [_S.xlsx]'3. Bedarfsniveau'!D10 | AG55: [S.3.10] | AI55: =INDIRECT($AB$3&Z$3&$AB55) ->  | AK55: 82175684 | AM55: 82175684 | AN55: [_S.xlsx]'3. Bedarfsniveau'!D10 | AO55: [S.3.10] | AS55: =IFERROR(_xlfn.FORMULATEXT(I55),"") -> ='6.Standarddaten'!K43 | AT55: =IF(MID(AS55,2,1)="'",VALUE(MID(AS55,3,1)),0) -> 6 | AU55: =RIGHT(AS55,LEN(AS55)-FIND("!",AS55)) -> K43 | AV55: =RIGHT(AS55,LEN(AS55)-FIND("!",AS55)-1) -> 43
B56: [2.56] | C56: [56] | E56: =ROW() -> 56 | F56: Endenergieverbrauch GW gesamt | G56: GWh/a | H56: =T56*H54/T55 -> 0 | I56: =T56*I54/T55 -> 0 | K56: =IFERROR(L56/I56,K$6) -> 0 | L56: =V56*L$54/V$55 -> 0 | M56: =V56*M$54/V$55 -> 0 | Q56: =ROW() -> 56 | R56: Endenergieverbrauch GW gesamt | S56: =G56 -> GWh/a | T56: =IFERROR(AC56,AK56) -> 894834.8954 | U56: =IFERROR(V56/T56,U$6) -> 0.5790641277 | V56: =IFERROR(AE56,AM56) -> 518166.7881 | W56: =HYPERLINK(IFERROR(AF56,AN56),IFERROR(AG56,AO56)) -> [S.4.91] | Y56: =HYPERLINK(IFERROR(AH56,AP56),IFERROR(AI56,AQ56)) ->  | AB56: 688 | AC56: =INDIRECT($AB$3&AC$3&$AB56) -> 894834.8954 | AE56: 518166.7881 | AF56: [_S.xlsx]'4. Verbrauch'!D91 | AG56: [S.4.91] | AI56: =INDIRECT($AB$3&Z$3&$AB56) ->  | AK56: 894834.8954 | AM56: 518166.7881 | AN56: [_S.xlsx]'4. Verbrauch'!D91 | AO56: [S.4.91]
B57: [2.57] | C57: [57] | E57: =ROW() -> 57 | F57: Wohnfläche pro Person | G57: qm/Pers. | H57: =T57 -> 43.222 | I57: =H57 -> 43.222 | J57: =IF(AV57=0,"",HYPERLINK("["&J$3&".xlsm]'"&MID(AS57,3,20),"["&AT57&"."&AV57&"]")) ->  | K57: =IFERROR(L57/I57,K$6) -> 1 | L57: =M57 -> 43.222 | M57: =V57 -> 43.222 | O57: > | Q57: =ROW() -> 57 | R57: Wohnfläche pro Person | S57: =G57 -> qm/Pers. | T57: =IFERROR(AC57,AK57) -> 43.222 | U57: =IFERROR(V57/T57,U$6) -> 1 | V57: =IFERROR(AE57,AM57) -> 43.222 | W57: =HYPERLINK(IFERROR(AF57,AN57),IFERROR(AG57,AO57)) -> [S.4.48] | Y57: =HYPERLINK(IFERROR(AH57,AP57),IFERROR(AI57,AQ57)) -> [D.1.751] | AB57: 645 | AC57: 43.222 | AE57: 43.222 | AF57: [_S.xlsx]'4. Verbrauch'!D48 | AG57: [S.4.48] | AH57: [D.xlsx]'1.'!D751 | AI57: =INDIRECT($AB$3&Z$3&$AB57) -> [D.1.751] | AK57: 43.222 | AM57: 43.222 | AN57: [_S.xlsx]'4. Verbrauch'!D48 | AO57: [S.4.48] | AP57: [D.xlsx]'1.'!D751 | AQ57: [D.1.751] | AS57: =IFERROR(_xlfn.FORMULATEXT(I57),"") -> =H57 | AT57: =IF(MID(AS57,2,1)="'",VALUE(MID(AS57,3,1)),0) -> 0 | AU57: =IF(AT57>4,RIGHT(AS57,LEN(AS57)-FIND("!",AS57)),) -> 0 | AV57: =IF(AT57>4,RIGHT(AS57,LEN(AS57)-FIND("!",AS57)-1),) -> 0
B58: [2.58] | C58: [58] | E58: =ROW() -> 58 | F58: Beheizte Wohnfläche | G58: Tsd. qm | H58: =H54*H57/1000 -> 0 | I58: =I54*I57/1000 -> 0 | K58: =IFERROR(L58/I58,K$6) -> 0 | L58: =L54*L57/1000 -> 0 | M58: =M54*M57/1000 -> 0 | Q58: =ROW() -> 58 | R58: Beheizte Wohnfläche | S58: Tsd. qm | T58: =IFERROR(AC58,AK58) -> 0 | U58: =IFERROR(V58/T58,U$6) -> 0 | V58: =IFERROR(AE58,AM58) -> 0 | W58: =HYPERLINK(IFERROR(AF58,AN58),IFERROR(AG58,AO58)) -> 0 | Y58: =HYPERLINK(IFERROR(AH58,AP58),IFERROR(AI58,AQ58)) -> 0
B59: [2.59] | C59: [59] | E59: =ROW() -> 59 | F59: Gebäudesanierung - Wärmeschutz | Q59: =ROW() -> 59 | R59: =F59 -> Gebäudesanierung - Wärmeschutz
B60: [2.60] | C60: [60] | E60: =ROW() -> 60 | F60: Sanierungsrate | G60: %v.Bestand/a | I60: =M60 -> 2.64 | M60: =T60 -> 2.64 | O60: > | Q60: =ROW() -> 60 | R60: Sanierungsrate | S60: =G60 -> %v.Bestand/a | T60: =IFERROR(AC60,AK60) -> 2.64 | U60: =IFERROR(V60/T60,U$6) -> 0 | V60: =IFERROR(AE60,AM60) -> 0 | W60: =HYPERLINK(IFERROR(AF60,AN60),IFERROR(AG60,AO60)) -> [S.4.63] | Y60: =HYPERLINK(IFERROR(AH60,AP60),IFERROR(AI60,AQ60)) -> [D.1.781] | AB60: 660 | AC60: =INDIRECT($AB$3&AC$3&$AB60) -> 2.64 | AE60: 0 | AF60: [_S.xlsx]'4. Verbrauch'!D63 | AG60: [S.4.63] | AH60: [D.xlsx]'1.'!D781 | AI60: =INDIRECT($AB$3&Z$3&$AB60) -> [D.1.781] | AK60: 2.64 | AM60: 0 | AN60: [_S.xlsx]'4. Verbrauch'!D63 | AO60: [S.4.63] | AP60: [D.xlsx]'1.'!D781 | AQ60: [D.1.781]
B61: [2.61] | C61: [61] | E61: =ROW() -> 61 | F61: Wohnfläche jährlich zu sanieren | G61: Tsd. qm/a | I61: =L58*I60% -> 0 | M61: =M58*M60% -> 0 | Q61: =ROW() -> 61
B62: [2.62] | C62: [62] | E62: =ROW() -> 62 | F62: Wohnungen jährlich zu sanieren | G62: Anzahl | I62: =I61*1000/I63 -> 0 | M62: =M61*M63% -> 0
B63: [2.63] | C63: [63] | E63: =ROW() -> 63 | F63: …bei Ø Wohnfläche/Wohnung | G63: qm | I63: 100
B64: [2.64] | C64: [64] | E64: =ROW() -> 64 | F64: Raumwärmebed.vor/nach Sanierung | G64: kWh/m2/a | H64: =T64 -> 122.1 | I64: =H64 -> 122.1 | K64: =IFERROR(L64/I64,K$6) -> 0.3701883702 | L64: =M64 -> 45.2 | M64: =V64 -> 45.2 | O64: > | Q64: =ROW() -> 64 | R64: =F64 -> Raumwärmebed.vor/nach Sanierung | S64: kWh/m2/a | T64: =IFERROR(AC64,AK64) -> 122.1 | U64: =IFERROR(V64/T64,U$6) -> 0.3701883702 | V64: =IFERROR(AE64,AM64) -> 45.2 | W64: =HYPERLINK(IFERROR(AF64,AN64),IFERROR(AG64,AO64)) -> [S.4.60] | Y64: =HYPERLINK(IFERROR(AH64,AP64),IFERROR(AI64,AQ64)) -> [D.1.772] | AB64: 657 | AC64: =INDIRECT($AB$3&AC$3&$AB64) -> 122.1 | AE64: 45.2 | AF64: [_S.xlsx]'4. Verbrauch'!D60 | AG64: [S.4.60] | AH64: [D.xlsx]'1.'!D772 | AI64: =INDIRECT($AB$3&Z$3&$AB64) -> [D.1.772] | AK64: 122.1 | AM64: 45.2 | AN64: [_S.xlsx]'4. Verbrauch'!D60 | AO64: [S.4.60] | AP64: [D.xlsx]'1.'!D772 | AQ64: [D.1.772]
B65: [2.65] | C65: [65] | E65: =ROW() -> 65 | F65: GW-Bedarfsniveau Haushalte | G65: % v.Haush. | H65: =100 -> 100 | I65: =H65 -> 100 | L65: =M65 -> 100 | M65: =H65 -> 100 | Q65: =ROW() -> 65 | R65: =F65 -> GW-Bedarfsniveau Haushalte | S65: % v.Haush. | T65: =IFERROR(AC65,AK65) -> 602149.8699 | U65: =IFERROR(V65/T65,U$6) -> 1 | V65: =IFERROR(AE65,AM65) -> 602149.8699 | W65: =HYPERLINK(IFERROR(AF65,AN65),IFERROR(AG65,AO65)) -> [S.4.50] | Y65: =HYPERLINK(IFERROR(AH65,AP65),IFERROR(AI65,AQ65)) ->  | AB65: 647 | AC65: 602149.8699 | AE65: 602149.8699 | AF65: [_S.xlsx]'4. Verbrauch'!D50 | AG65: [S.4.50] | AI65: =INDIRECT($AB$3&Z$3&$AB65) ->  | AK65: 602149.8699 | AM65: 602149.8699 | AN65: [_S.xlsx]'4. Verbrauch'!D50 | AO65: [S.4.50]
B66: [2.66] | C66: [66] | E66: =ROW() -> 66 | F66: GW-Bedarfsniveau Gewerbe,Handlel | G66: % v.Haush. | H66: =T66/(T65)% -> 48.6066742 | I66: =H66 -> 48.6066742 | L66: =M66 -> 48.6066742 | M66: =V66/V65% -> 48.6066742 | Q66: =ROW() -> 66 | R66: GW-Bedarfsniveau Gewerbe,Handlel | S66: % v.Haush. | T66: =IFERROR(AC66,AK66) -> 292685.0255 | U66: =IFERROR(V66/T66,U$6) -> 1 | V66: =IFERROR(AE66,AM66) -> 292685.0255 | W66: =HYPERLINK(IFERROR(AF66,AN66),IFERROR(AG66,AO66)) -> [S.4.55] | Y66: =HYPERLINK(IFERROR(AH66,AP66),IFERROR(AI66,AQ66)) ->  | AB66: 652 | AC66: 292685.0255 | AE66: 292685.0255 | AF66: [_S.xlsx]'4. Verbrauch'!D55 | AG66: [S.4.55] | AI66: =INDIRECT($AB$3&Z$3&$AB66) ->  | AK66: 292685.0255 | AM66: 292685.0255 | AN66: [_S.xlsx]'4. Verbrauch'!D55 | AO66: [S.4.55]
B67: [2.67] | C67: [67] | E67: =ROW() -> 67 | F67: Gewerbe/Handel zu sanieren | G67: %zus.Haush. | I67: =L65*L66%/K58 ->  | M67: =M65*M66%/K58 ->  | Q67: =ROW() -> 67 | R67: =F67 -> Gewerbe/Handel zu sanieren
B68: [2.68] | C68: [68] | E68: =ROW() -> 68 | F68: Wärmeversorgung - Anteile | Q68: =ROW() -> 68 | R68: =F68 -> Wärmeversorgung - Anteile
B69: [2.69] | C69: [69] | E69: =ROW() -> 69 | F69: Biobrennstoffe Direktverbrennung | G69: GWh/a | H69: =T69*H$54/T$55 -> 0 | I69: =H69 -> 0 | J69: =IF(AV69=0,"",HYPERLINK("["&J$3&".xlsm]'"&MID(AS69,3,20),"["&AT69&"."&AV69&"]")) ->  | K69: =IFERROR(L69/I69,K$6) -> 0 | L69: =M69 -> 0 | M69: =V69*L$54/V$55 -> 0 | Q69: =ROW() -> 69 | R69: =F69 -> Biobrennstoffe Direktverbrennung | S69: =G69 -> GWh/a | T69: =IFERROR(AC69,AK69) -> 65627.47403 | U69: =IFERROR(V69/T69,U$6) -> 0 | V69: =IFERROR(AE69,AM69) -> 0 | W69: =HYPERLINK(IFERROR(AF69,AN69),IFERROR(AG69,AO69)) -> [S.2.243] | Y69: =HYPERLINK(IFERROR(AH69,AP69),IFERROR(AI69,AQ69)) ->  | AB69: 340 | AC69: =INDIRECT($AB$3&AC$3&$AB69) -> 65627.47403 | AE69: 0 | AF69: [_S.xlsx]'2. Erneuerbare'!D243 | AG69: [S.2.243] | AI69: =INDIRECT($AB$3&Z$3&$AB69) ->  | AK69: 65627.47403 | AM69: 0 | AN69: [_S.xlsx]'2. Erneuerbare'!D243 | AO69: [S.2.243] | AS69: =IFERROR(_xlfn.FORMULATEXT(I69),"") -> =H69 | AT69: =IF(MID(AS69,2,1)="'",VALUE(MID(AS69,3,1)),0) -> 0 | AU69: =IF(AT69>4,RIGHT(AS69,LEN(AS69)-FIND("!",AS69)),) -> 0 | AV69: =IF(AT69>4,RIGHT(AS69,LEN(AS69)-FIND("!",AS69)-1),) -> 0
B70: [2.70] | C70: [70] | E70: =ROW() -> 70 | F70: Biobrennstoffe fest Heizwerke | G70: GWh/a | H70: =T70*H$54/T$55 -> 0 | I70: 0 | J70: =IF(AV70=0,"",HYPERLINK("["&J$3&".xlsm]'"&MID(AS70,3,20),"["&AT70&"."&AV70&"]")) ->  | K70: 0 | L70: =M70 -> 0 | M70: =V70*L$54/V$55 -> 0 | Q70: =ROW() -> 70 | R70: =F70 -> Biobrennstoffe fest Heizwerke | S70: =G70 -> GWh/a | T70: =IFERROR(AC70,AK70) -> 0 | U70: =IFERROR(V70/T70,U$6) -> 0 | V70: =IFERROR(AE70,AM70) -> 0 | W70: =HYPERLINK(IFERROR(AF70,AN70),IFERROR(AG70,AO70)) -> [S.2.91] | Y70: =HYPERLINK(IFERROR(AH70,AP70),IFERROR(AI70,AQ70)) ->  | AB70: 188 | AC70: 0 | AE70: 0 | AF70: [_S.xlsx]'2. Erneuerbare'!D91 | AG70: [S.2.91] | AI70: =INDIRECT($AB$3&Z$3&$AB70) ->  | AK70: 0 | AM70: 0 | AN70: [_S.xlsx]'2. Erneuerbare'!D91 | AO70: [S.2.91] | AS70: =IFERROR(_xlfn.FORMULATEXT(I70),"") -> =H70 | AT70: =IF(MID(AS70,2,1)="'",VALUE(MID(AS70,3,1)),0) -> 0 | AU70: =IF(AT70>4,RIGHT(AS70,LEN(AS70)-FIND("!",AS70)),) -> 0 | AV70: =IF(AT70>4,RIGHT(AS70,LEN(AS70)-FIND("!",AS70)-1),) -> 0
B71: [2.71] | C71: [71] | E71: =ROW() -> 71 | F71: Bioabwärme gesamt | G71: GWh/a | H71: =SUM(H72:H75) -> 0 | I71: 0 | K71: 0 | L71: =SUM(L72:L75) -> 0 | M71: =SUM(M72:M75) -> 0 | Q71: =ROW() -> 71 | R71: Bioabwärme gesamt | S71: GWh/a | T71: =IFERROR(AC71,AK71) -> 0 | U71: =IFERROR(V71/T71,U$6) -> 0 | V71: =IFERROR(AE71,AM71) -> 0 | W71: =HYPERLINK(IFERROR(AF71,AN71),IFERROR(AG71,AO71)) -> 0 | Y71: =HYPERLINK(IFERROR(AH71,AP71),IFERROR(AI71,AQ71)) -> 0
B72: [2.72] | C72: [72] | E72: =ROW() -> 72 | F72: …davon Bioabwärme fest KWK | G72: GWh/a | H72: =T72*H$54/T$55 -> 0 | I72: 0 | J72: =IF(AV72=0,"",HYPERLINK("["&J$3&".xlsm]'"&MID(AS72,3,20),"["&AT72&"."&AV72&"]")) ->  | K72: 0 | L72: =M72 -> 0 | M72: =V72*L$54/V$55 -> 0 | Q72: =ROW() -> 72 | R72: =F72 -> …davon Bioabwärme fest KWK | S72: =G72 -> GWh/a | T72: =IFERROR(AC72,AK72) -> 7561.943773 | U72: =IFERROR(V72/T72,U$6) -> 0 | V72: =IFERROR(AE72,AM72) -> 0 | W72: =HYPERLINK(IFERROR(AF72,AN72),IFERROR(AG72,AO72)) -> [S.2.87] | Y72: =HYPERLINK(IFERROR(AH72,AP72),IFERROR(AI72,AQ72)) ->  | AB72: 184 | AC72: =INDIRECT($AB$3&AC$3&$AB72) -> 7561.943773 | AE72: 0 | AF72: [_S.xlsx]'2. Erneuerbare'!D87 | AG72: [S.2.87] | AI72: =INDIRECT($AB$3&Z$3&$AB72) ->  | AK72: 7561.943773 | AM72: 0 | AN72: [_S.xlsx]'2. Erneuerbare'!D87 | AO72: [S.2.87] | AS72: =IFERROR(_xlfn.FORMULATEXT(I72),"") -> =H72 | AT72: =IF(MID(AS72,2,1)="'",VALUE(MID(AS72,3,1)),0) -> 0 | AU72: =IF(AT72>4,RIGHT(AS72,LEN(AS72)-FIND("!",AS72)),) -> 0 | AV72: =IF(AT72>4,RIGHT(AS72,LEN(AS72)-FIND("!",AS72)-1),) -> 0
B73: =C$3&E$3&E73&F$3 -> [2.73] | C73: =C$3&E73&F$3 -> [73] | E73: =ROW() -> 73 | F73: …davon Abwärme Müllverbr. KWK | G73: GWh/a | H73: 0 | I73: 0 | J73: =IF(AV73=0,"",HYPERLINK("["&J$3&".xlsm]'"&MID(AS73,3,20),"["&AT73&"."&AV73&"]")) ->  | K73: 0 | L73: =M73 -> 0 | M73: 0 | Q73: =ROW() -> 73 | R73: …davon Abwärme Müllverbr. KWK | S73: GWh/a | T73: 11933 | U73: 1 | V73: 11933 | W73: [S.2.95] | Y73: [D.1.360] | AB73: 192 | AC73: 11933 | AE73: 11933 | AF73: [_S.xlsx]'2. Erneuerbare'!D95 | AG73: [S.2.95] | AH73: [D.xlsx]'1.'!D360 | AI73: [D.1.360] | AK73: 11933 | AM73: 11933 | AN73: [_S.xlsx]'2. Erneuerbare'!D95 | AO73: [S.2.95] | AP73: [D.xlsx]'1.'!D360 | AQ73: [D.1.360] | AS73: =H73 | AT73: 0 | AU73: 0 | AV73: 0
B74: [2.74] | C74: [74] | E74: =ROW() -> 74 | F74: …davon Abwärme Biogas BHWK | G74: GWh/a | H74: 0 | I74: 0 | K74: 0 | L74: 0 | M74: 0 | Q74: =ROW() -> 74 | R74: …davon Abwärme Biogas BHWK | S74: GWh/a | T74: 18279.31573 | U74: 0 | V74: 0 | W74: [S.2.112] | AB74: 209 | AC74: 18279.31573 | AE74: 0 | AF74: [_S.xlsx]'2. Erneuerbare'!D112 | AG74: [S.2.112] | AK74: 18279.31573 | AM74: 0 | AN74: [_S.xlsx]'2. Erneuerbare'!D112 | AO74: [S.2.112] | AS74: =H74 | AT74: 0 | AU74: 0 | AV74: 0
B75: [2.75] | C75: [75] | E75: =ROW() -> 75 | F75: …davon Abwärme PÖL HWK | G75: GWh/a | H75: 0 | I75: 0 | K75: 0 | L75: 0 | M75: 0 | Q75: =ROW() -> 75 | R75: …davon Abwärme PÖL HWK | S75: GWh/a | T75: 526.9230769 | U75: 0 | V75: 0 | W75: [S.2.137] | AB75: 234 | AC75: 526.9230769 | AE75: 0 | AF75: [_S.xlsx]'2. Erneuerbare'!D137 | AG75: [S.2.137] | AK75: 526.9230769 | AM75: 0 | AN75: [_S.xlsx]'2. Erneuerbare'!D137 | AO75: [S.2.137] | AS75: =H75 | AT75: 0 | AU75: 0 | AV75: 0
B76: [2.76] | C76: [76] | E76: =ROW() -> 76 | F76: H2-KWK-Abwärme | G76: GWh/a | H76: 0 | I76: 0 | K76: 0 | L76: 0 | M76: 0 | Q76: =ROW() -> 76 | R76: H2-KWK-Abwärme | S76: GWh/a | T76: 0 | U76: 0 | V76: 36427.4015 | W76: [S.2.217] | AB76: 314 | AC76: 0 | AE76: 36427.4015 | AF76: [_S.xlsx]'2. Erneuerbare'!D217 | AG76: [S.2.217] | AK76: 0 | AM76: 36427.4015 | AN76: [_S.xlsx]'2. Erneuerbare'!D217 | AO76: [S.2.217]
B77: [2.77] | C77: [77] | E77: =ROW() -> 77 | F77: ="Solarwärme (siehe ["&E87&"])" -> Solarwärme (siehe [87]) | G77: GWh/a | H77: 0 | I77: =H77*I89/H89 ->  | K77: 0 | L77: =L87*L56% -> 0 | M77: 0 | Q77: =ROW() -> 77 | R77: Solarwärme (siehe [87]) | S77: GWh/a | T77: 7800 | U77: 0.7345232687 | V77: 5729.281496 | W77: [S.2.10] | AB77: 107 | AC77: 7800 | AE77: 5729.281496 | AF77: [_S.xlsx]'2. Erneuerbare'!D10 | AG77: [S.2.10] | AK77: 7800 | AM77: 5729.281496 | AN77: [_S.xlsx]'2. Erneuerbare'!D10 | AO77: [S.2.10]
B78: [2.78] | C78: [78] | E78: =ROW() -> 78 | F78: Wärmepumpe Nutzwärme gesamt | G78: GWh/a | H78: =SUM(H79:H81) -> 0 | I78: =SUM(I79:I81) ->  | K78: 0 | L78: =SUM(L79:L81) ->  | M78: =SUM(M79:M81) -> 0 | R78: Wärmepumpe Nutzwärme gesamt | S78: GWh/a
B79: [2.79] | C79: [79] | E79: =ROW() -> 79 | F79: …davon Umgebungswärme | G79: GWh/a | H79: =T79*H$54/T$55 -> 0 | I79: =I81*H79/H81 ->  | K79: 0 | L79: =L81*M79/M81 ->  | M79: =V79*L$54/V$55 -> 0 | Q79: =ROW() -> 79 | R79: …davon Umgebungswärme | S79: GWh/a | T79: =IFERROR(AC79,AK79) -> 3281.806452 | U79: =IFERROR(V79/T79,U$6) -> 64.90651057 | V79: =IFERROR(AE79,AM79) -> 213010.6051 | W79: =HYPERLINK(IFERROR(AF79,AN79),IFERROR(AG79,AO79)) -> [S.2.153] | Y79: =HYPERLINK(IFERROR(AH79,AP79),IFERROR(AI79,AQ79)) ->  | AB79: 250 | AC79: =INDIRECT($AB$3&AC$3&$AB79) -> 3281.806452 | AE79: 213010.6051 | AF79: [_S.xlsx]'2. Erneuerbare'!D153 | AG79: [S.2.153] | AI79: =INDIRECT($AB$3&Z$3&$AB79) ->  | AK79: 3281.806452 | AM79: 213010.6051 | AN79: [_S.xlsx]'2. Erneuerbare'!D153 | AO79: [S.2.153]
B80: [2.80] | C80: [80] | E80: =ROW() -> 80 | F80: …davon Erdwärme | G80: GWh/a | H80: =T80*H$54/T$55 -> 0 | I80: =I81*H80/H81 ->  | K80: 0 | L80: =L81*M80/M81 ->  | M80: =V80*L$54/V$55 -> 0 | Q80: =ROW() -> 80 | R80: =F80 -> …davon Erdwärme | S80: =G80 -> GWh/a | T80: =IFERROR(AC80,AK80) -> 4375.741935 | U80: =IFERROR(V80/T80,U$6) -> 27.98505347 | V80: =IFERROR(AE80,AM80) -> 122455.372 | W80: =HYPERLINK(IFERROR(AF80,AN80),IFERROR(AG80,AO80)) -> [S.2.159] | Y80: =HYPERLINK(IFERROR(AH80,AP80),IFERROR(AI80,AQ80)) ->  | AB80: 256 | AC80: 4375.741935 | AE80: 122455.372 | AF80: [_S.xlsx]'2. Erneuerbare'!D159 | AG80: [S.2.159] | AI80: =INDIRECT($AB$3&Z$3&$AB80) ->  | AK80: 4375.741935 | AM80: 122455.372 | AN80: [_S.xlsx]'2. Erneuerbare'!D159 | AO80: [S.2.159]
B81: [2.81] | C81: [81] | E81: =ROW() -> 81 | F81: …davon Antriebsstrom | G81: GWh/a | H81: =T81*H$54/T$55 -> 0 | I81: =H81 -> 0 | J81: =IF(AV81=0,"",HYPERLINK("["&J$3&".xlsm]'"&MID(AS81,3,20),"["&AT81&"."&AV81&"]")) ->  | K81: 0 | L81: =L82 ->  | M81: =V81*L$54/V$55 -> 0 | Q81: =ROW() -> 81 | R81: …davon Antriebsstrom | S81: GWh/a | T81: =IFERROR(AC81,AK81) -> 3646.451613 | U81: =IFERROR(V81/T81,U$6) -> 35.27527748 | V81: =IFERROR(AE81,AM81) -> 128629.5925 | W81: =HYPERLINK(IFERROR(AF81,AN81),IFERROR(AG81,AO81)) -> [S.2.148] | Y81: =HYPERLINK(IFERROR(AH81,AP81),IFERROR(AI81,AQ81)) -> [D.1.519] | AB81: 245 | AC81: 3646.451613 | AE81: 128629.5925 | AF81: [_S.xlsx]'2. Erneuerbare'!D148 | AG81: [S.2.148] | AH81: [D.xlsx]'1.'!D519 | AI81: =INDIRECT($AB$3&Z$3&$AB81) -> [D.1.519] | AK81: 3646.451613 | AM81: 128629.5925 | AN81: [_S.xlsx]'2. Erneuerbare'!D148 | AO81: [S.2.148] | AP81: [D.xlsx]'1.'!D519 | AQ81: [D.1.519] | AS81: =IFERROR(_xlfn.FORMULATEXT(I81),"") -> =H81 | AT81: =IF(MID(AS81,2,1)="'",VALUE(MID(AS81,3,1)),0) -> 0 | AU81: =IF(AT81>4,RIGHT(AS81,LEN(AS81)-FIND("!",AS81)),) -> 0 | AV81: =IF(AT81>4,RIGHT(AS81,LEN(AS81)-FIND("!",AS81)-1),) -> 0
B82: [2.82] | C82: [82] | E82: =ROW() -> 82 | F82: Wärmepumpen-Deckungsausgleich | G82: GWh/a | L82: =(SUM(M69:M78)-M71-(SUM(L69:L77)-L71))*M81/M78 -> 
B83: [2.83] | C83: [83] | E83: =ROW() -> 83 | F83: Wärmepumpe Volllaststunden | G83: h/a | H83: =T83 -> 2050 | I83: =H83 -> 2050 | K83: =IFERROR(L83/I83,K$6) -> 0.8292682927 | L83: =M83 -> 1700 | M83: =V83 -> 1700 | Q83: =ROW() -> 83 | R83: =F83 -> Wärmepumpe Volllaststunden | S83: =G83 -> h/a | T83: =IFERROR(AC83,AK83) -> 2050 | U83: =IFERROR(V83/T83,U$6) -> 0.8292682927 | V83: =IFERROR(AE83,AM83) -> 1700 | W83: =HYPERLINK(IFERROR(AF83,AN83),IFERROR(AG83,AO83)) -> [D.1.522] | Y83: =HYPERLINK(IFERROR(AH83,AP83),IFERROR(AI83,AQ83)) -> [D.1.525] | AB83: x | AC83: 2050 | AD83: =INDIRECT($AB$3&AD$3&$AB83) ->  | AE83: 1700 | AF83: [D.xlsx]'1.'!D522 | AG83: [D.1.522] | AH83: [D.xlsx]'1.'!D525 | AI83: [D.1.525] | AK83: 2050 | AM83: 1700 | AN83: [D.xlsx]'1.'!D522 | AO83: [D.1.522] | AP83: [D.xlsx]'1.'!D525 | AQ83: [D.1.525]
B84: [2.84] | C84: [84] | E84: =ROW() -> 84 | F84: Wärmepumpe inst. Leistung elektr. | G84: MW | H84: =H81*1000/H83 -> 0 | I84: =I81*1000/I83 -> 0 | K84: =IFERROR(L84/I84,K$6) -> 0 | L84: =L81*1000/L83 ->  | M84: =M81*1000/M83 -> 0 | Q84: =ROW() -> 84 | R84: Wärmepumpe inst. Leistung elektr. | S84: MW | T84: =T81*1000/T83 -> 1778.756884 | U84: =IFERROR(V84/T84,U$6) -> 42.53783461 | V84: =V81*1000/V83 -> 75664.46616 | W84: 0 | Y84: 0
B85: [2.85] | C85: [85] | E85: =ROW() -> 85 | F85: Fossile Brennstoffe+Strom | G85: GWh/a | H85: =H56-SUM(H69:H78)+H71 -> 0 | I85: =I56-SUM(I69:I78)+I71 ->  | K85: =IFERROR(L85/I85,K$6) -> 0 | L85: =L56-SUM(L69:L78)+L71 ->  | M85: =M56-SUM(M69:M78)+M71 -> 0 | Q85: =ROW() -> 85 | R85: =F85 -> Fossile Brennstoffe+Strom | S85: =G85 -> GWh/a | T85: =T56-SUM(T69:T81)+T71 -> 771802.2388 | U85: =IFERROR(V85/T85,U$6) -> -2.392387805e-05 | V85: =V56-SUM(V69:V81)+V71 -> -18.46450264 | W85: =HYPERLINK(IFERROR(AF85,AN85),IFERROR(AG85,AO85)) -> 0 | Y85: =HYPERLINK(IFERROR(AH85,AP85),IFERROR(AI85,AQ85)) -> 0
B86: [2.86] | C86: [86] | E86: =ROW() -> 86
B87: [2.87] | C87: [87] | E87: =ROW() -> 87 | F87: Solarwärme / Gebäudewärme | G87: % | H87: =H77/H56% ->  | I87: =I77/I56% ->  | K87: =IFERROR(L87/I87,K$6) -> 0 | L87: =M87 -> 1.105682886 | M87: =V87 -> 1.105682886 | Q87: =ROW() -> 87 | R87: =F87 -> Solarwärme / Gebäudewärme | S87: =G87 -> % | T87: =T77/T56% -> 0.8716691806 | U87: =IFERROR(V87/T87,U$6) -> 1.268466191 | V87: =V77/V56% -> 1.105682886 | W87: =HYPERLINK(IFERROR(AF87,AN87),IFERROR(AG87,AO87)) -> 0 | Y87: =HYPERLINK(IFERROR(AH87,AP87),IFERROR(AI87,AQ87)) -> 0
B88: [2.88] | C88: [88] | E88: =ROW() -> 88 | F88: Solarthermie / Solardachfläche | G88: % | H88: =T88 -> 8.932245818 | I88: =H88 -> 8.932245818 | K88: =IFERROR(L88/I88,K$6) -> 0 | L88: =M88*L77/M77 ->  | M88: =V88 -> 0.7171088272 | Q88: =ROW() -> 88 | R88: =F88 -> Solarthermie / Solardachfläche | S88: =G88 -> % | T88: =IFERROR(AC88,AK88) -> 8.932245818 | U88: =IFERROR(V88/T88,U$6) -> 0.08028314958 | V88: =IFERROR(AE88,AM88) -> 0.7171088272 | W88: =HYPERLINK(IFERROR(AF88,AN88),IFERROR(AG88,AO88)) -> [S.2.8] | Y88: =HYPERLINK(IFERROR(AH88,AP88),IFERROR(AI88,AQ88)) -> [D.1.137] | AB88: 105 | AC88: =INDIRECT($AB$3&AC$3&$AB88) -> 8.932245818 | AE88: 0.7171088272 | AF88: [_S.xlsx]'2. Erneuerbare'!D8 | AG88: [S.2.8] | AH88: [D.xlsx]'1.'!D137 | AI88: =INDIRECT($AB$3&Z$3&$AB88) -> [D.1.137] | AK88: 8.932245818 | AM88: 0.7171088272 | AN88: [_S.xlsx]'2. Erneuerbare'!D8 | AO88: [S.2.8] | AP88: [D.xlsx]'1.'!D137 | AQ88: [D.1.137]
B89: [2.89] | C89: [89] | E89: =ROW() -> 89 | F89: Solarthermie-Dachflächen | G89: Tsd. Qm | H89: =H29*10000/1000*H88% -> 0 | I89: =H89 -> 0 | J89: =IF(AV89=0,"",HYPERLINK("["&J$3&".xlsm]'"&MID(AS89,3,20),"["&AT89&"."&AV89&"]")) ->  | K89: =IFERROR(L89/I89,K$6) -> 0 | L89: =M89*L77/M77 ->  | M89: =M29*10000/1000*M88% -> 0 | Q89: =ROW() -> 89 | R89: =F89 -> Solarthermie-Dachflächen | S89: Tsd. Qm | T89: =IFERROR(AC89,AK89) -> 3646.451613 | U89: =IFERROR(V89/T89,U$6) -> 35.27527748 | V89: =IFERROR(AE89,AM89) -> 128629.5925 | W89: =HYPERLINK(IFERROR(AF89,AN89),IFERROR(AG89,AO89)) -> [S.2.148] | Y89: =HYPERLINK(IFERROR(AH89,AP89),IFERROR(AI89,AQ89)) -> [D.1.519] | AB89: 245 | AC89: 3646.451613 | AE89: 128629.5925 | AF89: [_S.xlsx]'2. Erneuerbare'!D148 | AG89: [S.2.148] | AH89: [D.xlsx]'1.'!D519 | AI89: =INDIRECT($AB$3&Z$3&$AB89) -> [D.1.519] | AK89: 3646.451613 | AM89: 128629.5925 | AN89: [_S.xlsx]'2. Erneuerbare'!D148 | AO89: [S.2.148] | AP89: [D.xlsx]'1.'!D519 | AQ89: [D.1.519] | AS89: =IFERROR(_xlfn.FORMULATEXT(I89),"") -> =H89 | AT89: =IF(MID(AS89,2,1)="'",VALUE(MID(AS89,3,1)),0) -> 0 | AU89: =IF(AT89>4,RIGHT(AS89,LEN(AS89)-FIND("!",AS89)),) -> 0 | AV89: =IF(AT89>4,RIGHT(AS89,LEN(AS89)-FIND("!",AS89)-1),) -> 0
F91: am 28.10.2023 ergänzt, am 02.11.2023 Strom aus Tiefengeothermie ausgeblendet:
B92: =C$3&E$3&E92&F$3 -> [2.92] | C92: =C$3&E92&F$3 -> [92] | E92: =ROW() -> 92 | F92: =R92 -> Wasserkraft | G92: =S92 -> GWh/a | H92: =T92*H$15/T$15 -> 0 | I92: ='7.Extradaten'!G8 -> 0 | J92: =IF(AV92=0,"",HYPERLINK("["&J$3&".xlsm]'"&MID(AS92,3,20),"["&AT92&"."&AV92&"]")) -> [7.8] | K92: =IFERROR(L92/I92,K$6) -> 0 | L92: 0 | M92: =V92*M$15/V$15 -> 0 | Q92: =ROW() -> 92 | R92: Wasserkraft | S92: GWh/a | T92: =IFERROR(AC92,AK92) -> 20218.875 | U92: =IFERROR(V92/T92,U$6) -> 1 | V92: =IFERROR(AE92,AM92) -> 20218.875 | W92: =HYPERLINK(IFERROR(AF92,AN92),IFERROR(AG92,AO92)) -> [S.2.46] | AB92: 143 | AC92: =INDIRECT($AB$3&AC$3&$AB92) -> 20218.875 | AE92: =INDIRECT($AB$3&AE$3&$AB92) -> 20218.875 | AF92: [_S.xlsx]'2. Erneuerbare'!D46 | AG92: [S.2.46] | AI92: =INDIRECT($AB$3&Z$3&$AB92) ->  | AK92: 20218.875 | AM92: 20218.875 | AN92: [_S.xlsx]'2. Erneuerbare'!D46 | AO92: [S.2.46] | AS92: =IFERROR(_xlfn.FORMULATEXT(I92),"") -> ='7.Extradaten'!G8 | AT92: =IF(MID(AS92,2,1)="'",VALUE(MID(AS92,3,1)),0) -> 7 | AU92: =IF(AT92>4,RIGHT(AS92,LEN(AS92)-FIND("!",AS92)),) -> G8 | AV92: =IF(AT92>4,RIGHT(AS92,LEN(AS92)-FIND("!",AS92)-1),) -> 8
B93: [2.93] | C93: [93] | E93: =ROW() -> 93 | F93: =R93 -> Biomasse-Strom | G93: =S93 -> GWh/a | H93: =T93*H$34/T$34 -> 0 | I93: ='7.Extradaten'!G9 -> 0 | J93: =IF(AV93=0,"",HYPERLINK("["&J$3&".xlsm]'"&MID(AS93,3,20),"["&AT93&"."&AV93&"]")) -> [7.9] | K93: 0 | L93: =M93 -> 0 | M93: =V93*M$15/V$15 -> 0 | Q93: =ROW() -> 93 | R93: Biomasse-Strom | S93: GWh/a | T93: =IFERROR(AC93,AK93) -> 54771.87821 | U93: =IFERROR(V93/T93,U$6) -> 0.1079386027 | V93: =IFERROR(AE93,AM93) -> 5912 | W93: =HYPERLINK(IFERROR(AF93,AN93),IFERROR(AG93,AO93)) -> [S.2.185] | AB93: 282 | AC93: 54771.87821 | AE93: 5912 | AF93: [_S.xlsx]'2. Erneuerbare'!D185 | AG93: [S.2.185] | AI93: =INDIRECT($AB$3&Z$3&$AB93) ->  | AK93: 54771.87821 | AM93: 5912 | AN93: [_S.xlsx]'2. Erneuerbare'!D185 | AO93: [S.2.185] | AS93: ='7.Extradaten'!G9 | AT93: 7 | AU93: G9 | AV93: 9

Sheet 2.WindOnshore (hidden)
D1: D | G1: 0 | H1: 1 | I1: 2 | J1: 0 | K1: 1 | O1: [ | P1: =BO1 -> 2. | Q1: ] | AB1: ="I_!" -> I_! | AC1: F | AD1: L | AE1: N | AF1: C | AH1: E | AI1: B | AJ1: K | AK1: =SUBSTITUTE(ADDRESS(1,COLUMN(),4),1,) -> AK | AL1: ="IL_!" -> IL_! | AM1: B | AN1: C | AO1: D | AP1: E | AQ1: F | AR1: G | AS1: H | AT1: [L.xlsx] | AU1: L. | AW1: [ | AX1: ] | AY1: =#REF! ->  | BA1: EB n.Quellen>> | BB1: Bilanz: | BC1: 0 | BK1: Vorlagen>>> | BL1: =BM1&BO1 ->  | BM1: =MID(BN1,1,1)&"." ->  | BN1: =MID(BQ1,FIND("[",BQ1)+1,FIND("xlsx",BQ1)-FIND("[",BQ1)-2) ->  | BO1: =LEFT(BP1,FIND(".",BP1)) -> 2. | BP1: =MID(BQ1,FIND("]",BQ1)+1,255) -> 2.WindOnshore | BQ1: =CELL("dateiname",BQ1) -> C:\Users\schmi\Documents\_wattweg2008\Veranstaltungen_2024\240828WorkshopRegionalplaner\Arbeitsordner200822m\[P000100-D.H2i-L..xlsm]2.WindOnshore | BX1: D | BY1: [ | BZ1: ] | CA1: [D.xlsx] | CB1: ="["&BN1&"xlsx]" ->  | CD1: =BM1&BO1&" - " ->  | CE1: ='0.Leitfaden'!#REF!&" "&'0.Leitfaden'!#REF!&" 100%EE ("&'0.Leitfaden'!#REF!&")" ->  | CH1: =Versionen!A1 -> 240826e | CI1: =TEXT(TODAY(),"tt.MM.jjjj") -> 27.08.2024 | CJ1: =TEXT(NOW(),"hh:mm") -> 13:04 | CK1: ="100prosimP ("&BN1&".xlsx, V."&CH1&") - "&CI1&" "&CJ1 ->  | CU1: 09.01
K2: =CK1 ->  | M2: •
D3: =BM1&BP1&" - "&'1.Ansicht'!BF3 ->  | M3: https://geoportal.bayern.de/energieatlas-karten/?wicket-crypt=lp19lhhy5QM
B4: =O$1&P$1&D4&Q$1 -> [2.4] | C4: =O$1&D4&Q$1 -> [4] | D4: =ROW() -> 4
B5: [2.5] | C5: [5] | D5: =ROW() -> 5 | E5: Wind onshore | G5: =G23 -> L.
B6: [2.6] | C6: [6] | D6: =ROW() -> 6 | F6: Optionswahl: | G6: Status: | I6: 2 | J6: Ziel: | K6: 1
B7: =Z$2&AA$2&D7&AB$2 -> 7 | C7: =Z$2&D7&AB$2 -> 7 | D7: =ROW() -> 7 | F7: gewählt: | G7: =IF($I6=0,$M$2,"") ->  | H7: =IF($I6=H8,$M$2,"") ->  | I7: =IF($I6=I8,$M$2,"") -> • | J7: =IF($K6=0,$M$2,"") ->  | K7: =IF($K6=K8,$M$2,"") -> • | M7: ="Standard "&'5.Kenndaten'!H9&"."&'5.Kenndaten'!J10 -> Standard L. | Q7: ='5.Kenndaten'!F13 -> D.H2i
B8: [2.8] | C8: [8] | D8: =ROW() -> 8 | G8: 0 Standard | H8: 1 | I8: 2 | J8: 0 Standard | K8: 1 | M8: Status | O8: Ziel | Q8: Status | S8: Ziel
B9: [2.9] | C9: [9] | D9: =ROW() -> 9 | E9: Windstrom onshore | F9: ='1.Ansicht'!#REF! ->  | G9: =M9 ->  | H9: 30.125 | I9: =I10*I12/1000 ->  | J9: =O9 ->  | K9: =K12*K10/1000 ->  | M9: =Q9*'1.Ansicht'!#REF!/1000 ->  | N9: =C9&'1.Ansicht'!#REF! ->  | O9: =S9*'1.Ansicht'!#REF!/1000 ->  | P9: =C9&'1.Ansicht'!#REF! ->  | Q9: ='1.Ansicht'!#REF! ->  | R9: ='1.Ansicht'!#REF! ->  | S9: ='1.Ansicht'!#REF! ->  | T9: ='1.Ansicht'!#REF! -> 
B10: =O$1&P$1&D10&Q$1 -> [2.10] | C10: =O$1&D10&Q$1 -> [10] | D10: =ROW() -> 10 | E10: Flächenertrag Windpark onshore | F10: MWh/ha/a | G10: =M10 ->  | H10: =H9*1000/H12 ->  | I10: =$G10*I11% ->  | J10: =O10 ->  | K10: =J10*K11% ->  | M10: =Q10 ->  | N10: =C10 -> [10] | O10: =S10 ->  | P10: =C10 -> [10] | Q10: ='1.Ansicht'!#REF! ->  | R10: ='1.Ansicht'!#REF! ->  | S10: ='1.Ansicht'!#REF! ->  | T10: ='1.Ansicht'!#REF! -> 
B11: [2.11] | C11: [11] | D11: =ROW() -> 11 | E11: (relativ zum Standard) | F11: % | G11: =G10/G10% ->  | H11: =H10/G10% ->  | I11: =G11 ->  | J11: =J10/J10% ->  | K11: =IF(I6=1,H11,IF(I6=2,I11,G11)) ->  | V11: Was ist mit K10? Hsk 08.12.2019
B12: [2.12] | C12: [12] | D12: =ROW() -> 12 | E12: Beanspruchte Windparkfläche (absolut) | F12: ha | G12: =M12 ->  | H12: =H16*H15 ->  | I12: =I16*I15 ->  | J12: =O12 ->  | K12: ='1.Ansicht'!#REF!*'2.WindOnshore'!K13% ->  | M12: =M9/M10*1000 ->  | N12: =C9&C10 -> [9][10] | O12: =J9/J10*1000 ->  | P12: =C9&C10 -> [9][10] | Q12: ='1.Ansicht'!#REF! ->  | S12: ='1.Ansicht'!#REF! ->  | T12: ='1.Ansicht'!#REF! -> 
B13: [2.13] | C13: [13] | D13: =ROW() -> 13 | E13: (relativ zur Gebietsfläche) | F13: % | G13: =M13 ->  | H13: =H12/'1.Ansicht'!#REF!% ->  | I13: =I12/'1.Ansicht'!#REF!% ->  | J13: =O13 ->  | K13: 0 | M13: =M12/'1.Ansicht'!#REF!% ->  | N13: =C12&'1.Ansicht'!#REF! ->  | O13: =O12/'1.Ansicht'!#REF!% ->  | P13: =C12&'1.Ansicht'!#REF! ->  | Q13: =Q12/'1.Ansicht'!#REF!% ->  | S13: =S12/'1.Ansicht'!#REF!% ->  | T13: =C12&'1.Ansicht'!#REF! -> 
B14: [2.14] | C14: [14] | D14: =ROW() -> 14 | E14: (relativ zur Landwirtschaftsfläche) | F14: % | G14: =M14 ->  | H14: =H12/'1.Ansicht'!#REF!% ->  | I14: =I12/'1.Ansicht'!#REF!% ->  | J14: =O14 ->  | K14: =K12/'1.Ansicht'!#REF!% ->  | M14: =M12/'1.Ansicht'!#REF!% ->  | N14: =C12&'1.Ansicht'!#REF! ->  | O14: =O12/'1.Ansicht'!#REF!% ->  | P14: =C12&'1.Ansicht'!#REF! ->  | Q14: =Q12/'1.Ansicht'!#REF!% ->  | S14: =S12/'1.Ansicht'!#REF!% ->  | T14: =C12&'1.Ansicht'!#REF! -> 
B15: [2.15] | C15: [15] | D15: =ROW() -> 15 | E15: Spezifischer Flächenbedarf | F15: ha/MW | G15: =M15 ->  | H15: =$G15 ->  | I15: =$G15 ->  | J15: =O15 ->  | K15: =O15 ->  | M15: =Q15 ->  | N15: =C15 -> [15] | O15: =S15 ->  | P15: =C15 -> [15] | Q15: ='1.Ansicht'!#REF! ->  | S15: ='1.Ansicht'!#REF! ->  | T15: ='1.Ansicht'!#REF! -> 
B16: [2.16] | C16: [16] | D16: =ROW() -> 16 | E16: Install.Leistung Wind onshore | F16: MW | G16: =G12/G15 ->  | H16: 16.7 | I16: 0 | J16: =J12/J15 ->  | K16: =K12/K15 ->  | M16: =M12/M15 ->  | N16: =C12&C15 -> [12][15] | O16: =O12/O15 ->  | P16: =C12&C15 -> [12][15] | Q16: =Q12/Q15 ->  | S16: =S12/S15 ->  | T16: =C12&C15 -> [12][15]
B17: [2.17] | C17: [17] | D17: =ROW() -> 17 | E17: Anzahl Großwindanlagen | H17: 7 | K17: =K16/K18 -> 
B18: =O$1&P$1&D18&Q$1 -> [2.18] | C18: =O$1&D18&Q$1 -> [18] | D18: =ROW() -> 18 | E18: Anlagen-Nennleistung Durchschnitt | F18: MW | H18: =H16/H17 -> 2.385714286 | I18: =I16/I17 ->  | K18: 5
B19: [2.19] | C19: [19] | D19: =ROW() -> 19
B20: [2.20] | C20: [20] | D20: =ROW() -> 20
B21: [2.21] | C21: [21] | D21: =ROW() -> 21
B22: [2.22] | C22: [22] | D22: =ROW() -> 22
B23: =O$1&P$1&D23&Q$1 -> [2.23] | C23: =O$1&D23&Q$1 -> [23] | D23: =ROW() -> 23 | E23: Gemäß Optionsauswahl: | G23: ='5.Kenndaten'!H9&"."&'5.Kenndaten'!J10 -> L. | I23: ='5.Kenndaten'!F13 -> D.H2i
B24: [2.24] | C24: [24] | D24: =ROW() -> 24 | G24: Status | H24: Ziel | I24: Status | J24: Ziel
B25: [2.25] | C25: [25] | D25: =ROW() -> 25 | E25: Windstrom onshore | F25: GWh/a | G25: =IF(I6=1,H9,IF(I6=2,I9,G9)) ->  | H25: =IF(K6=1,K9,J9) ->  | I25: =Q9 ->  | J25: =S9 ->  | K25: =C9 -> [9]
B26: [2.26] | C26: [26] | D26: =ROW() -> 26 | E26: Flächenertrag Windpark onshore | F26: =F10 -> MWh/ha/a | G26: =IF(I$6=1,H10,IF(I$6=2,I10,G10)) ->  | H26: =IF(K$6=1,K10,J10) ->  | I26: =Q10 ->  | J26: =S10 ->  | K26: =C10 -> [10]
B27: [2.27] | C27: [27] | D27: =ROW() -> 27 | E27: Windparkfläche rel. zu Gebietsfläche | F27: % | G27: =IF(I$6=1,H13,IF(I$6=2,I13,G13)) ->  | H27: =IF(K$6=1,K13,J13) -> 0 | I27: =Q13 ->  | J27: =S13 ->  | K27: =C13 -> [13]
B28: [2.28] | C28: [28] | D28: =ROW() -> 28 | E28: Installierte Generatorleistung | F28: MW | G28: =IF(I$6=1,H16,IF(I$6=2,I16,G16)) -> 0 | H28: =IF(K$6=1,K16,J16) ->  | I28: =Q16 ->  | J28: =S16 ->  | K28: =C16 -> [16]
E29: =E17 -> Anzahl Großwindanlagen | G29: =IF(I$6=1,H17,IF(I$6=2,I17,G17)) -> 0 | H29: =IF(K$6=1,K17,J17) ->  | I29: =Q17 -> 0 | J29: =S17 -> 0 | K29: =C17 -> [17]
B30: [2.30] | C30: [30] | D30: =ROW() -> 30
B31: [2.31] | C31: [31] | D31: =ROW() -> 31 | E31: Deckungsgrad Bruttostrom | F31: % | H31: ='1.Ansicht'!#REF! ->  | K31: ='1.Ansicht'!#REF! -> 

Sheet 3.SolarDach (hidden)
D1: D | G1: 0 | H1: 1 | I1: 2 | J1: 0 | K1: 1 | O1: [ | P1: =BO1 -> 3. | Q1: ] | AB1: ="I_!" -> I_! | AC1: F | AD1: L | AE1: N | AF1: C | AH1: E | AI1: B | AJ1: K | AK1: =SUBSTITUTE(ADDRESS(1,COLUMN(),4),1,) -> AK | AL1: ="IL_!" -> IL_! | AM1: B | AN1: C | AO1: D | AP1: E | AQ1: F | AR1: G | AS1: H | AT1: [L.xlsx] | AU1: L. | AW1: [ | AX1: ] | AY1: =#REF! ->  | BA1: EB n.Quellen>> | BB1: Bilanz: | BC1: 0 | BK1: Vorlagen>>> | BL1: =BM1&BO1 ->  | BM1: =MID(BN1,1,1)&"." ->  | BN1: =MID(BQ1,FIND("[",BQ1)+1,FIND("xlsx",BQ1)-FIND("[",BQ1)-2) ->  | BO1: =LEFT(BP1,FIND(".",BP1)) -> 3. | BP1: =MID(BQ1,FIND("]",BQ1)+1,255) -> 3.SolarDach | BQ1: =CELL("dateiname",BQ1) -> C:\Users\schmi\Documents\_wattweg2008\Veranstaltungen_2024\240828WorkshopRegionalplaner\Arbeitsordner200822m\[P000100-D.H2i-L..xlsm]3.SolarDach | BX1: D | BY1: [ | BZ1: ] | CA1: [D.xlsx] | CB1: ="["&BN1&"xlsx]" ->  | CD1: =BM1&BO1&" - " ->  | CE1: ='0.Leitfaden'!#REF!&" "&'0.Leitfaden'!#REF!&" 100%EE ("&'0.Leitfaden'!#REF!&")" ->  | CH1: =Versionen!A1 -> 240826e | CI1: =TEXT(TODAY(),"tt.MM.jjjj") -> 27.08.2024 | CJ1: =TEXT(NOW(),"hh:mm") -> 13:04 | CK1: ="100prosimP ("&BN1&".xlsx, V."&CH1&") - "&CI1&" "&CJ1 ->  | CU1: 09.01
K2: =CK1 ->  | M2: • | T2: ?> | Z2: [ | AA2: 3. | AB2: ]
D3: =BM1&BP1&" - "&'1.Ansicht'!BF3 ->  | M3: https://geoportal.bayern.de/energieatlas-karten/?wicket-crypt=lp19lhhy5QM
B4: =Z$2&AA$2&D4&AB$2 -> [3.4] | C4: =Z$2&D4&AB$2 -> [4] | D4: =ROW() -> 4
B5: [3.5] | C5: [5] | D5: =ROW() -> 5 | E5: Solarenergie vom Dach | G5: =G31 -> L.
F6: Optionswahl: | G6: Status: | I6: 1 | J6: Ziel: | K6: 0
B7: [3.7] | C7: [7] | D7: =ROW() -> 7 | F7: gewählt: | G7: =IF($I6=0,$M$2,"") ->  | H7: =IF($I6=H8,$M$2,"") -> • | I7: =IF($I6=I8,$M$2,"") ->  | J7: =IF($K6=0,$M$2,"") -> • | K7: =IF($K6=K8,$M$2,"") ->  | M7: ="Standard "&'5.Kenndaten'!H9&"."&'5.Kenndaten'!J10 -> Standard L. | Q7: ='5.Kenndaten'!F13 -> D.H2i
B8: [3.8] | C8: [8] | D8: =ROW() -> 8 | G8: 0 Standard | H8: 1 | I8: 2 | J8: 0 Standard | K8: 1 | M8: Status | O8: Ziel | Q8: Status | S8: Ziel
B9: [3.9] | C9: [9] | D9: =ROW() -> 9 | E9: Strom
B10: [3.10] | C10: [10] | D10: =ROW() -> 10 | E10: Stromaufkommen PV-Anlagen | F10: GWh/a | G10: =M10 ->  | H10: 12 | I10: =I12*I11/1000 ->  | J10: =O10 ->  | K10: =K12*K11/1000 ->  | M10: =Q10*'1.Ansicht'!#REF!/1000 ->  | N10: =C10&'1.Ansicht'!#REF! ->  | O10: =S10*'1.Ansicht'!#REF!/1000 ->  | P10: =C10&'1.Ansicht'!#REF! ->  | Q10: ='1.Ansicht'!#REF! ->  | R10: ='1.Ansicht'!#REF! ->  | S10: ='1.Ansicht'!#REF! ->  | T10: ='1.Ansicht'!#REF! -> 
B11: [3.11] | C11: [11] | D11: =ROW() -> 11 | E11: Flächenertrag Dach-PV-Anlagen | F11: MWh/ha/a | H11: =H15/H17*10 ->  | I11: =I15/I17*10 ->  | K11: =J11 ->  | M11: =Q11 ->  | N11: =C11 -> [11] | O11: =S11 ->  | P11: =C11 -> [11] | Q11: ='1.Ansicht'!#REF! ->  | R11: ='1.Ansicht'!#REF! ->  | S11: ='1.Ansicht'!#REF! ->  | T11: ='1.Ansicht'!#REF! -> 
B12: [3.12] | C12: [12] | D12: =ROW() -> 12 | E12: Beanspruchte Dachfläche (absolut) | F12: ha | H12: =H10/H11*1000 ->  | I12: =I18*I17/10 ->  | K12: =K13*'1.Ansicht'!#REF!% ->  | M12: =M10/M11*1000 ->  | N12: =C10&C11 -> [10][11] | O12: =O10/O11*1000 ->  | P12: =C10&C11 -> [10][11] | Q12: =Q10*1000/Q11 ->  | R12: ='[1]1. Flächen'!$I$34 -> 195708.0589 | S12: =S10*1000/S11 ->  | T12: =C10&C11 -> [10][11]
B13: [3.13] | C13: [13] | D13: =ROW() -> 13 | E13: (relativ zur Gebäude&Freifläche) | F13: % | H13: =H12/'1.Ansicht'!#REF!% ->  | I13: =I12/'1.Ansicht'!#REF!% ->  | K13: 4.5 | M13: =M12/'1.Ansicht'!#REF!% ->  | N13: =C12&'1.Ansicht'!#REF! ->  | O13: =O12/'1.Ansicht'!#REF!% ->  | P13: =C12&'1.Ansicht'!#REF! ->  | Q13: =Q12/'1.Ansicht'!#REF!% ->  | S13: =S12/'1.Ansicht'!#REF!% ->  | T13: =C12&'1.Ansicht'!#REF! -> 
B14: [3.14] | C14: [14] | D14: =ROW() -> 14 | E14: (relativ zur solar genutzten Dachfläche) | F14: % | H14: =H12/H$28% ->  | I14: =I12/I$28% ->  | K14: =K12/K$28% ->  | M14: =M12/M$28% ->  | N14: =C12&C$28 -> [12][28] | O14: =O12/O$28% ->  | P14: =C12&C$28 -> [12][28] | Q14: =Q12/Q$28% ->  | S14: =S12/S$28% ->  | T14: =C12&C$28 -> [12][28]
B15: [3.15] | C15: [15] | D15: =ROW() -> 15 | E15: Vollbetriebsstunden (=Solarstrahlung) | F15: h/a | H15: =H10*1000/H18 -> 916.0305344 | I15: =$G15*I16% ->  | K15: =J15*K16% ->  | M15: =Q15 ->  | N15: =C15 -> [15] | O15: =S15 ->  | P15: =C15 -> [15] | Q15: ='1.Ansicht'!#REF! ->  | R15: ='1.Ansicht'!#REF! ->  | S15: ='1.Ansicht'!#REF! ->  | T15: ='1.Ansicht'!#REF! -> 
B16: [3.16] | C16: [16] | D16: =ROW() -> 16 | E16: (relativ zum Standard) | F16: % | G16: =G15/G15% ->  | H16: =H15/G15% ->  | I16: =919/G15% ->  | J16: =J15/J15% ->  | K16: =IF(I6=1,H16,IF(I6=2,I16,G16)) -> 
B17: [3.17] | C17: [17] | D17: =ROW() -> 17 | E17: Spezifischer Flächenbedarf PV-Module | F17: m2/kWp | G17: =M17 ->  | H17: =$G17 ->  | I17: =$G17 ->  | J17: =O17 ->  | K17: =J17 ->  | M17: =Q17 ->  | N17: =C17 -> [17] | O17: =S17 ->  | P17: =C17 -> [17] | Q17: =Q15/Q11*10 ->  | S17: =S15/S11*10 ->  | T17: =C11&C15 -> [11][15] | U17: ='[2]1.'!$A$155&", "&'[2]1.'!$A$159 -> D.1.155, D.1.159
B18: [3.18] | C18: [18] | D18: =ROW() -> 18 | E18: Installierte PV-Leistung | F18: MWp | G18: =G10/G15*1000 ->  | H18: 13.1 | I18: =13.1*9371/11679 -> 10.51118246 | J18: =J10/J15*1000 ->  | K18: =K12/K17*10 ->  | M18: =M10/M15*1000 ->  | N18: =C10&C15 -> [10][15] | O18: =O10/O15*1000 ->  | P18: =C10&C15 -> [10][15] | Q18: ='1.Ansicht'!#REF! ->  | R18: ='1.Ansicht'!#REF! ->  | S18: ='1.Ansicht'!#REF! ->  | T18: ='1.Ansicht'!B10 -> [1.10] | U18: =Q10/Q15*1000 ->  | V18: =S10/S15*1000 -> 
B19: =Z$2&AA$2&D19&AB$2 -> [3.19] | C19: =Z$2&D19&AB$2 -> [19] | D19: =ROW() -> 19 | E19: pro Einwohner | F19: kWp/Pers. | G19: =G18*1000/'0.Leitfaden'!#REF! ->  | H19: =H18*1000/'0.Leitfaden'!#REF! ->  | I19: =I18*1000/'0.Leitfaden'!#REF! ->  | Q19: =Q18*1000/'1.Ansicht'!#REF! -> 
B20: =Z$2&AA$2&D20&AB$2 -> [3.20] | C20: =Z$2&D20&AB$2 -> [20] | D20: =ROW() -> 20 | E20: pro ha Bodenfläche | F20: kWp/ha | G20: =G18*1000/'0.Leitfaden'!#REF! ->  | H20: =H18*1000/'0.Leitfaden'!#REF! ->  | I20: =I18*1000/'0.Leitfaden'!#REF! ->  | Q20: =Q18*1000/'1.Ansicht'!#REF! -> 
B21: [3.21] | C21: [21] | D21: =ROW() -> 21 | E21: Wärme
B22: [3.22] | C22: [22] | D22: =ROW() -> 22 | E22: Wärmeaufkommen Solarkollektoren | F22: ='1.Ansicht'!#REF! ->  | G22: =M22 ->  | H22: =$G22 ->  | J22: =O22 ->  | K22: =J22 ->  | M22: =Q22*'1.Ansicht'!#REF!/1000 ->  | N22: =C22&'1.Ansicht'!#REF! ->  | O22: =S22*'1.Ansicht'!#REF!/1000 ->  | P22: =C22&'1.Ansicht'!#REF! ->  | Q22: ='1.Ansicht'!#REF! ->  | R22: ='1.Ansicht'!#REF! ->  | S22: ='1.Ansicht'!#REF! ->  | T22: ='1.Ansicht'!#REF! -> 
B23: [3.23] | C23: [23] | D23: =ROW() -> 23 | E23: Flächenertrag Solarthermie | F23: MWh/ha/a | G23: =M23 ->  | J23: =O23 ->  | K23: =J23 ->  | M23: =Q23 ->  | N23: =C23 -> [23] | O23: =S23 ->  | P23: =C23 -> [23] | Q23: ='1.Ansicht'!#REF! ->  | R23: ='1.Ansicht'!#REF! ->  | S23: ='1.Ansicht'!#REF! ->  | T23: ='1.Ansicht'!#REF! -> 
B24: [3.24] | C24: [24] | D24: =ROW() -> 24 | E24: Beanspruchte Dachfläche (absolut) | F24: ha | G24: =M24 ->  | J24: =O24 ->  | M24: =M22/M23*1000 ->  | N24: =C22&C23 -> [22][23] | O24: =J22/J23*1000 ->  | P24: =C22&C23 -> [22][23] | Q24: =Q22*1000/Q23 ->  | R24: ='[1]1. Flächen'!$I$34 -> 195708.0589 | S24: =S22*1000/S23 ->  | T24: =C22&C23 -> [22][23]
B25: [3.25] | C25: [25] | D25: =ROW() -> 25 | E25: (relativ zur Gebäude&Freifläche) | F25: % | G25: =M25 ->  | J25: =O25 ->  | M25: =M24/'1.Ansicht'!#REF!% ->  | N25: =C24&'1.Ansicht'!#REF! ->  | O25: =O24/'1.Ansicht'!#REF!% ->  | P25: =C24&'1.Ansicht'!#REF! ->  | Q25: =Q24/'1.Ansicht'!#REF!% ->  | S25: =S24/'1.Ansicht'!#REF!% ->  | T25: =C24&'1.Ansicht'!#REF! -> 
B26: [3.26] | C26: [26] | D26: =ROW() -> 26 | E26: (relativ zur solar genutzten Dachfläche) | F26: % | G26: =M26 ->  | J26: =O26 ->  | M26: =M24/M$28% ->  | N26: =C24&C$28 -> [24][28] | O26: =O24/O$28% ->  | P26: =C24&C$28 -> [24][28] | Q26: =Q24/Q28% ->  | R26: =R24/R28% ->  | T26: =C24&C28 -> [24][28]
B27: [3.27] | C27: [27] | D27: =ROW() -> 27 | E27: Dachflächen
C28: [28] | D28: =ROW() -> 28 | E28: Solar genutzte Dachflächen | F28: ha | G28: =G24+G12 ->  | H28: =H24+H12 ->  | I28: =I24+I12 ->  | J28: =J24+J12 ->  | K28: =K24+K12 ->  | M28: =M24+M12 ->  | O28: =O24+O12 ->  | Q28: =Q12+Q24 ->  | S28: =S12+S24 ->  | T28: =C22&C24 -> [22][24] | U28: =Q24+Q12 ->  | V28: =S24+S12 -> 
B29: =Z$2&AA$2&D29&AB$2 -> [3.29] | C29: [29] | D29: =ROW() -> 29 | E29: (relativ zur Gebäude&Freifläche) | F29: % | G29: =M29 ->  | H29: =H28/'1.Ansicht'!#REF!% ->  | I29: =I28/'1.Ansicht'!#REF!% ->  | J29: =O29 ->  | K29: =K28/'1.Ansicht'!#REF!% ->  | M29: =M28/'1.Ansicht'!#REF!% ->  | N29: =C28&'1.Ansicht'!#REF! ->  | O29: =O28/'1.Ansicht'!#REF!% ->  | P29: =C28&'1.Ansicht'!#REF! ->  | Q29: =Q28/'1.Ansicht'!#REF!% ->  | S29: =S28/'1.Ansicht'!#REF!% ->  | T29: =C28&'1.Ansicht'!#REF! -> 
B30: =Z$2&AA$2&D30&AB$2 -> [3.30] | C30: [30] | D30: =ROW() -> 30
B31: =O$1&P$1&D31&Q$1 -> [3.31] | C31: =O$1&D31&Q$1 -> [31] | D31: =ROW() -> 31 | E31: Gemäß Optionsauswahl: | G31: ='5.Kenndaten'!H9&"."&'5.Kenndaten'!J10 -> L. | I31: ='5.Kenndaten'!F13 -> D.H2i
B32: =Z$2&AA$2&D32&AB$2 -> [3.32] | C32: [32] | D32: =ROW() -> 32 | G32: Status: | H32: Ziel: | I32: Status: | J32: Ziel:
B33: =Z$2&AA$2&D33&AB$2 -> [3.33] | C33: [33] | D33: =ROW() -> 33 | E33: Solarstrom vom Dach gem.Optionswahl: | F33: GWh/a | G33: =IF(I$6=1,H10,IF(I$6=2,I10,G10)) -> 12 | H33: =IF(K$6=1,K10,J10) ->  | I33: =Q10 ->  | J33: =S10 ->  | K33: =C10 -> [10]
B34: =O$1&P$1&D34&Q$1 -> [3.34] | C34: =O$1&D34&Q$1 -> [34] | D34: =ROW() -> 34 | E34: Solardachfläche rel. zu Geb.&Freifläche | F34: % | G34: =IF(I$6=1,H29,IF(I$6=2,I29,G29)) ->  | H34: =IF(K$6=1,K29,J29) ->  | I34: =Q29 ->  | J34: =S29 ->  | K34: =C29 -> [29]
B35: [3.35] | C35: [35] | D35: =ROW() -> 35 | E35: Installierte PV-Leistung | F35: MWp | G35: =IF(I$6=1,H18,IF(I$6=2,I18,G18)) -> 13.1 | H35: =IF(K$6=1,K18,J18) ->  | I35: =Q18 ->  | J35: =S18 ->  | K35: =C18 -> [18]
B36: =Z$2&AA$2&D36&AB$2 -> [3.36] | C36: =Z$2&D36&AB$2 -> [36] | D36: =ROW() -> 36
B37: =Z$2&AA$2&D37&AB$2 -> [3.37] | C37: =Z$2&D37&AB$2 -> [37] | D37: =ROW() -> 37 | E37: Deckungsgrad Bruttostrom Solidar | F37: % | H37: ='1.Ansicht'!#REF! ->  | K37: ='1.Ansicht'!#REF! -> 
B38: =Z$2&AA$2&D38&AB$2 -> [3.38] | C38: =Z$2&D38&AB$2 -> [38] | D38: =ROW() -> 38
B40: [3.40] | C40: [40] | D40: =ROW() -> 40 | E40: Nebenrechnung zur Abschätzung der Anteile Dach / Freifläche proportional zur Basisregion: | J40: https://geoportal.bayern.de/energieatlas-karten/?wicket-crypt=lp19lhhy5QM
B41: =Z$2&AA$2&D41&AB$2 -> [3.41] | C41: =Z$2&D41&AB$2 -> [41] | D41: =ROW() -> 41 | E41: Einspeisung PV insgesamt L+S | F41: GWh/a | H41: =310.5+31.3 -> 341.8 | Q41: =Q10+'4.SolarFrei'!Q9 -> 
B42: =Z$2&AA$2&D42&AB$2 -> [3.42] | C42: =Z$2&D42&AB$2 -> [42] | D42: =ROW() -> 42 | E42: Einspeisung PV ant. Dach Bayern | F42: % | H42: =Q42 ->  | Q42: =Q10/Q41% -> 
B43: =Z$2&AA$2&D43&AB$2 -> [3.43] | C43: =Z$2&D43&AB$2 -> [43] | D43: =ROW() -> 43 | E43: Einspeisung PV Dach L+S | F43: GWh/a | H43: =H41*H42% -> 
B44: =Z$2&AA$2&D44&AB$2 -> [3.44] | C44: =Z$2&D44&AB$2 -> [44] | D44: =ROW() -> 44 | E44: Einspeisung PV Dach Freiflächen | F44: GWh/a | H44: =H41-H43 -> 
B45: [3.45] | C45: [45] | D45: =ROW() -> 45 | E45: installierte PV-Leistung insgesamt L+S | F45: MWp | H45: =316+38.2 -> 354.2 | Q45: =Q18+'4.SolarFrei'!Q18 -> 
B46: [3.46] | C46: [46] | D46: =ROW() -> 46 | E46: Install. PV-Leistung ant. Dach Bayern | F46: % | H46: =Q46 ->  | Q46: =Q18/Q45% -> 
B47: [3.47] | C47: [47] | D47: =ROW() -> 47 | E47: Insatllierte PV-Leistung Dach L+S | F47: MWp | H47: =H45*H46% -> 
B48: [3.48] | C48: [48] | D48: =ROW() -> 48 | E48: Insatllierte PV-Leistung Freiflächen | F48: MWp | H48: =H45-H47 -> 

Sheet 4.SolarFrei (hidden)
D1: D | G1: 0 | H1: 1 | I1: 2 | J1: 0 | K1: 1 | O1: [ | P1: =BO1 -> 4. | Q1: ] | AB1: ="I_!" -> I_! | AC1: F | AD1: L | AE1: N | AF1: C | AH1: E | AI1: B | AJ1: K | AK1: =SUBSTITUTE(ADDRESS(1,COLUMN(),4),1,) -> AK | AL1: ="IL_!" -> IL_! | AM1: B | AN1: C | AO1: D | AP1: E | AQ1: F | AR1: G | AS1: H | AT1: [L.xlsx] | AU1: L. | AW1: [ | AX1: ] | AY1: =#REF! ->  | BA1: EB n.Quellen>> | BB1: Bilanz: | BC1: 0 | BK1: Vorlagen>>> | BL1: =BM1&BO1 ->  | BM1: =MID(BN1,1,1)&"." ->  | BN1: =MID(BQ1,FIND("[",BQ1)+1,FIND("xlsx",BQ1)-FIND("[",BQ1)-2) ->  | BO1: =LEFT(BP1,FIND(".",BP1)) -> 4. | BP1: =MID(BQ1,FIND("]",BQ1)+1,255) -> 4.SolarFrei | BQ1: =CELL("dateiname",BQ1) -> C:\Users\schmi\Documents\_wattweg2008\Veranstaltungen_2024\240828WorkshopRegionalplaner\Arbeitsordner200822m\[P000100-D.H2i-L..xlsm]4.SolarFrei | BX1: D | BY1: [ | BZ1: ] | CA1: [D.xlsx] | CB1: ="["&BN1&"xlsx]" ->  | CD1: =BM1&BO1&" - " ->  | CE1: ='0.Leitfaden'!#REF!&" "&'0.Leitfaden'!#REF!&" 100%EE ("&'0.Leitfaden'!#REF!&")" ->  | CH1: =Versionen!A1 -> 240826e | CI1: =TEXT(TODAY(),"tt.MM.jjjj") -> 27.08.2024 | CJ1: =TEXT(NOW(),"hh:mm") -> 13:04 | CK1: ="100prosimP ("&BN1&".xlsx, V."&CH1&") - "&CI1&" "&CJ1 ->  | CU1: 09.01
K2: =CK1 ->  | M2: • | T2: ?> | Z2: [ | AA2: 4. | AB2: ]
D3: =BM1&BP1&" - "&'1.Ansicht'!BF3 -> 
B4: =Z$2&AA$2&D4&AB$2 -> [4.4] | C4: =Z$2&D4&AB$2 -> [4] | D4: =ROW() -> 4
B5: [4.5] | C5: [5] | D5: =ROW() -> 5 | E5: Solarenergie von Freiflächen
B6: [4.6] | C6: [6] | D6: =ROW() -> 6 | F6: Optionswahl: | G6: Status: | I6: 1 | J6: Ziel: | K6: 1
B7: [4.7] | C7: [7] | D7: =ROW() -> 7 | F7: gewählt: | G7: =IF($I6=0,$M$2,"") ->  | H7: =IF($I6=H8,$M$2,"") -> • | I7: =IF($I6=I8,$M$2,"") ->  | J7: =IF($K6=0,$M$2,"") ->  | K7: =IF($K6=K8,$M$2,"") -> • | M7: ="Standard "&'5.Kenndaten'!H9&"."&'5.Kenndaten'!J10 -> Standard L. | Q7: ='5.Kenndaten'!F13 -> D.H2i
B8: [4.8] | C8: [8] | D8: =ROW() -> 8 | G8: 0 Standard | H8: 1 | I8: 2 | J8: 0 Standard | K8: 1 | M8: Status | O8: Ziel | Q8: Status | S8: Ziel
B9: [4.9] | C9: [9] | D9: =ROW() -> 9 | E9: Stromaufkommen Freiflächen-PV-Anlagen | F9: GWh/a | G9: =M9 ->  | H9: 0.001 | I9: =I11*I10/1000 ->  | J9: =O9 ->  | K9: =K11*K10/1000 ->  | M9: =Q9*'1.Ansicht'!#REF!/1000 ->  | N9: =C9&'1.Ansicht'!#REF! ->  | O9: =S9*'1.Ansicht'!#REF!/1000 ->  | P9: =C9&'1.Ansicht'!#REF! ->  | Q9: ='1.Ansicht'!#REF! ->  | R9: ='1.Ansicht'!#REF! ->  | S9: ='1.Ansicht'!#REF! ->  | T9: ='1.Ansicht'!#REF! -> 
B10: [4.10] | C10: [10] | D10: =ROW() -> 10 | E10: Flächenertrag Freiflächen-PV-Anlagen | F10: MWh/ha/a | H10: =H14/H16*10/H17 ->  | I10: =I14/I16*10/I17 ->  | J10: =J14/J16*10/J17 ->  | K10: =K14/K16*10/K17 ->  | M10: =Q10 ->  | N10: =C10 -> [10] | O10: =S10 ->  | P10: =C10 -> [10] | Q10: ='1.Ansicht'!#REF! ->  | R10: ='1.Ansicht'!#REF! ->  | S10: ='1.Ansicht'!#REF! ->  | T10: ='1.Ansicht'!#REF! -> 
B11: [4.11] | C11: [11] | D11: =ROW() -> 11 | E11: Beanspr. Landwirtsch.fläche (absolut) | F11: ha | H11: =H9/H10*1000 ->  | I11: =I18*I16*I17/10 ->  | J11: =O11 ->  | K11: =K12*'1.Ansicht'!#REF!% ->  | M11: =M9/M10*1000 ->  | N11: =C9&C10 -> [9][10] | O11: =O9/O10*1000 ->  | P11: =C9&C10 -> [9][10] | Q11: =Q9*1000/Q10 ->  | R11: ='[1]1. Flächen'!$I$34 -> 195708.0589 | S11: =S9*1000/S10 ->  | T11: =C9&C10 -> [9][10]
B12: [4.12] | C12: [12] | D12: =ROW() -> 12 | E12: (relativ zur Landwirtschaftsfläche) | F12: % | H12: =H11/'1.Ansicht'!#REF!% ->  | I12: =I11/'1.Ansicht'!#REF!% ->  | J12: =O12 ->  | K12: 0 | M12: =M11/'1.Ansicht'!#REF!% ->  | N12: =C11&'1.Ansicht'!#REF! ->  | O12: =O11/'1.Ansicht'!#REF!% ->  | P12: =C11&'1.Ansicht'!#REF! ->  | Q12: =Q11/'1.Ansicht'!#REF!% ->  | S12: =S11/'1.Ansicht'!#REF!% ->  | T12: =C11&'1.Ansicht'!#REF! -> 
B13: [4.13] | C13: [13] | D13: =ROW() -> 13 | E13: (relativ zur energet.genutzten Landw.fläche) | F13: % | H13: =H11/H$20% ->  | I13: =I11/I$20% ->  | J13: =O13 ->  | K13: =K11/K$20% ->  | M13: =M11/M$20% ->  | N13: =C11&C$20 -> [11][20] | O13: =O11/O$20% ->  | P13: =C11&C$20 -> [11][20] | Q13: =Q11/Q$20% ->  | S13: =S11/S$20% ->  | T13: =C11&C$20 -> [11][20]
B14: [4.14] | C14: [14] | D14: =ROW() -> 14 | E14: Vollbetriebsstunden (=Solarstrahlung) | F14: h/a | H14: =H9*1000/H18 -> 1000 | I14: =$G14*I15% ->  | J14: =O14 ->  | K14: =J14*K15% ->  | M14: =Q14 ->  | N14: =C14 -> [14] | O14: =S14 ->  | P14: =C14 -> [14] | Q14: ='1.Ansicht'!#REF! ->  | R14: ='1.Ansicht'!#REF! ->  | S14: ='1.Ansicht'!#REF! ->  | T14: ='1.Ansicht'!#REF! -> 
B15: [4.15] | C15: [15] | D15: =ROW() -> 15 | E15: (relativ zum Standard) | F15: % | G15: =G14/G14% ->  | H15: =H14/G14% ->  | I15: 100 | J15: =J14/J14% ->  | K15: =IF(I6=1,H15,IF(I6=2,I15,G15)) -> 
B16: [4.16] | C16: [16] | D16: =ROW() -> 16 | E16: Spezifischer Flächenbedarf PV-Module | F16: m2/kWp | G16: =M16 ->  | H16: =$G16 ->  | I16: =$G16 ->  | J16: =O16 ->  | K16: =J16 ->  | M16: =Q16 ->  | N16: =C16 -> [16] | O16: =S16 ->  | P16: =C16 -> [16] | Q16: ='3.SolarDach'!Q17 ->  | S16: ='3.SolarDach'!S17 ->  | T16: ='3.SolarDach'!B17 -> [3.17] | U16: ='[2]1.'!$A$155&", "&'[2]1.'!$A$159 -> D.1.155, D.1.159
B17: [4.17] | C17: [17] | D17: =ROW() -> 17 | E17: Flächenfaktor für Schattenabstände | F17: m2/kWp | G17: =M17 ->  | H17: =$G17 ->  | I17: =$G17 ->  | J17: =O17 ->  | K17: =J17 ->  | M17: =Q17 ->  | N17: =C17 -> [17] | O17: =S17 ->  | P17: =C17 -> [17] | Q17: =Q14/Q10*10/Q16 ->  | S17: =S14/S10*10/S16 ->  | T17: =C10&C14&15 -> [10][14]15 | U17: ='[2]1.'!$A$155&", "&'[2]1.'!$A$159 -> D.1.155, D.1.159
B18: [4.18] | C18: [18] | D18: =ROW() -> 18 | E18: Installierte PV-Leistung | F18: MWp | G18: =G9/G14*1000 ->  | H18: 0.001 | I18: =13.1*2308/11679 -> 2.588817536 | J18: =J9/J14*1000 ->  | K18: =K11/K16*10 ->  | M18: =M9/M14*1000 ->  | N18: =C9&C14 -> [9][14] | O18: =O9/O14*1000 ->  | P18: =C9&C14 -> [9][14] | Q18: ='1.Ansicht'!#REF! ->  | R18: ='1.Ansicht'!#REF! ->  | S18: ='1.Ansicht'!#REF! ->  | T18: ='1.Ansicht'!#REF! ->  | U18: =Q9/Q14*1000 ->  | V18: =S9/S14*1000 -> 
B19: [4.19] | C19: [19] | D19: =ROW() -> 19 | E19: Energetisch genutzte Landwirtschaftsflächen | W19: Bioenergie-Anbauflächen fehlen noch
C20: [20] | D20: =ROW() -> 20 | E20: PV-Freiflächenanlagen | F20: ha | G20: =G11 ->  | H20: =H11 ->  | J20: =J11 ->  | K20: =K11 ->  | M20: =M11 ->  | O20: =O11 ->  | Q20: ='1.Ansicht'!#REF! ->  | R20: ='1.Ansicht'!#REF! ->  | S20: ='1.Ansicht'!#REF! ->  | T20: ='1.Ansicht'!#REF! ->  | U20: =+Q11 ->  | V20: =#REF!+S11 -> 
B21: =Z$2&AA$2&D21&AB$2 -> [4.21] | C21: [21] | D21: =ROW() -> 21 | E21: (relativ zur Landwirtschaftsfläche) | F21: % | G21: =M21 ->  | H21: =H20/'1.Ansicht'!#REF!% ->  | I21: =I20/'1.Ansicht'!#REF!% ->  | J21: =O21 ->  | K21: =K20/'1.Ansicht'!#REF!% ->  | M21: =M20/'1.Ansicht'!#REF!% ->  | N21: =C20&'1.Ansicht'!#REF! ->  | O21: =O20/'1.Ansicht'!#REF!% ->  | P21: =C20&'1.Ansicht'!#REF! ->  | Q21: =Q20/'1.Ansicht'!#REF!% ->  | S21: =S20/'1.Ansicht'!#REF!% ->  | T21: =C20&'1.Ansicht'!#REF! -> 
B22: =Z$2&AA$2&D22&AB$2 -> [4.22] | C22: [22] | D22: =ROW() -> 22
D23: =ROW() -> 23 | E23: Gemäß Optionsauswahl:
B24: =Z$2&AA$2&D24&AB$2 -> [4.24] | C24: [24] | D24: =ROW() -> 24 | G24: Status: | H24: Ziel:
B25: =Z$2&AA$2&D25&AB$2 -> [4.25] | C25: [25] | D25: =ROW() -> 25 | E25: Solarstrom von Freifl. gem.Optionswahl: | F25: GWh/a | G25: =IF(I6=1,H9,IF(I6=2,I9,G9)) -> 0.001 | H25: =IF(K6=1,K9,J9) ->  | I25: =Q9 ->  | J25: =S9 ->  | K25: =C9 -> [9]
B26: =O$1&P$1&D26&Q$1 -> [4.26] | C26: =O$1&D26&Q$1 -> [26] | D26: =ROW() -> 26 | E26: Anlagenfläche rel. zu Landw.fläche | F26: % | G26: =IF(I$6=1,H12,IF(I$6=2,I12,G12)) ->  | H26: =IF(K$6=1,K12,J12) -> 0 | I26: =Q12 ->  | J26: =S12 ->  | K26: =C12 -> [12]
B27: [4.27] | C27: [27] | D27: =ROW() -> 27 | E27: Installierte PV-Leistung | F27: MWp | G27: =IF(I$6=1,H18,IF(I$6=2,I18,G18)) -> 0.001 | H27: =IF(K$6=1,K18,J18) ->  | I27: =Q18 ->  | J27: =S18 ->  | K27: =C18 -> [18]
B28: =Z$2&AA$2&D28&AB$2 -> [4.28] | C28: =Z$2&D28&AB$2 -> [28] | D28: =ROW() -> 28
B29: =Z$2&AA$2&D29&AB$2 -> [4.29] | C29: =Z$2&D29&AB$2 -> [29] | D29: =ROW() -> 29 | E29: Deckungsgrad Bruttostrom | F29: % | H29: ='1.Ansicht'!#REF! -> 

Sheet 5.Bioenergie (hidden)

Sheet 8.Konzept (2) (hidden)
A1: =ROW() -> 1 | B1: Was soll mit der Projektion gezeigt werden?
A2: =ROW() -> 2 | B2: Hans-Heinrich Schmidt-Kanefendt, 17.01.2021
A3: =ROW() -> 3
A4: =ROW() -> 4 | B4: Fragestellung
A5: =ROW() -> 5 | B5: Welche Veränderungen von Energieproduktion und Energieverbrauch wären in der Zielregion erforderlich, um den im Basisregion-Szenario erwarteten Beitrag zu einer Vollversorgung mit Erneuerbaren Energien solidarisch zu erbringen, und zwar unter Berücksichtigung der örtlichen Verhältnisse?
A6: =ROW() -> 6
A7: =ROW() -> 7 | B7: Fokus
A8: =ROW() -> 8 | B8: Die Betrachtung und die Gestaltungsmöglichkeit bleibt auf die Bereiche beschränkt, die für die örtlichen Verhältnisse besonders bedeutsam sind:
A9: =ROW() -> 9 | B9: A. Stromerzeugung
A10: =ROW() -> 10 | B10: - Windenergie
A11: =ROW() -> 11 | B11: - Solarstrom vom Dach bzw. aus dem Siedlungsbereich
A12: =ROW() -> 12 | B12: - Solarstrom von Freiflächen außerhalb des Siedlungsbereiches wie z. B. Landwirtschaftsflächen
A13: =ROW() -> 13 | B13: B. Gebäudewärme-Bereitstellung
A14: =ROW() -> 14 | B14: - Örtlicher Gebäudewärmebedarf
A15: =ROW() -> 15 | B15: - Wärmedämmung
A16: =ROW() -> 16 | B16: - Solarwärme vom Dach: Flächenproportional ohne Solidarausgleich bewertet, da nur direkt örtlich nutzbar
A17: =ROW() -> 17 | B17: - Abwärme aus Bioenergie-KWK: Einwohnerproportional mit Solidarausgleich, da Biobrennstoffe transportabel und Gebiete außerhalb Basisregion mit zu versorgen sind.
A18: =ROW() -> 18 | B18: - Abwärme aus Wasserstoff-KWK bei Rückverstromung zum Mangelausgleich bei Wind-/Solarstrommangel: Mit Solidarausgleich, da H2 transportabel.
A19: =ROW() -> 19 | B19: - Wärmepumpe: Ohne Solidarausgleich, da Wärme nur direkt örtlich nutzbar
A20: =ROW() -> 20 | B20: - Solarthermische Erdwärme-Regeneration
A21: =ROW() -> 21
A22: =ROW() -> 22
A23: =ROW() -> 23
A24: =ROW() -> 24
A25: =ROW() -> 25
A26: =ROW() -> 26
A27: =ROW() -> 27
A28: =ROW() -> 28
A29: =ROW() -> 29
A30: =ROW() -> 30
A31: =ROW() -> 31
A32: =ROW() -> 32
A33: =ROW() -> 33
A34: =ROW() -> 34
A35: =ROW() -> 35
A36: =ROW() -> 36
A37: =ROW() -> 37
A38: =ROW() -> 38
A39: =ROW() -> 39
A40: =ROW() -> 40
A41: =ROW() -> 41
A42: =ROW() -> 42
A43: =ROW() -> 43
A44: =ROW() -> 44
A45: =ROW() -> 45
A46: =ROW() -> 46
A47: =ROW() -> 47
A48: =ROW() -> 48
A49: =ROW() -> 49
A50: =ROW() -> 50
A51: =ROW() -> 51
A52: =ROW() -> 52
A53: =ROW() -> 53
A54: =ROW() -> 54
A55: =ROW() -> 55
A56: =ROW() -> 56
A57: =ROW() -> 57
A58: =ROW() -> 58
A59: =ROW() -> 59

Sheet 8.Konzept (hidden)
A1: =ROW() -> 1 | B1: Projektion Nds.-Szenario auf Teilregionen
A2: =ROW() -> 2 | B2: Hans-Heinrich Schmidt-Kanefendt, 05.04.2019
A3: =ROW() -> 3
A4: =ROW() -> 4 | B4: Fragestellung: Wie könnte die Teilregion XY mit ihren spezifischen Möglichkeiten und Grenzen ihren gerechten und solidarischen Beitrag für eine zukunftsfähige Energieversorgung Niedersachsens gemäß dem Szenario 100%EE leisten?
A5: =ROW() -> 5
A6: =ROW() -> 6 | B6: Was könnte als gerechter Beitrag gelten? Es wird in Summe genau soviel Energie von der eigenen Fläche gewonnen, wie zur Deckung des von den Einwohnern direkt und indirekt, innerhalb und außerhalb der eigenen Region verursachten Energiebedarfs erforderlich ist.
A7: =ROW() -> 7
A8: =ROW() -> 8 | B8: Wie ließe sich darüber hinaus eine solidarische Beitragsbemessung erreichen? Zur Ermittlung des Energiebedarfs wird die tatsächliche Einwohnerzahl durch die Personenzahl ersetzt, die bei durchschnittlicher Bevölkerungsdichte der Solidarregion Niedersachsen (gleich der Bevölkerungsdichte Deutschlands) auf der Regionsfläche leben würde.
A9: =ROW() -> 9 | B9: So wird berücksichtigt, dass dünner besiedelte Regionen mit unterdurchschnittlicher Bevölkerungsdichte über die Eigenbedarfsdeckung hinaus Energie gewinnen und diese in die dichter besiedelten Regionen exportieren, denen es an ausreichend Fläche zur eigenständigen Bedarfsdeckung mangelt.
A10: =ROW() -> 10
A11: =ROW() -> 11 | B11: Wie lassen sich die spezifischen Möglichkeiten und Grenzen der Teilregion für die Gewinnung Ernuerbarer Energien berücksichtigen? Im Idealfall lässt die räumliche Struktur der Teilregion genau die im Niedersachsenszenario angesetzte prozentuale Flächenbeanspruchung für Windparks, Solaranlagen, Forstwirtschaft und Energiepflanzenanbau zu. In der Regel sind die Teilflächen aber so an die räumlichen Gegebenheiten anzupassen, dass die Energiemengen an Strom, Brennstoffen und Kraftstoffen in Summe dem verursachten Energieverbrauch entsprechen.
A12: =ROW() -> 12
A13: =ROW() -> 13 | B13: Bemessung der Kraftstoffgewinnung: Aus den verschiedenen Quellen für Kraftstoffgewinnung muss in Summe der von den Energieverbrauchern der Solidar-Teilregion verursachte Kraftstoffbedarf gedeckt werden.
A14: =ROW() -> 14 | B14: - Die gewinnbare Kraftstoffmenge aus Energiepflanzenanbau resultiert aus dem Wert im Gutachten proportional zum Verhältnis der Landwirtschaftsflächen.
A15: =ROW() -> 15 | B15: - Die gewinnbare Kraftstoffmenge aus Wertstoff- und Abfallverwertung resultiert aus dem Wert im Gutachten proportional zum Verhältnis der Energieverbraucherzahlen.
A16: =ROW() -> 16 | B16: - Die verbleibende Deckungslücke muss mit synthetischem Kraftstoff aus Wind-/Solarstrom (E-Kraftstoff) geschlossen werden. Der dafür erforderliche Stromeinsatz wird dem Strombedarf zugerechnet.
A17: =ROW() -> 17
A18: =ROW() -> 18 | B18: Bemessung der Brennstoffgewinnung:
A19: =ROW() -> 19 | B19: - Die gewinnbare Brennstoffmenge aus Frisch- und Abfallholz resultiert aus dem Wert im Gutachten proportional zum Verhältnis der Forstflächen.
A20: =ROW() -> 20 | B20: - Die gewinnbare Brennstoffmenge aus Stroh resultiert aus dem Wert im Gutachten proportional zum Verhältnis der Getreideanbauflächen bzw., wenn nicht verfügbar, dem Verhältnis der Landwirtschaftsflächen.
A21: =ROW() -> 21 | B21: - Die gewinnbare Brennstoffmenge aus Energiepflanzenanbau resultiert aus dem Wert im Gutachten proportional zum Verhältnis der Landwirtschaftsflächen der Anbaufläche.
A22: =ROW() -> 22 | B22: - Die gewinnbare Brennstoffmenge aus Wertstoff- und Abfallverwertung resultiert aus dem Wert im Gutachten proportional zum Verhältnis der Energieverbraucherzahlen.
A23: =ROW() -> 23
A24: =ROW() -> 24 | B24: Bemessung der Niedertemperatur-Wärmegewinnung: Im Unterschied zu Strom, Brennstoffen und Kraftstoffen ist der Transport von Niedertemperatur-Wärme (<100°C Vorlauf, 45°C Rücklauf) mit erheblichen Transportverlusten verbunden und daher über die Teilregion hinaus in der Regel nicht sinnvoll.
A25: =ROW() -> 25 | B25: Daraus ergibt sich, dass nicht das Erzeugungspotenzial, sondern der tatsächliche Bedarf an Niedertemperatur-Wärme in der Teilregion maßgeblich für eine sinnvolle Auslegung ist.
A26: =ROW() -> 26 | B26: Der tatsächliche Bedarf an Niedertemperatur-Wärme resultiert aus dem Wert im Gutachten proportional zum Verhältnis von tatsächlicher Einwohnerzahl der Teilregion zur Energieverbraucherzahl der Solidarregion Niedersachsen.
A27: =ROW() -> 27 | B27: Die prozentualen Beiträge der einzelnen Quellen zur Gewinnung der Niedertemperatur-Wärme wie Solarthermie, KWK-Abwärme und Wärmepumpen können im ersten Ansatz aus dem Gutachten übernommen werden.
A28: =ROW() -> 28 | B28: - Die Beanspruchung von Dachfläche für Solarthermie resultiert aus der bereitgestellten Energiemenge und dem Energieertrag pro m2.
A29: =ROW() -> 29 | B29: - Der für Betrieb der Wärmepumpen erforderliche Stromeinsatz resultiert dagegen aus dem Wert des Gutachtens proportional zum Verhältnis der Energieverbraucherzahlen.
A30: =ROW() -> 30
A31: =ROW() -> 31 | B31: Bemessung der Strombedarfs: Aus den verschiedenen Quellen für Stromgewinnung muss in Summe der von den Energieverbrauchern der Solidar-Teilregion verursachte Strombedarf gedeckt werden.
A32: =ROW() -> 32 | B32: Der Strombedarf setzt sich zusammen aus dem Strom-Endverbrauch für die elektrisch erbrachten Verkehrsleistungen, elektrische Prozesswärme, elektrische Gebäudewärme, Wärmepumpen und der klassischen Stromanwendungen für Kraft, Licht, Information-/Kommunikation, und Kälte (KLIK).
A33: =ROW() -> 33 | B33: Dazu kommen die zusätzlichen Strombedarfe zum Ausgleich der Stromspeicherverluste, zum Ausgleich der Stromnetzverluste, für die Kraftstoffsynthese und die Synthese von Grundstoffen für die Kunststoffproduktion.
A34: =ROW() -> 34 | B34: ="- Der für die Verkehrsleistung der Teilregion erforderliche Stromeinsatz"&" resultiert aus den Gutachten-Werten für Elektrotraktion Personenverkehr und Güterverkehr proportional zum Verhältnis der Energieverbraucherzahlen plus dem Stromeinsatz zur Synthese von E-Kraftstoffen ["&A16&"], der sich aus der Deckungslücke der Biokraftstoffe ergibt." -> - Der für die Verkehrsleistung der Teilregion erforderliche Stromeinsatz resultiert aus den Gutachten-Werten für Elektrotraktion Personenverkehr und Güterverkehr proportional zum Verhältnis der Energieverbraucherzahlen plus dem Stromeinsatz zur Synthese von E-Kraftstoffen [16], der sich aus der Deckungslücke der Biokraftstoffe ergibt.
A35: =ROW() -> 35 | B35: - Der Stromeinsatz für elektrische Prozesswärme resultiert aus dem Gutachten-Wert proportional zum Verhältnis der Energieverbraucherzahlen.
A36: =ROW() -> 36 | B36: ="- Der Stromeinsatz für Gebäudewärme mit direkter Stromheizung (z. B. Heizlüfter, Heizstrahler, Durchlauferhitzer, Nachtspeicheröfen) und mit Wärmepumpen ["&A29&"] resultiert aus den Gutachten-Werten proportional zum Verhältnis der Energieverbraucherzahlen." -> - Der Stromeinsatz für Gebäudewärme mit direkter Stromheizung (z. B. Heizlüfter, Heizstrahler, Durchlauferhitzer, Nachtspeicheröfen) und mit Wärmepumpen [29] resultiert aus den Gutachten-Werten proportional zum Verhältnis der Energieverbraucherzahlen.
A37: =ROW() -> 37 | B37: - Der Stromeinsatz für KLIK resultiert aus resultiert aus dem Gutachten-Wert proportional zum Verhältnis der Energieverbraucherzahlen.
A38: =ROW() -> 38 | B38: - Die zusätzlichen Strombedarfe zum Ausgleich der Stromspeicher- und Stromnetzverluste, und für die Grundstoffsynthese resultieren aus den Gutachten-Werten proportional zum Verhältnis der Energieverbraucherzahlen.
A39: =ROW() -> 39
A40: =ROW() -> 40 | B40: Bemessung der Stromgewinnung:
A41: =ROW() -> 41 | B41: ="- Der Beitrag von verstromter Biomasse aus der Teilregion resultiert aus der Summe der jeweils verstromten Brennstoffanteile von Holz, Stroh, Energiepflanzenanbau und verbrennbarem Abfall ["&A19&"] - ["&A22&"]. " -> - Der Beitrag von verstromter Biomasse aus der Teilregion resultiert aus der Summe der jeweils verstromten Brennstoffanteile von Holz, Stroh, Energiepflanzenanbau und verbrennbarem Abfall [19] - [22].
A42: =ROW() -> 42 | B42: ="- Der Beitrag Solarstrom vom Dach resultiert aus dem Anteil Solarflächen an den Gebäude-&Freiflächen im Gutachten, den Gebäude-&Freiflächen in der Teilregion abzüglich der Solarthermieflächen ["&A28&"] und dem Energieertrag pro ha." -> - Der Beitrag Solarstrom vom Dach resultiert aus dem Anteil Solarflächen an den Gebäude-&Freiflächen im Gutachten, den Gebäude-&Freiflächen in der Teilregion abzüglich der Solarthermieflächen [28] und dem Energieertrag pro ha.
A43: =ROW() -> 43 | B43: - Der Beitrag aus Wasserkraft ist in den meisten Teilregionen marginal, kann aber angesetzt werden, falls Status und Potenzial bekannt sind.
A44: =ROW() -> 44 | B44: - Der Beitrag aus offshore-Windenergie resultiert aus dem Gutachten-Wert proportional zum Verhältnis der Energieverbraucherzahlen.
A45: =ROW() -> 45 | B45: ="Die entscheidenden Beiträge zur Brutto-Stromerzeugung kommen im Gutachten aus onshore-Windstrom (44%) und aus Solarstrom (53%), vom Dach (24%) und von Freiflächen (30%). " -> Die entscheidenden Beiträge zur Brutto-Stromerzeugung kommen im Gutachten aus onshore-Windstrom (44%) und aus Solarstrom (53%), vom Dach (24%) und von Freiflächen (30%). | C45: 215045 | D45: 114703 | E45: =D45/C45% -> 53.33906857 | F45: 95140 | G45: =F45/C45% -> 44.24190286 | H45: 51136 | I45: =H45/$C45% -> 23.779209 | J45: 63567 | K45: =J45/$C45% -> 29.55985956
A46: =ROW() -> 46 | B46: - In der Teilregion sind die Möglichkeiten für onshore-Windparkflächen durch die speziellen räumlichen Gegebenheiten bestimmt. Im Landesmittel sind im Gutachten Windparks auf 2,1% der Bodenfläche vorgesehen. Für die Teilregion ist ein als vertretbar erachteter Ansatz zu treffen.
A47: =ROW() -> 47 | B47: ="- Die schließlich durch Solarfreiflächen zu schließende Deckungslücke resultiert aus dem Gesamtstrombedarf ["&A34&"] - ["&A38&"] abzüglich der Beiträge von verstromter Biomasse ["&A41&"], Solarstrom vom Dach ["&A42&"], Wasserkraft ["&A43&"], offshore-Windenergie ["&A44&"] und onshore-Windenergie ["&A46&"]. Die damit belegte Landwirtschaftsfläche resultiert aus der erzeugten Strommenge und dem Ertrag pro ha im Verhältnis zur Landwirtschaftsfläche." -> - Die schließlich durch Solarfreiflächen zu schließende Deckungslücke resultiert aus dem Gesamtstrombedarf [34] - [38] abzüglich der Beiträge von verstromter Biomasse [41], Solarstrom vom Dach [42], Wasserkraft [43], offshore-Windenergie [44] und onshore-Windenergie [46]. Die damit belegte Landwirtschaftsfläche resultiert aus der erzeugten Strommenge und dem Ertrag pro ha im Verhältnis zur Landwirtschaftsfläche.
A48: =ROW() -> 48
A49: =ROW() -> 49
A50: =ROW() -> 50
A51: =ROW() -> 51
A52: =ROW() -> 52
A53: =ROW() -> 53
A54: =ROW() -> 54
A55: =ROW() -> 55

Sheet 5.Kenndaten
B3: [ | D3: =BL3 -> 5. | E3: ] | L3: 8. | M3: 8.Hilfe'!E | BH3: Vorlagen>>> | BI3: =BJ3&BL3 -> P.5. | BJ3: =MID(BK3,1,1)&"." -> P. | BK3: =MID(BN3,FIND("[",BN3)+1,FIND("xlsm",BN3)-FIND("[",BN3)-2) -> P000100-D.H2i-L. | BL3: =LEFT(BM3,FIND(".",BM3)) -> 5. | BM3: =MID(BN3,FIND("]",BN3)+1,255) -> 5.Kenndaten | BN3: =CELL("dateiname",BN3) -> C:\Users\schmi\Documents\_wattweg2008\Veranstaltungen_2024\240828WorkshopRegionalplaner\Arbeitsordner200822m\[P000100-D.H2i-L..xlsm]5.Kenndaten | BU3: D | BV3: [ | BW3: ] | BX3: [D.xlsx] | BY3: ="("&BK3&")" -> (P000100-D.H2i-L.) | CA3: =BJ3&BL3&" - " -> P.5. - | CB3: ='1.Ansicht'!BF3 -> Energieszenario 'Landkreis 100% EE' (P000100-D.H2i-L.) | CE3: =Versionen!A1 -> 240826e | CF3: =TEXT(TODAY(),"tt.MM.jjjj") -> 27.08.2024 | CG3: =TEXT(NOW(),"hh:mm") -> 13:04 | CH3: ="100prosim.P ("&BK3&".xlsx, V."&CE3&") - "&CF3&" "&CG3 -> 100prosim.P (P000100-D.H2i-L..xlsx, V.240826e) - 27.08.2024 13:04 | CR3: 09.01
K4: =CH3 -> 100prosim.P (P000100-D.H2i-L..xlsx, V.240826e) - 27.08.2024 13:04
D5: =BJ3&BM3&" - "&CB3 -> P.5.Kenndaten - Energieszenario 'Landkreis 100% EE' (P000100-D.H2i-L.) | L5: Hilfe
B6: =B$3&D$3&D6&E$3 -> [5.6] | C6: =B$3&D6&E$3 -> [6] | D6: =ROW() -> 6 | R6: =F9&" "&F10&" ("&H11&J11&")" -> Landkreis (000100)
B7: [5.7] | C7: [7] | D7: =ROW() -> 7 | E7: Expresss-Setup Teil 1: Kenndaten definieren. | L7: =IF(M7=0,"",HYPERLINK("["&F$18&".xlsm]'"&M$3&M7,"["&L$3&M7&"]")) -> [8.44] | M7: ='8.Hilfe'!D44 -> 44
B8: [5.8] | C8: [8] | D8: =ROW() -> 8 | R8: Gemeinde | S8: Stadt | T8: Landkreis | U8: Stadt+Landkreis | V8: Region | W8: Bundesland | X8: Deutschland | Z8: OK=0
B9: [5.9] | C9: [9] | D9: =ROW() -> 9 | E9: Art der Region (auswählen): | F9: Landkreis | G9: Kürzel: | H9: =IF(F9=U8,"SL",LEFT(F9,1)) -> L | K9: =IF(Z9>0," X","") ->  | L9: =IF(M9=0,"",HYPERLINK("["&F$18&".xlsm]'"&M$3&M9,"["&L$3&M9&"]")) -> [8.45] | M9: ='8.Hilfe'!D45 -> 45 | Z9: =IF(F9="",1,0) -> 0
B10: [5.10] | C10: [10] | D10: =ROW() -> 10 | E10: Regionsname: | I10: Kürzel: | K10: =IF(Z10>0," X","") -> X | L10: =IF(M10=0,"",HYPERLINK("["&F$18&".xlsm]'"&M$3&M10,"["&L$3&M10&"]")) -> [8.46] | M10: ='8.Hilfe'!D46 -> 46 | Z10: =IF(OR(F10="",J10=""),1,0) -> 1
B11: [5.11] | C11: [11] | D11: =ROW() -> 11 | E11: Versions-Datum (strg-'.'): | G11: Versions-Nr.: | H11: =TEXT(F11,"JJMMTT") -> 000100 | I11: Variante: | K11: X | L11: =IF(M11=0,"",HYPERLINK("["&F$18&".xlsm]'"&M$3&M11,"["&L$3&M11&"]")) -> [8.47] | M11: ='8.Hilfe'!D47 -> 47 | R11: .a | S11: .b | T11: .c | U11: .d | V11: .e | Z11: =IF(F11="",1,0) -> 1
B12: [5.12] | C12: [12] | D12: =ROW() -> 12 | E12: Datenerhebung - Name: | K12: X | L12: [8.48] | M12: ='8.Hilfe'!D48 -> 48 | Z12: 1
B13: [5.13] | C13: [13] | D13: =ROW() -> 13 | E13: Basis-Region: | F13: D.H2i | L13: =IF(M13=0,"",HYPERLINK("["&F$18&".xlsm]'"&M$3&M13,"["&L$3&M13&"]")) -> [8.49] | M13: ='8.Hilfe'!D49 -> 49 | Z13: 0
B14: =B$3&D$3&D14&E$3 -> [5.14] | C14: =B$3&D14&E$3 -> [14] | D14: =ROW() -> 14
B15: [5.15] | C15: [15] | D15: =ROW() -> 15 | E15: =IF(Z17=0,"","Nach Definition der Kenndaten unter diesem Dateinamen speichern:") -> 
B16: [5.16] | C16: [16] | D16: =ROW() -> 16 | E16: Szenario-Kennung: | F16: ="P"&H11&J11&"-"&F13&"-"&H9&"."&J10 -> P000100-D.H2i-L. | L16: =IF(M16=0,"",HYPERLINK("["&F$18&".xlsm]'"&M$3&M16,"["&L$3&M16&"]")) -> [8.50] | M16: ='8.Hilfe'!D50 -> 50 | Z16: =IF(SzenKenn=DateinameAktuell,0,1) -> 0
B17: [5.17] | C17: [17] | D17: =ROW() -> 17 | K17: =IF(Z17>0," X","") ->  | L17: =IF(M17=0,"",HYPERLINK("["&F$18&".xlsm]'"&M$3&M17,"["&L$3&M17&"]")) -> [8.51] | M17: ='8.Hilfe'!D51 -> 51 | Z17: =IF(AND(SUM(Z9:Z13)=0,Z16>0),1,0) -> 0
B18: [5.18] | C18: [18] | D18: =ROW() -> 18 | E18: Dateiname aktuell: | F18: ='1.Ansicht'!AO3 -> P000100-D.H2i-L. | L18: =IF(M18=0,"",HYPERLINK("["&F$18&".xlsm]'"&M$3&M18,"["&L$3&M18&"]")) -> [8.52] | M18: ='8.Hilfe'!D52 -> 52
B19: [5.19] | C19: [19] | D19: =ROW() -> 19
B20: [5.20] | C20: [20] | D20: =ROW() -> 20 | J20: =IF(Z20=0,"...weiter mit Express-Setup Teil 2: ","") ->  | K20: =IF(Z20>0,"",HYPERLINK("["&'0.Leitfaden'!N$2&".xlsm]'"&MID('0.Leitfaden'!P18,3,20),"→["&'0.Leitfaden'!Q18&"."&'0.Leitfaden'!S18&"]")) ->  | Z20: =SUM(Z9:Z17) -> 3

Sheet 51.Basisszenario
A1: =IF(gekoppelt=0,"Abbild vom Basisszenario, das diesem Szenario für "&'5.Kenndaten'!F9&" "&'5.Kenndaten'!F10&" zugrunde liegt:","") ->  | L1: =IF(gekoppelt=1," ACHTUNG! Das hier gezeigte fixe Abbild ist u. U. nicht aktuell, bitte wechseln nach 100prosim >>>","") -> ACHTUNG! Das hier gezeigte fixe Abbild ist u. U. nicht aktuell, bitte wechseln nach 100prosim >>> | N1: =IF(gekoppelt=1,HYPERLINK("[AH.xlsm]'Cockpit1'!$E$3","→[AH.C1]"),"") -> →[AH.C1] | Q1: =IF(IFERROR('2.Kalkulation'!AC10,0)>0,1,0) -> 1 | R1: =IF(IFERROR('2.Kalkulation'!AC10,0)>0,1,0) -> 1
A2: =ROW() -> 2
B3: qqq | BH3: Vorlagen>>> | BI3: =BJ3&BL3 -> P.51. | BJ3: =MID(BK3,1,1)&"." -> P. | BK3: =MID(BN3,FIND("[",BN3)+1,FIND("xlsm",BN3)-FIND("[",BN3)-2) -> P000100-D.H2i-L. | BL3: =LEFT(BM3,FIND(".",BM3)) -> 51. | BM3: =MID(BN3,FIND("]",BN3)+1,255) -> 51.Basisszenario | BN3: =CELL("dateiname",BN3) -> C:\Users\schmi\Documents\_wattweg2008\Veranstaltungen_2024\240828WorkshopRegionalplaner\Arbeitsordner200822m\[P000100-D.H2i-L..xlsm]51.Basisszenario
B5: Variation des Basis-Szenarios (200822) in Anlehnung an KN45c (nach Agora-Studie):
B6: 1. Wasserstoff komplett importiert (mit Ausnahme Wasserstoff zum Wind/Solarstrom-Fluktuationsausgleich)
B7: 2. Windparkfläche von 2,1 auf 2,0% der Bodenfläche verringert
B8: 3. Solar-Dachfläche von 7 auf 4,0 % der Siedlungsfläche verringert
B9: 4. Solar-Freifläche von 0,9 auf 1,4% erhöht für Bilanzausgleich

Sheet 6.Standarddaten
M2: =DateinameAktuell -> P000100-D.H2i-L.
B3: [ | D3: =BQ3 -> 6. | H3: ] | M3: 8. | N3: 8.Hilfe'!E | BM3: Vorlagen>>> | BN3: =BO3&BQ3 -> P.6. | BO3: =MID(BP3,1,1)&"." -> P. | BP3: =MID(BS3,FIND("[",BS3)+1,FIND("xlsm",BS3)-FIND("[",BS3)-2) -> P000100-D.H2i-L. | BQ3: =LEFT(BR3,FIND(".",BR3)) -> 6. | BR3: =MID(BS3,FIND("]",BS3)+1,255) -> 6.Standarddaten | BS3: =CELL("dateiname",BS3) -> C:\Users\schmi\Documents\_wattweg2008\Veranstaltungen_2024\240828WorkshopRegionalplaner\Arbeitsordner200822m\[P000100-D.H2i-L..xlsm]6.Standarddaten | BZ3: D | CA3: [ | CB3: ] | CC3: [D.xlsx] | CD3: ="("&BP3&")" -> (P000100-D.H2i-L.) | CF3: =BO3&BQ3&" - " -> P.6. - | CG3: ='1.Ansicht'!BF3 -> Energieszenario 'Landkreis 100% EE' (P000100-D.H2i-L.) | CJ3: =Versionen!A1 -> 240826e | CK3: =TEXT(TODAY(),"tt.MM.jjjj") -> 27.08.2024 | CL3: =TEXT(NOW(),"hh:mm") -> 13:04 | CM3: ="100prosim.P ("&BP3&".xlsx, V."&CJ3&") - "&CK3&" "&CL3 -> 100prosim.P (P000100-D.H2i-L..xlsx, V.240826e) - 27.08.2024 13:04 | CW3: 09.01
L4: =CM3 -> 100prosim.P (P000100-D.H2i-L..xlsx, V.240826e) - 27.08.2024 13:04 | N4: in Betrieb | Q4: Hilfsspalte zum Zeilenumbruch bei den Quellen
D5: =BO3&BR3&" - "&CG3 -> P.6.Standarddaten - Energieszenario 'Landkreis 100% EE' (P000100-D.H2i-L.)
B6: =B$3&D$3&D6&H$3 -> [6.6] | C6: =B$3&D6&H$3 -> [6] | D6: =ROW() -> 6 | M6: Hilfe
B7: [6.7] | C7: =B$3&D7&H$3 -> [7] | D7: =ROW() -> 7 | E7: ='8.Hilfe'!E41 -> Express-Setup | M7: =IF(N7=0,"",HYPERLINK("["&M$2&".xlsm]'"&N$3&N7,"["&M$3&N7&"]")) -> [8.41] | N7: ='8.Hilfe'!D41 -> 41
B8: [6.8] | C8: =B$3&D8&H$3 -> [8] | D8: =ROW() -> 8 | E8: Express-Setup Teil 2: Strukturdaten (Bevölkerung, Flächen) | M8: =IF(N8=0,"",HYPERLINK("["&M$2&".xlsm]'"&N$3&N8,"["&M$3&N8&"]")) -> [8.60] | N8: ='8.Hilfe'!D60 -> 60 | O8: =SUM(O13:O31) -> 6 | Q8: =H8 -> 0
B9: [6.9] | C9: =B$3&D9&H$3 -> [9] | D9: =ROW() -> 9
B10: [6.10] | C10: =B$3&D10&H$3 -> [10] | D10: =ROW() -> 10 | E10: Datenquelle: Statistische Ämter des Bundes und der Länder. Regionaldatenbank Deutschland. | M10: =IF(N10=0,"",HYPERLINK("["&M$2&".xlsm]'"&N$3&N10,"["&M$3&N10&"]")) -> [8.61] | N10: ='8.Hilfe'!D61 -> 61 | Q10: =E10 -> Datenquelle: Statistische Ämter des Bundes und der Länder. Regionaldatenbank Deutschland.
B11: [6.11] | C11: =B$3&D11&H$3 -> [11] | D11: =ROW() -> 11 | E11: https://www.regionalstatistik.de/genesis/online | M11: =IF(N11=0,"",HYPERLINK("["&M$2&".xlsm]'"&N$3&N11,"["&M$3&N11&"]")) -> [8.62] | N11: ='8.Hilfe'!D62 -> 62 | Q11: =E11 -> https://www.regionalstatistik.de/genesis/online
B12: [6.12] | C12: [12] | D12: =ROW() -> 12
B13: [6.13] | C13: =B$3&D13&H$3 -> [13] | D13: =ROW() -> 13 | E13: ="Bevölkerung, Code 12411-01-01-"&IF('5.Kenndaten'!F$9='5.Kenndaten'!R$8,"5","4") -> Bevölkerung, Code 12411-01-01-4 | J13: Stichtag: | L13: =IF(O13>0," X","") -> X | M13: =IF(N13=0,"",HYPERLINK("["&M$2&".xlsm]'"&N$3&N13,"["&M$3&N13&"]")) -> [8.63] | N13: ='8.Hilfe'!D63 -> 63 | O13: =IF(K13>0,0,1) -> 1
B14: [6.14] | C14: =B$3&D14&H$3 -> [14] | D14: =ROW() -> 14 | F14: ="Bevölkerung "&'5.Kenndaten'!F$9&" "&'5.Kenndaten'!F$10 -> Bevölkerung Landkreis | J14: Pers. | K14: =IF(P$14=2,K15+K17,K15) -> 0 | M14: =IF(N14=0,"",HYPERLINK("["&M$2&".xlsm]'"&N$3&N14,"["&M$3&N14&"]")) -> [8.65] | N14: ='8.Hilfe'!D65 -> 65 | P14: =IF('5.Kenndaten'!F$9='5.Kenndaten'!U$8,2,1) -> 1
B15: [6.15] | C15: [15] | D15: =ROW() -> 15 | I15: =IF(P$14=2,"Anteil kreisfreie Stadt ","")&"Eingabe: " -> Eingabe: | L15: =IF(O15>0," X","") -> X | M15: =IF(N15=0,"",HYPERLINK("["&M$2&".xlsm]'"&N$3&N15,"["&M$3&N15&"]")) -> [8.66] | N15: ='8.Hilfe'!D66 -> 66 | O15: =IF(K15>0,0,1) -> 1
B16: [6.16] | C16: [16] | D16: =ROW() -> 16 | M16: =IF(N16=0,"",HYPERLINK("["&M$2&".xlsm]'"&N$3&N16,"["&M$3&N16&"]")) -> [8.67] | N16: ='8.Hilfe'!D67 -> 67
B17: [6.17] | C17: [17] | D17: =ROW() -> 17 | I17: =IF(P$14>1,"Anteil Landkreis ","")&"Eingabe: " -> Eingabe: | K17: 236674 | M17: =IF(N17=0,"",HYPERLINK("["&M$2&".xlsm]'"&N$3&N17,"["&M$3&N17&"]")) -> [8.70] | N17: ='8.Hilfe'!D70 -> 70
B18: [6.18] | C18: [18] | D18: =ROW() -> 18
B19: [6.19] | C19: [19] | D19: =ROW() -> 19 | E19: ="Bodenfläche nach Art der Nutzung, Code 33111-01-02-"&IF('5.Kenndaten'!F$9='5.Kenndaten'!R$8,"5","4") -> Bodenfläche nach Art der Nutzung, Code 33111-01-02-4 | J19: Stichtag: | L19: =IF(O19>0," X","") -> X | M19: =IF(N19=0,"",HYPERLINK("["&M$2&".xlsm]'"&N$3&N19,"["&M$3&N19&"]")) -> [8.71] | N19: ='8.Hilfe'!D71 -> 71 | O19: =IF(K19>0,0,1) -> 1
B20: [6.20] | C20: [20] | D20: =ROW() -> 20 | F20: ="Bodenfläche gesamt "&'5.Kenndaten'!F$9&" "&'5.Kenndaten'!F$10 -> Bodenfläche gesamt Landkreis | J20: ha | K20: =IF(P$14=2,K21+K23,K21) -> 0 | M20: =IF(N20=0,"",HYPERLINK("["&M$2&".xlsm]'"&N$3&N20,"["&M$3&N20&"]")) -> [8.73] | N20: ='8.Hilfe'!D73 -> 73
B21: [6.21] | C21: [21] | D21: =ROW() -> 21 | I21: =IF(P$14=2,"Anteil kreisfreie Stadt ","")&"Eingabe: " -> Eingabe: | L21: =IF(O21>0," X","") -> X | M21: =IF(N21=0,"",HYPERLINK("["&M$2&".xlsm]'"&N$3&N21,"["&M$3&N21&"]")) -> [8.74] | N21: ='8.Hilfe'!D74 -> 74 | O21: =IF(K21>0,0,1) -> 1
B22: [6.22] | C22: [22] | D22: =ROW() -> 22 | M22: =IF(N22=0,"",HYPERLINK("["&M$2&".xlsm]'"&N$3&N22,"["&M$3&N22&"]")) -> [8.75] | N22: ='8.Hilfe'!D75 -> 75
B23: [6.23] | C23: [23] | D23: =ROW() -> 23 | I23: =IF(P$14>1,"Anteil Landkreis ","")&"Eingabe: " -> Eingabe: | K23: 129331 | M23: =IF(N23=0,"",HYPERLINK("["&M$2&".xlsm]'"&N$3&N23,"["&M$3&N23&"]")) -> [8.76] | N23: ='8.Hilfe'!D76 -> 76
B24: [6.24] | C24: [24] | D24: =ROW() -> 24
B25: [6.25] | C25: [25] | D25: =ROW() -> 25 | G25: ="… davon Siedlung" -> … davon Siedlung | J25: ha | K25: =IF(P$14=2,K26+K28,K26) -> 0 | M25: =IF(N25=0,"",HYPERLINK("["&M$2&".xlsm]'"&N$3&N25,"["&M$3&N25&"]")) -> [8.77] | N25: ='8.Hilfe'!D77 -> 77
B26: [6.26] | C26: [26] | D26: =ROW() -> 26 | I26: =IF(P$14=2,"Anteil kreisfreie Stadt ","")&"Eingabe: " -> Eingabe: | L26: =IF(O26>0," X","") -> X | M26: =IF(N26=0,"",HYPERLINK("["&M$2&".xlsm]'"&N$3&N26,"["&M$3&N26&"]")) -> [8.78] | N26: ='8.Hilfe'!D78 -> 78 | O26: =IF(K26>0,0,1) -> 1
B27: [6.27] | C27: [27] | D27: =ROW() -> 27 | M27: =IF(N27=0,"",HYPERLINK("["&M$2&".xlsm]'"&N$3&N27,"["&M$3&N27&"]")) -> [8.85] | N27: ='8.Hilfe'!D85 -> 85
B28: [6.28] | C28: [28] | D28: =ROW() -> 28 | I28: =IF(P$14>1,"Anteil Landkreis ","")&"Eingabe: " -> Eingabe: | M28: =IF(N28=0,"",HYPERLINK("["&M$2&".xlsm]'"&N$3&N28,"["&M$3&N28&"]")) -> [8.79] | N28: ='8.Hilfe'!D79 -> 79
B29: [6.29] | C29: [29] | D29: =ROW() -> 29
B30: [6.30] | C30: [30] | D30: =ROW() -> 30 | G30: ="… davon Landwirtschaft" -> … davon Landwirtschaft | J30: ha | K30: =IF(P$14=2,K31+K33,K31) -> 0 | M30: =IF(N30=0,"",HYPERLINK("["&M$2&".xlsm]'"&N$3&N30,"["&M$3&N30&"]")) -> [8.80] | N30: ='8.Hilfe'!D80 -> 80
B31: [6.31] | C31: [31] | D31: =ROW() -> 31 | I31: =IF(P$14=2,"Anteil kreisfreie Stadt ","")&"Eingabe: " -> Eingabe: | L31: =IF(O31>0," X","") -> X | M31: =IF(N31=0,"",HYPERLINK("["&M$2&".xlsm]'"&N$3&N31,"["&M$3&N31&"]")) -> [8.81] | N31: ='8.Hilfe'!D81 -> 81 | O31: =IF(K31>0,0,1) -> 1
B32: [6.32] | C32: [32] | D32: =ROW() -> 32 | M32: =IF(N32=0,"",HYPERLINK("["&M$2&".xlsm]'"&N$3&N32,"["&M$3&N32&"]")) -> [8.82] | N32: ='8.Hilfe'!D82 -> 82
B33: [6.33] | C33: [33] | D33: =ROW() -> 33 | I33: =IF(P$14>1,"Anteil Landkreis ","")&"Eingabe: " -> Eingabe: | M33: =IF(N33=0,"",HYPERLINK("["&M$2&".xlsm]'"&N$3&N33,"["&M$3&N33&"]")) -> [8.83] | N33: ='8.Hilfe'!D83 -> 83
B34: [6.34] | C34: [34] | D34: =ROW() -> 34
B35: [6.35] | C35: [35] | D35: =ROW() -> 35 | G35: ="… davon Wald" -> … davon Wald | H35: (in dieser Softwareversion ungenutzt) | K35: =IF(P$14=2,K36+K38,K36) -> 2290 | L35: ha | M35: =IF(N35=0,"",HYPERLINK("["&M$2&".xlsm]'"&N$3&N35,"["&M$3&N35&"]")) -> [8.103] | N35: ='8.Hilfe'!D103 -> 103
B36: [6.36] | C36: [36] | D36: =ROW() -> 36 | J36: =IF(P$14=2,"Anteil kreisfreie Stadt ","")&"Eingabe: " -> Eingabe: | K36: 2290 | M36: =IF(N36=0,"",HYPERLINK("["&M$2&".xlsm]'"&N$3&N36,"["&M$3&N36&"]")) -> [8.104] | N36: ='8.Hilfe'!D104 -> 104
B37: [6.37] | C37: [37] | D37: =ROW() -> 37 | M37: =IF(N37=0,"",HYPERLINK("["&M$2&".xlsm]'"&N$3&N37,"["&M$3&N37&"]")) -> [8.106] | N37: ='8.Hilfe'!D106 -> 106
B38: =B$3&D$3&D38&H$3 -> [6.38] | C38: [38] | D38: =ROW() -> 38 | J38: =IF(P$14>1,"Anteil Landkreis ","")&"Eingabe: " -> Eingabe: | K38: 50878 | M38: =IF(N38=0,"",HYPERLINK("["&M$2&".xlsm]'"&N$3&N38,"["&M$3&N38&"]")) -> [8.107] | N38: ='8.Hilfe'!D107 -> 107
B39: [6.39] | C39: [39] | D39: =ROW() -> 39 | M39: =IF(N39=0,"",HYPERLINK("["&M$2&".xlsm]'"&N$3&N39,"["&M$3&N39&"]")) -> [8.108] | N39: ='8.Hilfe'!D108 -> 108
B40: [6.40] | C40: [40] | D40: =ROW() -> 40 | E40: Abgeleitete Daten:
B41: [6.41] | C41: [41] | D41: =ROW() -> 41 | F41: ="Bevölkerungsdichte "&'5.Kenndaten'!F$9&" "&'5.Kenndaten'!F$10&"" -> Bevölkerungsdichte Landkreis | J41: Pers./km2 | K41: =K14/K20*100 ->  | L41: =C14&C20 -> [14][20] | M41: =IF(N41=0,"",HYPERLINK("["&M$2&".xlsm]'"&N$3&N41,"["&M$3&N41&"]")) -> [8.84] | N41: ='8.Hilfe'!D84 -> 84
B42: [6.42] | C42: =B$3&D42&H$3 -> [42] | D42: =ROW() -> 42 | F42: Bevölkerungsdichte Ø Deutschland | J42: Pers./km2 | K42: =82792351/35758223*100 -> 231.5337398 | L42: [D.1.53][D.1.54] | M42: =IF(N42=0,"",HYPERLINK("["&M$2&".xlsm]'"&N$3&N42,"["&M$3&N42&"]")) -> [8.85] | N42: ='8.Hilfe'!D85 -> 85
B43: [6.43] | C43: [43] | D43: =ROW() -> 43 | F43: ="Energieverbraucher solidar "&'5.Kenndaten'!F$9&" "&'5.Kenndaten'!F$10 -> Energieverbraucher solidar Landkreis | J43: Pers. | K43: =K42*K20/100 -> 0 | L43: =C42&C20 -> [42][20] | M43: =IF(N43=0,"",HYPERLINK("["&M$2&".xlsm]'"&N$3&N43,"["&M$3&N43&"]")) -> [8.86] | N43: ='8.Hilfe'!D86 -> 86
B44: [6.44] | C44: [44] | D44: =ROW() -> 44
B45: [6.45] | C45: [45] | D45: =ROW() -> 45 | E45: ='8.Hilfe'!E88 -> Standard-Setup (optional) | M45: =IF(N45=0,"",HYPERLINK("["&M$2&".xlsm]'"&N$3&N45,"["&M$3&N45&"]")) -> [8.88] | N45: ='8.Hilfe'!D88 -> 88 | O45: =SUM(O50:O88) -> 3
B46: [6.46] | C46: =B$3&D46&H$3 -> [46] | D46: =ROW() -> 46 | E46: Statusdaten Wind-/Solarstrom | M46: =IF(N46=0,"",HYPERLINK("["&M$2&".xlsm]'"&N$3&N46,"["&M$3&N46&"]")) -> [8.91] | N46: ='8.Hilfe'!D91 -> 91
B47: [6.47] | C47: =B$3&D47&H$3 -> [47] | D47: =ROW() -> 47 | F47: Standard-Datenquelle: Bundesnetzagentur. Marktstammdatenregister. Aktuelle Einheitsübersicht. Tabelle exportieren. Stromerzeugungseinheiten. | M47: =IF(N47=0,"",HYPERLINK("["&M$2&".xlsm]'"&N$3&N47,"["&M$3&N47&"]")) -> [8.93] | N47: ='8.Hilfe'!D93 -> 93 | Q47: =F47 -> Standard-Datenquelle: Bundesnetzagentur. Marktstammdatenregister. Aktuelle Einheitsübersicht. Tabelle exportieren. Stromerzeugungseinheiten.
B48: [6.48] | C48: =B$3&D48&H$3 -> [48] | D48: =ROW() -> 48 | F48: https://www.marktstammdatenregister.de/MaStR/Einheit/Einheiten/OeffentlicheEinheitenuebersicht# | M48: =IF(N48=0,"",HYPERLINK("["&M$2&".xlsm]'"&N$3&N48,"["&M$3&N48&"]")) -> [8.94] | N48: ='8.Hilfe'!D94 -> 94 | Q48: =F48 -> https://www.marktstammdatenregister.de/MaStR/Einheit/Einheiten/OeffentlicheEinheitenuebersicht#
B49: [6.49] | C49: =B$3&D49&H$3 -> [49] | D49: =ROW() -> 49
B50: [6.50] | C50: =B$3&D50&H$3 -> [50] | D50: =ROW() -> 50 | E50: Windenergie | H50: Marktstammdatenregister (2) | J50: Stand: | K50: =IF(P50=2,M53,IF(P50=3,M54,M52)) -> 00:00:00 | M50: =IF(N50=0,"",HYPERLINK("["&M$2&".xlsm]'"&N$3&N50,"["&M$3&N50&"]")) -> [8.95] | N50: ='8.Hilfe'!D95 -> 95 | P50: =IF(H50=S51,2,IF(H50=T51,3,1)) -> 2
B51: [6.51] | C51: [51] | D51: =ROW() -> 51 | F51: Leistung in Betrieb | J51: MW | K51: =INDIRECT("K"&P$50+ROW()) -> 0 | M51: =IF(N51=0,"",HYPERLINK("["&M$2&".xlsm]'"&N$3&N51,"["&M$3&N51&"]")) -> [8.102] | N51: ='8.Hilfe'!D102 -> 102 | R51: Basisregion-proportional (1) | S51: Marktstammdatenregister (2) | T51: Freie Recherche (3)
B52: [6.52] | C52: [52] | D52: =ROW() -> 52 | I52: =R51&": " -> Basisregion-proportional (1): | K52: ='2.Kalkulation'!H22 -> 0 | L52: ='2.Kalkulation'!B22 -> [2.22] | M52: ="31.12."&'2.Kalkulation'!T10 -> 31.12.2016
B53: [6.53] | C53: [53] | D53: =ROW() -> 53 | I53: =S51&": " -> Marktstammdatenregister (2): | K53: =SUMIF('61.Wind'!$C:$C,$N$4,'61.Wind'!$H:$H)/1000 -> 0 | L53: [61.x] | M53: =MAX('61.Wind'!M:M) -> 00:00:00 | O53: =IF(AND(P50>1,K51>0),0,1) -> 1
B54: [6.54] | C54: =B$3&D54&H$3 -> [54] | D54: =ROW() -> 54 | I54: =T51&": " -> Freie Recherche (3): | L54: =C55 -> [55]
B55: [6.55] | C55: =B$3&D55&H$3 -> [55] | D55: =ROW() -> 55 | E55: Datenquelle? | Q55: =E55 -> Datenquelle?
B56: [6.56] | C56: =B$3&D56&H$3 -> [56] | D56: =ROW() -> 56
B57: [6.57] | C57: [57] | D57: =ROW() -> 57 | F57: Anlagen in Betrieb | H57: =H50 -> Marktstammdatenregister (2) | J57: Stck. | K57: =INDIRECT("K"&P$50+ROW()) -> 0 | M57: =IF(N57=0,"",HYPERLINK("["&M$2&".xlsm]'"&N$3&N57,"["&M$3&N57&"]")) -> [8.103] | N57: ='8.Hilfe'!D103 -> 103 | R57: Basisregion-proportional (1) | S57: Marktstammdatenregister (2) | T57: Freie Recherche (3)
B58: [6.58] | C58: [58] | D58: =ROW() -> 58 | G58: (optional) | I58: =R57&": " -> Basisregion-proportional (1): | K58: ='2.Kalkulation'!H24 -> -
B59: [6.59] | C59: [59] | D59: =ROW() -> 59 | I59: =S57&": " -> Marktstammdatenregister (2): | K59: =COUNTIF('61.Wind'!C:C,$N$4) -> 0 | L59: [61.x]
B60: [6.60] | C60: =B$3&D60&H$3 -> [60] | D60: =ROW() -> 60 | I60: =T57&": " -> Freie Recherche (3): | L60: =C61 -> [61]
B61: [6.61] | C61: =B$3&D61&H$3 -> [61] | D61: =ROW() -> 61 | E61: Datenquelle? | Q61: =E61 -> Datenquelle?
B62: [6.62] | C62: =B$3&D62&H$3 -> [62] | D62: =ROW() -> 62
B63: [6.63] | C63: [63] | D63: =ROW() -> 63 | F63: Vollbetriebsstunden | H63: Basisregion-analog (1) | J63: h/a | K63: =INDIRECT("K"&P$63+ROW()) -> 1708.099516 | M63: =IF(N63=0,"",HYPERLINK("["&M$2&".xlsm]'"&N$3&N63,"["&M$3&N63&"]")) -> [8.104] | N63: ='8.Hilfe'!D104 -> 104 | P63: =IF(H63=S63,2,IF(H63=T63,3,1)) -> 1 | R63: Basisregion-analog (1) | S63: Aus Jahresertrag errechnet (2)
B64: [6.64] | C64: [64] | D64: =ROW() -> 64 | G64: (optional) | I64: =R63&": " -> Basisregion-analog (1): | J64: h/a | K64: ='2.Kalkulation'!H21 -> 1708.099516 | L64: ='2.Kalkulation'!B21 -> [2.21]
B65: [6.65] | C65: [65] | D65: =ROW() -> 65 | I65: =S63&": " -> Aus Jahresertrag errechnet (2): | J65: h/a | K65: =K66/K51*1000 ->  | L65: =C66&C51 -> [66][51]
B66: [6.66] | C66: =B$3&D66&H$3 -> [66] | D66: =ROW() -> 66 | I66: Jahresertrag - freie Recherche (2): | J66: GWh/a | K66: ='7.Extradaten'!G10 -> 0 | L66: =C67 -> [67]
B67: [6.67] | C67: =B$3&D67&H$3 -> [67] | D67: =ROW() -> 67 | E67: ="Jahr 2019 gemäß "&'7.Extradaten'!B10 -> Jahr 2019 gemäß [7.10] | Q67: =E67 -> Jahr 2019 gemäß [7.10]
B68: [6.68] | C68: =B$3&D68&H$3 -> [68] | D68: =ROW() -> 68
B69: [6.69] | C69: =B$3&D69&H$3 -> [69] | D69: =ROW() -> 69 | E69: Solarenergie | H69: Basisregion-proportional (1) | J69: Stand: | K69: =IF(P69=2,M72,IF(P69=3,M73,M71)) -> 31.12.2016 | M69: =IF(N69=0,"",HYPERLINK("["&M$2&".xlsm]'"&N$3&N69,"["&M$3&N69&"]")) -> [8.106] | N69: ='8.Hilfe'!D106 -> 106 | P69: =IF(H69=S70,2,IF(H69=T70,3,1)) -> 1
B70: =B$3&D$3&D70&H$3 -> [6.70] | C70: [70] | D70: =ROW() -> 70 | F70: Leistung in Betrieb gesamt | J70: MW | K70: =INDIRECT("K"&P$69+ROW()) -> 0 | M70: =IF(N70=0,"",HYPERLINK("["&M$2&".xlsm]'"&N$3&N70,"["&M$3&N70&"]")) ->  | R70: Basisregion-proportional (1) | S70: Marktstammdatenregister (2) | T70: Freie Recherche (3)
B71: [6.71] | C71: [71] | D71: =ROW() -> 71 | I71: =R70&": " -> Basisregion-proportional (1): | K71: ='2.Kalkulation'!H42+'2.Kalkulation'!H32 -> 0 | L71: ='2.Kalkulation'!B42&'2.Kalkulation'!B32 -> [2.42][2.32] | M71: ="31.12."&'2.Kalkulation'!T10 -> 31.12.2016
B72: [6.72] | C72: [72] | D72: =ROW() -> 72 | I72: =S70&": " -> Marktstammdatenregister (2): | K72: =SUMIF('62.Solar'!$C:$C,$N$4,'62.Solar'!$H:$H)/1000 -> 0 | L72: [62.x] | M72: =MAX('62.Solar'!M:M) -> 00:00:00 | O72: =IF(AND(P69>1,K70>0),0,1) -> 1
B73: [6.73] | C73: =B$3&D73&H$3 -> [73] | D73: =ROW() -> 73 | I73: =T70&": " -> Freie Recherche (3): | L73: =C74 -> [74]
B74: [6.74] | C74: =B$3&D74&H$3 -> [74] | D74: =ROW() -> 74 | E74: Datenquelle? | M74: =IF(N74=0,"",HYPERLINK("["&M$2&".xlsm]'"&N$3&N74,"["&M$3&N74&"]")) ->  | Q74: =E74 -> Datenquelle?
B75: [6.75] | C75: =B$3&D75&H$3 -> [75] | D75: =ROW() -> 75
B76: [6.76] | C76: [76] | D76: =ROW() -> 76 | F76: … davon auf freier Fläche | J76: MW | K76: =INDIRECT("K"&P$69+ROW()) -> 0 | M76: =IF(N76=0,"",HYPERLINK("["&M$2&".xlsm]'"&N$3&N76,"["&M$3&N76&"]")) -> [8.111] | N76: ='8.Hilfe'!D111 -> 111 | R76: Basisregion-proportional (1) | S76: Marktstammdatenregister (2) | T76: Freie Recherche (3)
B77: [6.77] | C77: [77] | D77: =ROW() -> 77 | I77: =R76&": " -> Basisregion-proportional (1): | K77: ='2.Kalkulation'!H42 -> 0 | L77: ='2.Kalkulation'!B42 -> [2.42]
B78: [6.78] | C78: [78] | D78: =ROW() -> 78 | I78: =S76&": " -> Marktstammdatenregister (2): | K78: =SUMIF('62.Solar'!$O:$O,"x",'62.Solar'!$H:$H)/1000 -> 0 | L78: [62.x] | M78: =IF(N78=0,"",HYPERLINK("["&M$2&".xlsm]'"&N$3&N78,"["&M$3&N78&"]")) -> [8.112] | N78: ='8.Hilfe'!D112 -> 112 | O78: =IF(AND(P69>1,K76>0),0,1) -> 1
B79: [6.79] | C79: =B$3&D79&H$3 -> [79] | D79: =ROW() -> 79 | I79: =T76&": " -> Freie Recherche (3): | L79: =C80 -> [80]
B80: [6.80] | C80: =B$3&D80&H$3 -> [80] | D80: =ROW() -> 80 | E80: Datenquelle? | Q80: =E80 -> Datenquelle?
B81: [6.81] | C81: =B$3&D81&H$3 -> [81] | D81: =ROW() -> 81
B82: [6.82] | C82: [82] | D82: =ROW() -> 82 | F82: … davon auf Dachfläche | J82: MW | K82: =K70-K76 -> 0 | M82: =IF(N82=0,"",HYPERLINK("["&M$2&".xlsm]'"&N$3&N82,"["&M$3&N82&"]")) -> [8.113] | N82: ='8.Hilfe'!D113 -> 113 | R82: Basisregion-proportional (1) | S82: Marktstammdatenregister (2) | T82: Freie Recherche (3)
B83: [6.83] | C83: [83] | D83: =ROW() -> 83
B84: [6.84] | C84: [84] | D84: =ROW() -> 84 | F84: Vollbetriebsstunden | H84: Basisregion-analog (1) | J84: h/a | K84: =INDIRECT("K"&P$84+ROW()) -> 919.75 | M84: =IF(N84=0,"",HYPERLINK("["&M$2&".xlsm]'"&N$3&N84,"["&M$3&N84&"]")) -> [8.115] | N84: ='8.Hilfe'!D115 -> 115 | P84: =IF(H84=S84,2,IF(H84=T84,3,1)) -> 1 | R84: Basisregion-analog (1) | S84: Aus Jahresertrag errechnet (2)
B85: [6.85] | C85: [85] | D85: =ROW() -> 85 | G85: (optional) | I85: =R84&": " -> Basisregion-analog (1): | J85: h/a | K85: ='2.Kalkulation'!H31 -> 919.75 | L85: ='2.Kalkulation'!B31 -> [2.31]
B86: [6.86] | C86: [86] | D86: =ROW() -> 86 | I86: =S84&": " -> Aus Jahresertrag errechnet (2): | J86: h/a | K86: =K87/K70*1000 ->  | L86: =C87&C72 -> [87][72]
B87: [6.87] | C87: =B$3&D87&H$3 -> [87] | D87: =ROW() -> 87 | I87: Jahresertrag - freie Recherche (2): | J87: GWh/a | L87: =C88 -> [88]
B88: [6.88] | C88: =B$3&D88&H$3 -> [88] | D88: =ROW() -> 88 | E88: Datenquelle? | Q88: =E88 -> Datenquelle?

Sheet 61.Wind

Sheet 62.Solar

Sheet 7.Extradaten
B3: [ | D3: =BK3 -> 7. | E3: ] | BG3: Vorlagen>>> | BH3: =BI3&BK3 -> P.7. | BI3: =MID(BJ3,1,1)&"." -> P. | BJ3: =MID(BM3,FIND("[",BM3)+1,FIND("xlsm",BM3)-FIND("[",BM3)-2) -> P000100-D.H2i-L. | BK3: =LEFT(BL3,FIND(".",BL3)) -> 7. | BL3: =MID(BM3,FIND("]",BM3)+1,255) -> 7.Extradaten | BM3: =CELL("dateiname",BM3) -> C:\Users\schmi\Documents\_wattweg2008\Veranstaltungen_2024\240828WorkshopRegionalplaner\Arbeitsordner200822m\[P000100-D.H2i-L..xlsm]7.Extradaten | BT3: D | BU3: [ | BV3: ] | BW3: [D.xlsx] | BX3: ="("&BJ3&")" -> (P000100-D.H2i-L.) | BZ3: =BI3&BK3&" - " -> P.7. - | CA3: ='1.Ansicht'!BF3 -> Energieszenario 'Landkreis 100% EE' (P000100-D.H2i-L.) | CD3: =Versionen!A1 -> 240826e | CE3: =TEXT(TODAY(),"tt.MM.jjjj") -> 27.08.2024 | CF3: =TEXT(NOW(),"hh:mm") -> 13:04 | CG3: ="100prosim.P ("&BJ3&".xlsx, V."&CD3&") - "&CE3&" "&CF3 -> 100prosim.P (P000100-D.H2i-L..xlsx, V.240826e) - 27.08.2024 13:04 | CQ3: 09.01
H4: =CG3 -> 100prosim.P (P000100-D.H2i-L..xlsx, V.240826e) - 27.08.2024 13:04
D5: =BI3&BL3&" - "&CA3 -> P.7.Extradaten - Energieszenario 'Landkreis 100% EE' (P000100-D.H2i-L.)
B6: =B$3&D$3&D6&E$3 -> [7.6] | C6: =B$3&D6&E$3 -> [6] | D6: =ROW() -> 6
B7: =B$3&D$3&D7&E$3 -> [7.7] | C7: =B$3&D7&E$3 -> [7] | D7: =ROW() -> 7 | E7: Text | F7: Einheit | G7: Wert | H7: Verweis
B8: [7.8] | C8: [8] | D8: =IF(E7&E8="","",ROW()) -> 8 | E8: Jahreseinspeisung Wasserkraft in 2019 gemäß amtlicher Statistik. | F8: GWh/a | H8: =C11 -> [11]
B9: =B$3&D$3&D9&E$3 -> [7.9] | C9: =B$3&D9&E$3 -> [9] | D9: =IF(E8&E9="","",ROW()) -> 9 | E9: Jahreseinspeisung Strom aus Biomasse inkl. Klär-/Deponiegas in 20xx gemäß amtlicher Statistik. | F9: GWh/a | H9: =C11 -> [11]
B10: =B$3&D$3&D10&E$3 -> [7.10] | C10: =B$3&D10&E$3 -> [10] | D10: =IF(E9&E10="","",ROW()) -> 10 | E10: Jahreseinspeisung Windstrom onshore 20xx gemäß amtlicher Statistik. | F10: GWh/a | H10: =C11 -> [11]
B11: [7.11] | C11: [11] | D11: =IF(E10&E11="","",ROW()) -> 11 | E11: (Quelle xxx)
B12: [7.12] | C12: [12] | D12: =IF(E11&E12="","",ROW()) -> 12
B13: [7.] | C13: [] | D13: =IF(E12&E13="","",ROW()) -> 
B14: [7.] | C14: []
B15: [7.] | C15: []
B16: [7.] | C16: []
B17: [7.] | C17: []
B18: [7.] | C18: []
B19: [7.] | C19: []
B20: [7.] | C20: []
B21: [7.] | C21: []
B22: [7.] | C22: []
B23: [7.] | C23: []
B24: [7.] | C24: []
B25: [7.] | C25: []
B26: [7.] | C26: []
B27: [7.] | C27: []
B28: [7.] | C28: []
B29: [7.] | C29: []
B30: [7.] | C30: []
B31: [7.] | C31: []
B32: [7.] | C32: []
B33: [7.] | C33: []
B34: [7.] | C34: []
B35: [7.] | C35: []
B36: [7.] | C36: []
B37: [7.] | C37: []
B38: [7.] | C38: []
B39: [7.] | C39: []
B40: [7.] | C40: []
B41: [7.] | C41: []
B42: [7.] | C42: []
B43: [7.] | C43: []
B44: [7.] | C44: []
B45: [7.] | C45: []
B46: [7.] | C46: []
B47: [7.] | C47: []
B48: [7.] | C48: []
B49: [7.] | C49: []
B50: [7.] | C50: []
B51: [7.] | C51: []
B52: [7.] | C52: []
B53: [7.] | C53: []
B54: [7.] | C54: []
B55: [7.] | C55: []
B56: [7.] | C56: []
B57: [7.] | C57: []
B58: [7.] | C58: []
B59: [7.] | C59: []
B60: [7.] | C60: []
B61: [7.] | C61: []
B62: [7.] | C62: []
B63: [7.] | C63: []
B64: [7.] | C64: []
B65: [7.] | C65: []
B66: [7.] | C66: []
B67: [7.] | C67: []
B68: [7.] | C68: []
B69: [7.] | C69: []
B70: [7.] | C70: []
B71: [7.] | C71: []
B72: [7.] | C72: []
B73: [7.] | C73: []
B74: =B$3&D$3&D74&E$3 -> [7.] | C74: =B$3&D74&E$3 -> [] | D74: =IF(E73&E74="","",ROW()) -> 
B75: [7.] | C75: []
B76: [7.] | C76: []
B77: [7.] | C77: []
B78: [7.] | C78: []
B79: [7.] | C79: []
B80: [7.] | C80: []
B81: [7.] | C81: []
B82: [7.] | C82: []
B83: [7.] | C83: []
B84: [7.] | C84: []
B85: [7.] | C85: []
B86: [7.] | C86: []
B87: [7.] | C87: []
B88: [7.] | C88: []
B89: [7.] | C89: []
B90: [7.] | C90: []
B91: [7.] | C91: []
B92: [7.] | C92: []
B93: [7.] | C93: []
B94: [7.] | C94: []
B95: [7.] | C95: []
B96: [7.] | C96: []
B97: [7.] | C97: []
B98: [7.] | C98: []
B99: [7.] | C99: []
B100: [7.] | C100: []
B101: [7.] | C101: []
B102: [7.] | C102: []
B103: [7.] | C103: []
B104: [7.] | C104: []
B105: [7.] | C105: []
B106: [7.] | C106: []
B107: [7.] | C107: []
B108: [7.] | C108: []
B109: [7.] | C109: []
B110: [7.] | C110: []
B111: [7.] | C111: []
B112: [7.] | C112: []
B113: [7.] | C113: []
B114: [7.] | C114: []
B115: [7.] | C115: []
B116: [7.] | C116: []
B117: [7.] | C117: []
B118: [7.] | C118: []
B119: [7.] | C119: []
B120: [7.] | C120: []
B121: [7.] | C121: []
B122: [7.] | C122: []
B123: [7.] | C123: []
B124: [7.] | C124: []
B125: [7.] | C125: []
B126: [7.] | C126: []
B127: [7.] | C127: []
B128: [7.] | C128: []
B129: [7.] | C129: []
B130: [7.] | C130: []
B131: [7.] | C131: []
B132: [7.] | C132: []
B133: [7.] | C133: []
B134: [7.] | C134: []
B135: [7.] | C135: []
B136: [7.] | C136: []
B137: [7.] | C137: []
B138: =B$3&D$3&D138&E$3 -> [7.] | C138: =B$3&D138&E$3 -> [] | D138: =IF(E137&E138="","",ROW()) -> 
B139: [7.] | C139: []
B140: [7.] | C140: []
B141: [7.] | C141: []
B142: [7.] | C142: []
B143: [7.] | C143: []
B144: [7.] | C144: []
B145: [7.] | C145: []
B146: [7.] | C146: []
B147: [7.] | C147: []
B148: [7.] | C148: []
B149: [7.] | C149: []
B150: [7.] | C150: []
B151: [7.] | C151: []
B152: [7.] | C152: []
B153: [7.] | C153: []
B154: [7.] | C154: []
B155: [7.] | C155: []
B156: [7.] | C156: []
B157: [7.] | C157: []
B158: [7.] | C158: []
B159: [7.] | C159: []
B160: [7.] | C160: []
B161: [7.] | C161: []
B162: [7.] | C162: []
B163: [7.] | C163: []
B164: [7.] | C164: []
B165: [7.] | C165: []
B166: [7.] | C166: []
B167: [7.] | C167: []
B168: [7.] | C168: []
B169: [7.] | C169: []
B170: [7.] | C170: []
B171: [7.] | C171: []
B172: [7.] | C172: []
B173: [7.] | C173: []
B174: [7.] | C174: []
B175: [7.] | C175: []
B176: [7.] | C176: []
B177: [7.] | C177: []
B178: [7.] | C178: []
B179: [7.] | C179: []
B180: [7.] | C180: []
B181: [7.] | C181: []
B182: [7.] | C182: []
B183: [7.] | C183: []
B184: [7.] | C184: []
B185: [7.] | C185: []
B186: [7.] | C186: []
B187: [7.] | C187: []
B188: [7.] | C188: []
B189: [7.] | C189: []
B190: [7.] | C190: []
B191: [7.] | C191: []
B192: [7.] | C192: []
B193: [7.] | C193: []
B194: [7.] | C194: []
B195: [7.] | C195: []
B196: [7.] | C196: []
B197: [7.] | C197: []
B198: [7.] | C198: []
B199: [7.] | C199: []
B200: [7.] | C200: []

Sheet 7.Zusatzdaten (2) (hidden)
B3: [ | D3: =BL3 -> 7. | E3: ] | BH3: Vorlagen>>> | BI3: =BJ3&BL3 -> P.7. | BJ3: =MID(BK3,1,1)&"." -> P. | BK3: =MID(BN3,FIND("[",BN3)+1,FIND("xlsm",BN3)-FIND("[",BN3)-2) -> P000100-D.H2i-L. | BL3: =LEFT(BM3,FIND(".",BM3)) -> 7. | BM3: =MID(BN3,FIND("]",BN3)+1,255) -> 7.Zusatzdaten (2) | BN3: =CELL("dateiname",BN3) -> C:\Users\schmi\Documents\_wattweg2008\Veranstaltungen_2024\240828WorkshopRegionalplaner\Arbeitsordner200822m\[P000100-D.H2i-L..xlsm]7.Zusatzdaten (2) | BU3: D | BV3: [ | BW3: ] | BX3: [D.xlsx] | BY3: ="("&BK3&")" -> (P000100-D.H2i-L.) | CA3: =BJ3&BL3&" - " -> P.7. - | CB3: ='1.Ansicht'!BF3 -> Energieszenario 'Landkreis 100% EE' (P000100-D.H2i-L.) | CE3: =Versionen!A1 -> 240826e | CF3: =TEXT(TODAY(),"tt.MM.jjjj") -> 27.08.2024 | CG3: =TEXT(NOW(),"hh:mm") -> 13:04 | CH3: ="100prosimP ("&BK3&".xlsx, V."&CE3&") - "&CF3&" "&CG3 -> 100prosimP (P000100-D.H2i-L..xlsx, V.240826e) - 27.08.2024 13:04 | CR3: 09.01
I4: =CH3 -> 100prosimP (P000100-D.H2i-L..xlsx, V.240826e) - 27.08.2024 13:04 | L4: Hilfsspalte zum Zeilenumbruch bei den Quellen
D5: =BJ3&BM3&" - "&CB3 -> P.7.Zusatzdaten (2) - Energieszenario 'Landkreis 100% EE' (P000100-D.H2i-L.)
B6: =B$3&D$3&D6&E$3 -> [7.6] | C6: =B$3&D6&E$3 -> [6] | D6: =ROW() -> 6
B7: [7.7] | C7: =B$3&D7&E$3 -> [7] | D7: =ROW() -> 7 | E7: Hessen, Regierungspräsidium Kassel. Letzter Zugriff 12.02.2021. | L7: =E7 -> Hessen, Regierungspräsidium Kassel. Letzter Zugriff 12.02.2021.
B8: [7.8] | C8: [8] | D8: =ROW() -> 8 | E8: https://rp-kassel.hessen.de/planung/regionalplanung | L8: https://rp-kassel.hessen.de/planung/regionalplanung
B9: [7.9] | C9: [9] | D9: =ROW() -> 9 | E9: Energie - Regenerative Stromerzeugung in NordOstHessen (NOH) - Tabelle 2017. | L9: Energie - Regenerative Stromerzeugung in NordOstHessen (NOH) - Tabelle 2017.
B10: [7.10] | C10: [10] | D10: =ROW() -> 10 | E10: https://rp-kassel.hessen.de/sites/rp-kassel.hessen.de/files/REgErz2009-2019.pdf | L10: https://rp-kassel.hessen.de/sites/rp-kassel.hessen.de/files/REgErz2009-2019.pdf
B11: [7.11] | C11: [11] | D11: =ROW() -> 11 | E11: Erneuerbare Energien - Windenergie - Entwicklung und Ausgaustand der Windenergie - Tabelle 1 . | L11: Erneuerbare Energien - Windenergie - Entwicklung und Ausgaustand der Windenergie - Tabelle 1 .
B12: [7.12] | C12: [12] | D12: =ROW() -> 12 | E12: https://rp-kassel.hessen.de/sites/rp-kassel.hessen.de/files/Entwicklung%20Windenergie%20seit%202012_2.pdf | L12: https://rp-kassel.hessen.de/sites/rp-kassel.hessen.de/files/Entwicklung%20Windenergie%20seit%202012_2.pdf
B13: [7.13] | C13: [13] | D13: =ROW() -> 13 | E13: Erneuerbare Energien - Solarenergie - Monitoring-Bericht Solarenergie. | L13: Erneuerbare Energien - Solarenergie - Monitoring-Bericht Solarenergie.
B14: [7.14] | C14: [14] | D14: =ROW() -> 14 | E14: https://rp-kassel.hessen.de/sites/rp-kassel.hessen.de/files/Monitoringbericht%20Solarenergie.pdf | L14: https://rp-kassel.hessen.de/sites/rp-kassel.hessen.de/files/Monitoringbericht%20Solarenergie.pdf
B15: [7.15] | C15: [15] | D15: =ROW() -> 15 | L15: 0
B16: [7.16] | C16: [16] | D16: =ROW() -> 16 | E16: Windenergie (1)
B17: [7.17] | C17: [17] | D17: =ROW() -> 17 | E17: Installierte Leistung 2017 gesamt (MW) | F17: =SUM(G20:G35) -> 157.7 | I17: summe
B18: [7.18] | C18: [18] | D18: =ROW() -> 18 | E18: Anlagenzahl 2017 insgesamt | F18: =SUM(F20:F35) -> 54 | I18: summe
E19: resultierend aus dem jährlichen Zubau: | F19: Anz. | G19: Leistung | H19: Jahr
B20: =B$3&D$3&D20&E$3 -> [7.20] | C20: =B$3&D20&E$3 -> [20] | D20: =ROW() -> 20 | E20: Anzahl neu installierterAnlagen (ohne Kleinwindanlagen) | F20: 2 | G20: 4.8 | H20: 2017 | I20: =C$11 -> [11]
B21: [7.21] | C21: [21] | D21: =ROW() -> 21 | E21: und der im Jahr neu installierte Leistung [MW] | F21: 3 | G21: 10.4 | H21: 2017 | I21: [11]
B22: [7.22] | C22: [22] | D22: =ROW() -> 22 | F22: 1 | G22: 2.4 | H22: 2017 | I22: [11]
B23: [7.23] | C23: [23] | D23: =ROW() -> 23 | F23: 3 | G23: 9.9 | H23: 2017 | I23: [11]
B24: [7.24] | C24: [24] | D24: =ROW() -> 24 | F24: 3 | G24: 10.5 | H24: 2017 | I24: [11]
B25: [7.25] | C25: [25] | D25: =ROW() -> 25 | F25: 7 | G25: 23.1 | H25: 2016 | I25: [11]
B26: [7.26] | C26: [26] | D26: =ROW() -> 26 | F26: 4 | G26: 9.6 | H26: 2016 | I26: [11]
B27: [7.27] | C27: [27] | D27: =ROW() -> 27 | F27: 1 | G27: 3 | H27: 2016 | I27: [11]
B28: [7.28] | C28: [28] | D28: =ROW() -> 28 | F28: 1 | G28: 2.8 | H28: 2015 | I28: [11]
B29: [7.29] | C29: [29] | D29: =ROW() -> 29 | F29: 8 | G29: 24 | H29: 2015 | I29: [11]
B30: [7.30] | C30: [30] | D30: =ROW() -> 30 | F30: 4 | G30: 9.4 | H30: 2014 | I30: [11]
B31: [7.31] | C31: [31] | D31: =ROW() -> 31 | F31: 1 | G31: 2.8 | H31: 2014 | I31: [11]
B32: [7.32] | C32: [32] | D32: =ROW() -> 32 | F32: 5 | G32: 12 | H32: 2014 | I32: [11]
B33: [7.33] | C33: [33] | D33: =ROW() -> 33 | F33: 4 | G33: 12 | H33: 2013 | I33: [11]
B34: [7.34] | C34: [34] | D34: =ROW() -> 34 | F34: 2 | G34: 6 | H34: 2013 | I34: [11]
B35: [7.35] | C35: [35] | D35: =ROW() -> 35 | F35: 5 | G35: 15 | H35: 2013 | I35: [11]
B36: [7.36] | C36: [36] | D36: =ROW() -> 36
B37: [7.37] | C37: [37] | D37: =ROW() -> 37 | F37: gesamt | G37: Stadt | H37: Landkreis | I37: Quelle
B38: [7.38] | C38: [38] | D38: =ROW() -> 38 | E38: Jahresarbeit (GWh) | F38: =G38+H38 -> 201.8 | G38: 40.1 | H38: 161.7 | I38: =C9 -> [9]
B39: [7.39] | C39: [39] | D39: =ROW() -> 39 | E39: Installierte Leistung (MW) | F39: =F17 -> 157.7 | I39: =C17 -> [17]
B40: [7.40] | C40: [40] | D40: =ROW() -> 40 | E40: Volllaststuden Windenergie (h/a) | F40: =F38*1000/F39 -> 1279.644895
B41: [7.41] | C41: [41] | D41: =ROW() -> 41
B42: [7.42] | C42: [42] | D42: =ROW() -> 42 | E42: Windenergie (2) | F42: bis 2017 | G42: bis 2020
B43: [7.43] | C43: [43] | D43: =ROW() -> 43 | E43: Installierte Leistung gesamt (MW) | F43: 237 | G43: 260 | I43: =C$77 -> [77]
B44: [7.44] | C44: [44] | D44: =ROW() -> 44 | E44: Anlagenzahl insgesamt | F44: 133 | G44: 143 | I44: =C$77 -> [77]
B45: [7.45] | C45: [45] | D45: =ROW() -> 45 | E45: Volllaststuden Windenergie von Peter geschätzt (h/a) | G45: 2463
B46: [7.46] | C46: [46] | D46: =ROW() -> 46 | E46: Jahresarbeit (GWh) | G46: 639
B47: [7.47] | C47: [47] | D47: =ROW() -> 47
B48: [7.48] | C48: [48] | D48: =ROW() -> 48 | E48: Photovoltaik
B49: [7.49] | C49: [49] | D49: =ROW() -> 49 | E49: Jahresarbeit in 2017 gemäß Quelle (GWh/a) | F49: =G49+H49 -> 148.1 | G49: 19.9 | H49: 128.2 | I49: =C7 -> [7]
B50: [7.50] | C50: [50] | D50: =ROW() -> 50 | E50: Volllaststunden PV, Stautsansatz aus Hessen-Szenario übernommen (h/a) | F50: ='2.Kalkulation'!I31 -> 919.75 | I50: ='2.Kalkulation'!B31 -> [2.31]
B51: [7.51] | C51: [51] | D51: =ROW() -> 51 | E51: Installierte Leistung resultierend (MW) | F51: =F49*1000/F50 -> 161.0220169
B52: [7.52] | C52: [52] | D52: =ROW() -> 52 | E52: Hessen Jahresarbeit Dachflächen/Siedlungsbereich (GWh/a) | F52: ='2.Kalkulation'!V27 -> 277926.5246
B53: [7.53] | C53: [53] | D53: =ROW() -> 53 | E53: Hessen Jahresarbeit Freiflächen (GWh/a) | F53: ='2.Kalkulation'!T35 -> 10978.22798
B54: [7.54] | C54: [54] | D54: =ROW() -> 54 | E54: Anteil Dachflächen/Siedlungsbereich an installierter PV-Leistung (MW) | F54: =F51*F52/(F52+F53) -> 154.9032653
B55: [7.55] | C55: [55] | D55: =ROW() -> 55 | E55: Anteil Freiflächen an installierter PV-Leistung (MW) | F55: =F51-F54 -> 6.118751575
B56: [7.56] | C56: [56] | D56: =ROW() -> 56
B57: [7.57] | C57: [57] | D57: =ROW() -> 57 | E57: Freiflächen-PV gemäß Quelle (ha) | F57: 126.9 | I57: =C14 -> [14]
B58: [7.58] | C58: [58] | D58: =ROW() -> 58 | E58: Flächenertrag Freiflächen-PV, Status-Ansatz aus Hessen-Szenario übernommen(MWh/ha/a) | F58: ='2.Kalkulation'!H37 -> 525.5714286 | I58: ='2.Kalkulation'!B37 -> [2.37]
B59: [7.59] | C59: [59] | D59: =ROW() -> 59 | E59: Jahresarbeit Freiflächen-PV resultirend (GWh) | F59: =F57*F58/1000 -> 66.69501429
B60: [7.60] | C60: [60] | D60: =ROW() -> 60 | E60: =E50 -> Volllaststunden PV, Stautsansatz aus Hessen-Szenario übernommen (h/a) | F60: =F50 -> 919.75 | I60: =I50 -> [2.31]
B61: [7.61] | C61: [61] | D61: =ROW() -> 61 | E61: Freiflächen PV installierte Leistung resultierend (MW) | F61: =F59*1000/F60 -> 72.51428571
B62: [7.62] | C62: [62] | D62: =ROW() -> 62 | E62: Dachflächen-PV installierte Leistung resultierend (MW) | F62: =F51-F61 -> 88.50773114
B63: [7.63] | C63: [63] | D63: =ROW() -> 63
B64: [7.64] | C64: [64] | D64: =ROW() -> 64
B65: [7.65] | C65: [65] | D65: =ROW() -> 65 | E65: Bayrische Staatsregierung. Energieatlas Bayern. Stadt und Landkreis Augsburg - Solarenergie - Ausbaustand - Gemeinden. Letzter Zugriff 16.01.2021. | L65: =E65 -> Bayrische Staatsregierung. Energieatlas Bayern. Stadt und Landkreis Augsburg - Solarenergie - Ausbaustand - Gemeinden. Letzter Zugriff 16.01.2021.
B66: [7.66] | C66: [66] | D66: =ROW() -> 66 | E66: https://geoportal.bayern.de/energieatlas-karten/?wicket-crypt=lp19lhhy5QM | L66: https://geoportal.bayern.de/energieatlas-karten/?wicket-crypt=lp19lhhy5QM
B67: [7.67] | C67: [67] | D67: =ROW() -> 67 | E67: Solarenergie | G67: proport. | L67: Solarenergie
B68: [7.68] | C68: [68] | D68: =ROW() -> 68 | E68: Strom aus Photovoltaik, Installierte Leistung (Ges.); (MWp): | F68: =316+38 -> 354 | G68: =G69+G70 -> 0 | L68: Strom aus Photovoltaik, Installierte Leistung (Ges.); (MWp):
B69: [7.69] | C69: [69] | D69: =ROW() -> 69 | E69: Anteil DachPV rechnerisch, proportional zu Bayern (MWp): | F69: =F68*G69/G$68 ->  | G69: ='2.Kalkulation'!H27 -> 0 | L69: Anteil DachPV rechnerisch, proportional zu Bayern (MWp):
B70: [7.70] | C70: [70] | D70: =ROW() -> 70 | E70: Anteil FFPV rechnerisch, proportional zu Bayern (MWp): | F70: =F68*G70/G$68 ->  | G70: ='2.Kalkulation'!H35 -> 0 | L70: Anteil FFPV rechnerisch, proportional zu Bayern (MWp):
B71: [7.71] | C71: [71] | D71: =ROW() -> 71 | E71: Vollaststunden Photovoltaik (h/a) | F71: =(315+31)*1000/F68 -> 977.4011299 | L71: Vollaststunden Photovoltaik (h/a)
B72: [7.72] | C72: [72] | D72: =ROW() -> 72 | E72: Windenergie | L72: Windenergie
B73: [7.73] | C73: [73] | D73: =ROW() -> 73 | E73: Strom aus Windenergie, Installierte Leistung (MWp): | F73: 16.7
B74: [7.74] | C74: [74] | D74: =ROW() -> 74 | E74: Volllaststuden Windenergie (h/a) | F74: 1804
B75: [7.75] | C75: [75] | D75: =ROW() -> 75 | E75: Anzahl Anlagen (ohne Kleinwindanlagen) | F75: 7
B76: [7.76] | C76: [76] | D76: =ROW() -> 76
B77: [7.77] | C77: [77] | D77: =ROW() -> 77 | E77: Ekkehard Darge, 'PR' AK Umwelt …. Wind LK Kassel Schätzung, Stand 23.2.2021.

Sheet 8.Hilfe
L1: ='2.Kalkulation'!$J$3 -> P000100-D.H2i-L.
B3: [ | D3: =BH3 -> 8. | E3: ] | BD3: Vorlagen>>> | BE3: =BF3&BH3 -> P.8. | BF3: =MID(BG3,1,1)&"." -> P. | BG3: =MID(BJ3,FIND("[",BJ3)+1,FIND("xlsm",BJ3)-FIND("[",BJ3)-2) -> P000100-D.H2i-L. | BH3: =LEFT(BI3,FIND(".",BI3)) -> 8. | BI3: =MID(BJ3,FIND("]",BJ3)+1,255) -> 8.Hilfe | BJ3: =CELL("dateiname",BJ3) -> C:\Users\schmi\Documents\_wattweg2008\Veranstaltungen_2024\240828WorkshopRegionalplaner\Arbeitsordner200822m\[P000100-D.H2i-L..xlsm]8.Hilfe | BQ3: D | BR3: [ | BS3: ] | BT3: [D.xlsx] | BU3: ="("&BG3&")" -> (P000100-D.H2i-L.) | BW3: =BF3&BH3&" - " -> P.8. - | BX3: ='1.Ansicht'!BF3 -> Energieszenario 'Landkreis 100% EE' (P000100-D.H2i-L.) | CA3: =Versionen!A1 -> 240826e | CB3: =TEXT(TODAY(),"tt.MM.jjjj") -> 27.08.2024 | CC3: =TEXT(NOW(),"hh:mm") -> 13:04 | CD3: ="100prosim.P ("&BG3&".xlsx, V."&CA3&") - "&CB3&" "&CC3 -> 100prosim.P (P000100-D.H2i-L..xlsx, V.240826e) - 27.08.2024 13:04 | CN3: 09.01
F4: =CD3 -> 100prosim.P (P000100-D.H2i-L..xlsx, V.240826e) - 27.08.2024 13:04 | H4: Hilfsspalte zum Zeilenumbruch bei den Quellen
D5: =BF3&BI3&" - "&BX3 -> P.8.Hilfe - Energieszenario 'Landkreis 100% EE' (P000100-D.H2i-L.)
B6: =B$3&D$3&D6&E$3 -> [8.6] | C6: =B$3&D6&E$3 -> [6] | D6: =ROW() -> 6
B7: =B$3&D$3&D7&E$3 -> [8.7] | C7: =B$3&D7&E$3 -> [7] | D7: =ROW() -> 7 | E7: ='0.Leitfaden'!E6 -> Was ist 100prosim.P?
B8: =B$3&D$3&D8&E$3 -> [8.8] | C8: =B$3&D8&E$3 -> [8] | D8: =ROW() -> 8 | E8: Fragestellung:
B9: =B$3&D$3&D9&E$3 -> [8.9] | C9: =B$3&D9&E$3 -> [9] | D9: =ROW() -> 9 | E9: Was würde die Versorgung mit 100% Erneuerbaren Energien, wie sie in einem Szenario für mein Bundesland bzw. für Deutschland modelliert wurde, für meinen Landkreises, meine Stadt, meine Gemeinde bedeuten? Mit welchen Änderungen käme es meinen Zielvorstellungen noch näher ? | F9: =IF(K9=0,"",HYPERLINK("["&L$1&".xlsm]'"&MID(L9,3,20),"→["&M9&"."&K9&"]")) -> →[0.6] | K9: ='0.Leitfaden'!D6 -> 6 | L9: =IFERROR(_xlfn.FORMULATEXT(K9),"") -> ='0.Leitfaden'!D6 | M9: =IF(MID(L9,2,1)="'",VALUE(MID(L9,3,1)),0) -> 0
B10: =B$3&D$3&D10&E$3 -> [8.10] | C10: =B$3&D10&E$3 -> [10] | D10: =ROW() -> 10 | E10: 100prosim.P ist auf die Beantwortung dieser Fragen ausgerichtet, einerseits genügend differenziert, andererseits möglichst aufwandsarm und einfach.
B11: =B$3&D$3&D11&E$3 -> [8.11] | C11: =B$3&D11&E$3 -> [11] | D11: =ROW() -> 11 | E11: Vor der Anwendung sind Daten für die eigene Region (Zielregion) zu erfassen. Zum Einstieg genügt bereits ein Express-Setup mit 10 Daten. Im günstigen Fall In einem Standard-Setup können weitere Daten zum örtlichen Bestand von Wind- und Solaranlegen erfasst werden, um den Wiedererkennungswert zu erhöhen und ein realistischeres Bild von den Veränderungen zu erhalten. Die Arbeitsschritte bei Setup und Anwendung werden im Folgenden beschrieben.
B12: [8.12] | C12: [12] | D12: =ROW() -> 12
B13: =B$3&D$3&D13&E$3 -> [8.13] | C13: =B$3&D13&E$3 -> [13] | D13: =ROW() -> 13 | E13: Übersicht
B14: [8.14] | C14: [14] | D14: =ROW() -> 14 | E14: =E22 -> 100prosim.P nutzen? | F14: =IF(K14=0,"",HYPERLINK("["&'6.Standarddaten'!$M$2&".xlsm]'"&'6.Standarddaten'!$N$3&K14,"["&K14&"]")) -> [22] | K14: ='8.Hilfe'!$D$22 -> 22
B15: [8.15] | C15: =B$3&D15&E$3 -> [15] | D15: =ROW() -> 15 | E15: =E41 -> Express-Setup | F15: =IF(K15=0,"",HYPERLINK("["&'6.Standarddaten'!$M$2&".xlsm]'"&'6.Standarddaten'!$N$3&K15,"["&K15&"]")) -> [41] | K15: ='8.Hilfe'!$D$41 -> 41
B16: [8.16] | C16: [16] | D16: =ROW() -> 16 | E16: =E88 -> Standard-Setup (optional) | F16: =IF(K16=0,"",HYPERLINK("["&'6.Standarddaten'!$M$2&".xlsm]'"&'6.Standarddaten'!$N$3&K16,"["&K16&"]")) -> [88] | K16: ='8.Hilfe'!$D$88 -> 88
B17: =B$3&D$3&D17&E$3 -> [8.17] | C17: =B$3&D17&E$3 -> [17] | D17: =ROW() -> 17 | E17: =E121 -> Extra-Setup (bei Bedarf) | F17: =IF(K17=0,"",HYPERLINK("["&'6.Standarddaten'!$M$2&".xlsm]'"&'6.Standarddaten'!$N$3&K17,"["&K17&"]")) -> [121] | K17: ='8.Hilfe'!$D$121 -> 121
B18: =B$3&D$3&D18&E$3 -> [8.18] | C18: =B$3&D18&E$3 -> [18] | D18: =ROW() -> 18 | E18: =E126 -> Szenario anwenden | F18: =IF(K18=0,"",HYPERLINK("["&'6.Standarddaten'!$M$2&".xlsm]'"&'6.Standarddaten'!$N$3&K18,"["&K18&"]")) -> [126] | G18: =IF(P23=0,"",HYPERLINK("["&#REF!&".xlsm]'"&MID(M18,3,20),"→["&N23&"."&P23&"]")) ->  | K18: ='8.Hilfe'!$D$126 -> 126
B19: [8.19] | C19: [19] | D19: =ROW() -> 19 | E19: =E178 -> BSz koppeln | F19: =IF(K19=0,"",HYPERLINK("["&'6.Standarddaten'!$M$2&".xlsm]'"&'6.Standarddaten'!$N$3&K19,"["&K19&"]")) -> [178] | K19: ='8.Hilfe'!$D$178 -> 178
B20: =B$3&D$3&D20&E$3 -> [8.20] | C20: =B$3&D20&E$3 -> [20] | D20: =ROW() -> 20 | E20: =E198 -> Karte Basisregion ändern: | F20: =IF(K20=0,"",HYPERLINK("["&'6.Standarddaten'!$M$2&".xlsm]'"&'6.Standarddaten'!$N$3&K20,"["&K20&"]")) -> [198] | K20: ='8.Hilfe'!$D$198 -> 198
B21: [8.21] | C21: [21] | D21: =ROW() -> 21
B22: [8.22] | C22: [22] | D22: =ROW() -> 22 | E22: ='0.Leitfaden'!E10 -> 100prosim.P nutzen?
B23: =B$3&D$3&D23&E$3 -> [8.23] | C23: =B$3&D23&E$3 -> [23] | D23: =ROW() -> 23 | E23: Zurechtfinden: Tabellen, Zeilen, Verweise | F23: =IF(K23=0,"",HYPERLINK("["&L$1&".xlsm]'"&MID(L23,3,20),"→["&M23&"."&K23&"]")) -> →[0.11] | K23: ='0.Leitfaden'!D11 -> 11 | L23: =IFERROR(_xlfn.FORMULATEXT(K23),"") -> ='0.Leitfaden'!D11 | M23: =IF(MID(L23,2,1)="'",VALUE(MID(L23,3,1)),0) -> 0
B24: =B$3&D$3&D24&E$3 -> [8.24] | C24: =B$3&D24&E$3 -> [24] | D24: =ROW() -> 24 | E24: - Tabellen: 100prosim.P ist innerhalb dieser Excel-Datei in eine Reihe von Tabellen mit spezifischen Aufgaben gegliedert. In der Register-Leiste unten kann die anzuzeigende Tabelle ausgewählt werden. Der Tabellenbezeichnung ist eine Tabellennummer als Referenz vorangestellt.
B25: [8.25] | C25: [25] | D25: =ROW() -> 25 | E25: - Zeilen: Die Zeilen jeder Tabelle sind durchnummeriert und als Referenz links angezeigt.
B26: [8.26] | C26: [26] | D26: =ROW() -> 26 | E26: - Verweise: Tabellen- und Zeilennummer dienen als Verweisziele, Beispiele:
B27: [8.27] | C27: [27] | D27: =ROW() -> 27 | E27: [1.46] verweist auf die Tabelle '1.Ansicht', Zeile 46. [19] verweist auf eine Zeile in der selben Tabelle (die Tabellennummer wird in diesem Fall nicht angezeigt). [D.1.175] verweist auf Tabelle.Zeile in einer anderen 100prosim-Datei (Beispiel: D).
B28: [8.28] | C28: [28] | D28: =ROW() -> 28 | E28: Verweise auf die Datenquelle sind jeweils grau gefärbt, z. B. [6.14]
B29: [8.29] | C29: [29] | D29: =ROW() -> 29 | E29: Verweise auf kontextsensitive Hilfetexte in dieser Tabelle '8.Hilfe' sind jeweils hellblau [8.7]
B30: =B$3&D$3&D30&E$3 -> [8.30] | C30: =B$3&D30&E$3 -> [30] | D30: =ROW() -> 30 | E30: Verweise auf die als nächstes für Betrachtung bzw. Bearbeitung relevante Tabellen-Zeile sind jeweils dunkelblau in dieser Form dargestellt: → [0.11]
B31: [8.31] | C31: [31] | D31: =ROW() -> 31
B32: [8.32] | C32: [32] | D32: =ROW() -> 32 | E32: Navigieren: Hyperlinks optimal nutzen | F32: =IF(K32=0,"",HYPERLINK("["&L$1&".xlsm]'"&MID(L32,3,20),"→["&M32&"."&K32&"]")) -> →[0.12] | K32: ='0.Leitfaden'!D12 -> 12 | L32: =IFERROR(_xlfn.FORMULATEXT(K32),"") -> ='0.Leitfaden'!D12 | M32: =IF(MID(L32,2,1)="'",VALUE(MID(L32,3,1)),0) -> 0
B33: =B$3&D$3&D33&E$3 -> [8.33] | C33: =B$3&D33&E$3 -> [33] | D33: =ROW() -> 33 | E33: - Hyperlinks: In der Regel sind die Verweise jeweils mit einem Hyperlink hinterlegt, der durch Klick direkt zum Verweisziel führt. Der Beispiel-Verweis rechts führt zur nächsten Zeile:
B34: [8.34] | C34: [34] | D34: =ROW() -> 34 | E34: -Zurück zum Ausgangspunkt nach Hyperlink-Nutzung: ← Button in Schnellzugriffsleiste im Fenster oben
B35: =B$3&D$3&D35&E$3 -> [8.35] | C35: =B$3&D35&E$3 -> [35] | D35: =ROW() -> 35 | E35: - Zurück-Button fehlt? Aktivieren über 'Symbolleiste für den Schnellzugriff anpassen' - 'Weitere Befehle...'; Fenster 'Excel-Optionen' erscheint; unter 'Befehle auswählen' 'Alle Befehle' auswählen; in der Liste nach unten scrollen; Doppelklick auf '← Zurück'; Fenster über OK schließen; das Zurück-Symbol wird im Schnellzugriff-Menü oben angezeigt.
B36: [8.36] | C36: [36] | D36: =ROW() -> 36 | E36: Daten eingeben: Eigenes Szenario definieren, Werte verändern | F36: =IF(K36=0,"",HYPERLINK("["&L$1&".xlsm]'"&MID(L36,3,20),"→["&M36&"."&K36&"]")) -> →[0.13] | K36: ='0.Leitfaden'!D13 -> 13 | L36: =IFERROR(_xlfn.FORMULATEXT(K36),"") -> ='0.Leitfaden'!D13 | M36: =IF(MID(L36,2,1)="'",VALUE(MID(L36,3,1)),0) -> 0
B37: [8.37] | C37: [37] | D37: =ROW() -> 37 | E37: Die Tabellen sind gegen ungewollte Veränderungen geschützt - mit Ausnahme der Zellen, die für Nutzer-Eingaben bestimmt und dafür freigegeben sind. Die sind gelb hinterlegt.
B38: [8.38] | C38: [38] | D38: =ROW() -> 38 | E38: Folgende Eingabeoptionen sind möglich (falls mit Excel nicht vertraut): - Zahlenwert oder Text: Tastatureingabe, Abschluss mit 'Enter' - Übernahme aus einer anderen Zelle: Eingabe von = (ohne Enter); Wechsel zu der Zelle, deren Wert / Text übernommen werden soll (auch von einer anderen Tabelle); mit 'Enter' abschließen; - Berechnungsformel: Eingabe von = ; Eingabe oder Übernahme erster Wert (ohne Leerzeichen); Eingabe von + oder - oder * oder / ; Eingabe oder Übernahme des nächsten Wertes; ggf. weitere Werte verknüpfen; Abschluss mit 'Enter'.
B39: [8.39] | C39: [39] | D39: =ROW() -> 39
B40: [8.40] | C40: [40] | D40: =ROW() -> 40
B41: [8.41] | C41: [41] | D41: =ROW() -> 41 | E41: Express-Setup
B42: [8.42] | C42: [42] | D42: =ROW() -> 42 | E42: Einrichtung des 100prosim.P-Formulars für eine beliebige Zielregion (Gemeinde, Stadt, Landkreis oder Gruppierungen daraus). Innerhalb weniger Minuten entsteht so eine erste Projektion des übergeordneten Basisszenarios Deutschland bzw. Bundesland auf die Zielregion. Die Statusdaten sind hier grob geschätzt, sie werden einfach proportional vom Basisszenario auf die Verhältnisse der Zielregion herunter gerechnet. Hinweis: Bei Bedarf können die herunter gerechneten Statusdaten bei anschließender Recherche durch die tatsächlichen Statusdaten ersetzt werden; siehe Standard-Setup: | F42: =IF(K42=0,"",HYPERLINK("["&'6.Standarddaten'!$M$2&".xlsm]'"&'6.Standarddaten'!$N$3&K42,"["&K42&"]")) -> [88] | K42: ='8.Hilfe'!$D$88 -> 88
B43: =B$3&D$3&D43&E$3 -> [8.43] | C43: =B$3&D43&E$3 -> [43] | D43: =ROW() -> 43
B44: =B$3&D$3&D44&E$3 -> [8.44] | C44: =B$3&D44&E$3 -> [44] | D44: =ROW() -> 44 | E44: Teil 1: Aufnahme der Kenndaten der Szenario-Projektion für die gewünschte Zielregion | F44: =IF(K44=0,"",HYPERLINK("["&L$1&".xlsm]'"&MID(L44,3,20),"→["&M44&"."&K44&"]")) -> →[5.7] | K44: ='5.Kenndaten'!D7 -> 7 | L44: =IFERROR(_xlfn.FORMULATEXT(K44),"") -> ='5.Kenndaten'!D7 | M44: =IF(MID(L44,2,1)="'",VALUE(MID(L44,3,1)),0) -> 5
B45: [8.45] | C45: [45] | D45: =ROW() -> 45 | E45: Art der Regio festlegen: Klick auf das gelbe Eingabefeld; über Dreieckbutton Auswahlfeld herunterklappen; Klick auf zutreffendes Angebot; zugehöriges Art-Kürzel erscheint automatisch. Hinweis: 'Stadt+Landkreis' gilt für den Fall von Landkreisen mit kreisfreier Stadt.
B46: [8.46] | C46: [46] | D46: =ROW() -> 46 | E46: Regionsname: Name der Gemeinde/Stadt/Landkreis/Region.
B47: [8.47] | C47: [47] | D47: =ROW() -> 47 | E47: Versions-Datum: Empfohlen wird hier die Eingabe des aktuellen Datums. Dient zur Bildung einer Versionsnummer zur eindeutigen Identifikation der erstellten Szenario-Projektion. Hinweis: Eingabe des aktuellen Datums wird von Excel unterstützt durch die Tastenkombination 'Strg' und Punkt. Variante: Kann optional verwendet werden, um ggf.Varianten vom Grund-Szenario unterscheidbar zu machen und unter eigenem Dateinamen abspeichern zu können.
B48: [8.48] | C48: [48] | D48: =ROW() -> 48 | E48: Datenerhebung-Name: UrheberIn dieser Szenario-Projektion, außerdem Möglichkeit für ein zusätzliches Namenskürzel.
B49: [8.49] | C49: [49] | D49: =ROW() -> 49 | E49: Basis-Region: Kürzel für die Basisregion, die der Szenario-Projektion zugrunde liegt (D für Deutschland, B.xx Kennung für Bundesland xx). Hinweis: Änderung zum Setup nicht erforderlich; später nur bei Änderungen am zugrunde liegenden Basisszenario.
B50: [8.50] | C50: [50] | D50: =ROW() -> 50 | E50: Szenario-Kennung: Wird automatisch aus den Kenndaten erzeugt und dient als eindeutiger Identifikator für diese Szenario-Projektion.
B51: [8.51] | C51: [51] | D51: =ROW() -> 51 | E51: Speichern: Der aktuelle Stand dieser Datei wird mit der Szenario-Kennung als Dateiname im aktuellen Verzeichnis als neue Datei gespeichert.
B52: [8.52] | C52: [52] | D52: =ROW() -> 52 | E52: Dateiname aktuell: Dient der Kontrolle, ob die Datei bereits unter der Szenario-Kennung abgespeichert wurde. Wenn nicht, ist dies zu empfehlen, um die Datei eindeutig identifizieren zu können (siehe oben).
B53: =B$3&D$3&D53&E$3 -> [8.53] | C53: =B$3&D53&E$3 -> [53] | D53: =ROW() -> 53
B54: =B$3&D$3&D54&E$3 -> [8.54] | C54: =B$3&D54&E$3 -> [54] | D54: =ROW() -> 54 | E54: Karte Basisregion - Zielregion kennzeichnen: | F54: =IF(K54=0,"",HYPERLINK("["&L$1&".xlsm]'"&MID(L54,3,20),"→["&M54&"."&K54&"]")) -> →[1.11] | K54: ='1.Ansicht'!D11 -> 11 | L54: =IFERROR(_xlfn.FORMULATEXT(K54),"") -> ='1.Ansicht'!D11 | M54: =IF(MID(L54,2,1)="'",VALUE(MID(L54,3,1)),0) -> 1
B55: [8.55] | C55: [55] | D55: =ROW() -> 55 | E55: ... Option 1 (einfach): In '1.Ansicht' Blattschutz entfernen im Untermenü 'Überprüfen'; dicken Endpunkt der blauen Linie rechts zur Position der Zielregion schieben; Anfang der blauen Linie unter die Überschrift ziehen; Achtung: Blattschutz ohne Kennwort wieder setzen im Untermenü 'Überprüfen'.
B56: =B$3&D$3&D56&E$3 -> [8.56] | C56: =B$3&D56&E$3 -> [56] | D56: =ROW() -> 56
B57: =B$3&D$3&D57&E$3 -> [8.57] | C57: =B$3&D57&E$3 -> [57] | D57: =ROW() -> 57 | E57: ... Option 2 (empfohlen für Landkreise): In '1.Ansicht' Blattschutz entfernen im Untermenü 'Überprüfen'; vorhandene Karte markieren; in Zwischenablage kopieren mit Strg+c; Grafikprogramm öffnen (im Beispiel IrfanView, bewährte Freeware); kopierte Grafik laden mit Strg+v; Menü 'Bearbeiten' - 'Zeichnendialog anzeigen'; Paint-Leiste links erscheint; Klick auf das Rechteck ganz unten in Paint-Leiste; Farbauswahlmenü erscheint; Farbauswahl für Zielregion (empfohlen gelb); 'OK'; Farbeimer in Paint-Leiste auswählen; Mauszeiger (Farbeimer) über den Landkreis navigieren und mit Klick gelb färben; Grafik in das lokale Arbeitsverzeichnis speichern; Grafik in Zwischenablage kopieren mit Strg+c; in '1.Ansicht' wechseln; vorhandene Grafik löschen und neue Grafik aus Zwischenablage einfügen mit Strg+v; Achtung: Blattschutz ohne Kennwort wieder setzen im Untermenü 'Überprüfen'.
B58: =B$3&D$3&D58&E$3 -> [8.58] | C58: =B$3&D58&E$3 -> [58] | D58: =ROW() -> 58
B59: =B$3&D$3&D59&E$3 -> [8.59] | C59: =B$3&D59&E$3 -> [59] | D59: =ROW() -> 59
B60: =B$3&D$3&D60&E$3 -> [8.60] | C60: =B$3&D60&E$3 -> [60] | D60: =ROW() -> 60 | E60: Express-Setup Teil 2: Strukturdaten aufnehmen - Bevölkerungs- und Flächendaten der gewünschten Zielregion sind grundlegend, um die erwarteten Beiträge der Zielregion zu einer 100%EE-Versorgung gemäß Basis-Szenario berechnen zu können. | H60: ='6.Standarddaten'!B8 -> [6.8]
B61: =B$3&D$3&D61&E$3 -> [8.61] | C61: =B$3&D61&E$3 -> [61] | D61: =ROW() -> 61 | E61: Datenquelle: Die Datenbank genesis der statistischen Ämter des Bundes und der Länder hat sich bewährt als fundierte Standard-Datengrundlage.
B62: [8.62] | C62: [62] | D62: =ROW() -> 62
B63: [8.63] | C63: [63] | D63: =ROW() -> 63 | E63: Bevölkerung: Entsprechend Codewort zuerst Datenbank-Auswahl Thema 1; dann 12 Bevölkerung; dann 124; dann 12411; dann entweder 12411-01-01-5 (bei Zielregion = Gemeinde) oder 12411-01-01-4 (bei Stadt, Landkreis, Bundesland).
D64: =ROW() -> 64 | E64: Stichtag: In genesis ZEIT AUSWÄHLEN; Defaulteintrag 'Die letzten 1 Zeitangaben' unverändert lassen (oder im besonderen Fall ein früheres Datum wählen); ÜBERNEHMEN; Wechsel zurück in Arbeitsblatt 6.Standarddaten; Zeitangabe in Eingabefeld 'Stichtag' eintragen.
B65: [8.65] | C65: [65] | D65: =ROW() -> 65 | E65: Bevölkerung xxx: Hier wird die Bevölkerungszahl der Zielregion als Rechercheergebnis angezeigt, die als Berechnungsgrundlage verwendet werden. Im Fall von 'Stadt+Landkreis' ist das die Summe aus den zwei Eingabewerten in den Folgezeilen.
B66: [8.66] | C66: [66] | D66: =ROW() -> 66 | E66: Eingabe bzw. Anteil kreisfreie Stadt Eingabe: In genesis Tabellenaufbau, Zeile KREISE bzw. Zeile GEMEINDE Klick auf AUSWÄHLEN; folgende Maske erscheint:
B67: [8.67] | C67: [67] | D67: =ROW() -> 67 | E67: …weiter in der genesis-Maske 'Ausprägungen': In Filteroption Auswahlfeld Zielregion (hier exemplarisch 'Goslar') eingeben; unter Kriterium 'Inhalt' auswählen; in der angezeigten Liste die Zeile mit der Zielregion auswählen durch Häkchen in Spalte 'Ausprägungen' (im Fall von 'kreisfreie Stadt + Landkreis' beide Zeilen auswählen); Klick auf ÜBERNEHMEN; es erscheint wieder die Maske 'Tabellenaufbau', dort Klick auf WERTEABRUF unten rechts; folgende Tabelle erscheint:
B68: [8.68] | C68: [68] | D68: =ROW() -> 68
B69: [8.69] | C69: [69] | D69: =ROW() -> 69 | E69: …weiter in der genesis-Tabelle: Den für die Zielregion angezeigten Wert unter 'Insgesamt' (im Beispiel 136 292) abtippen oder kopieren (im Fall von kreisfreie Stadt + Landkreis beide Werte); Wechsel zurück in Arbeitsblatt 6.Standarddaten; Bevölkerungszahl(en) in Eingabefeld(er) einfügen, ACHTUNG: Der Tausender-Sprung wird in genesis durch ein Leerzeichen dargestellt, dies muss bei Kopieren ins Excel-Eingabefeld gelöscht werden! Vermeidbar ist das durch Download der Tabelle als CSV-Datei (Symbol oben 2. von links), dann kann der Wert ohne weiteres kopiert werden.
B70: [8.70] | C70: [70] | D70: =ROW() -> 70 | E70: Anteil kreisfreie Stadt Eingabe (gegebenenfalls, sonst leer): Abtippen bzw. Kopieren analog: | F70: =IF(K70=0,"",HYPERLINK("["&'6.Standarddaten'!$M$2&".xlsm]'"&'6.Standarddaten'!$N$3&K70,"["&K70&"]")) -> [70] | K70: ='8.Hilfe'!$D$70 -> 70
B71: [8.71] | C71: [71] | D71: =ROW() -> 71 | E71: Bodenfläche nach Art der Nutzung: Entsprechend Codewort zuerst Datenbank-Auswahl Thema 3; dann 33 Flächennutzung; dann 33111 Flächenerhebung nach Art der tatsächlichen Nutzung; dann entweder 33111-01-02-5 (bei Zielregion = Gemeinde) oder33111-01-02-4 (bei Stadt, Landkreis, Bundesland). ACHTUNG: 33111-01-02 wählen, da hier die jüngeren Daten seit 2016 nach einer geänderten Statistikmethode erfasst sind! 33111-01-01 gehen nur bis 2015.
B72: [8.72] | C72: [72] | D72: =ROW() -> 72 | E72: Stichtag: In genesis ZEIT AUSWÄHLEN; Defaulteintrag 'Die letzten 1 Zeitangaben' unverändert lassen (oder im besonderen Fall ein früheres Datum wählen); ÜBERNEHMEN; Wechsel zurück in Arbeitsblatt 6.Standarddaten; Zeitangabe in Eingabefeld 'Stichtag' eintragen.
B73: [8.73] | C73: [73] | D73: =ROW() -> 73 | E73: Bodenfläche gesamt xxx: Hier wird die gesamte Bodenfläche der Zielregion als Rechercheergebnis angezeigt, die als Berechnungsgrundlage verwendet wird. Im Fall von 'Stadt+Landkreis' ist das die Summe aus den zwei Eingabewerten in den Folgezeilen.
B74: [8.74] | C74: [74] | D74: =ROW() -> 74 | E74: Eingabe bzw. Anteil kreisfreie Stadt Eingabe: In genesis Tabellenaufbau, Zeile KREISE bzw. Zeile GEMEINDE Klick auf AUSWÄHLEN; die Maske 'Ausprägungen' erscheint. In Filteroption Auswahlfeld Zielregion (hier exemplarisch 'Goslar') eingeben; unter Kriterium 'Inhalt' auswählen; in der angezeigten Liste die Zeile mit der Zielregion auswählen durch Häkchen in Spalte 'Ausprägungen' (im Fall von 'kreisfreie Stadt + Landkreis' beide Zeilen auswählen); Klick auf ÜBERNEHMEN; es erscheint wieder die Maske 'Tabellenaufbau', dort Klick auf WERTEABRUF unten rechts; es erscheint die Tabelle 'Bodenfläche nach Art der tatsächlichen Nutzung'. Empfohlen wird ein Download als CSV-Datei anstelle einer Nutzung der im Browser angezeigten Tabelle. Die weiteren Hilfeangaben beziehen sich auf die geöffnete CSV-Datei, Download über das CSV-Symbol oben 2. von links; in einem neuen Excel-Fenster öffnet sich CSV-Tabelle '33111-01-02-..'.
B75: [8.75] | C75: [75] | D75: =ROW() -> 75 | E75: ….weiter in CSV-Tabelle '33111-01-02-..': hier den für die Zielregion angezeigten Wert unter 'Bodenfläche insgesamt' (im Beispiel Goslar 96672 ha) kopieren mit Strg-c; Wechsel zurück in Arbeitsblatt 6.Standarddaten*; Klick auf Eingabefeld mit rechter Maustaste; im Menü aus Eingabeoptinen rechtes Symbol wählen ('An Zielformatierung anpassen (M)'); der kopierte Wert erscheint in der Eingabezelle. *) ACHTUNG: CSV-Tabelle NICHT schließen, sie wird gleich noch gebraucht.
B76: =B$3&D$3&D76&E$3 -> [8.76] | C76: =B$3&D76&E$3 -> [76] | D76: =ROW() -> 76 | E76: Im Fall von 'kreisfreie Stadt + Landkreis' den Vorgang für den anderen Wert wiederholen wie: | F76: =IF(K76=0,"",HYPERLINK("["&'6.Standarddaten'!$M$2&".xlsm]'"&'6.Standarddaten'!$N$3&K76,"["&K76&"]")) -> [75] | K76: ='8.Hilfe'!$D$75 -> 75
B77: [8.77] | C77: [77] | D77: =ROW() -> 77 | E77: … davon Siedlung: Hier wird der als Siedlungsfläche genutzte Flächenanteil der Zielregion als Rechercheergebnis angezeigt, die als Berechnungsgrundlage verwendet wird. Im Fall von 'Stadt+Landkreis' ist das die Summe aus den zwei Eingabewerten in den Folgezeilen.
B78: [8.78] | C78: [78] | D78: =ROW() -> 78 | E78: ….weiter mit Wechsel in CSV-Tabelle '33111-01-02-..': hier den für die Zielregion angezeigten Wert unter 'Siedlung insgesamt' (im Beispiel Goslar 6903 ha) kopieren mit Strg-c; Wechsel zurück in Arbeitsblatt 6.Standarddaten*; Klick auf Eingabefeld mit rechter Maustaste; im Menü aus Eingabeoptinen rechtes Symbol wählen ('An Zielformatierung anpassen (M)'); der kopierte Wert erscheint in der Eingabezelle. *) ACHTUNG: CSV-Tabelle NICHT schließen, sie wird gleich noch gebraucht.
B79: =B$3&D$3&D79&E$3 -> [8.79] | C79: =B$3&D79&E$3 -> [79] | D79: =ROW() -> 79 | E79: Im Fall von 'kreisfreie Stadt + Landkreis' den Vorgang für den anderen Wert wiederholen wie: | F79: =IF(K79=0,"",HYPERLINK("["&'6.Standarddaten'!$M$2&".xlsm]'"&'6.Standarddaten'!$N$3&K79,"["&K79&"]")) -> [78] | K79: ='8.Hilfe'!$D$78 -> 78
B80: [8.80] | C80: [80] | D80: =ROW() -> 80 | E80: … davon Landwirtschaft: Hier wird der landwirtschaftlich genutzte Flächenanteil der Zielregion als Rechercheergebnis angezeigt, die als Berechnungsgrundlage verwendet wird. Im Fall von 'Stadt+Landkreis' ist das die Summe aus den zwei Eingabewerten in den Folgezeilen.
B81: [8.81] | C81: [81] | D81: =ROW() -> 81 | E81: ….weiter mit Wechsel in CSV-Tabelle '33111-01-02-..': hier den für die Zielregion angezeigten Wert unter 'Landwirtschaft insgesamt' (im Beispiel Goslar 6903 ha) kopieren mit Strg-c; Wechsel zurück in Arbeitsblatt 6.Standarddaten; Klick auf Eingabefeld mit rechter Maustaste; im Menü aus Eingabeoptinen rechtes Symbol wählen ('An Zielformatierung anpassen (M)'); der kopierte Wert erscheint in der Eingabezelle.
B82: =B$3&D$3&D82&E$3 -> [8.82] | C82: =B$3&D82&E$3 -> [82] | D82: =ROW() -> 82 | E82: Im Fall von 'kreisfreie Stadt + Landkreis' den Vorgang für den anderen Wert wiederholen wie: | F82: =IF(K82=0,"",HYPERLINK("["&'6.Standarddaten'!$M$2&".xlsm]'"&'6.Standarddaten'!$N$3&K82,"["&K82&"]")) -> [81] | K82: ='8.Hilfe'!$D$81 -> 81
B83: [8.83] | C83: [83] | D83: =ROW() -> 83
B84: [8.84] | C84: [84] | D84: =ROW() -> 84 | E84: Bevölkerungsdichte xxx: Resultiert aus Bevölkerungszahl und Bodenfläche der Zielregion.
B85: [8.85] | C85: [85] | D85: =ROW() -> 85 | E85: Bevölkerungsdichte Deutschland: Wird übernommen aus dem übergeordneten Basisszenario.
B86: [8.86] | C86: [86] | D86: =ROW() -> 86 | E86: Energieverbraucher solidar xxx: Resultiert aus der Bevölkerungsdichte Deutschlands bezogen auf die Bodenfläche der Zielregion. Dient der solidarischen Verteilung der Bedarfsdeckungs-Lasten auf die Fläche Deutschlands, indem dicht besiedelte Ballungsregionen von dünn besiedelten ländlichen Regionen mit versorgt werden.
B87: [8.87] | C87: [87] | D87: =ROW() -> 87
B88: =B$3&D$3&D88&E$3 -> [8.88] | C88: =B$3&D88&E$3 -> [88] | D88: =ROW() -> 88 | E88: Standard-Setup (optional)
B89: =B$3&D$3&D89&E$3 -> [8.89] | C89: =B$3&D89&E$3 -> [89] | D89: =ROW() -> 89 | E89: Wesentliche Statusdaten zur tatsächlichen Situation der Wind- und Solarenergiegewinnung in der Zielregion werden hier exakt erfasst, die bei Beschränkung auf Express-Setup lediglich grob geschätzt sind (vom Basisszenario proportional heruntergerechnet). Dadurch wird der Wiedererkennungswert der Situation in der Zielregion entscheidend verbessert. Die Bewertung der Veränderungen zum 100%EE-Ziel steht damit auf einer soliden Grundlage. Inwieweit der Mehraufwand von 1-2 Stunden gerechtfertigt ist, hängt vom Anwendungsfall ab.
B90: [8.90] | C90: [90] | D90: =ROW() -> 90
B91: [8.91] | C91: [91] | D91: =ROW() -> 91 | E91: 3. Schritt: Wind- und Solarstromdaten aufnehmen - installierte Leistung, Anlagenzahlen und Anlagenpositionierung in der gewünschten Zielregion sind grundlegend, um die heutige Situation der Zielregion und die erforderliche Veränderung hin zu einer 100%EE-Versorgung gemäß Basis-Szenario bewerten zu können. | F91: =IF(K91=0,"",HYPERLINK("["&L$1&".xlsm]'"&MID(L91,3,20),"→["&M91&"."&K91&"]")) -> →[6.46] | K91: ='6.Standarddaten'!D46 -> 46 | L91: =IFERROR(_xlfn.FORMULATEXT(K91),"") -> ='6.Standarddaten'!D46 | M91: =IF(MID(L91,2,1)="'",VALUE(MID(L91,3,1)),0) -> 6
B92: =B$3&D$3&D92&E$3 -> [8.92] | C92: =B$3&D92&E$3 -> [92] | D92: =ROW() -> 92 | E92: Zwei Möglichkeiten zur Ermittlung exakter Statusdaten zum Wind- und Solarstrom: - aus dem Marktstammdatenregister (Auswahl (2), im Folgenden durch Hilfe unterstützt) - aus eigener freier Recherche (Auswahl (3)) um damit die Flächen-proportional von der Basisregion auf die Zielregion herunter gerechnete Grobschätzung (Auswahl (1) voreingestellt) zu ersetzen | F92: =IF(K92=0,"",HYPERLINK("["&L$1&".xlsm]'"&MID(L92,3,20),"→["&M92&"."&K92&"]")) -> →[6.50] | K92: ='6.Standarddaten'!D50 -> 50 | L92: =IFERROR(_xlfn.FORMULATEXT(K92),"") -> ='6.Standarddaten'!D50 | M92: =IF(MID(L92,2,1)="'",VALUE(MID(L92,3,1)),0) -> 6
B93: [8.93] | C93: [93] | D93: =ROW() -> 93 | E93: Marktstammdatenregister (MaStR): Datenermittlung aus MaStR der Bundesnetzagentur hat sich bewährt als fundierte Standard-Datengrundlage, Vorgehensweise wird im Folgenden zunächst am Beispiel Windenergie beschrieben:
B94: =B$3&D$3&D94&E$3 -> [8.94] | C94: =B$3&D94&E$3 -> [94] | D94: =ROW() -> 94 | E94: MaStR-Webseite über den Link öffnen. | F94: =IF(K94=0,"",HYPERLINK("["&L$1&".xlsm]'"&MID(L94,3,20),"→["&M94&"."&K94&"]")) -> →[6.48] | K94: ='6.Standarddaten'!D48 -> 48 | L94: =IFERROR(_xlfn.FORMULATEXT(K94),"") -> ='6.Standarddaten'!D48 | M94: =IF(MID(L94,2,1)="'",VALUE(MID(L94,3,1)),0) -> 6
B95: [8.95] | C95: [95] | D95: =ROW() -> 95 | E95: Windenergie: 'Marktstammdatenregister (2)' auswählen. (Vorgehensweise bei alternativer Auswahl 'Freie Recherche (3)' : Eingaben in gelbe Eingabefelder). Stand der Statusdaten wird je nach Fall automatisch eingetragen: im Fall Marktstammdatenregister (2) das Datum der jüngsten Aktualisierung. | F95: =IF(K95=0,"",HYPERLINK("["&L$1&".xlsm]'"&MID(L95,3,20),"→["&M95&"."&K95&"]")) -> →[6.50] | K95: ='6.Standarddaten'!D50 -> 50 | L95: =IFERROR(_xlfn.FORMULATEXT(K95),"") -> ='6.Standarddaten'!D50 | M95: =IF(MID(L95,2,1)="'",VALUE(MID(L95,3,1)),0) -> 6
B96: [8.96] | C96: [96] | D96: =ROW() -> 96 | E96: Die Öffnung der MaStR-Webseite oben hat zur Ansicht 'Aktuelle Einheitsübersicht' - 'Stromerzeugungseinheiten' im Browser geführt:
B97: [8.97] | C97: [97] | D97: =ROW() -> 97 | E97: … weiter im MaStR: '+ NeuerFilter' wählen; je nach Fall 'Landkreis' oder 'Stadt' oder 'Gemeinde' wählen; 'entspricht' wählen; Name Zielregion eintragen (Goslar hier als Beispiel); 'Filter übernehmen' wählen; es erscheint der gesetzte Filter:
B98: [8.98] | C98: [98] | D98: =ROW() -> 98 | E98: … weiter im MaStR: '+ NeuerFilter' wählen; 'Energieträger' wählen; 'entspricht' wählen; 'Wind' wählen; es erscheint der 2. gesetzte Filter:
B99: =B$3&D$3&D99&E$3 -> [8.99] | C99: =B$3&D99&E$3 -> [99] | D99: =ROW() -> 99 | E99: … weiter im MaStR: im gelben Feld 'Der Filter wurde geändert' den Button 'Neu laden' klicken; es erscheint die Liste der Windenergieanlagen in der gewählten Zielregion; unten soweit nach rechts scrollen, dass oben die Spaltenbeschriftung 'Nettonennleistung der Einheit' sichtbar wird; dort Klicken, bis Pfeil nach unten die Abwärtssortierung der Tabelle nach dieser Größe anzeigt.
B100: =B$3&D$3&D100&E$3 -> [8.100] | C100: =B$3&D100&E$3 -> [100] | D100: =ROW() -> 100 | E100: … weiter im MaStR: Button oben 'Tabelle exportieren' klicken; angezeigten Button 'CSV-Export' klicken; Fenster erscheint:
B101: [8.101] | C101: [101] | D101: =ROW() -> 101 | E101: … weiter im MaStR-Dialog: 'Tabelle exportieren' klicken; Fenster 'Öffnen von Stromerzeuger.cxv' erscheint; 'Öffnen mit Excel' wählen; OK klicken; Excel-Fenster 'Stromerzeuger' öffnet sich; Klick im Excel-Fenster auf das graue Feld ganz links über der Zeilennummer 1; die Tabelle erscheint grau hinterlegt; Tabelle in Zwischenspeicher kopieren mit Strg+c; Wechsel in Arbeitsblatt '61.Wind' dieser Datei; Klick auf Zelle A1 in der leeren* Tabelle links oben; Einfügen der kopierten Daten aus der Zwischenablage mit Strg+v; Wechsel zurück in Arbeitsblatt '6.Standarddaten'. *) ACHTUNG: Falls Tabelle nicht leer, vor dem Einfügen Inhalt löschen.
B102: [8.102] | C102: [102] | D102: =ROW() -> 102 | E102: Leistung in Betrieb: Anzeige der in der Zielregion in Betrieb befindlichen Anlagenleistung [MW] zum Stands-Datum gemäß der ausgewählten Datenquelle. Im Fall von 'Marktstammdatenregister (2)' wird der Wert im Arbeitsblatt '61.Wind' automatisch durch Summierung der in Betrieb befindlichen (gemäß Spalte C) Nettonennleistungen (Spalte H) ermittelt und automatisch nach '2.Kalkulation' übernommen.
B103: [8.103] | C103: [103] | D103: =ROW() -> 103 | E103: Anlagen in Betrieb: Anzeige der in der Zielregion in Betrieb befindlichen Anlagen zum Stands-Datum gemäß der ausgewählten Datenquelle. Im Fall von 'Marktstammdatenregister (2)' wird der Wert im Arbeitsblatt '61.Wind' automatisch durch Summierung der in Betrieb befindlichen Anlagen ermittelt und automatisch nach '2.Kalkulation' übernommen.
B104: [8.104] | C104: [104] | D104: =ROW() -> 104 | E104: Vollbetriebstunden: Wird als Rechengröße zur Ermittlung des in MaStR nicht geführten Jahres-Energieertrages verwendet (durch Multiplikation mit der installierten Leistung). Im Regelfall wird der vorhandene Durchschnittswert der Basisregion (1) angesetzt und dabei ein gewisser Fehler durch Abweichungen der Zielregion in Kauf genommen. Eine exakter Ansatz ist aber möglich, wenn der 'Jahresertrag - freie Recherche (2)' bekannt ist.
B105: =B$3&D$3&D105&E$3 -> [8.105] | C105: =B$3&D105&E$3 -> [105] | D105: =ROW() -> 105
B106: [8.106] | C106: [106] | D106: =ROW() -> 106 | E106: Solarenergie: 'Marktstammdatenregister (2)' auswählen. (Vorgehensweise bei alternativer Auswahl 'Freie Recherche (3)' : Eingaben in gelbe Eingabefelder). Stand der Statusdaten wird je nach Fall automatisch eingetragen: im Fall Marktstammdatenregister (2) das Datum der jüngsten Aktualisierung. | F106: =IF(K106=0,"",HYPERLINK("["&L$1&".xlsm]'"&MID(L106,3,20),"→["&M106&"."&K106&"]")) -> →[6.69] | K106: ='6.Standarddaten'!D69 -> 69 | L106: =IFERROR(_xlfn.FORMULATEXT(K106),"") -> ='6.Standarddaten'!D69 | M106: =IF(MID(L106,2,1)="'",VALUE(MID(L106,3,1)),0) -> 6
B107: [8.107] | C107: [107] | D107: =ROW() -> 107 | E107: Bearbeitung erfolgt analog zur Windenergie siehe Hilfe ab Zeile: | F107: =IF(K107=0,"",HYPERLINK("["&'6.Standarddaten'!$M$2&".xlsm]'"&'6.Standarddaten'!$N$3&K107,"["&K107&"]")) -> [96] | G107: =IF(Q112=0,"",HYPERLINK("["&#REF!&".xlsm]'"&MID(N107,3,20),"→["&O112&"."&Q112&"]")) ->  | K107: ='8.Hilfe'!$D$96 -> 96
B108: [8.108] | C108: [108] | D108: =ROW() -> 108 | E108: Unterschied Filterkriterium Energieträger: vgl. : | F108: =IF(K108=0,"",HYPERLINK("["&'6.Standarddaten'!$M$2&".xlsm]'"&'6.Standarddaten'!$N$3&K108,"["&K108&"]")) -> [98] | G108: =IF(Q113=0,"",HYPERLINK("["&#REF!&".xlsm]'"&MID(N108,3,20),"→["&O113&"."&Q113&"]")) ->  | K108: ='8.Hilfe'!$D$98 -> 98
B109: [8.109] | C109: [109] | D109: =ROW() -> 109 | E109: ACHTUNG: Tabellen-Export als CSV-Datei enthält nur die ersten 5000 Datensätze. Wenn die Auswahl mehr Datensätze umfasst (im gezeigten Beispiel 11.495), kann dies mit zusätzlichen Importen gelöst werden (im Beispiel noch zwei zusätzlich), die entsprechend niedrigere Nennleistungsbereiche umfassen.
B110: [8.110] | C110: [110] | D110: =ROW() -> 110 | E110: … dazu wird vor dem Export ein dritter Filter definiert; die Nettonennleistung wird auf 'kleiner als' den zweitniedrigsten Wert der vorhergehenden Tabelle gesetzt (der niedrigste Wert im Beispiel betrug 8,0 - der zweitniedrigste 8,03); nach dem Download wird in 62.solar die erste Zeile unter dem zweitniedrigsten Wert gesucht, die Zelle A in dieser Zeile markiert und der kopierte Inhalt der zuletzt geladenen Stromerzeugungs-Tabelle mit Strg-v passgenau an dieser Stelle eingefügt.
B111: =B$3&D$3&D111&E$3 -> [8.111] | C111: =B$3&D111&E$3 -> [111] | D111: =ROW() -> 111 | E111: …davon auf freier Fläche: Im Szenario wird wegen der unterschiedlichen Flächenansprüche der Photovoltaik-Anlagen zwischen Dach- und Freiflächenanlagen unterschieden.
B112: [8.112] | C112: [112] | D112: =ROW() -> 112 | E112: Marktstammdatenregister (2): Da es dafür im MaStR kein explizites Kriterium für Freiflächenanlagen gibt, hier ein behelfsmäßiges Verfahren: In Arbeitsblatt '62.Solar' anhand von 'Anzeige-Name der Einheit' (Spalte B) und 'Nettonennleistung...' (Spalte H) eigene Einschätzung, im Fall Freiflächenanlage Eintrag 'x' in Spalte O. Die Auswertung erfolgt automatisch. (Im Beispiel rechts wurden die hier nicht relevanten Spalten verschmälert.) Es ist günstig, oben zu beginnen, da Freiflächenanlagen vor allem unter den leistungsstärksten zu finden sind. Im Beispiel sind die Anlagen in Zeile 12 und 17 ausdrücklich als Dachanlagen angegeben. Bei den übrigen wurde von Freiflächenanlagen ausgegangen.
B113: [8.113] | C113: [113] | D113: =ROW() -> 113 | E113: … davon auf Dachfläche:
B114: [8.114] | C114: [114] | D114: =ROW() -> 114 | E114: ="Der Wert resultiert aus der Gesamtleistung der Solaranlagen "&'6.Standarddaten'!B70&" abzüglich der Freiflächenanlagen "&'6.Standarddaten'!B76&"." -> Der Wert resultiert aus der Gesamtleistung der Solaranlagen [6.70] abzüglich der Freiflächenanlagen [6.76].
B115: [8.115] | C115: [115] | D115: =ROW() -> 115 | E115: Vollbetriebstunden: Wird als Rechengröße zur Ermittlung des in MaStR nicht geführten Jahres-Energieertrages verwendet (durch Multiplikation mit der installierten Leistung). Im Regelfall wird der vorhandene Durchschnittswert der Basisregion (1) angesetzt und dabei ein gewisser Fehler durch Abweichungen der Zielregion in Kauf genommen. Eine exakter Ansatz ist aber möglich, wenn der 'Jahresertrag - freie Recherche (2)' bekannt ist.
B116: =B$3&D$3&D116&E$3 -> [8.116] | C116: =B$3&D116&E$3 -> [116] | D116: =ROW() -> 116
B117: [8.117] | C117: [117] | D117: =ROW() -> 117 | E117: 4. Schritt: Strom aus Wasserkraft und Biomasse aufnehmen - falls die jährliche Einspeisung im oder nahe dem Statusjahr verfügbar ist. Falls nicht, wird der Durchschnitt aus dem übergeordneten Szenario proportional auf die Region heruntergerechnet (Standard-Einstellung). | F117: =IF(K117=0,"",HYPERLINK("["&L$1&".xlsm]'"&MID(L117,3,20),"→["&M117&"."&K117&"]")) ->  | L117: =IFERROR(_xlfn.FORMULATEXT(K117),"") ->  | M117: =IF(MID(L117,2,1)="'",VALUE(MID(L117,3,1)),0) -> 0
B118: [8.118] | C118: [118] | D118: =ROW() -> 118 | E118: Wasserkraft: Falls die jährliche Stromeinspeisung in der Region verfügbar ist, kann in den Extradaten die Formel "='2.Kalkulation'!H92" durch diesen Wert ersetzt und die Quellenangabe ergänzt werden. | F118: =IF(K118=0,"",HYPERLINK("["&L$1&".xlsm]'"&MID(L118,3,20),"→["&M118&"."&K118&"]")) -> →[7.8] | K118: ='7.Extradaten'!D8 -> 8 | L118: =IFERROR(_xlfn.FORMULATEXT(K118),"") -> ='7.Extradaten'!D8 | M118: =IF(MID(L118,2,1)="'",VALUE(MID(L118,3,1)),0) -> 7
B119: =B$3&D$3&D119&E$3 -> [8.119] | C119: =B$3&D119&E$3 -> [119] | D119: =ROW() -> 119 | E119: Biomasse: Falls die jährliche Stromeinspeisung in der Region verfügbar ist, kann in den Extradaten die Formel "='2.Kalkulation'!H93" durch diesen Wert ersetzt und die Quellenangabe ergänzt werden. | F119: =IF(K119=0,"",HYPERLINK("["&L$1&".xlsm]'"&MID(L119,3,20),"→["&M119&"."&K119&"]")) -> →[7.9] | K119: ='7.Extradaten'!D9 -> 9 | L119: =IFERROR(_xlfn.FORMULATEXT(K119),"") -> ='7.Extradaten'!D9 | M119: =IF(MID(L119,2,1)="'",VALUE(MID(L119,3,1)),0) -> 7
B120: =B$3&D$3&D120&E$3 -> [8.120] | C120: =B$3&D120&E$3 -> [120] | D120: =ROW() -> 120
B121: =B$3&D$3&D121&E$3 -> [8.121] | C121: =B$3&D121&E$3 -> [121] | D121: =ROW() -> 121 | E121: Extra-Setup (bei Bedarf)
B122: =B$3&D$3&D122&E$3 -> [8.122] | C122: =B$3&D122&E$3 -> [122] | D122: =ROW() -> 122 | E122: ="Für den Bereich Gebäudewärme fehlt eine einheitliche Standarddatenquelle für Gemeinden, Städte und Landkreise. Eine Anpassung der Statusdaten an die tatsächliche Situation vor Ort muss daher bei Bedarf flexibel je nach Datenlage erfolgen." -> Für den Bereich Gebäudewärme fehlt eine einheitliche Standarddatenquelle für Gemeinden, Städte und Landkreise. Eine Anpassung der Statusdaten an die tatsächliche Situation vor Ort muss daher bei Bedarf flexibel je nach Datenlage erfolgen.
B123: [8.123] | C123: [123] | D123: =ROW() -> 123 | E123: ="Die Aufnahme der recherchierten Daten erfogt in Tabelle '"&'7.Extradaten'!BL3&"'. Der Eintrag erfolgt jeweils in der auf den letzten vorhandenen Eintrag folgenden leeren Zeile, die gelb hinterlegt ist. In die Spalte 'Wert' wird der Zahlenwert aufgenommen, der als Statuswert in der Tabelle '"&'2.Kalkulation'!BP3&"' verwendet werden soll." -> Die Aufnahme der recherchierten Daten erfogt in Tabelle '7.Extradaten'. Der Eintrag erfolgt jeweils in der auf den letzten vorhandenen Eintrag folgenden leeren Zeile, die gelb hinterlegt ist. In die Spalte 'Wert' wird der Zahlenwert aufgenommen, der als Statuswert in der Tabelle '2.Kalkulation' verwendet werden soll.
B124: [8.124] | C124: [124] | D124: =ROW() -> 124 | E124: ="Exemplarisch wird hier die Übernahme eines in "&'7.Extradaten'!B8&" aufgenommenen Wertes für 'Wohnfläche pro Person' nach "&'2.Kalkulation'!B57&", Spalte '"&'2.Kalkulation'!I52&'2.Kalkulation'!I53&"', beschrieben. Die dort in dem gelb hinterlegten Feld vorhandene Formel (im Ausgangszustand =H52 ) wird ersetzt durch ='7.Extradaten'!G8 . "&" Am einfachsten geschieht dies durch Eingabe von = und anschließendem Wechsel zum Wert in "&'7.Extradaten'!B8&", Abschluss mit Enter." -> Exemplarisch wird hier die Übernahme eines in [7.8] aufgenommenen Wertes für 'Wohnfläche pro Person' nach [2.57], Spalte 'Status geschätzt', beschrieben. Die dort in dem gelb hinterlegten Feld vorhandene Formel (im Ausgangszustand =H52 ) wird ersetzt durch ='7.Extradaten'!G8 . Am einfachsten geschieht dies durch Eingabe von = und anschließendem Wechsel zum Wert in [7.8], Abschluss mit Enter.
B125: =B$3&D$3&D125&E$3 -> [8.125] | C125: =B$3&D125&E$3 -> [125] | D125: =ROW() -> 125
B126: [8.126] | C126: [126] | D126: =ROW() -> 126 | E126: Szenario anwenden
B127: [8.127] | C127: [127] | D127: =ROW() -> 127 | E127: Im normalen Anwendungslfall genügt diese hier bereits geöffnete Datei, Download und Installation weiterer Dateien ist nicht erforderlich.
B128: [8.128] | C128: [128] | D128: =ROW() -> 128 | E128: Das Szenario ist anwendungsbereit, sowie mindestens das Express-Setup erfolgreich abgeschlossen ist. | F128: =IF(K128=0,"",HYPERLINK("["&L$1&".xlsm]'"&MID(L128,3,20),"→["&M128&"."&K128&"]")) -> →[0.16] | G128: =IF(P135=0,"",HYPERLINK("["&#REF!&".xlsm]'"&MID(M128,3,20),"→["&N135&"."&P135&"]")) ->  | K128: ='0.Leitfaden'!D16 -> 16 | L128: =IFERROR(_xlfn.FORMULATEXT(K128),"") -> ='0.Leitfaden'!D16 | M128: =IF(MID(L128,2,1)="'",VALUE(MID(L128,3,1)),0) -> 0
B129: =B$3&D$3&D129&E$3 -> [8.129] | C129: =B$3&D129&E$3 -> [129] | D129: =ROW() -> 129 | E129: Als Grundlage werden fixe Daten genutzt, die zuvor bereits einmal vom zugrunde liegenden Basiszenarios übernommen wurden (mittels 'Offline-Backup'). Hinweis: Für umfangreichere Betrachtungen kann bei Bedarf jederzeit die Kopplung mit einem Basisszenario erfolgen. In diesem Anwendungsfall kann das Zielszenario im Zusammenhang mit dem Basisszenario betrachtet und verändert werden. | F129: =IF(K129=0,"",HYPERLINK("["&'6.Standarddaten'!$M$2&".xlsm]'"&'6.Standarddaten'!$N$3&K129,"["&K129&"]")) -> [178] | G129: =IF(P137=0,"",HYPERLINK("["&#REF!&".xlsm]'"&MID(M129,3,20),"→["&N137&"."&P137&"]")) ->  | K129: ='8.Hilfe'!$D$178 -> 178
B130: [8.130] | C130: [130] | D130: =ROW() -> 130
B131: [8.131] | C131: [131] | D131: =ROW() -> 131 | E131: Szenario betrachten
B132: [8.132] | C132: [132] | D132: =ROW() -> 132 | E132: Szenario betrachten: Zum strukturierten Kennenlernen des Szenarios kann die Abfolge in '0.Leitfaden' dienen. Wesentliche Botschaften, z. B. an WorshopteilnehmerInnen, sind kursiv gesetzt. | F132: =IF(K132=0,"",HYPERLINK("["&L$1&".xlsm]'"&MID(L132,3,20),"→["&M132&"."&K132&"]")) -> →[0.30] | G132: =IF(P137=0,"",HYPERLINK("["&#REF!&".xlsm]'"&MID(M132,3,20),"→["&N137&"."&P137&"]")) ->  | K132: ='0.Leitfaden'!D30 -> 30 | L132: =IFERROR(_xlfn.FORMULATEXT(K132),"") -> ='0.Leitfaden'!D30 | M132: =IF(MID(L132,2,1)="'",VALUE(MID(L132,3,1)),0) -> 0
B133: =B$3&D$3&D133&E$3 -> [8.133] | C133: =B$3&D133&E$3 -> [133] | D133: =ROW() -> 133 | E133: Eckdaten Zielregion: (ggf. nach oben scrollen, bis die gesamte Tabelle sichtbar ist). | F133: =IF(K133=0,"",HYPERLINK("["&L$1&".xlsm]'"&MID(L133,3,20),"→["&M133&"."&K133&"]")) -> →[0.33] | G133: =IF(P139=0,"",HYPERLINK("["&#REF!&".xlsm]'"&MID(M133,3,20),"→["&N139&"."&P139&"]")) ->  | K133: ='0.Leitfaden'!D33 -> 33 | L133: =IFERROR(_xlfn.FORMULATEXT(K133),"") -> ='0.Leitfaden'!D33 | M133: =IF(MID(L133,2,1)="'",VALUE(MID(L133,3,1)),0) -> 0
B134: =B$3&D$3&D134&E$3 -> [8.134] | C134: =B$3&D134&E$3 -> [134] | D134: =ROW() -> 134 | E134: Unsere mit dem Szenario erfasste Zielregion… wird durch diese Eckdaten repräsentiert. Sie dienen als Grundlage, um die Ansätze im Basisszenario für … auf unsere Region zu projezieren.
B135: [8.135] | C135: [135] | D135: =ROW() -> 135 | E135: Die Fragestellung in diesem Zielszenario: Welche Anteile an Energieverbrauch und Energieproduktion im Basisszenario sind unserer Region zuzuordnen - unter Berücksichtigung der speziellen Gegebenheiten hier? | F135: =IF(K135=0,"",HYPERLINK("["&L$1&".xlsm]'"&MID(L135,3,20),"→["&M135&"."&K135&"]")) -> →[0.34] | G135: =IF(P140=0,"",HYPERLINK("["&#REF!&".xlsm]'"&MID(M135,3,20),"→["&N140&"."&P140&"]")) ->  | K135: ='0.Leitfaden'!D34 -> 34 | L135: =IFERROR(_xlfn.FORMULATEXT(K135),"") -> ='0.Leitfaden'!D34 | M135: =IF(MID(L135,2,1)="'",VALUE(MID(L135,3,1)),0) -> 0
B136: =B$3&D$3&D136&E$3 -> [8.136] | C136: =B$3&D136&E$3 -> [136] | D136: =ROW() -> 136 | E136: ="Etwas detaillierter: "&E9 -> Etwas detaillierter: Was würde die Versorgung mit 100% Erneuerbaren Energien, wie sie in einem Szenario für mein Bundesland bzw. für Deutschland modelliert wurde, für meinen Landkreises, meine Stadt, meine Gemeinde bedeuten? Mit welchen Änderungen käme es meinen Zielvorstellungen noch näher ?
B137: [8.137] | C137: [137] | D137: =ROW() -> 137 | E137: Daher zunächst ein Blick auf das Basisszenario für … . Entwickelt wurde es in Anlehnung an ein Gutachten für das Land Niedersachsen, das 2015 unter Beteiligung von 20 WissenschaftlerInnen von 5 Instituten erarbeitet worden ist". | F137: =IF(K137=0,"",HYPERLINK("["&L$1&".xlsm]'"&MID(L137,3,20),"→["&M137&"."&K137&"]")) -> →[0.35] | G137: =IF(P142=0,"",HYPERLINK("["&#REF!&".xlsm]'"&MID(M137,3,20),"→["&N142&"."&P142&"]")) ->  | K137: ='0.Leitfaden'!D35 -> 35 | L137: =IFERROR(_xlfn.FORMULATEXT(K137),"") -> ='0.Leitfaden'!D35 | M137: =IF(MID(L137,2,1)="'",VALUE(MID(L137,3,1)),0) -> 0
B138: =B$3&D$3&D138&E$3 -> [8.138] | C138: =B$3&D138&E$3 -> [138] | D138: =ROW() -> 138 | E138: Auch hier die Fragestellung: 1. Wieviel werden wir künftig noch verbrauchen und 2. Aus welchen erneuerbaren Quellen soll die Energie zur Deckung kommen?
B139: =B$3&D$3&D139&E$3 -> [8.139] | C139: =B$3&D139&E$3 -> [139] | D139: =ROW() -> 139 | E139: Der Endenergieverbrauch wird um …% reduziert. Dies wird durch bestimmte Annahmen zur Effizienzsteigerungen und Begrenzung der Nutzungsansprüche erreicht. Die Einsparungsbeiträge der einzelnen Anwendungsbereiche sind im linken Diagrammteil dargestellt. | F139: =IF(O139=0,"",HYPERLINK("["&I$1&".xlsm]'"&MID(L139,3,20),"→["&M139&"."&O139&"]")) -> 
B140: [8.140] | C140: [140] | D140: =ROW() -> 140 | E140: Um nach Entfall der fossilen bzw. atomaren Energien zu einer Vollabdeckung mit 100% erneuerbaren Energien zu kommen, wurden hier im Wesentlichen Solar- und Windstrom massiv ausgebaut, aber auch die elektrischen Wärmepumpen.
B141: =B$3&D$3&D141&E$3 -> [8.141] | C141: =B$3&D141&E$3 -> [141] | D141: =ROW() -> 141
B142: [8.142] | C142: [142] | D142: =ROW() -> 142 | E142: Und jetzt zurück zu unserem Zielszenaro … : Schauen wir uns jetzt zunächst die Beiträge unserer Region zum jährlichen Wind- und Solarstromaufkommen an, mit denen im Basisszenario … zum Erreichen von 100% Erneuerbaren gerechnet wird. | F142: =IF(K142=0,"",HYPERLINK("["&L$1&".xlsm]'"&MID(L142,3,20),"→["&M142&"."&K142&"]")) -> →[0.36] | G142: =IF(P143=0,"",HYPERLINK("["&#REF!&".xlsm]'"&MID(M142,3,20),"→["&N143&"."&P143&"]")) ->  | K142: ='0.Leitfaden'!D36 -> 36 | L142: =IFERROR(_xlfn.FORMULATEXT(K142),"") -> ='0.Leitfaden'!D36 | M142: =IF(MID(L142,2,1)="'",VALUE(MID(L142,3,1)),0) -> 0
B143: =B$3&D$3&D143&E$3 -> [8.143] | C143: =B$3&D143&E$3 -> [143] | D143: =ROW() -> 143 | E143: Das Diagramm gibt einen ersten Überblick. Welche Herausforderungen mit diesem Ziel verbunden sein werden, wird mit voller Härte sichtbar, wenn wir nun den heutigen Ausbauzustand daneben stellen: | F143: =IF(K143=0,"",HYPERLINK("["&L$1&".xlsm]'"&MID(L143,3,20),"→["&M143&"."&K143&"]")) -> →[0.37] | G143: =IF(P144=0,"",HYPERLINK("["&#REF!&".xlsm]'"&MID(M143,3,20),"→["&N144&"."&P144&"]")) ->  | K143: ='0.Leitfaden'!D37 -> 37 | L143: =IFERROR(_xlfn.FORMULATEXT(K143),"") -> ='0.Leitfaden'!D37 | M143: =IF(MID(L143,2,1)="'",VALUE(MID(L143,3,1)),0) -> 0
B144: [8.144] | C144: [144] | D144: =ROW() -> 144 | E144: Diagramm-Säulen-Schalter (ganz oben rechts) 'Status' = 1 setzen (Vorzugsweise über Auswahlbutton). | F144: =IF(K144=0,"",HYPERLINK("["&L$1&".xlsm]'"&MID(L144,3,20),"→["&M144&"."&K144&"]")) -> →[0.38] | G144: =IF(P145=0,"",HYPERLINK("["&#REF!&".xlsm]'"&MID(M144,3,20),"→["&N145&"."&P145&"]")) ->  | K144: ='0.Leitfaden'!D38 -> 38 | L144: =IFERROR(_xlfn.FORMULATEXT(K144),"") -> ='0.Leitfaden'!D38 | M144: =IF(MID(L144,2,1)="'",VALUE(MID(L144,3,1)),0) -> 0
B145: [8.145] | C145: [145] | D145: =ROW() -> 145 | E145: Was das im Einzelnen bedeutet, können wir der Wertetabelle entnehmen:
B146: =B$3&D$3&D146&E$3 -> [8.146] | C146: =B$3&D146&E$3 -> [146] | D146: =ROW() -> 146 | E146: Tabellen-Schalter ganz oben rechts = 1 setzen, um Wertetabelle einzublenden. | F146: =IF(K146=0,"",HYPERLINK("["&L$1&".xlsm]'"&MID(L146,3,20),"→["&M146&"."&K146&"]")) -> →[0.39] | G146: =IF(P146=0,"",HYPERLINK("["&#REF!&".xlsm]'"&MID(M146,3,20),"→["&N146&"."&P146&"]")) ->  | K146: ='0.Leitfaden'!D39 -> 39 | L146: =IFERROR(_xlfn.FORMULATEXT(K146),"") -> ='0.Leitfaden'!D39 | M146: =IF(MID(L146,2,1)="'",VALUE(MID(L146,3,1)),0) -> 0
B147: [8.147] | C147: [147] | D147: =ROW() -> 147 | E147: Angezeigt werden die Stautswerte links (grau), die Zielwerte rechts (violett) und die erforderliche Veränderung als Faktor aus Ziel- durch Statuswert (blau). | F147: =IF(K147=0,"",HYPERLINK("["&L$1&".xlsm]'"&MID(L147,3,20),"→["&M147&"."&K147&"]")) -> →[0.40] | G147: =IF(P147=0,"",HYPERLINK("["&#REF!&".xlsm]'"&MID(M147,3,20),"→["&N147&"."&P147&"]")) ->  | K147: ='0.Leitfaden'!D40 -> 40 | L147: =IFERROR(_xlfn.FORMULATEXT(K147),"") -> ='0.Leitfaden'!D40 | M147: =IF(MID(L147,2,1)="'",VALUE(MID(L147,3,1)),0) -> 0
B148: [8.148] | C148: [148] | D148: =ROW() -> 148 | E148: Hinweis 1: Die Zahlen zum erforderlichen Ausbau auf 100% Erneuerbare Energien vor Ort können Reaktionen von Ungläubigkeit bis Bestürzung auslösen. Dabei ist zu beachten, dass sie aus einer Reihe ganz bestimmter Annahmen resultieren, die zu genau diesem einen Punkt im Möglichkeitsraum geführt haben. Aber auch viele andere Konstellationen sind denkbar. Wenn beispielsweise der Energieverbrauch auf ein niedrigeres Niveau zurückgeführt wird, reduziert sich in gleichem Maße die zur Deckung erforderliche Energieerzeugung. Dies durch Szenario-Modifikationen erfahrbar zu machen, daraufhin ist 100prosim konzipiert (siehe unten 'Szenario verändern').
B149: [8.149] | C149: [149] | D149: =ROW() -> 149 | E149: Hinweis 2: Angesichts quantifizierter Ausbauziele für die eigene Region kann leicht der Verdacht aufkommen, gerade sie könnte von den Lasten einer 100% Erneuerbaren Energieversorgung (z. B. Windräder) besonders hart betroffen sein, härter als andere Regionen im Land. 100prosim.P ist auf eine möglichst angemessene Verteilung der landesweiten Gesamtlast ausgerichtet, orientiert an den Flächenverhältnissen vor Ort. Dafür werden die Flächenanteile aus dem Basisszenario eins zu eins auf die eigene Region übertragen: Windparkfläche in % von der Bodenfläche, Solardachfläche in % von der Siedlungsfläche, Solarfreiflächen in % der Landwirtschaftsfläche. Das Mischungsverhältnis der genannten Beiträge zum Stromaufkommen kann verändert werden, entsprechend besonderer örtlicher Gegebenheiten oder nach eigener Priorisierung (siehe unten 'Szenario verändern').
B150: =B$3&D$3&D150&E$3 -> [8.150] | C150: =B$3&D150&E$3 -> [150] | D150: =ROW() -> 150
B151: [8.151] | C151: [151] | D151: =ROW() -> 151 | E151: Die Versorgung der Gebäude mit Raumwärme und Warmwasser wird hier aus drei Gründen betrachtet: 1. Um den Wärmebedarf vor Ort zu decken, muss die Wärme vor Ort erzeugt, gespeichert und bereitgestellt werden; ein Wärmetransport über größere Entfernungen wäre zu verlustreich, im Gegensatz zu Strom und Brennstoffen. 2. Die Vorteile von Umweltwärme, Solarwärme oder Abwärme werden die Nachteile von örtlicher Bindung und fluktuierendem Angebot überwiegen, wenn - die eng begrenzten Biobrennstoff-Potenziale anspruchsvolleren Aufgaben vorbehalten bleiben und - sich auch Power to Gas wegen hoher Wandlungsverluste als zu kostspielig für die schlichte Bereitstellung von warmem Wasser erweist. 3. Angenehm temperierte Wohnungen und heißes Duschwasser sind elementarer Bestandteil unseres engsten Lebensraumes. Die Transformation der Gebäudewärme auf 100% Erneuerbare Energien wird jede und jeden in verschiedener Weise direkt betreffen, sei es als MieterIn oder WohnungseigentümerIn. | F151: =IF(K151=0,"",HYPERLINK("["&L$1&".xlsm]'"&MID(L151,3,20),"→["&M151&"."&K151&"]")) -> →[0.41] | G151: =IF(P148=0,"",HYPERLINK("["&#REF!&".xlsm]'"&MID(M151,3,20),"→["&N148&"."&P148&"]")) ->  | K151: ='0.Leitfaden'!D41 -> 41 | L151: =IFERROR(_xlfn.FORMULATEXT(K151),"") -> ='0.Leitfaden'!D41 | M151: =IF(MID(L151,2,1)="'",VALUE(MID(L151,3,1)),0) -> 0
B152: [8.152] | C152: [152] | D152: =ROW() -> 152 | E152: Das Diagramm gibt zunächst wieder einen Überblick über die Deckungsanteile heute (Status links) und nach der Transformation auf 100% EE: | F152: =IF(K152=0,"",HYPERLINK("["&L$1&".xlsm]'"&MID(L152,3,20),"→["&M152&"."&K152&"]")) -> →[0.41] | G152: =IF(P149=0,"",HYPERLINK("["&#REF!&".xlsm]'"&MID(M152,3,20),"→["&N149&"."&P149&"]")) ->  | K152: ='0.Leitfaden'!D41 -> 41 | L152: =IFERROR(_xlfn.FORMULATEXT(K152),"") -> ='0.Leitfaden'!D41 | M152: =IF(MID(L152,2,1)="'",VALUE(MID(L152,3,1)),0) -> 0
B153: [8.153] | C153: [153] | D153: =ROW() -> 153 | E153: - Es gilt, den heute weitaus überwiegenden Teil fossiler Brennstoffe (grau) künftig möglichst schonend mit dem begrenzten Potenzial an Erneuerbaren Energien zu decken. - Den mit Abstand größten Beitrag liefert hier der optimierte Wärmeschutz der Gebäude durch Energetische Sanierung.
B154: =B$3&D$3&D154&E$3 -> [8.154] | C154: =B$3&D154&E$3 -> [154] | D154: =ROW() -> 154 | E154: - Wärmepumpen: Es folgt der Beitrag von frei verfügbarer Umgebungswärme, die mit Wärmepumpen aus dem Erdreich, dem Grundwasser oder der Luft auf ein nutzbares Temeperaturniveau gebracht wird. Durch Wärmepumpen wird der Einsatz von Primärenergie wie Wind-/Solarstrom auf einen Bruchteil reduziert. - Antriebsstrom: Die elektrische Energie zum Antrieb der Wärmepumpen kommt ebenfalls voll der Gebäudewärme zugute.
B155: [8.155] | C155: [155] | D155: =ROW() -> 155 | E155: - Solarthermie: Eigentlich wäre die direkte Nutzung solarer Wärme ideal: Technisch einfach und ohne Wandlungsverluste. Trotzdem wird hier nur ein bescheidener Beitrag angenommen, der Grund: Wärmeangebot hauptsächlich in der warmen Jahreshälfte und Wärmenachfrage hauptsächlich in der kalten Jahreshälfte fallen zeitlich auseinander. Eine saisonale Speicherung wäre prinzipiell möglich. Pilotprojekte zeigten bisher allerdings wenig ermutigende Ergebnisse wegen der hohen Temperaturverluste und der aufwändigen Großspeicher.
B156: [8.156] | C156: [156] | D156: =ROW() -> 156 | E156: - Abwärme aus KWK: Mit Kraft-Wärme-Kopplung wird bei der Verstromung von Brennstoffen auch die dabei zwangsläufig entstehende Abwärme nutzbar gemacht. Der Effekt ist unabhängig vom eingesetzten Brennstoff, hier wird aber unterschieden zwischen:
B157: [8.157] | C157: [157] | D157: =ROW() -> 157 | E157: a. Wasserstoff (violett), der zum Deckungsausgleich in Wind-/Solarstrom-Mangelphasen rückverstromt wird. Sinnvoll wäre dies besonders dort, wo in der Nähe ein Anschluss an das Wasserstoffnetz möglich ist. Um den Umfang eines künftigen Wasserstoffnetzes zu begrenzen, würde dies vor allem Erzeugungsschwerpunkte (z. B. Windenergie-Schwerpunkte), Speicher (Salzkavernen) und Verbrauchsschwerpunkte (Ballungszentren) verbinden. Wegen des schwankenden Wärmeangebots wäre entweder eine Kombination mit Wärmepumpen oder Wärmespeicherung erforderlich.
B158: [8.158] | C158: [158] | D158: =ROW() -> 158 | E158: b Biobrennstoffe (grün): Die heute verbreitete Verstromung von Biogas oder Holz hätte künftig den Nachteil, dass diese eng begrenzten Potenziale für andere Zwecke (z. B. für Treibstoffe, Industrieprozesse) fehlten und durch verlustreiche Synthesebrennstoffe aus Wind-/Solar-Wasserstoff ersetzt werden müssten. Hier wurde daher von einem weitgehenden Verzicht ausgegangen.
B159: [8.159] | C159: [159] | D159: =ROW() -> 159 | E159: - Brennholz: Es ist davon auszugehen, dass das heute verbreitete Heizen mit Holz sich im Gesamtsystem als nicht haltbar erweisen wird, Begründung wie bei der Verstromung der Biobrennstoffe (siehe oben).
B160: [8.160] | C160: [160] | D160: =ROW() -> 160
B161: [8.161] | C161: [161] | D161: =ROW() -> 161 | E161: Nach diesem Überblick können wir uns jetzt den Daten in der Tabelle widmen. Wir beginnen mit der Einwohnerentwicklung und dem künftigen Anspruch an die verfügbare Wohnfläche, da diese proportional auf die Nachfrage nach Gebäudewärme wirken. | F161: =IF(K161=0,"",HYPERLINK("["&L$1&".xlsm]'"&MID(L161,3,20),"→["&M161&"."&K161&"]")) -> →[0.43] | G161: =IF(P150=0,"",HYPERLINK("["&#REF!&".xlsm]'"&MID(M161,3,20),"→["&N150&"."&P150&"]")) ->  | K161: ='0.Leitfaden'!D43 -> 43 | L161: =IFERROR(_xlfn.FORMULATEXT(K161),"") -> ='0.Leitfaden'!D43 | M161: =IF(MID(L161,2,1)="'",VALUE(MID(L161,3,1)),0) -> 0
B162: [8.162] | C162: [162] | D162: =ROW() -> 162
B163: [8.163] | C163: [163] | D163: =ROW() -> 163 | E163: Szenario verändern
B164: [8.164] | C164: [164] | D164: =ROW() -> 164 | E164: Die Beitrags-Anteile an der Wind-/Solarstromproduktion und an der Deckung der Gebäudewärme, wie sie aus der Projektion des Basisszenarios auf die örtlichen Verhältnisse resultieren, können jeweils verändert werden. Beispiele: Weniger Windparkflächen, dafür entsprechend mehr Solarfreiflächen; mehr Solarthermie, dafür weniger Wärmepumpen. | F164: =IF(K164=0,"",HYPERLINK("["&L$1&".xlsm]'"&MID(L164,3,20),"→["&M164&"."&K164&"]")) -> →[0.51] | G164: =IF(P178=0,"",HYPERLINK("["&#REF!&".xlsm]'"&MID(M164,3,20),"→["&N178&"."&P178&"]")) ->  | K164: ='0.Leitfaden'!D51 -> 51 | L164: =IFERROR(_xlfn.FORMULATEXT(K164),"") -> ='0.Leitfaden'!D51 | M164: =IF(MID(L164,2,1)="'",VALUE(MID(L164,3,1)),0) -> 0
B165: =B$3&D$3&D165&E$3 -> [8.165] | C165: =B$3&D165&E$3 -> [165] | D165: =ROW() -> 165 | E165: In den Diagrammen auf '1.Ansicht' ist jeweils eine dritte Säule 'Ziel Ansatz' einzublenden, um die Veränderungen sichtbar zu machen. Dazu ist der Schalter 'Ziel-Ansatz' ganz oben rechts = 1 zu setzen. Bevor Veränderungen vorgenommen wurden, ist die eingeblendete Säule 'Ziel-Ansatz' zunächst identisch mit der rechten Säule 'Ziel proportional'. | F165: →[1.6] | G165: =IF(P179=0,"",HYPERLINK("["&#REF!&".xlsm]'"&MID(M165,3,20),"→["&N179&"."&P179&"]")) ->  | K165: ='1.Ansicht'!D6 -> 6 | L165: ='1.Ansicht'!D6 | M165: 1
B166: =B$3&D$3&D166&E$3 -> [8.166] | C166: =B$3&D166&E$3 -> [166] | D166: =ROW() -> 166 | E166: In '2.Kalkulation' werden die Daten aufbereitet. Die Seite ist in zwei Tabellen gegliedert: - 'Linke Tabelle' enthält die Daten des Zielregion-Szenarios. - 'Rechte Tabelle' (grau hinterlegt) enthält die Daten des Basisszenarios, auf dem das Zielregion-Szenario basiert. Linke und Rechte Tabelle enthalten in jeder Zeile gleichartige Daten. Rechte Tabelle wird bei Kopplung mit dem Basisszenario direkt mit den aktuellen Daten von dort gespeist, andernfalls aus dem zuvor übernommenen Offline-Backup. Diagramm-Duplikate befinden sich links von der Linken Tabelle, um die Auswirkungen von Veränderungen sofort im Blick zu haben. | F166: →[2.9] | K166: ='2.Kalkulation'!E9 -> 9 | L166: ='2.Kalkulation'!E9 | M166: 2
B167: =B$3&D$3&D167&E$3 -> [8.167] | C167: =B$3&D167&E$3 -> [167] | D167: =ROW() -> 167 | E167: Spaltenstruktur der linken Tabelle: Kurzbeschreibung zu den Spalten sind verfügbar als Excel-Kommentare bzw. Notizen, aktiviert durch Mauszeiger über der jeweiligen Zelle. | F167: →[2.12] | K167: ='2.Kalkulation'!E12 -> 12 | L167: ='2.Kalkulation'!E12 | M167: 2
B168: [8.168] | C168: [168] | D168: =ROW() -> 168 | E168: Zielansätze Wind-/Solarstrom verändern In der Spalte 'Ziel Ansatz' kann anstelle des im Ausgangszustand übernommenen Wertes ein eigener Zielansatz getroffen werden. Dafür sind die gelb hinterlegten Felder zum Beschreiben freigegeben. Um den Ausgangszustand wieder herzustellen, kann der Wert aus Spalte 'Ziel BR-proport.' per Formel =... übernommen werden. Siehe Beispiel Windparkfläche in Zeile... | F168: →[2.17] | K168: ='2.Kalkulation'!E17 -> 17 | L168: ='2.Kalkulation'!E17 | M168: 2
B169: [8.169] | C169: [169] | D169: =ROW() -> 169 | E169: Zielansatz 'Solarstrom von Freiflächen' als Deckungsausgleich Damit nach Veränderung des ursprünglich Basis-proportionalen Zielansatzes von Windstrom bzw. von Solarstrom vom Dach der gesamte Strombeitrag weiter dem entspricht, womit im Basisszenario von der Zielregion gerechnet wird, erfolgt im Regelfall der Ausgleich über die Solarfreiflächen. Dafür wird der Wert in der Folgezeile (grün hinterlegte Zelle) berechnet und per Formel übernommen. Im Sonderfall ist es aber möglich, einen davon abweichenden Wert explizit einzugeben, womit allerdings die Konsistenz mit dem Basisszenario verlassen wird. | F169: →[2.39] | K169: ='2.Kalkulation'!E39 -> 39 | L169: ='2.Kalkulation'!E39 | M169: 2
B170: =B$3&D$3&D170&E$3 -> [8.170] | C170: =B$3&D170&E$3 -> [170] | D170: =ROW() -> 170 | E170: Zielansätze Gebäudewärme verändern Analog zur Wind-/Solarstromerzeugung können auch die Zielansätze für die Gebäudewärme verändert werden. Da Gebäudewärme nicht über längere Strecken transportfähig ist, müssen hier der örtliche Bedarf und die Örtliche Bereitstellung zur Deckung gebracht werden. | F170: →[2.51] | K170: ='2.Kalkulation'!E51 -> 51 | L170: ='2.Kalkulation'!E51 | M170: 2
B171: =B$3&D$3&D171&E$3 -> [8.171] | C171: =B$3&D171&E$3 -> [171] | D171: =ROW() -> 171 | E171: Einwohnerzahl Ein entscheidender Faktor für den Gebäudewärmebedarf ist die Einwohnerzahl. Der als Vorlage dienende Statuswert kann hier verändert werden. | F171: =IF(K171=0,"",HYPERLINK("["&L$1&".xlsm]'"&MID(L171,3,20),"→["&M171&"."&K171&"]")) -> →[2.54] | K171: ='2.Kalkulation'!E54 -> 54 | L171: =IFERROR(_xlfn.FORMULATEXT(K171),"") -> ='2.Kalkulation'!E54 | M171: =IF(MID(L171,2,1)="'",VALUE(MID(L171,3,1)),0) -> 2
B172: [8.172] | C172: [172] | D172: =ROW() -> 172 | E172: Beiträge der verschiedenen Wärmequellen Die proportional aus dem Basisszenario heruntergerechneten Beiträge der verschiedenen Wärmequellen können nach örtlichen Verhältnissen und eigenen Vorstellungen verändert werden. | F172: →[2.69] | K172: ='2.Kalkulation'!E69 -> 69 | L172: ='2.Kalkulation'!E69 | M172: 2
B173: [8.173] | C173: [173] | D173: =ROW() -> 173 | E173: Zielansatz Wärmepumpen als Deckungsausgleich Zum Deckungsausgleich nach vorgenommener Veränderung von Einwohnerzahl bzw. Wärmequellenbeiträgen erfolgt der Deckungsausgleich in der Regel über entsprechende Anpassung des Anteils der Wärmepumpen. | F173: →[2.81] | K173: ='2.Kalkulation'!E81 -> 81 | L173: ='2.Kalkulation'!E81 | M173: 2
B174: [8.174] | C174: [174] | D174: =ROW() -> 174
B175: =B$3&D$3&D175&E$3 -> [8.175] | C175: =B$3&D175&E$3 -> [175] | D175: =ROW() -> 175 | E175: ='0.Leitfaden'!E62 -> Basisszenario (BSz) einbeziehen
B176: [8.176] | C176: [176] | D176: =ROW() -> 176 | E176: Im Interesse der Übersichtlichkeit und einer schnellen Einsatzfähigkeit ist 100prosim.P auf die Abbildung von Teilbereichen des Energiesystems beschränkt. Die Projektion lässt Veränderungen der Zielansätze nur in begrenztem Maß zu. Um darüber hinaus die komplette Funktionalität von 100prosim verfügbar zu machen, können die Tools gekoppelt und im Verbund betrieben werden.
B177: =B$3&D$3&D177&E$3 -> [8.177] | C177: =B$3&D177&E$3 -> [177] | D177: =ROW() -> 177
B178: =B$3&D$3&D178&E$3 -> [8.178] | C178: =B$3&D178&E$3 -> [178] | D178: =ROW() -> 178 | E178: ='0.Leitfaden'!F63 -> BSz koppeln
B179: =B$3&D$3&D179&E$3 -> [8.179] | C179: =B$3&D179&E$3 -> [179] | D179: =ROW() -> 179 | E179: Diese Szenario-Datei, die Dateien des zugehörigen 100prosim-Basisszenarios (Deutschland oder Bundesland) und die Schnittstellendatei SI.xlsx müssen sich in einem gemeinsamen Arbeitsverzeichnis befinden: - Download des 100prosim-Basisszenarios in das aktuelle Arbeits-Verzeichnis entpacken, in dem auch diese Datei liegt. - Download der Schnittstellendatei SI.xlsx ebenfalls in das aktuelle Arbeitsverzeichnis. - Durch Öffnen von _100prosim die zum Tool gehörenden Dateien hochfahren lassen. - Schnittstellendatei SI öffnen.
B180: =B$3&D$3&D180&E$3 -> [8.180] | C180: =B$3&D180&E$3 -> [180] | D180: =ROW() -> 180 | E180: Nach erfolgreicher Koppelung wird die Bezeichnung des gekoppelten Basisszenarios in '0.Leitlinie' angezeigt.
B181: =B$3&D$3&D181&E$3 -> [8.181] | C181: =B$3&D181&E$3 -> [181] | D181: =ROW() -> 181
B182: [8.182] | C182: [182] | D182: =ROW() -> 182 | E182: ='0.Leitfaden'!F64 -> BSz nutzen
B183: [8.183] | C183: [183] | D183: =ROW() -> 183 | E183: Bei gekoppeltem Basisszenario kann über den Verweis '→[AH.C1]' direkt in das Cockpit1 gesprungen werden, um von da aus das Basisszenario zu betrachten und ggf. zu verändern. Eine Anleitung dazu ist über AH.0 ganz oben '→ Anleitung' verfügbar.
B184: =B$3&D$3&D184&E$3 -> [8.184] | C184: =B$3&D184&E$3 -> [184] | D184: =ROW() -> 184 | E184: Veränderungen im Basisszenario werden automatisch in die Kalkulation dieses Zielszenarios übernommen.
B185: [8.185] | C185: [185] | D185: =ROW() -> 185
B186: =B$3&D$3&D186&E$3 -> [8.186] | C186: =B$3&D186&E$3 -> [186] | D186: =ROW() -> 186 | E186: ='0.Leitfaden'!F65 -> BSz Offline-Backup
B187: =B$3&D$3&D187&E$3 -> [8.187] | C187: =B$3&D187&E$3 -> [187] | D187: =ROW() -> 187 | E187: Jedes Energieszenario für eine Zielregion basiert auf einem übergeordneten Basisszenario, entweder für das betreffende Bundesland oder Deutschland. Im gekoppelten Zustand werden die für die Projektion relevanten Daten über eine Schnittstelle online aus dem Basisszenario bereit gestellt. Um eine vereinfachte autarke Anwendung des Zielszenarios ohne das gesamte 100prosim-Tooling zu ermöglichen, kann zuvor der aktuelle Zustand als Offline-Backup fixiert werden. Das geschieht über die Betätigung des Buttons "Offline-Backup" rechts im Service-Bereich von '1.Ansicht'. | F187: =IF(K187=0,"",HYPERLINK("["&L$1&".xlsm]'"&MID(L187,3,20),"→["&M187&"."&K187&"]")) -> →[1.4] | K187: ='1.Ansicht'!V4 -> 4 | L187: =IFERROR(_xlfn.FORMULATEXT(K187),"") -> ='1.Ansicht'!V4 | M187: =IF(MID(L187,2,1)="'",VALUE(MID(L187,3,1)),0) -> 1
B188: [8.188] | C188: [188] | D188: =ROW() -> 188 | E188: Dazu gehört auch der Ersatz des Cockpit-Photos in '51.Basisszenario' durch ein Photo des aktuellen Standes von Cockpit1: - AH.Cockpit1 möglichst Formatfüllend auf dem Bildschirm zur Anzeige bringen. - Über die Taste 'Druck' den Bildschirm in die Zwischenablage bringen. - Bildbearbeitungsprogramm starten (z. B. Irfanview), mit Strg+v die Zwischenablage laden. - Cockpit-Bereich auswählen und durch Freistellen nicht benötigte Bereiche entfernen. - Cockpit-Photo mit Strg+c wieder in die Zwischenablage laden. - Wechsel zurück zu '51.Basisszenario', 'Überprüfen - Blattschutz aufheben'. - Vorhandenes Cockpit-Photo auswählen und Entfernen. - Neues Photo mit Strg+v aus der Zwischenablage auf der Seite einfügen. -Größe und Position des neues Photos anpassen, oberste Excel-Zeile muss frei bleiben! - 'Überprüfen - Blatt schützen'. | F188: =IF(K188=0,"",HYPERLINK("["&L$1&".xlsm]'"&MID(L188,3,20),"→["&M188&"."&K188&"]")) -> →[5.2] | G188: =IF(P175=0,"",HYPERLINK("["&#REF!&".xlsm]'"&MID(M188,3,20),"→["&N175&"."&P175&"]")) ->  | K188: ='51.Basisszenario'!A2 -> 2 | L188: =IFERROR(_xlfn.FORMULATEXT(K188),"") -> ='51.Basisszenario'!A2 | M188: =IF(MID(L188,2,1)="'",VALUE(MID(L188,3,1)),0) -> 5
B189: =B$3&D$3&D189&E$3 -> [8.189] | C189: =B$3&D189&E$3 -> [189] | D189: =ROW() -> 189
B190: =B$3&D$3&D190&E$3 -> [8.190] | C190: =B$3&D190&E$3 -> [190] | D190: =ROW() -> 190 | E190: 100prosim.P Formular erstellen
B191: =B$3&D$3&D191&E$3 -> [8.191] | C191: =B$3&D191&E$3 -> [191] | D191: =ROW() -> 191 | E191: Erstellung eines neuen 100prosim.P-Formulars für eine Basisregion, deren 100prosim-Szenario bisher noch nicht mit 100prosim.P unterfüttert ist: 1. Öffnen eines vorhandenen 100prosim.P-Formulars für ein anderes Bundesland als Vorlage, z. B. P000100-B.Nds-L. (Niedersachsen).
B192: =B$3&D$3&D192&E$3 -> [8.192] | C192: =B$3&D192&E$3 -> [192] | D192: =ROW() -> 192 | E192: 2. Als Basis das 100prosim-Szenario des entsprechenden Bundeslandes koppeln. | F192: =IF(K192=0,"",HYPERLINK("["&'6.Standarddaten'!$M$2&".xlsm]'"&'6.Standarddaten'!$N$3&K192,"["&K192&"]")) -> [178] | G192: =IF(P200=0,"",HYPERLINK("["&#REF!&".xlsm]'"&MID(M192,3,20),"→["&N200&"."&P200&"]")) ->  | K192: ='8.Hilfe'!$D$178 -> 178
B193: [8.193] | C193: [193] | D193: =ROW() -> 193 | E193: 3. In 5.Kenndaten das bestehende Basisregion-Kürzel (im Beispiel 'B.Nds') ersetzen [5.13] durch ein Kürzel für das entsprechende Bundesland ('B.xxx').
B194: [8.194] | C194: [194] | D194: =ROW() -> 194 | E194: 4. Basisszenario Offline-Backup gemäß Anleitung: | F194: =IF(K194=0,"",HYPERLINK("["&'6.Standarddaten'!$M$2&".xlsm]'"&'6.Standarddaten'!$N$3&K194,"["&K194&"]")) -> [186] | G194: =IF(P203=0,"",HYPERLINK("["&#REF!&".xlsm]'"&MID(M195,3,20),"→["&N203&"."&P203&"]")) ->  | K194: ='8.Hilfe'!$D$186 -> 186
B195: [8.195] | C195: [195] | D195: =ROW() -> 195 | E195: 5. Karte Basisregion ändern gemäß Anleitunng | F195: =IF(K195=0,"",HYPERLINK("["&'6.Standarddaten'!$M$2&".xlsm]'"&'6.Standarddaten'!$N$3&K195,"["&K195&"]")) -> [198] | G195: =IF(P204=0,"",HYPERLINK("["&#REF!&".xlsm]'"&MID(M196,3,20),"→["&N204&"."&P204&"]")) ->  | K195: ='8.Hilfe'!$D$198 -> 198
B196: [8.196] | C196: [196] | D196: =ROW() -> 196 | E196: 6. In 5.Kenndaten neues Formular speichern [5.17].
B197: =B$3&D$3&D197&E$3 -> [8.197] | C197: =B$3&D197&E$3 -> [197] | D197: =ROW() -> 197
B198: =B$3&D$3&D198&E$3 -> [8.198] | C198: =B$3&D198&E$3 -> [198] | D198: =ROW() -> 198 | E198: Karte Basisregion ändern: | F198: =IF(K198=0,"",HYPERLINK("["&L$1&".xlsm]'"&MID(L198,3,20),"→["&M198&"."&K198&"]")) -> →[1.36] | K198: ='1.Ansicht'!D36 -> 36 | L198: =IFERROR(_xlfn.FORMULATEXT(K198),"") -> ='1.Ansicht'!D36 | M198: =IF(MID(L198,2,1)="'",VALUE(MID(L198,3,1)),0) -> 1
B199: =B$3&D$3&D199&E$3 -> [8.199] | C199: =B$3&D199&E$3 -> [199] | D199: =ROW() -> 199 | E199: Für die Erstellung eines neuen 100prosim.P-Formulars mit Bezug auf eine andere Basisregion ist in '1.Ansicht' auch eine passende Karte einzufügen. Bewährt hat sich dafür die Nutzung des kostenfreien Angebots von d-maps.com:
B200: =B$3&D$3&D200&E$3 -> [8.200] | C200: =B$3&D200&E$3 -> [200] | D200: =ROW() -> 200 | E200: https://d-maps.com/continent.php?num_con=10&lang=de
B201: =B$3&D$3&D201&E$3 -> [8.201] | C201: =B$3&D201&E$3 -> [201] | D201: =ROW() -> 201 | E201: Nach Auswahl der betreffenden Basisregion wird die Wahl der Option 'Grenzen' + 'Bezirke' empfohlen, mit grau gefärbten Flächen außerhalb der Basisregion; Kopieren der ausgewählten Karte, die jetzt groß im Browser erscheint, mit rechter Maustaste und 'Grafik kopieren'; wechseln zurück zu '1.Ansicht'; dann 'Überprüfen' - 'Blattschutz aufheben'; vorhandene Grafik löschen und neue Grafik aus Zwischenablage einfügen mit Strg+v; auf Größe des freien Feldes verkleinern; Achtung: Blattschutz ohne Kennwort wieder setzen im Untermenü 'Überprüfen'.
... 4 more rows

Sheet Versionen
A1: =K1 -> 240826e | C1: ='0.Leitfaden'!J3 -> 100prosim.P (P000100-D.H2i-L..xlsx, V.240826e) - 27.08.2024 13:04 | K1: =LEFT(L1,6)&IF(RIGHT(L1,1)="0",,"."&RIGHT(L1,1))&IF(M1=0,"e",) -> 240826e | L1: =MAX(L2:L495)*10 -> 2408260
A2: Stand | B2: fix | C2: Beschreibung
A3: 2019-04-05 | C3: Start Entwicklung aufgrund Anregung aus HSH-Workshop. | E3: =IF(A3="",0,IF(A3=A2,E2+1,0)) -> 0 | F3: =RIGHT(YEAR(A3),2) -> 19 | G3: =MONTH(A3) -> 4 | H3: =DAY(A3) -> 5 | I3: =IF(LEN(G3)=1,"0"&G3,G3) -> 04 | J3: 05 | K3: =F3&I3&J3&","&E3 -> 190405,0 | L3: =VALUE(K3) -> 190405 | M3: =IF(L3=L$1/10,IF(B3="","",1),"") -> 
A4: 2019-04-12 | C4: Funktionsfähig, Dateiname Projektion, Teilregion Vienenburg 1. Kalkulation 2. WindOnshore 3.SolarDach 4.SolarFrei. | E4: =IF(A4="",0,IF(A4=A3,E3+1,0)) -> 0 | F4: =RIGHT(YEAR(A4),2) -> 19 | G4: =MONTH(A4) -> 4 | H4: =DAY(A4) -> 12 | I4: =IF(LEN(G4)=1,"0"&G4,G4) -> 04 | J4: =IF(LEN(H4)=1,"0"&H4,H4) -> 12 | K4: =F4&I4&J4&","&E4 -> 190412,0 | L4: =VALUE(K4) -> 190412 | M4: =IF(L4=L$1/10,IF(B4="","",1),"") -> 
A5: 2019-04-12 | C5: Kopie unter LHH für Landeshauptstadt Hannover - Korrektur 1.G22: nicht von Nds. übernehmen, errechnen! - 1.G73, 1.I73: G67 statt G68 in Summierung, da extreme Überdeckung! (Wind offshore) | E5: =IF(A5="",0,IF(A5=A4,E4+1,0)) -> 1 | F5: =RIGHT(YEAR(A5),2) -> 19 | G5: =MONTH(A5) -> 4 | H5: =DAY(A5) -> 12 | I5: =IF(LEN(G5)=1,"0"&G5,G5) -> 04 | J5: =IF(LEN(H5)=1,"0"&H5,H5) -> 12 | K5: =F5&I5&J5&","&E5 -> 190412,1 | L5: =VALUE(K5) -> 190412.1 | M5: =IF(L5=L$1/10,IF(B5="","",1),"") -> 
A6: 2019-04-13 | C6: Erkenntnis aus LHH: Solidaransatz ergibt ohne Korrekturen bereits Überdeckung des Solidarbedarfs der Großstadt. Strom-Mehrbedarfsausgleich "&'1.Kenn-&Eckdaten'!#BEZUG!&" ausgeschaltet." | E6: =IF(A6="",0,IF(A6=A3,E3+1,0)) -> 0 | F6: =RIGHT(YEAR(A6),2) -> 19 | G6: =MONTH(A6) -> 4 | H6: =DAY(A6) -> 13 | I6: 04 | J6: 13 | K6: 190413,0 | L6: =VALUE(K6) -> 190413
A7: 2019-04-13 | C7: 0.Titel eingefügt mit Unterstützung für Szenario-Kennung als Dateiname. Kopfzeile automatisiert. Blatt Versionen eingeführt. Eckdateneingabe auf 0.Titel verlagert. Titel in Überblick umbenannt. Überblick um Eckdaten (Eingabe), Ziel-Ausbau und Ziel-Deckungsgrad ergänzt. Blätter 0-4 mit Kopfzeilen automatisiert. | E7: 1 | F7: =RIGHT(YEAR(A7),2) -> 19 | G7: =MONTH(A7) -> 4 | H7: =DAY(A7) -> 13 | I7: 04 | J7: 13 | K7: 190413,1 | L7: =VALUE(K7) -> 190413.1
A8: 2019-04-17 | C8: Versorgung mit Daten aus der Projektionsgrundlage über Interface SI inkusive Hyperlinks auf S und D, wahlweise stand-allone-Betrieb ohne SI, S und D durch Backup der Interface-Werte. Eingabe der Verwaltungsdaten von 0.Überblick in 1.Kalkulation verschoben, Verwaltungsdaten über SI versorgt. | E8: 0 | F8: =RIGHT(YEAR(A8),2) -> 19 | G8: =MONTH(A8) -> 4 | H8: =DAY(A8) -> 17 | I8: 04 | J8: 17 | K8: 190417,0 | L8: =VALUE(K8) -> 190417
A9: 2019-04-19 | C9: 2.WindOnshore umgestellt auf Versorgung aus 1.Kalkulation mit B.Nds-Daten, dort Kapitel Details neu eingeführt (dadurch genügt für stand allone-Betrieb ein einziger Backup-Vorgang. | E9: 0 | F9: 19 | G9: 4 | H9: 19 | I9: 04 | J9: 19 | K9: 190419,0 | L9: 190419
A10: 2019-05-06 | C10: 3 und 4: Kopfzeile funktionsfähig gemacht. 0. Bedarf zu 100% gedeckt an Bruttostrom gekoppelt. | E10: 0 | F10: 19 | G10: 5 | H10: 6 | I10: 05 | J10: 06 | K10: 190506,0 | L10: 190506
A11: 2019-05-22 | C11: Solidar über Export mitzuversorgende Energieverbraucher ergänzt "&'0.Überblick'!B30&", "&'1.Kenn-&Eckdaten'!#BEZUG!&", über Import mitversorgte Personen Zeile "&'0.Überblick'!B31&"ergänzt, aber noch ohne Formeln." | E11: 0 | F11: 19 | G11: 5 | H11: 22 | I11: 05 | J11: 22 | K11: 190522,0 | L11: 190522
A12: 2019-06-25 | C12: 0. F30 und F31: Fälle Export / Import abgefangen. 0. J11 und J13 Kürzel von 1. übernommen | E12: 0 | F12: 19 | G12: 6 | H12: 25 | I12: 06 | J12: 25 | K12: 190625,0 | L12: 190625
A13: 2019-07-04 | C13: 0. F29 von =I31 auf =I33 berichtigt, so dass ein geänderter Ansatz bei der Bevölkerungszahl auch berücksichtigt wird. | E13: 0 | F13: 19 | G13: 7 | H13: 4 | I13: 07 | J13: 04 | K13: 190704,0 | L13: 190704
A14: 2019-07-23 | C14: Inport Windstrom Offshore ausschaltbar gemacht in 1.Kalkulation, Zeile "&'1.Kenn-&Eckdaten'!#BEZUG!&" inklusive Warnhinweis in Zeile 1." | E14: 0 | F14: 19 | G14: 7 | H14: 23 | I14: 07 | J14: 23 | K14: 190723,0 | L14: 190723
A15: 2020-12-18 | C15: Fehlerkorrekturen 1. Kalkulation im Rahmen 1:1-Test (By-By): I52, I55, I58, K101, K191, S77, S180 (was aussteht: Deckungsgrad > 100%???) | E15: 0 | F15: 20 | G15: 12 | H15: 18 | I15: 12 | J15: 18 | K15: 201218,0 | L15: 201218
A16: 2020-12-19 | C16: Fehlerkorrekturen 1. Kalkulation im Rahmen 1:1-Test (By-By): E126 und E127 Begriffe korrigiert, M129 Formel geändert. Korrektur Grundstoff M177, M180. Abgleichtest erfolgreich! | E16: 0 | F16: 20 | G16: 12 | H16: 19 | I16: 12 | J16: 19 | K16: 201219,0 | L16: 201219
A17: 2020-12-20 | C17: Noch verbliebene direktverknpfungdn zu _S ersetzt durch Verknüpfungen über Schnittstelle SI: 1.214 - 1.224 neu eingefügt. In 3. Q,S,T folgende Zellen angepasst: 9, 10,14, 21, 22, 25, 27, 28. In 4. Q,S,T folgende Zellen angepasst: 8 ,9, 17. Nebenrechnung für Aufteilung PV Dach und PV FF in 3.37-45. Deutliche Markierung der aktiven Status/Zielspalte in 3.6 (in 2 und 4 steht das noch aus). | E17: 0 | F17: 20 | G17: 12 | H17: 20 | I17: 12 | J17: 20 | K17: 201220,0 | L17: 201220
A18: 2020-12-22 | C18: 1.T5, T6: Backup-Kennung eingeführt, Backup erfolgreich getestet. 0. Zeile 30, 31: Fehlende Formeln für Mitversorgt und Mitzuversorgen eingeführt.x 4. Zeile 7 mit "gewählt" hinzugefügt. | E18: 0 | F18: 20 | G18: 12 | H18: 22 | I18: 12 | J18: 22 | K18: 201222,0 | L18: 201222
A19: 2020-12-23 | C19: 1.S133 Änderung der Verlinkung von S.4.81 auf S.4.77 (statt auf Brennstoffeinsatz Gebäudewärme war fälschlicherweise Einsparung Brennstoffe Gebäudewärme verlinkt). 1.S134 Änderung der Verlinkung von S.4.113 auf S.4.109 (statt auf Brennstoffeinsatz Prozesswärme war fälschlicherweise Einsparung Brennstoffe Gebäudewärme verlinkt). | E19: 0 | F19: 20 | G19: 12 | H19: 23 | I19: 12 | J19: 23 | K19: 201223,0 | L19: 201223
A20: 2021-01-05 | C20: 1. Spalte H, Zeilen 26-29 und Begriffe in Zeile 47, 61, 63 an modifizierte regionalstatistik angepasst. | E20: 0 | F20: 21 | G20: 1 | H20: 5 | I20: 01 | J20: 05 | K20: 210105,0 | L20: 210105
A21: 2021-01-11 | C21: 2.WindOnshore Zeile 7 "gewählt" eingefügt. | E21: 0 | F21: 21 | G21: 1 | H21: 11 | I21: =IF(LEN(G21)=1,"0"&G21,G21) -> 01 | J21: 11 | K21: 210111,0 | L21: 210111
A22: 2021-01-11 | C22: Tabelle 1 eingefügt zur Vereinfachung der Betrachtung: Das zugrunde liegende Basis-Region-Szenario setzt einen bestimmten Beitrag der Zielregion an Wind- und Solarstrom voraus. Welche Anpassungen an die örtlichen Gegebenheiten wären erforderlich/sinnnvoll/wünschenswert? | E22: 1 | F22: 21 | G22: 1 | H22: 11 | I22: 01 | J22: 11 | K22: 210111,1 | L22: 210111.1
A23: 2021-01-12 | C23: Tabelle1 Wind, DachPV, FFPV funktionsfähig | E23: 0 | F23: 21 | G23: 1 | H23: 12 | I23: 01 | J23: 12 | K23: 210112,0 | L23: 210112
A24: 2021-01-14 | C24: 1.Kalkulation in 1.Kenn-&Eckdaten umbenannt, Tabelle1 in 2.Wind&PV umbenannt, Versorgung über Schnittstellendatei SI autark gemacht und Kalkulation in 1.Kenn&Eckdaten gelöscht. | E24: 0 | F24: 21 | G24: 1 | H24: 14 | I24: 01 | J24: 14 | K24: 210114,0 | L24: 210114
A25: 2021-01-17 | C25: 9.Quellen eingeführt, Druckformat 2.Wind&PV optimiert, Diagrammsäulen ausblendbar. | E25: 0 | F25: 21 | G25: 1 | H25: 17 | I25: 01 | J25: 17 | K25: 210117,0 | L25: 210117
A26: 2021-01-17 | C26: 2.Wind&PV Leistung/Windanlage und Anzahl Anlagen ergänzt inkl. 9.Quellen-Einträge 8.Konzept(2) Skizze Gebäudewärme 3.Gebäudewärme zugefügt, Solarwärme vom Dach und Bioenergie | E26: 1 | F26: =RIGHT(YEAR(A26),2) -> 21 | G26: =MONTH(A26) -> 1 | H26: =DAY(A26) -> 17 | I26: 01 | J26: 17 | K26: =F26&I26&J26&","&E26 -> 210117,1 | L26: =VALUE(K26) -> 210117.1 | M26: =IF(L26=L$1/10,IF(B26="","",1),"") -> 
A27: 2021-01-20 | C27: 1.Kenn-&Eckdaten: Gebäudewärme strukturiert, Formatierung optimiert, Fehlerkorrekturen. | E27: 0 | F27: =RIGHT(YEAR(A27),2) -> 21 | G27: =MONTH(A27) -> 1 | H27: =DAY(A27) -> 20 | I27: 01 | J27: 20 | K27: =F27&I27&J27&","&E27 -> 210120,0 | L27: =VALUE(K27) -> 210120 | M27: =IF(L27=L$1/10,IF(B27="","",1),"") -> 
A28: 2021-01-20 | C28: 1.: Diagramm-Beschriftung als Formel. Auswahlliste Stadt,Landkreis… für F35 in O34 - T34 wieder hergestellt. | E28: 1 | F28: =RIGHT(YEAR(A28),2) -> 21 | G28: =MONTH(A28) -> 1 | H28: =DAY(A28) -> 20 | I28: 01 | J28: 20 | K28: =F28&I28&J28&","&E28 -> 210120,1 | L28: =VALUE(K28) -> 210120.1 | M28: =IF(L28=L$1/10,IF(B28="","",1),"") -> 
A29: 2021-02-13 | C29: Zugriffsfehler auf verbundene Basisregion behoben durch Spaltenkennung D in 2.AC2 und Zugriff darauf von Formel in 2.AC6 (Warum ging das mit Bayern?) | E29: 0 | F29: 21 | G29: 2 | H29: 13 | I29: 02 | J29: 13 | K29: 210213,0 | L29: 210213
A30: 2021-02-14 | C30: 1.Kenn-&Eckdaten: Layout verfeinert und auf Wind/PV beschränkt | E30: 0 | F30: 21 | G30: 2 | H30: 14 | I30: 02 | J30: 14 | K30: 210214,0 | L30: 210214
A31: 2021-02-14 | C31: Weitere Optimierung Layout | E31: 1 | F31: 21 | G31: 2 | H31: 14 | I31: 02 | J31: 14 | K31: 210214,1 | L31: 210214.1
A32: 2021-02-24 | C32: 1. Zeile Energieverbraucher Solidar eingefügt. | E32: 0 | F32: 21 | G32: 2 | H32: 24 | I32: 02 | J32: 24 | K32: 210224,0 | L32: 210224
A33: 2021-02-26 | C33: 1. Ausbaurate ergänzt und animiert. | E33: 0 | F33: 21 | G33: 2 | H33: 26 | I33: 02 | J33: 26 | K33: 210226,0 | L33: 210226
A34: 2021-03-09 | C34: 1. Regionskategorie um Stadt+Landkreis ergänzt | E34: 0 | F34: 21 | G34: 3 | H34: 9 | I34: 03 | J34: 09 | K34: 210309,0 | L34: 210309
E35: 0 | F35: 00 | G35: 1 | H35: 0 | I35: 01 | J35: 00 | K35: 000100,0 | L35: 100
A36: 2021-03-19 | C36: 1., 2.: Gebäudewärme ergänzt bis Solarthermie (Niedernhausen) | E36: 0 | F36: 21 | G36: 3 | H36: 19 | I36: 03 | J36: 19 | K36: 210319,0 | L36: 210319
A37: 2021-03-21 | C37: 1., 9. Standardquellen eingeführt, auch Marktstammdatenregister | E37: 0 | F37: 21 | G37: 3 | H37: 21 | I37: =IF(LEN(G37)=1,"0"&G37,G37) -> 03 | J37: 21 | K37: 210321,0 | L37: 210321
A38: 2021-03-22 | C38: 1.Ansicht, 2.Kalkulation, 5.Kenndaten, 6.Strukturdaten, 7.Detaildaten geordnet Richtung Anwendbarkeit. | E38: 0 | F38: 21 | G38: 3 | H38: 22 | I38: 03 | J38: 22 | K38: 210322,0 | L38: 210322
A39: 2021-03-27 | C39: 2.Kalkulation Status und Ziel-Rechnungen mit Variablen und Hyperlinks ergänzt und eigenständig funktions fähiggemacht, 1.Ansicht Extra-Zubauspalte durch Zubauzeilen ersetzt, Diagramme in Seite eingepasst | E39: 0 | F39: 21 | G39: 3 | H39: 27 | I39: 03 | J39: 27 | K39: 210327,0 | L39: 210327
A40: 2021-03-28 | C40: GW-Diagramm Säulenausblendung, Ausblendungsschalter besser anordnen, Links von 1. in 2., Basis-Übernahme-Makro (Beispiel Niedernahausen) | E40: 0 | F40: 21 | G40: 3 | H40: 28 | I40: 03 | J40: 28 | K40: 210328,0 | L40: 210328
A41: 2021-03-29 | C41: 6. Hilfe Copy&Paste von regionalstatistik; Test MaStR am Beispiel Stadt+Landkreis Kassel; Makro Speichern unter Dateikennung funktionsfähig. | E41: 0 | F41: 21 | G41: 3 | H41: 29 | I41: 03 | J41: 29 | K41: 210329,0 | L41: 210329
A42: 2021-04-03 | C42: MaStR-Blätter 6.1.Wind, 6.1.a.Wind, 6.2.Solar, 6.2.a.Solar mit automatischer Auswertung von 6. aus eingeführt. | E42: 0 | F42: 21 | G42: 4 | H42: 3 | I42: 04 | J42: 03 | K42: 210403,0 | L42: 210403
A43: 2021-04-13 | C43: 2.Kalkulation: Verlinkung in Spalte J auf xlsm umgestellt, Für Makro Sub Speichern(() in 5.Kenndaten Zellennamen SzenKenn und DateinameAktuell definiert. | E43: 0 | F43: 21 | G43: 4 | H43: 13 | I43: 04 | J43: 13 | K43: 210413,0 | L43: 210413
A44: 2021-04-14 | C44: 6.Standarddaten: Aufnahme Bevölkerung und Bodenfläche standardisiert unterstützt inklusive 3 Landkreise für eine Region. | E44: 0 | F44: 21 | G44: 4 | H44: 14 | I44: 04 | J44: 14 | K44: 210414,0 | L44: 210414
A45: 2021-04-17 | C45: 6.Standarddaten: Aufnahme Bevölkerung und Flächen standardisiert für jeweils einen Wert bzw. zwei Werte für Stadt+Landkreis; Aufnahme Windenergie standardisiert für Basis-proportional (1), Marktstammdatenregister (2) oder Freie Recherche (3); 2.Kalkulation Links entsprechend angepasst. | E45: 0 | F45: 21 | G45: 4 | H45: 17 | I45: 04 | J45: 17 | K45: 210417,0 | L45: 210417
A46: 2021-04-18 | C46: 6.Standarddaten: Fortsetzung bei Aufnahme Solar | E46: 0 | F46: 21 | G46: 4 | H46: 18 | I46: 04 | J46: 18 | K46: 210418,0 | L46: 210418
A47: 2021-04-26 | C47: 8.Hilfe neu eingeführt, 5.Kenndaten mit Hilfeverweisen und Hilfetexten versehen | E47: 0 | F47: 21 | G47: 4 | H47: 26 | I47: 04 | J47: 26 | K47: 210426,0 | L47: 210426
A48: 2021-04-27 | C48: 6.Standarddaten mit Hilfeverweisfunktion versehen. | E48: 0 | F48: 21 | G48: 4 | H48: 27 | I48: 04 | J48: 27 | K48: 210427,0 | L48: 210427
A49: 2021-04-28 | C49: 8. Hilfe für 6.Standarddaten bis Bevölkerung ausgearbeitet. | E49: 0 | F49: 21 | G49: 4 | H49: 28 | I49: 04 | J49: 28 | K49: 210428,0 | L49: 210428
A50: 2021-05-02 | C50: 8.Hilfe für 6.Standarddaten für Wind- und Solarstrom fertig gestellt. | E50: 0 | F50: 21 | G50: 5 | H50: 2 | I50: 05 | J50: 02 | K50: 210502,0 | L50: 210502
A51: 2021-05-04 | C51: 8.Hilfe Setup komplett, Anwendung strukturiert; 1.Ansicht um Hilfe-Links ergänzt. | E51: 0 | F51: 21 | G51: 5 | H51: 4 | I51: 05 | J51: 04 | K51: 210504,0 | L51: 210504
A52: 2021-05-05 | C52: Komplett-Test LK GS: Express-Setup (30Min.) und Standard-Setup (22 Min.); Formelfehler in 2.49M und 2.50M behoben. | E52: 0 | F52: 21 | G52: 5 | H52: 5 | I52: 05 | J52: 05 | K52: 210505,0 | L52: 210505
A53: 2021-05-06 | C53: Alle Arbeitsblätter Kopfzeile 100prosimP in 100prosim.P umbenannt; 0.Übersicht eingeblendet und in 0.Leitfanden umbenannt. | E53: 0 | F53: 21 | G53: 5 | H53: 6 | I53: 05 | J53: 06 | K53: 210506,0 | L53: 210506
A54: 2021-05-09 | C54: 0.Leitfaden strukturiert und mit Hyperlinks versorgt, 3.Gebäudewärme endgültig gelöscht | E54: 0 | F54: 21 | G54: 5 | H54: 9 | I54: 05 | J54: 09 | K54: 210509,0 | L54: 210509
A55: 2021-05-12 | C55: 0. weiter strukturiert, Erledigungs-Markierungen eingefügt, 51.Basisszenario eingeführt. | E55: 0 | F55: 21 | G55: 5 | H55: 12 | I55: 05 | J55: 12 | K55: 210512,0 | L55: 210512
A56: 2021-05-13 | C56: 0. bis Szenario Verändern fertig strukturiert, Hilfetexte bis Diagramm-Säulen-Schalter, 8. Rücksprungadressen mit Links versehen. | E56: 0 | F56: 21 | G56: 5 | H56: 13 | I56: 05 | J56: 13 | K56: 210513,0 | L56: 210513
A57: 2021-05-16 | C57: 1. fertig bebildert, Tabelle ausblendbar, Hilfetexte bis Gebäudewärme, 0.Zeilenfilter, Zeilen grau/weiß | E57: 0 | F57: 21 | G57: 5 | H57: 16 | I57: 05 | J57: 16 | K57: 210516,0 | L57: 210516
A58: 2021-05-17 | C58: 0. Leifaden > Hilfetexte bis Brennholz fertig, 1. Hilfeverweise von den GW-Piktogrammen | E58: 0 | F58: 21 | G58: 5 | H58: 17 | I58: 05 | J58: 17 | K58: 210517,0 | L58: 210517
A59: 2021-05-18 | C59: 51. Bedingten Verweis auf Original AH.Cockpit1, wenn gekoppelt. 8. Hilfetexte bis BSz einbeziehen | E59: 0 | F59: 21 | G59: 5 | H59: 18 | I59: 05 | J59: 18 | K59: 210518,0 | L59: 210518
A60: 2021-05-20 | C60: 0.BSz koppeln fertig, Funktion getestet und in 8. beschrieben. Mit der Beschreibung von Szenario verändern in 8. begonnen. | E60: 0 | F60: 21 | G60: 5 | H60: 20 | I60: 05 | J60: 20 | K60: 210520,0 | L60: 210520
A61: 2021-06-08 | C61: 0. 8.: Szenario verändern fertig gestellt. 2.Hilfetexte zu den Spalten als Kommentare hinterlegt. | E61: 0 | F61: 21 | G61: 6 | H61: 8 | I61: 06 | J61: 08 | K61: 210608,0 | L61: 210608
A62: 2021-06-08 | C62: 0.J24 fixe Bemerkung gelöscht. | E62: 1 | F62: 21 | G62: 6 | H62: 8 | I62: 06 | J62: 08 | K62: 210608,1 | L62: 210608.1
A63: 2021-06-14 | C63: 6. Schutz der Eingabezellen 'Datenquelle?' rückgesetzt. | E63: 0 | F63: 21 | G63: 6 | H63: 14 | I63: 06 | J63: 14 | K63: 210614,0 | L63: 210614
A64: 2021-06-26 | C64: VBA Modul 1, Sub Speichern(): Korrektur für das zuverlässige Speichern der umbenannten Datei im ursprünglichen Arbeitsordner. 8.184: Blattschutz ergänzt, Text formatiert. 8.186 ff: '100prosim.P Formular erstellen' ergänzt, Link in 0.65 angepasst. 2.AB55: 507 statt 504 und damit nicht fix auf Solidarprinzip, sondern gemäß Einstellung im Basisszen. 1.10: Verweispfeil mit Pfeil statt Endpunkt wie bisher. 7.1-3: Zeilen ausgeblendet, Blatt gechützt | E64: 0 | F64: 21 | G64: 6 | H64: 26 | I64: 06 | J64: 26 | K64: 210626,0 | L64: 210626
A65: 2024-02-08 | C65: Tabellen 1.2.Produktion, 1.3.PW-Brennstoff, 1.4.Wasserstoff, 63.Prod.Gew. Ergänzt. In Diagramm Wind-/Solarstrom (1.Ansicht und 2.Kalkulation) unter sonst. Wasserkraft und Strom aus Biomasse ergänzt. Dazu 2.43 Summierung Strom aus Biomasse und Wasserkraft neu eingefügt, 2.91 für Strom aus Biomasse und 2.92 für Wasserkraft neu eingefügt, 2.44 Titel Wind&Solarstrom um Biomasse-Strom und Wasserkraft ergänzt und Summenformeln für Region und Basisregion erweitert, 7.8 und 7.9 ergänzt für die explizite Angabe der Statuswerte für Strom aus Biomasse und Wasserkraft in der Region.. Zeilen 0.23 und 0.24 in Leitfaden eingefügt. Zeilen 8.117 - 8.120 in Hilfe eingefügt. | E65: 0 | F65: 24 | G65: 2 | H65: 8 | I65: 02 | J65: 08 | K65: 240208,0 | L65: 240208
A66: 2024-08-26 | C66: Anpassung an Basisszenario D 200822 (Abbildung 51.Basisszenario; Verlinkung nach _S und D im Arbeitsverzeichnis wieder hergestellt. | E66: 0 | F66: 24 | G66: 8 | H66: 26 | I66: 08 | J66: 26 | K66: 240826,0 | L66: 240826
E67: =IF(A67="",0,IF(A67=A66,E66+1,0)) -> 0 | F67: 00 | G67: 1 | H67: 0 | I67: 01 | J67: 00 | K67: =F67&I67&J67&","&E67 -> 000100,0 | L67: 100 | M67: =IF(L67=L$1/10,IF(B67="","",1),"") -> 
C68: Verbesserungsvorhaben: Linkspalte auf Poster, Anleitung, | E68: 0 | F68: 00 | G68: 1 | H68: 0 | I68: 01 | J68: 00 | K68: 000100,0 | L68: 100
E69: 0 | F69: 00 | G69: 1 | H69: 0 | I69: 01 | J69: 00 | K69: 000100,0 | L69: 100
E70: 0 | F70: 00 | G70: 1 | H70: 0 | I70: 01 | J70: 00 | K70: 000100,0 | L70: 100
E71: 0 | F71: 00 | G71: 1 | H71: 0 | I71: 01 | J71: 00 | K71: 000100,0 | L71: 100
E72: 0 | F72: =RIGHT(YEAR(A72),2) -> 00 | G72: =MONTH(A72) -> 1 | H72: =DAY(A72) -> 0 | I72: 01 | J72: 00 | K72: 000100,0 | L72: =VALUE(K72) -> 100
E73: 0 | F73: 00 | G73: 1 | H73: 0 | I73: 01 | J73: 00 | K73: 000100,0 | L73: 100
E74: 0 | F74: 00 | G74: 1 | H74: 0 | I74: 01 | J74: 00 | K74: 000100,0 | L74: 100
E75: 0 | F75: 00 | G75: 1 | H75: 0 | I75: 01 | J75: 00 | K75: 000100,0 | L75: 100
E76: 0 | F76: 00 | G76: 1 | H76: 0 | I76: 01 | J76: 00 | K76: 000100,0 | L76: 100
E77: 0 | F77: 00 | G77: 1 | H77: 0 | I77: 01 | J77: 00 | K77: 000100,0 | L77: 100
E78: 0 | F78: 00 | G78: 1 | H78: 0 | I78: 01 | J78: 00 | K78: 000100,0 | L78: 100
E79: 0 | F79: 00 | G79: 1 | H79: 0 | I79: 01 | J79: 00 | K79: 000100,0 | L79: 100
E80: 0 | F80: 00 | G80: 1 | H80: 0 | I80: 01 | J80: 00 | K80: 000100,0 | L80: 100
E81: 0 | F81: 00 | G81: 1 | H81: 0 | I81: 01 | J81: 00 | K81: 000100,0 | L81: 100
E82: 0 | F82: 00 | G82: 1 | H82: 0 | I82: 01 | J82: 00 | K82: 000100,0 | L82: 100
E83: 0 | F83: 00 | G83: 1 | H83: 0 | I83: 01 | J83: 00 | K83: 000100,0 | L83: 100
E84: 0 | F84: 00 | G84: 1 | H84: 0 | I84: 01 | J84: 00 | K84: 000100,0 | L84: 100
E85: 0 | F85: 00 | G85: 1 | H85: 0 | I85: 01 | J85: 00 | K85: 000100,0 | L85: 100
E86: 0 | F86: 00 | G86: 1 | H86: 0 | I86: 01 | J86: 00 | K86: 000100,0 | L86: 100
E87: 0 | F87: 00 | G87: 1 | H87: 0 | I87: 01 | J87: 00 | K87: 000100,0 | L87: 100
E88: 0 | F88: 00 | G88: 1 | H88: 0 | I88: 01 | J88: 00 | K88: 000100,0 | L88: 100
E89: 0 | F89: 00 | G89: 1 | H89: 0 | I89: 01 | J89: 00 | K89: 000100,0 | L89: 100
E90: 0 | F90: 00 | G90: 1 | H90: 0 | I90: 01 | J90: 00 | K90: 000100,0 | L90: 100
E91: 0 | F91: 00 | G91: 1 | H91: 0 | I91: 01 | J91: 00 | K91: 000100,0 | L91: 100
E92: 0 | F92: 00 | G92: 1 | H92: 0 | I92: 01 | J92: 00 | K92: 000100,0 | L92: 100
E93: 0 | F93: 00 | G93: 1 | H93: 0 | I93: 01 | J93: 00 | K93: 000100,0 | L93: 100
E94: 0 | F94: 00 | G94: 1 | H94: 0 | I94: 01 | J94: 00 | K94: 000100,0 | L94: 100
E95: 0 | F95: 00 | G95: 1 | H95: 0 | I95: 01 | J95: 00 | K95: 000100,0 | L95: 100
